Workbook

Sheet CurTiPot (hidden)
R1: CurTiPot main features and uses
R2: • pH calculation of aqueous solutions with activity coefficient and buffer capacity estimation (mixtures of up to seven hexaprotic systems)
R3: • Virtual Titration with indicator color transition simulation, manual titrant addition with a digital burette, species distribution and pH vs. volume plot
R4: • Simulation of simple and complex acid-base titration curves
R5: » automatic generation of curves with data equally spaced in pH or volume, in concentration ("pH") or activity (pH)
R6: » simulation of experimental random errors in pH and volume; overlay of multiple curves for comparison
R7: • Data analysis of real and simulated curves
R8: » Evaluation of curves with enhanced accuracy by interpolation, spline smoothing and automatic endpoint detection
R9: » Non-linear data Regression for the determination of concentrations and refinement of pKa values
R10: • Distribution diagrams of species, protonation of bases, isoelectric point and buffer capacity vs. pH and vs. volume of a titration
R11: • Database with equilibrium constants (pKa) of 250 acid-base systems including amino acids and some indicators (expandable by the user)
R13: No installation is needed. Download the latest release of CurTiPot from www.iq.usp.br/gutz/Curtipot_.html and open the file with Microsoft Excel®
R14: Read the License - hover the mouse over the cell with the red dot on the left (Q14)
R15: If you agree with all terms of the License, enable macros and use CurTiPot freely for non-commercial purposes
R16: To enable the execution of macro-instructions in MS Excel follow instructions at the right -------> -------> -------> -------> -------> -------> | AM16: How to enable the macro-instructions in Excel 2013, 2010 and 2007
R17: The Solver supplement is required only by the Regression module. Follow activation instructions given in the cell I19 of the module | AM17: Needless to say, CurTiPot, freely distributed by the author since 1992,
AM18: is trustworthy and contains no harmful code.
R19: The author reserves the right not to be responsible for the correctness, completeness, accuracy and bug-free operation of the freeware CurTiPot, provided "as is" without warranty of any kind | AM19: All macros are fully removed when closing the file.
R20: Activity coefficient calculations, available in the pH_calc, Simulation and Regression modules, are subject to the limitations of the Daniel equation at ionic strength >0.1 mol/L
R21: Due to the wide range of screen resolutions in use nowadays, some resizing/replacement of figures and objects may be required | AM21: 1. Open a new blank Excel spreadsheet
R22: Please report errors and incompatibilities of CurTiPot for MS Excel (PC and Mac) to the author; | AC22: Use the e-mail: | AD22: gutz@iq.usp.br | AM22: 2. Click on the File tab (or the Office button, in Windows XP)(top left corner)
AM23: 3. Click on "Options" (bottom left)
AM24: 4. Click on "Trust Center" (bottom left)
R25: Enable macros (see cell R16 above); click on a tab at the bottom left of this page or press Ctrl + PgDn switch modules; follow instructions in the yellow balloons | AM25: 5. Click on "Trust Center Settings" (bottom right)
R26: Titration could be a nice start for beginners; pH_calc has too much stuff to grasp at once, but the pH is highlighted in the dark blue cell H23 | AM26: 6. Click on "Macro Settings"
R27: Read local instructions in comment boxes by placing the mouse on cells with red marks (like in Q14 and Q34 at this page); | AM27: 7. Click on "Disable macros with notification"
R28: Switch to the Simulation module and repeat the preloaded titration of phosphoric acid; start clicking on the buttons at the left of the figure; change some concentrations afterwards; | AM28: 8. Click OK; follow steps 1 to 8 only once on each computer
R29: Find endpoints of your real or simulated curves with Evaluation. There are buttons to load the last titration curve from Simulation; | AM29: 9. Open the CurTiPot file
R30: Play and learn with the Distribution module; enjoy the Graphs before you advance to the less simple but more powerful Regression module to fit concentrations and pKas; | AM30: 10. When the "Security warning" shows up, click on it to enable content
R31: Save your data, settings and results in Curtipot_anyname.xls files to preserve the original software (optionally deleting unused spreadsheets, with exception of this first one);
AM32: How to enable macros in MS Excel 97-2003:
R33: The software CurTiPot, version 1.0 for DOS (Borland Turbo Basic and Microsoft Disk Operating System), was created in 1991 and launched in 1992. | AM33: 1. Open a new blank Excel spreadsheet
D34: Dr. Ivano Gebhardt Rolf Gutz - Full Professor (since 1992) | R34: To read about the name, origins and customers of CurTiPot hold the mouse on the red marked cell Q34. | AM34: 2. Click on the "Tools" tab
D35: Instituto de Química - Universidade de São Paulo, São Paulo, SP, Brazil | R35: Version 2, improved and adapted for titrations with coulometric generation of reactants, was released in 1992. | AM35: 3. Select "Macro"
D36: Member of the Editorial Boards of Talanta (2005-2007) and Electrochemistry Communications (2005 -->) | R36: Version 3.0 for Excel, an evolution of the DOS version with added Regression module was released in 2006 (in Portuguese). | AM36: 4. Select "Security"
D37: Member of the Brazilian Academy of Sciences | R37: Version 3.1 was the first release translated to English, launched on the internet in May 1st, 2006. | AM37: 5. Select "Security level"
D38: Honored with the National Order of Scientific Merit, Brazil, 2007 | R38: Version 3.2, released in December 2006, includes a separate pH_calc module with activity coefficient estimation. | AM38: 6. Select "Medium"
D39: Fellow of the International Union of Pure and Applied Chemistry | R39: Version 3.3, January 2008, has a friendlier interface with the Database and includes logarithmic distribution diagram generation overlaid on the titration curve. | AM39: 7. Open the CurTiPot file and enable the content
D40: Research interests, CV, publications, see: http://www.iq.usp.br/gutz and | R40: Version 3.4, October 2008, extends Ionic strength and activity coefficient calculations to the Regression module (formerly available only in pH_calc).
D41: http://scholar.google.com.br/citations?user=qXFK1_YAAAAJ&hl=pt-BR | R41: Version 3.5, Jan/Feb 2010, calculates Buffer Capacity (BC) and medium charge (zm) (pH_calc module) and plots BC and zm and finds the isoelectric point (Distribution module).
B42: CurTiPot was written almost during weekends and holidays, in São Paulo and, sometimes, in Guaeca | R42: Version 3.6, March 2012 - Inflections (endpoints) of real and simulated titrations are located automatically by the improved Evaluation module, with smoothing and interpolation.
B43: a nice beach where I took some pictures; search Google for: guaeca panoramio gutz | R43: Version 4.0, January 2014 - Titration module for students introduced, embracing visual and instrumental end point detection; activity calculation extended to Simulation module
R44: Version 4.1, February 2014 - Titration module now imports Indicator colors from Database; Distribution, Evaluation and Analysis modules import data also from Titration.
R45: Versions 4.1.1 to 4.1.3, January 2015 minor corrections and improved comments on ionic strength calculations.
R46: Version 4.2.0, February 2015 - Extended data weighting options in Regression; ionic strength effect correction added to Distribution.
R47: Version 4.2.2, September 2015 - Cells to fill with concentrations of bases protoneted to neutrality are now underlined in green.
R48: Version 4.2.3. March 2016 - Indicator colors are loaded in Titration (function missing in v. 4.2.2)
R49: CurTiPot has reached over one hundred countries and was used and cited in over fifty papers and thesis: http://scholar.google.com/scholar?hl=en-USR&as_sdt=0,5&q=curtipot
R50: People from over 200 universities and 100 companies dowloaded CurTiPot

Sheet pH_calc (hidden)
B1: pH Calculator | H1: <--- read comment | K1: pKas of the acids and bases in the solution | N1: Click on K2 to Q2; select acids/bases; click on J2; read M1 | R1: Overall protonation constants = bp = SKp (calculated by the program) | Z1: pKas loaded from the Database
A2: Solution composition - reagents added, in mol/L | F2: Fill out concentrations; Enter; Click button B18. | K2: 8 | L2: 1 | M2: 6 | N2: 3 | O2: 7 | P2: 2 | Q2: 5 | R2: pKa(n) = -log Kd(HB-->B) = log Kp(1) | AB2: Click on J2 to use these pKas in the pH calculation
A3: Acid / Base Protonation | B3: =K3 -> Phosphoric acid | C3: =L3 -> Acetic acid | D3: HCl | E3: Carbonic acid | F3: Hydroxide ion | G3: Ammonia | H3: EDTA | J3: Acid / Base | K3: Phosphoric acid | L3: Acetic acid | M3: HCl | N3: Carbonic acid | O3: Hydroxide ion | P3: Ammonia | Q3: EDTA | R3: Acid / Base | S3: =K3 -> Phosphoric acid | T3: =L3 -> Acetic acid | U3: HCl | V3: Carbonic acid | W3: Hydroxide ion | X3: Ammonia | Y3: EDTA | Z3: Acid / Base | AA3: =IF(VLOOKUP(K$2,Database!$B$22:$N$301,2)="","",VLOOKUP(K$2,Database!$B$22:$N$301,2)) -> Phosphoric acid | AB3: =IF(VLOOKUP(L$2,Database!$B$22:$N$301,2)="","",VLOOKUP(L$2,Database!$B$22:$N$301,2)) -> Acetic acid | AC3: =IF(VLOOKUP(M$2,Database!$B$22:$N$301,2)="","",VLOOKUP(M$2,Database!$B$22:$N$301,2)) -> HCl | AD3: =IF(VLOOKUP(N$2,Database!$B$22:$N$301,2)="","",VLOOKUP(N$2,Database!$B$22:$N$301,2)) -> Carbonic acid | AE3: =IF(VLOOKUP(O$2,Database!$B$22:$N$301,2)="","",VLOOKUP(O$2,Database!$B$22:$N$301,2)) -> Hydroxide ion | AF3: =IF(VLOOKUP(P$2,Database!$B$22:$N$301,2)="","",VLOOKUP(P$2,Database!$B$22:$N$301,2)) -> Ammonia | AG3: =IF(VLOOKUP(Q$2,Database!$B$22:$N$301,2)="","",VLOOKUP(Q$2,Database!$B$22:$N$301,2)) -> EDTA
A4: [B] | J4: Charge of B | K4: -3 | L4: -1 | M4: -1 | N4: -2 | O4: -1 | P4: 0 | Q4: -4 | R4: Charge of B | S4: =K4 -> -3 | T4: -1 | U4: -1 | V4: -2 | W4: -1 | X4: 0 | Y4: -4 | Z4: Charge of B | AA4: =IF(VLOOKUP(K$2,Database!$B$22:$N$301,3)="","",VLOOKUP(K$2,Database!$B$22:$N$301,3)) -> -3 | AB4: =IF(VLOOKUP(L$2,Database!$B$22:$N$301,3)="","",VLOOKUP(L$2,Database!$B$22:$N$301,3)) -> -1 | AC4: =IF(VLOOKUP(M$2,Database!$B$22:$N$301,3)="","",VLOOKUP(M$2,Database!$B$22:$N$301,3)) -> -1 | AD4: =IF(VLOOKUP(N$2,Database!$B$22:$N$301,3)="","",VLOOKUP(N$2,Database!$B$22:$N$301,3)) -> -2 | AE4: =IF(VLOOKUP(O$2,Database!$B$22:$N$301,3)="","",VLOOKUP(O$2,Database!$B$22:$N$301,3)) -> -1 | AF4: =IF(VLOOKUP(P$2,Database!$B$22:$N$301,3)="","",VLOOKUP(P$2,Database!$B$22:$N$301,3)) -> 0 | AG4: =IF(VLOOKUP(Q$2,Database!$B$22:$N$301,3)="","",VLOOKUP(Q$2,Database!$B$22:$N$301,3)) -> -4
A5: [HB] | B5: 0.0265 | J5: pKa1 | K5: 2.148 | L5: 4.757 | M5: -7.000 | N5: 6.352 | O5: 15.745 | P5: 9.244 | Q5: -0.210 | R5: bp1 | S5: =IF(K5="","",IF(K6="",10^K5,(IF(K7="",10^K6,(IF(K8="",10^K7,(IF(K9="",10^K8,(IF(K10="",10^K9,10^K10)))))))))) -> 2.239E+12 | T5: 5.715E+04 | U5: 1.000E-07 | V5: 2.133E+10 | W5: 5.559E+15 | X5: 1.754E+09 | Y5: 1.072E+11 | Z5: pKa1 = logKpn | AA5: =IF(VLOOKUP(K$2,Database!$B$22:$N$301,4)="","",VLOOKUP(K$2,Database!$B$22:$N$301,4)) -> 2.148 | AB5: =IF(VLOOKUP(L$2,Database!$B$22:$N$301,4)="","",VLOOKUP(L$2,Database!$B$22:$N$301,4)) -> 4.757 | AC5: =IF(VLOOKUP(M$2,Database!$B$22:$N$301,4)="","",VLOOKUP(M$2,Database!$B$22:$N$301,4)) -> -7.000 | AD5: =IF(VLOOKUP(N$2,Database!$B$22:$N$301,4)="","",VLOOKUP(N$2,Database!$B$22:$N$301,4)) -> 6.352 | AE5: =IF(VLOOKUP(O$2,Database!$B$22:$N$301,4)="","",VLOOKUP(O$2,Database!$B$22:$N$301,4)) -> 15.745 | AF5: =IF(VLOOKUP(P$2,Database!$B$22:$N$301,4)="","",VLOOKUP(P$2,Database!$B$22:$N$301,4)) -> 9.244 | AG5: =IF(VLOOKUP(Q$2,Database!$B$22:$N$301,4)="","",VLOOKUP(Q$2,Database!$B$22:$N$301,4)) -> -0.210
A6: [H2B] | B6: 0.02 | J6: pKa2 | K6: 7.199 | N6: 10.329 | Q6: 1.500 | R6: bp2 | S6: =IF(K6="","",IF(K7="",S5*10^K5,(IF(K8="",S5*10^K6,(IF(K9="",S5*10^K7,(IF(K10="",S5*10^K8,S5*10^K9)))))))) -> 3.540E+19 | V6: 4.797E+16 | Y6: 6.026E+17 | Z6: pKa2 = logKpn-1 | AA6: =IF(VLOOKUP(K$2,Database!$B$22:$N$301,5)="","",VLOOKUP(K$2,Database!$B$22:$N$301,5)) -> 7.199 | AB6: =IF(VLOOKUP(L$2,Database!$B$22:$N$301,5)="","",VLOOKUP(L$2,Database!$B$22:$N$301,5)) ->  | AC6: =IF(VLOOKUP(M$2,Database!$B$22:$N$301,5)="","",VLOOKUP(M$2,Database!$B$22:$N$301,5)) ->  | AD6: =IF(VLOOKUP(N$2,Database!$B$22:$N$301,5)="","",VLOOKUP(N$2,Database!$B$22:$N$301,5)) -> 10.329 | AE6: =IF(VLOOKUP(O$2,Database!$B$22:$N$301,5)="","",VLOOKUP(O$2,Database!$B$22:$N$301,5)) ->  | AF6: =IF(VLOOKUP(P$2,Database!$B$22:$N$301,5)="","",VLOOKUP(P$2,Database!$B$22:$N$301,5)) ->  | AG6: =IF(VLOOKUP(Q$2,Database!$B$22:$N$301,5)="","",VLOOKUP(Q$2,Database!$B$22:$N$301,5)) -> 1.500
A7: [H3B] | J7: pKa3 | K7: 12.350 | Q7: 2.210 | R7: bp3 | S7: =IF(K7="","",IF(K8="",S6*10^K5,(IF(K9="",S6*10^K6,(IF(K10="",S6*10^K7,S6*10^K8)))))) -> 4.977E+21 | Y7: 7.762E+20 | Z7: pKa3 = logKpn-2 | AA7: =IF(VLOOKUP(K$2,Database!$B$22:$N$301,6)="","",VLOOKUP(K$2,Database!$B$22:$N$301,6)) -> 12.350 | AB7: =IF(VLOOKUP(L$2,Database!$B$22:$N$301,6)="","",VLOOKUP(L$2,Database!$B$22:$N$301,6)) ->  | AC7: =IF(VLOOKUP(M$2,Database!$B$22:$N$301,6)="","",VLOOKUP(M$2,Database!$B$22:$N$301,6)) ->  | AD7: =IF(VLOOKUP(N$2,Database!$B$22:$N$301,6)="","",VLOOKUP(N$2,Database!$B$22:$N$301,6)) ->  | AE7: =IF(VLOOKUP(O$2,Database!$B$22:$N$301,6)="","",VLOOKUP(O$2,Database!$B$22:$N$301,6)) ->  | AF7: =IF(VLOOKUP(P$2,Database!$B$22:$N$301,6)="","",VLOOKUP(P$2,Database!$B$22:$N$301,6)) ->  | AG7: =IF(VLOOKUP(Q$2,Database!$B$22:$N$301,6)="","",VLOOKUP(Q$2,Database!$B$22:$N$301,6)) -> 2.210
A8: [H4B] | J8: pKa4 | Q8: 3.110 | R8: bp4 | S8: =IF(K8="","",IF(K9="",S7*10^K5,(IF(K10="",S7*10^K6,S7*10^K7)))) ->  | Y8: 1.259E+23 | Z8: pKa4 = logKpn-3 | AA8: =IF(VLOOKUP(K$2,Database!$B$22:$N$301,7)="","",VLOOKUP(K$2,Database!$B$22:$N$301,7)) ->  | AB8: =IF(VLOOKUP(L$2,Database!$B$22:$N$301,7)="","",VLOOKUP(L$2,Database!$B$22:$N$301,7)) ->  | AC8: =IF(VLOOKUP(M$2,Database!$B$22:$N$301,7)="","",VLOOKUP(M$2,Database!$B$22:$N$301,7)) ->  | AD8: =IF(VLOOKUP(N$2,Database!$B$22:$N$301,7)="","",VLOOKUP(N$2,Database!$B$22:$N$301,7)) ->  | AE8: =IF(VLOOKUP(O$2,Database!$B$22:$N$301,7)="","",VLOOKUP(O$2,Database!$B$22:$N$301,7)) ->  | AF8: =IF(VLOOKUP(P$2,Database!$B$22:$N$301,7)="","",VLOOKUP(P$2,Database!$B$22:$N$301,7)) ->  | AG8: =IF(VLOOKUP(Q$2,Database!$B$22:$N$301,7)="","",VLOOKUP(Q$2,Database!$B$22:$N$301,7)) -> 3.110
A9: [H5B] | I9: Total | J9: pKa5 | Q9: 6.750 | R9: bp5 | S9: =IF(K9="","",IF(K10="",S8*10^K5,S8*10^K6)) ->  | Y9: 3.981E+24 | Z9: pKa5 = logKpn-4 | AA9: =IF(VLOOKUP(K$2,Database!$B$22:$N$301,8)="","",VLOOKUP(K$2,Database!$B$22:$N$301,8)) ->  | AB9: =IF(VLOOKUP(L$2,Database!$B$22:$N$301,8)="","",VLOOKUP(L$2,Database!$B$22:$N$301,8)) ->  | AC9: =IF(VLOOKUP(M$2,Database!$B$22:$N$301,8)="","",VLOOKUP(M$2,Database!$B$22:$N$301,8)) ->  | AD9: =IF(VLOOKUP(N$2,Database!$B$22:$N$301,8)="","",VLOOKUP(N$2,Database!$B$22:$N$301,8)) ->  | AE9: =IF(VLOOKUP(O$2,Database!$B$22:$N$301,8)="","",VLOOKUP(O$2,Database!$B$22:$N$301,8)) ->  | AF9: =IF(VLOOKUP(P$2,Database!$B$22:$N$301,8)="","",VLOOKUP(P$2,Database!$B$22:$N$301,8)) ->  | AG9: =IF(VLOOKUP(Q$2,Database!$B$22:$N$301,8)="","",VLOOKUP(Q$2,Database!$B$22:$N$301,8)) -> 6.750
A10: [H6B] | I10: SS | J10: pKa6 | Q10: 11.030 | R10: bp6 | S10: =IF(K10="","",S9*10^K5) ->  | Y10: 2.455E+24 | Z10: pKa6 = logKpn-5 | AA10: =IF(VLOOKUP(K$2,Database!$B$22:$N$301,9)="","",VLOOKUP(K$2,Database!$B$22:$N$301,9)) ->  | AB10: =IF(VLOOKUP(L$2,Database!$B$22:$N$301,9)="","",VLOOKUP(L$2,Database!$B$22:$N$301,9)) ->  | AC10: =IF(VLOOKUP(M$2,Database!$B$22:$N$301,9)="","",VLOOKUP(M$2,Database!$B$22:$N$301,9)) ->  | AD10: =IF(VLOOKUP(N$2,Database!$B$22:$N$301,9)="","",VLOOKUP(N$2,Database!$B$22:$N$301,9)) ->  | AE10: =IF(VLOOKUP(O$2,Database!$B$22:$N$301,9)="","",VLOOKUP(O$2,Database!$B$22:$N$301,9)) ->  | AF10: =IF(VLOOKUP(P$2,Database!$B$22:$N$301,9)="","",VLOOKUP(P$2,Database!$B$22:$N$301,9)) ->  | AG10: =IF(VLOOKUP(Q$2,Database!$B$22:$N$301,9)="","",VLOOKUP(Q$2,Database!$B$22:$N$301,9)) -> 11.030
A11: S[HiB] | B11: =SUM(B4:B10) -> 0.0465 | C11: =SUM(C4:C10) -> 0 | D11: 0 | E11: 0 | F11: 0 | G11: 0 | H11: 0 | I11: =SUM(B11:H11) -> 4.650E-02 | J11: Electrolyte | K11: Na+ | L11: K+ | M11: Ca++ | N11: Cl- | O11: NO3- | P11: SO4= | Q11: ClO4- | R11: Kw | S11: =10^-K13 -> 1.01E-14 | Z11: Temperature | AA11: =IF(VLOOKUP(K$2,Database!$B$22:$N$301,10)="","unknown",VLOOKUP(K$2,Database!$B$22:$N$301,10)) -> 25.0 | AB11: =IF(VLOOKUP(L$2,Database!$B$22:$N$301,10)="","unknown",VLOOKUP(L$2,Database!$B$22:$N$301,10)) -> 25.0 | AC11: =IF(VLOOKUP(M$2,Database!$B$22:$N$301,10)="","unknown",VLOOKUP(M$2,Database!$B$22:$N$301,10)) -> 25.0 | AD11: =IF(VLOOKUP(N$2,Database!$B$22:$N$301,10)="","unknown",VLOOKUP(N$2,Database!$B$22:$N$301,10)) -> 25.0 | AE11: =IF(VLOOKUP(O$2,Database!$B$22:$N$301,10)="","unknown",VLOOKUP(O$2,Database!$B$22:$N$301,10)) -> 25.0 | AF11: =IF(VLOOKUP(P$2,Database!$B$22:$N$301,10)="","unknown",VLOOKUP(P$2,Database!$B$22:$N$301,10)) -> 25.0 | AG11: =IF(VLOOKUP(Q$2,Database!$B$22:$N$301,10)="","unknown",VLOOKUP(Q$2,Database!$B$22:$N$301,10)) -> 25.0
A12: S[H] | B12: =B5+2*B6+3*B7+4*B8+5*B9+6*B10 -> 0.0665 | C12: =C5+2*C6+3*C7+4*C8+5*C9+6*C10 -> 0 | D12: =D5+2*D6+3*D7+4*D8+5*D9+6*D10 -> 0 | E12: 0 | F12: =F5+2*F6+3*F7+4*F8+5*F9+6*F10 -> 0 | G12: 0 | H12: 0 | I12: =SUM(B12:H12) -> 6.650E-02 | J12: Ion charge | K12: 1 | L12: 1 | M12: 2 | N12: -1 | O12: -1 | P12: -2 | Q12: -1 | Z12: Ionic strength | AA12: =IF(VLOOKUP(K$2,Database!$B$22:$N$301,11)="","unknown",VLOOKUP(K$2,Database!$B$22:$N$301,11)) -> 0.000 | AB12: =IF(VLOOKUP(L$2,Database!$B$22:$N$301,11)="","unknown",VLOOKUP(L$2,Database!$B$22:$N$301,11)) -> 0.000 | AC12: =IF(VLOOKUP(M$2,Database!$B$22:$N$301,11)="","unknown",VLOOKUP(M$2,Database!$B$22:$N$301,11)) -> 0.000 | AD12: =IF(VLOOKUP(N$2,Database!$B$22:$N$301,11)="","unknown",VLOOKUP(N$2,Database!$B$22:$N$301,11)) -> 0.000 | AE12: =IF(VLOOKUP(O$2,Database!$B$22:$N$301,11)="","unknown",VLOOKUP(O$2,Database!$B$22:$N$301,11)) -> 0.000 | AF12: =IF(VLOOKUP(P$2,Database!$B$22:$N$301,11)="","unknown",VLOOKUP(P$2,Database!$B$22:$N$301,11)) -> 0.000 | AG12: =IF(VLOOKUP(Q$2,Database!$B$22:$N$301,11)="","unknown",VLOOKUP(Q$2,Database!$B$22:$N$301,11)) -> 0.000
A13: SziCi | B13: =K4*B4+(K4+1)*B5+(K4+2)*B6+(K4+3)*B7+(K4+4)*B8+(K4+5)*B9+(K4+6)*B10 -> -0.073 | C13: 0 | D13: =M4*D4+(M4+1)*D5+(M4+2)*D6+(M4+3)*D7+(M4+4)*D8+(M4+5)*D9+(M4+6)*D10 -> 0 | E13: 0 | F13: =O4*F4+(O4+1)*F5+(O4+2)*F6+(O4+3)*F7+(O4+4)*F8+(O4+5)*F9+(O4+6)*F10 -> 0 | G13: 0 | H13: 0 | I13: =SUM(B13:H13) -> -0.073 | J13: pKw | K13: 13.997
A14: Electrolyte | B14: =K11 -> Na+ | C14: =L11 -> K+ | D14: Ca++ | E14: Cl- | F14: NO3- | G14: SO4= | H14: ClO4- | J14: Davies equation parameters | N14: Color coding
A15: Ci (mol/L) | B15: 0.073 | J15: for activity coefficient estimation | N15: D o n o t c h a n g e
A16: ziCi | B16: =B15*K12 -> 0.073 | C16: 0 | D16: 0 | E16: 0 | F16: 0 | G16: 0 | H16: 0 | I16: =SUM(B16:H16) -> 0.073 | J16: A | K16: 0.509 | N16: C h a n g e c r i t e r i o u s l y
A17: Charge Balance | B17: =IF(I17=0,"OK", "WARNING") -> OK | C17: =IF(I17<0,"Add cations/Remove anions", "") ->  | E17: =IF(I17>0,"Add anions/Remove cations", "") ->  | H17: =IF(I17=0,"","Unbalance") ->  | I17: =I13+I16 -> 0 | J17: b | K17: 0.300 | N17: Fill out, change or leave blank
A22: Results at chemical equilibrium | J22: Stepwise apparent constants recalculated for I | M22: =E26 -> 0.09950 | R22: Overall apparent protonation constants recalculated for I | W22: =$E$26 -> 0.09950 | AA22: How to enable the macro-instructions in Excel 2013, 2010 and 2007
A23: pH | B23: 7.001 | C23: a H+ | D23: 9.986E-08 | E23: a OH- | F23: 1.008E-07 | G23: pOH | H23: 6.996 | J23: Acid / Base | K23: =K3 -> Phosphoric acid | L23: =L3 -> Acetic acid | M23: HCl | N23: Carbonic acid | O23: Hydroxide ion | P23: Ammonia | Q23: EDTA | R23: Acid / Base | S23: =K3 -> Phosphoric acid | T23: =L3 -> Acetic acid | U23: HCl | V23: Carbonic acid | W23: Hydroxide ion | X23: Ammonia | Y23: EDTA | AA23: Needless to say, CurTiPot, freely distributed by the author since 1992,
A24: p[H] | B24: 6.894 | C24: [H+] | D24: 1.277E-07 | E24: [OH-] | F24: 1.290E-07 | G24: p[OH] | H24: 6.890 | J24: Charge of B | K24: =K4 -> -3 | L24: -1 | M24: -1 | N24: -2 | O24: -1 | P24: 0 | Q24: -4 | R24: Charge of B | S24: =K4 -> -3 | T24: -1 | U24: -1 | V24: -2 | W24: -1 | X24: 0 | Y24: -4 | AA24: is trustworthy and contains no harmful code.
A25: "pH" | B25: 7.321 | C25: "[H+]" | D25: 4.773E-08 | E25: "[OH-]" | F25: 2.110E-07 | G25: "pOH" | H25: 6.676 | J25: pK'an = logK'p1 | K25: 11.709 | L25: 4.543 | M25: -7.214 | N25: 9.902 | O25: 15.531 | P25: 9.244 | Q25: 9.315 | R25: b'p1 | S25: 5.11E+11 | T25: 3.49E+04 | U25: 6.11E-08 | V25: 7.97E+09 | W25: 3.40E+15 | X25: 1.75E+09 | Y25: 2.07E+09 | AA25: All macros are fully removed when closing the file.
A26: g H+ | B26: 0.782 | C26: Ionic strength (mol/L) | E26: 0.099501 | G26: g OH- | H26: 0.782 | J26: pK'an-1 = logK'p2 | K26: 6.772 | N26: 6.138 | Q26: 5.469 | R26: b'p2 | S26: 3.02E+18 | V26: 1.10E+16 | Y26: 6.08E+14
A27: Buffer Capacity (Buffer Index, DC/DpH) | D27: mol.L-1.pH-1 | E27: 0.026248 | F27: Buffer Strength | H27: 0.011399 | J27: pK'an-2 = logK'p3 | K27: 1.934 | Q27: 2.253 | R27: b'p3 | S27: 2.60E+20 | Y27: 1.09E+17 | AA27: 1. Open a new blank Excel spreadsheet
A28: Mean charge (zm) and mean protonation (hm) of the equilibrium HiB species at pH | G28: =B23 -> 7.001 | J28: pK'an-3 = logK'p4 | Q28: 1.786 | R28: b'p4 | Y28: 6.65E+18 | AA28: 2. Click on the File tab (or the Office button, in Windows XP)(top left corner)
A29: Acid / Base | B29: =K3 -> Phosphoric acid | C29: Acetic acid | D29: HCl | E29: Carbonic acid | F29: Hydroxide ion | G29: Ammonia | H29: EDTA | J29: pK'an-4 = logK'p5 | Q29: 1.500 | R29: b'p5 | Y29: 2.10E+20 | AA29: 3. Click on "Options" (bottom left)
A30: zm | B30: -1.570 | C30: -0.996 | D30: -1.000 | E30: -0.852 | F30: -0.000 | G30: 0.996 | H30: -2.968 | J30: pK'an-5 = logK'p6 | Q30: 0.214 | R30: b'p6 | Y30: 3.44E+20 | AA30: 4. Click on "Trust Center" (bottom left)
A31: hm | B31: 1.430 | C31: 0.004 | D31: 0.000 | E31: 1.148 | F31: 1.000 | G31: 0.996 | H31: 1.032 | J31: pK'w | K31: 13.78 | R31: K'w | S31: 1.65E-14 | AA31: 5. Click on "Trust Center Settings" (bottom right)
A32: Equilibrium concentration of species, in mol/L | J32: Activity coefficient (g) of species | N32: for pH | O32: =B23 -> 7.001 | P32: and I | Q32: =E26 -> 0.0995 | AA32: 6. Click on "Macro Settings"
A33: Acid / Base protonation | B33: =K3 -> Phosphoric acid | C33: Acetic acid | D33: HCl | E33: Carbonic acid | F33: Hydroxide ion | G33: Ammonia | H33: EDTA | I33: [H+] | J33: Acid / Base protonation | K33: =K3 -> Phosphoric acid | L33: Acetic acid | M33: HCl | N33: Carbonic acid | O33: Hydroxide ion | P33: Ammonia | Q33: EDTA | AA33: 7. Click on "Disable macros with notification"
A34: [B] | B34: 4.057E-07 | I34: =D24 -> 1.28E-07 | J34: g B | K34: 0.109 | L34: 0.782 | M34: 0.782 | N34: 0.374 | O34: 0.782 | P34: 1.000 | Q34: 0.020 | AA34: 8. Click OK; follow steps 1 to 8 only once on each computer
A35: [HB] | B35: 2.650E-02 | J35: g HB | K35: 0.374 | L35: 1.000 | M35: 1.000 | N35: 0.782 | O35: 1.000 | P35: 0.782 | Q35: 0.109 | AA35: 9. Open the CurTiPot file
A36: [H2B] | B36: 2.000E-02 | I36: [OH-] | J36: g H2B | K36: 0.782 | N36: 1.000 | Q36: 0.374 | AA36: 10. When the "Security warning" shows up, click on it to enable content
A37: [H3B] | B37: 2.196E-07 | I37: =F24 -> 1.29E-07 | J37: g H3B | K37: 1.000 | Q37: 0.782
A38: [H4B] | J38: g H4B | Q38: 1.000 | AA38: How to enable macros in MS Excel 97-2003:
A39: [H5B] | J39: g H5B | Q39: 0.782 | AA39: 1. Open a new blank Excel spreadsheet
A40: [H6B] | I40: SS | J40: g H6B | Q40: 0.374 | AA40: 2. Click on the "Tools" tab
A41: S[HiB] | B41: =B34+B35+B36+B37+B38+B39+B40 -> 4.650E-02 | C41: =C34+C35+C36+C37+C38+C39+C40 -> 0.000E+00 | D41: 0.000E+00 | E41: 0.000E+00 | F41: 0.000E+00 | G41: 0.000E+00 | H41: 0.000E+00 | I41: =SUM(B41:H41) -> 4.650E-02 | AA41: 3. Select "Macro"
A42: Species distribution (fractional composition, in %) | E42: for pH | F42: =B23 -> 7.001 | G42: or p[H]= | H42: =$B$24 -> 6.894 | J42: Electrolyte | K42: =K11 -> Na+ | L42: K+ | M42: Ca++ | N42: Cl- | O42: NO3- | P42: SO4= | Q42: ClO4- | AA42: 4. Select "Security"
A43: Acid / Base protonation | B43: =K3 -> Phosphoric acid | C43: Acetic acid | D43: HCl | E43: Carbonic acid | F43: Hydroxide ion | G43: Ammonia | H43: EDTA | J43: gi | K43: 0.782 | L43: 0.782 | M43: 0.374 | N43: 0.782 | O43: 0.782 | P43: 0.374 | Q43: 0.782 | AA43: 5. Select "Security level"
A44: % B | B44: 0.00 | C44: 99.56 | D44: 100.00 | E44: 0.08 | F44: 0.00 | G44: 0.44 | H44: 0.36 | AA44: 6. Select "Medium"
A45: % HB | B45: 56.99 | C45: 0.44 | D45: 0.00 | E45: 84.99 | F45: 100.00 | G45: 99.56 | H45: 96.03 | AA45: 7. Open the CurTiPot file and enable the content
A46: % H2B | B46: 43.01 | E46: 14.92 | H46: 3.61
A47: % H3B | B47: 0.00 | H47: 0.00
A48: % H4B | H48: 0.00
A49: % H5B | H49: 0.00
A50: % H6B | H50: 0.00
A51: % S[HiB] | B51: =B44+B45+B46+B47+B48+B49+B50 -> 100.00 | C51: =C44+C45+C46+C47+C48+C49+C50 -> 100.00 | D51: 100.00 | E51: 100.00 | F51: 100.00 | G51: 100.00 | H51: 100.00

Sheet Titration (hidden)
C1: Manual Virtual Titrator with visual indicator | H1: <--- read instructions | K1: pKas of the acids and bases in the solution | N1: Click on K2 to Q2; select acids/bases; click on J2; read M1 | U1: Overall protonation constants = bp = PKp (calculated by the program) | AB1: pKa(n) = -log Kd(HB-->B) = log Kp(1) | AF1: pKas loaded from the Database
A2: Sample and titrant (standard) composition (concentrations in mol/L) | K2: 6 | L2: 3 | M2: 1 | N2: 260 | O2: 2 | P2: 7 | Q2: 103 | S2: Titrant | V2: Titrand | AC2: Titrant | AG2: Titrand | AH2: Click on J2 to use these pKas in the Simulation
A3: SAMPLE Species | B3: =K3 -> HCl | C3: Carbonic acid | D3: Acetic acid | E3: Phenol Red (pKa 7.7) | F3: Ammonia | G3: Hydroxide ion | H3: Glycine | J3: Acid / Base | K3: HCl | L3: Carbonic acid | M3: Acetic acid | N3: Phenol Red (pKa 7.7) | O3: Ammonia | P3: Hydroxide ion | Q3: Glycine | R3: Strong ACID | S3: Strong BASE | T3: Carbonic ac. | U3: Acid / Base | V3: =IF(K3="","",K3) -> HCl | W3: Carbonic acid | X3: Acetic acid | Y3: Phenol Red (pKa 7.7) | Z3: Ammonia | AA3: Hydroxide ion | AB3: Glycine | AC3: =R3 -> Strong ACID | AD3: =S3 -> Strong BASE | AE3: =T3 -> Carbonic ac. | AF3: Acid / Base | AG3: =IF(VLOOKUP(K$2,Database!$B$22:$N$301,2)="","",VLOOKUP(K$2,Database!$B$22:$N$301,2)) -> HCl | AH3: =IF(VLOOKUP(L$2,Database!$B$22:$N$301,2)="","",VLOOKUP(L$2,Database!$B$22:$N$301,2)) -> Carbonic acid | AI3: =IF(VLOOKUP(M$2,Database!$B$22:$N$301,2)="","",VLOOKUP(M$2,Database!$B$22:$N$301,2)) -> Acetic acid | AJ3: =IF(VLOOKUP(N$2,Database!$B$22:$N$301,2)="","",VLOOKUP(N$2,Database!$B$22:$N$301,2)) -> Phenol Red (pKa 7.7) | AK3: =IF(VLOOKUP(O$2,Database!$B$22:$N$301,2)="","",VLOOKUP(O$2,Database!$B$22:$N$301,2)) -> Ammonia | AL3: =IF(VLOOKUP(P$2,Database!$B$22:$N$301,2)="","",VLOOKUP(P$2,Database!$B$22:$N$301,2)) -> Hydroxide ion | AM3: =IF(VLOOKUP(Q$2,Database!$B$22:$N$301,2)="","",VLOOKUP(Q$2,Database!$B$22:$N$301,2)) -> Glycine
A4: [B] | J4: Charge of B | K4: -1 | L4: -2 | M4: -1 | N4: -2 | O4: 0 | P4: -1 | Q4: -1 | R4: -1 | S4: -1 | T4: -2 | U4: Charge of B | V4: -1 | W4: -2 | X4: -1 | Y4: -2 | Z4: 0 | AA4: -1 | AB4: -1 | AC4: -1 | AD4: -1 | AE4: -2 | AF4: Charge of B | AG4: =IF(VLOOKUP(K$2,Database!$B$22:$N$301,3)="","",VLOOKUP(K$2,Database!$B$22:$N$301,3)) -> -1 | AH4: =IF(VLOOKUP(L$2,Database!$B$22:$N$301,3)="","",VLOOKUP(L$2,Database!$B$22:$N$301,3)) -> -2 | AI4: =IF(VLOOKUP(M$2,Database!$B$22:$N$301,3)="","",VLOOKUP(M$2,Database!$B$22:$N$301,3)) -> -1 | AJ4: =IF(VLOOKUP(N$2,Database!$B$22:$N$301,3)="","",VLOOKUP(N$2,Database!$B$22:$N$301,3)) -> -2 | AK4: =IF(VLOOKUP(O$2,Database!$B$22:$N$301,3)="","",VLOOKUP(O$2,Database!$B$22:$N$301,3)) -> 0 | AL4: =IF(VLOOKUP(P$2,Database!$B$22:$N$301,3)="","",VLOOKUP(P$2,Database!$B$22:$N$301,3)) -> -1 | AM4: =IF(VLOOKUP(Q$2,Database!$B$22:$N$301,3)="","",VLOOKUP(Q$2,Database!$B$22:$N$301,3)) -> -1
A5: [HB] | D5: 0.1 | J5: pKa1 | K5: -7.000 | L5: 6.352 | M5: 4.757 | N5: 1.200 | O5: 9.244 | P5: 15.745 | Q5: 2.350 | R5: -6 | S5: 15.745 | T5: 6.352 | U5: bp1 | V5: =IF(K5="","",IF(K6="",10^K5,(IF(K7="",10^K6,(IF(K8="",10^K7,(IF(K9="",10^K8,(IF(K10="",10^K9,10^K10)))))))))) -> 1.000E-07 | W5: 2.133E+10 | X5: 5.715E+04 | Y5: 5.012E+07 | Z5: 1.754E+09 | AA5: 5.559E+15 | AB5: 5.998E+09 | AC5: =IF(R5="","",IF(R6="",10^R5,10^R6)) -> 1.000E-06 | AD5: =IF(S5="","",IF(S6="",10^S5,10^S6)) -> 5.559E+15 | AE5: =IF(T5="","",IF(T6="",10^T5,10^T6)) -> 2.133E+10 | AF5: pKa1 = logKpn | AG5: =IF(VLOOKUP(K$2,Database!$B$22:$N$301,4)="","",VLOOKUP(K$2,Database!$B$22:$N$301,4)) -> -7.000 | AH5: =IF(VLOOKUP(L$2,Database!$B$22:$N$301,4)="","",VLOOKUP(L$2,Database!$B$22:$N$301,4)) -> 6.352 | AI5: =IF(VLOOKUP(M$2,Database!$B$22:$N$301,4)="","",VLOOKUP(M$2,Database!$B$22:$N$301,4)) -> 4.757 | AJ5: =IF(VLOOKUP(N$2,Database!$B$22:$N$301,4)="","",VLOOKUP(N$2,Database!$B$22:$N$301,4)) -> 1.200 | AK5: =IF(VLOOKUP(O$2,Database!$B$22:$N$301,4)="","",VLOOKUP(O$2,Database!$B$22:$N$301,4)) -> 9.244 | AL5: =IF(VLOOKUP(P$2,Database!$B$22:$N$301,4)="","",VLOOKUP(P$2,Database!$B$22:$N$301,4)) -> 15.745 | AM5: =IF(VLOOKUP(Q$2,Database!$B$22:$N$301,4)="","",VLOOKUP(Q$2,Database!$B$22:$N$301,4)) -> 2.350
A6: [H2B] | E6: 5e-05 | J6: pKa2 | L6: 10.329 | N6: 7.700 | Q6: 9.778 | T6: 10.329 | U6: bp2 | V6: =IF(K6="","",IF(K7="",V5*10^K5,(IF(K8="",V5*10^K6,(IF(K9="",V5*10^K7,(IF(K10="",V5*10^K8,V5*10^K9)))))))) ->  | W6: 4.797E+16 | Y6: 7.943E+08 | AB6: 1.343E+12 | AC6: =IF(R6="","",AC5*10^R5) ->  | AD6: =IF(S6="","",AD5*10^S5) ->  | AE6: =IF(T6="","",AE5*10^T5) -> 4.797E+16 | AF6: pKa2 = logKpn-1 | AG6: =IF(VLOOKUP(K$2,Database!$B$22:$N$301,5)="","",VLOOKUP(K$2,Database!$B$22:$N$301,5)) ->  | AH6: =IF(VLOOKUP(L$2,Database!$B$22:$N$301,5)="","",VLOOKUP(L$2,Database!$B$22:$N$301,5)) -> 10.329 | AI6: =IF(VLOOKUP(M$2,Database!$B$22:$N$301,5)="","",VLOOKUP(M$2,Database!$B$22:$N$301,5)) ->  | AJ6: =IF(VLOOKUP(N$2,Database!$B$22:$N$301,5)="","",VLOOKUP(N$2,Database!$B$22:$N$301,5)) -> 7.700 | AK6: =IF(VLOOKUP(O$2,Database!$B$22:$N$301,5)="","",VLOOKUP(O$2,Database!$B$22:$N$301,5)) ->  | AL6: =IF(VLOOKUP(P$2,Database!$B$22:$N$301,5)="","",VLOOKUP(P$2,Database!$B$22:$N$301,5)) ->  | AM6: =IF(VLOOKUP(Q$2,Database!$B$22:$N$301,5)="","",VLOOKUP(Q$2,Database!$B$22:$N$301,5)) -> 9.778
A7: [H3B] | J7: pKa3 | U7: bp3 | V7: =IF(K7="","",IF(K8="",V6*10^K5,(IF(K9="",V6*10^K6,(IF(K10="",V6*10^K7,V6*10^K8)))))) ->  | AF7: pKa3 = logKpn-2 | AG7: =IF(VLOOKUP(K$2,Database!$B$22:$N$301,6)="","",VLOOKUP(K$2,Database!$B$22:$N$301,6)) ->  | AH7: =IF(VLOOKUP(L$2,Database!$B$22:$N$301,6)="","",VLOOKUP(L$2,Database!$B$22:$N$301,6)) ->  | AI7: =IF(VLOOKUP(M$2,Database!$B$22:$N$301,6)="","",VLOOKUP(M$2,Database!$B$22:$N$301,6)) ->  | AJ7: =IF(VLOOKUP(N$2,Database!$B$22:$N$301,6)="","",VLOOKUP(N$2,Database!$B$22:$N$301,6)) ->  | AK7: =IF(VLOOKUP(O$2,Database!$B$22:$N$301,6)="","",VLOOKUP(O$2,Database!$B$22:$N$301,6)) ->  | AL7: =IF(VLOOKUP(P$2,Database!$B$22:$N$301,6)="","",VLOOKUP(P$2,Database!$B$22:$N$301,6)) ->  | AM7: =IF(VLOOKUP(Q$2,Database!$B$22:$N$301,6)="","",VLOOKUP(Q$2,Database!$B$22:$N$301,6)) -> 
A8: [H4B] | I8: Total | J8: pKa4 | U8: bp4 | V8: =IF(K8="","",IF(K9="",V7*10^K5,(IF(K10="",V7*10^K6,V7*10^K7)))) ->  | AF8: pKa4 = logKpn-3 | AG8: =IF(VLOOKUP(K$2,Database!$B$22:$N$301,7)="","",VLOOKUP(K$2,Database!$B$22:$N$301,7)) ->  | AH8: =IF(VLOOKUP(L$2,Database!$B$22:$N$301,7)="","",VLOOKUP(L$2,Database!$B$22:$N$301,7)) ->  | AI8: =IF(VLOOKUP(M$2,Database!$B$22:$N$301,7)="","",VLOOKUP(M$2,Database!$B$22:$N$301,7)) ->  | AJ8: =IF(VLOOKUP(N$2,Database!$B$22:$N$301,7)="","",VLOOKUP(N$2,Database!$B$22:$N$301,7)) ->  | AK8: =IF(VLOOKUP(O$2,Database!$B$22:$N$301,7)="","",VLOOKUP(O$2,Database!$B$22:$N$301,7)) ->  | AL8: =IF(VLOOKUP(P$2,Database!$B$22:$N$301,7)="","",VLOOKUP(P$2,Database!$B$22:$N$301,7)) ->  | AM8: =IF(VLOOKUP(Q$2,Database!$B$22:$N$301,7)="","",VLOOKUP(Q$2,Database!$B$22:$N$301,7)) -> 
A9: [H5B] | I9: Sample | J9: pKa5 | U9: bp5 | V9: =IF(K9="","",IF(K10="",V8*10^K5,V8*10^K6)) ->  | AF9: pKa5 = logKpn-4 | AG9: =IF(VLOOKUP(K$2,Database!$B$22:$N$301,8)="","",VLOOKUP(K$2,Database!$B$22:$N$301,8)) ->  | AH9: =IF(VLOOKUP(L$2,Database!$B$22:$N$301,8)="","",VLOOKUP(L$2,Database!$B$22:$N$301,8)) ->  | AI9: =IF(VLOOKUP(M$2,Database!$B$22:$N$301,8)="","",VLOOKUP(M$2,Database!$B$22:$N$301,8)) ->  | AJ9: =IF(VLOOKUP(N$2,Database!$B$22:$N$301,8)="","",VLOOKUP(N$2,Database!$B$22:$N$301,8)) ->  | AK9: =IF(VLOOKUP(O$2,Database!$B$22:$N$301,8)="","",VLOOKUP(O$2,Database!$B$22:$N$301,8)) ->  | AL9: =IF(VLOOKUP(P$2,Database!$B$22:$N$301,8)="","",VLOOKUP(P$2,Database!$B$22:$N$301,8)) ->  | AM9: =IF(VLOOKUP(Q$2,Database!$B$22:$N$301,8)="","",VLOOKUP(Q$2,Database!$B$22:$N$301,8)) -> 
A10: [H6B] | I10: SS | J10: pKa6 | U10: bp6 | V10: =IF(K10="","",V9*10^K5) ->  | AF10: pKa6 = logKpn-5 | AG10: =IF(VLOOKUP(K$2,Database!$B$22:$N$301,9)="","",VLOOKUP(K$2,Database!$B$22:$N$301,9)) ->  | AH10: =IF(VLOOKUP(L$2,Database!$B$22:$N$301,9)="","",VLOOKUP(L$2,Database!$B$22:$N$301,9)) ->  | AI10: =IF(VLOOKUP(M$2,Database!$B$22:$N$301,9)="","",VLOOKUP(M$2,Database!$B$22:$N$301,9)) ->  | AJ10: =IF(VLOOKUP(N$2,Database!$B$22:$N$301,9)="","",VLOOKUP(N$2,Database!$B$22:$N$301,9)) ->  | AK10: =IF(VLOOKUP(O$2,Database!$B$22:$N$301,9)="","",VLOOKUP(O$2,Database!$B$22:$N$301,9)) ->  | AL10: =IF(VLOOKUP(P$2,Database!$B$22:$N$301,9)="","",VLOOKUP(P$2,Database!$B$22:$N$301,9)) ->  | AM10: =IF(VLOOKUP(Q$2,Database!$B$22:$N$301,9)="","",VLOOKUP(Q$2,Database!$B$22:$N$301,9)) -> 
A11: S[HiB] | B11: =SUM(B4:B10) -> 0 | C11: =SUM(C4:C10) -> 0 | D11: 0.1 | E11: 5e-05 | F11: 0 | G11: 0 | H11: 0 | I11: =SUM(B11:H11) -> 1.001E-01 | J11: pKw | K11: 13.997 | L11: Remark: this virtual titrator calculates "pH" values disregarding ion-ion interactions (pH calculations are available in the Simulation or pH_calc modules). | U11: Kw | V11: =10^-K11 -> 1.007E-14 | AF11: Indicator: pKa1 or 2 | AG11: =IF(VLOOKUP(K$2,Database!$B$22:$R$301,14)="","",VLOOKUP(K$2,Database!$B$22:$R$301,14)) ->  | AH11: =IF(VLOOKUP(L$2,Database!$B$22:$R$301,14)="","",VLOOKUP(L$2,Database!$B$22:$R$301,14)) ->  | AI11: =IF(VLOOKUP(M$2,Database!$B$22:$R$301,14)="","",VLOOKUP(M$2,Database!$B$22:$R$301,14)) ->  | AJ11: =IF(VLOOKUP(N$2,Database!$B$22:$R$301,14)="","",VLOOKUP(N$2,Database!$B$22:$R$301,14)) -> 7.700 | AK11: =IF(VLOOKUP(O$2,Database!$B$22:$R$301,14)="","",VLOOKUP(O$2,Database!$B$22:$R$301,14)) ->  | AL11: =IF(VLOOKUP(P$2,Database!$B$22:$R$301,14)="","",VLOOKUP(P$2,Database!$B$22:$R$301,14)) ->  | AM11: =IF(VLOOKUP(Q$2,Database!$B$22:$R$301,14)="","",VLOOKUP(Q$2,Database!$B$22:$R$301,14)) -> 
A12: S[H] | B12: =B5+2*B6+3*B7+4*B8+5*B9+6*B10 -> 0 | C12: =C5+2*C6+3*C7+4*C8+5*C9+6*C10 -> 0 | D12: 0.1 | E12: 0.0001 | F12: 0 | G12: 0 | H12: 0 | I12: =SUM(B12:H12) -> 1.001E-01 | N12: Color coding | AF12: color #, pH < pKa indic | AG12: =IF(VLOOKUP(K$2,Database!$B$22:$R$301,15)="","",VLOOKUP(K$2,Database!$B$22:$R$301,15)) ->  | AH12: =IF(VLOOKUP(L$2,Database!$B$22:$R$301,15)="","",VLOOKUP(L$2,Database!$B$22:$R$301,15)) ->  | AI12: =IF(VLOOKUP(M$2,Database!$B$22:$R$301,15)="","",VLOOKUP(M$2,Database!$B$22:$R$301,15)) ->  | AJ12: =IF(VLOOKUP(N$2,Database!$B$22:$R$301,15)="","",VLOOKUP(N$2,Database!$B$22:$R$301,15)) -> 4907000.000 | AK12: =IF(VLOOKUP(O$2,Database!$B$22:$R$301,15)="","",VLOOKUP(O$2,Database!$B$22:$R$301,15)) ->  | AL12: =IF(VLOOKUP(P$2,Database!$B$22:$R$301,15)="","",VLOOKUP(P$2,Database!$B$22:$R$301,15)) ->  | AM12: =IF(VLOOKUP(Q$2,Database!$B$22:$R$301,15)="","",VLOOKUP(Q$2,Database!$B$22:$R$301,15)) -> 
A13: TITRANT | B13: =R3 -> Strong ACID | C13: =S3 -> Strong BASE | D13: =T3 -> Carbonic ac. | E13: Total | F13: Volume of titrand in beaker (mL) | N13: D o n o t c h a n g e | AF13: color #, pH = pKa indic | AG13: =IF(VLOOKUP(K$2,Database!$B$22:$R$301,16)="","",VLOOKUP(K$2,Database!$B$22:$R$301,16)) ->  | AH13: =IF(VLOOKUP(L$2,Database!$B$22:$R$301,16)="","",VLOOKUP(L$2,Database!$B$22:$R$301,16)) ->  | AI13: =IF(VLOOKUP(M$2,Database!$B$22:$R$301,16)="","",VLOOKUP(M$2,Database!$B$22:$R$301,16)) ->  | AJ13: =IF(VLOOKUP(N$2,Database!$B$22:$R$301,16)="","",VLOOKUP(N$2,Database!$B$22:$R$301,16)) -> 4961023.000 | AK13: =IF(VLOOKUP(O$2,Database!$B$22:$R$301,16)="","",VLOOKUP(O$2,Database!$B$22:$R$301,16)) ->  | AL13: =IF(VLOOKUP(P$2,Database!$B$22:$R$301,16)="","",VLOOKUP(P$2,Database!$B$22:$R$301,16)) ->  | AM13: =IF(VLOOKUP(Q$2,Database!$B$22:$R$301,16)="","",VLOOKUP(Q$2,Database!$B$22:$R$301,16)) -> 
A14: [B] | C14: 0.1 | E14: Titrants | F14: SAMPLE | G14: Water | H14: Sum | J14: Titrant reservoir | N14: C h a n g e c r i t e r i o u s l y | AF14: color #, pH > pKa indic | AG14: =IF(VLOOKUP(K$2,Database!$B$22:$R$301,17)="","",VLOOKUP(K$2,Database!$B$22:$R$301,17)) ->  | AH14: =IF(VLOOKUP(L$2,Database!$B$22:$R$301,17)="","",VLOOKUP(L$2,Database!$B$22:$R$301,17)) ->  | AI14: =IF(VLOOKUP(M$2,Database!$B$22:$R$301,17)="","",VLOOKUP(M$2,Database!$B$22:$R$301,17)) ->  | AJ14: =IF(VLOOKUP(N$2,Database!$B$22:$R$301,17)="","",VLOOKUP(N$2,Database!$B$22:$R$301,17)) -> 5263615.000 | AK14: =IF(VLOOKUP(O$2,Database!$B$22:$R$301,17)="","",VLOOKUP(O$2,Database!$B$22:$R$301,17)) ->  | AL14: =IF(VLOOKUP(P$2,Database!$B$22:$R$301,17)="","",VLOOKUP(P$2,Database!$B$22:$R$301,17)) ->  | AM14: =IF(VLOOKUP(Q$2,Database!$B$22:$R$301,17)="","",VLOOKUP(Q$2,Database!$B$22:$R$301,17)) -> 
A15: [HB] | F15: Dispensed | G15: added | H15: (initial vol.) | J15: Composition: cells B13 to D16 | N15: Fill out, change or leave blank
A16: [H2B] | E16: SS | F16: 20.00 | G16: 0.00 | H16: =F16+G16 -> 20.00
A17: S[HiB] | B17: =SUM(B14:B16) -> 0 | C17: =SUM(C14:C16) -> 0.1 | D17: =SUM(D14:D16) -> 0 | E17: =SUM(B17:D17) -> 1.00E-01 | F17: Buret (syringe) capacity
A18: S[H] | B18: =B15+2*B16 -> 0 | C18: =C15+2*C16 -> 0 | D18: =D15+2*D16 -> 0 | E18: =SUM(B18:D18) -> 0.00E+00 | F18: 50.00 | H18: mL of titrant .
A19: Unknown sample
A20: Digital BURET | B20: motor | C20: =B21 -> 28 | G20: pH-meter
A21: Volume, mL | B21: 27.910 | C21: Syringe with titrant | F21: "pH" | G21: 12.213
B22: Titrant addition (mL)
G24: Display (or hide)
F25: TRUE | G25: pH and titration curve
F26: TRUE | G26: Titrand equilibrium
A28: Model INDICATOR | G28: TITRAND equilibrium
A29: pKa, indicator | B29: 7.700 | G29: Molar fraction | H29: Acetic acid
A30: Region | B30: Color | G30: % B | H30: 100.00
A31: pH > pK+1 | B31: =B29+1 -> 8.700 | D31: 12.213 | E31: =$D$31 -> 12.213 | G31: % HB | H31: 0.00
A32: pH = pK | B32: =B29 -> 7.7 | D32: =$D$31 -> 12.213 | E32: =$D$31 -> 12.213 | G32: % H2B
A33: pH < pK-1 | B33: =B29-1 -> 6.700 | D33: =$D$31 -> 12.213 | E33: =$D$31 -> 12.213 | G33: % H3B
A34: INDICATOR equilibrium | D34: =$D$31 -> 12.213 | E34: =$D$31 -> 12.213 | G34: % H4B | R34: Data ID on curves
A35: Molar fraction | B35: Indicator | D35: =$D$31 -> 12.213 | E35: =$D$31 -> 12.213 | G35: % H5B | R35: Copying curves
A36: % Ind | B36: 100.00 | D36: Magnetic stirrer | G36: % H6B | R36: Resizing axis
A37: % Hind | B37: 0.00 | R37: Other graphics
R38: Data analysis
A39: Vadd | B39: "pH" | C39: Vadd | D39: "pH" | E39: [H] | F39: CHtot = | G39: Dil. factor | H39: Dil. Factor | I39: h1 | J39: h2 | K39: h3 | L39: h4 | M39: h5 | N39: h6 | O39: h7 | P39: h1 titrant | Q39: h2 titrant | R39: h3 titrant
A40: (mL) | B40: simulated | C40: on graphic | D40: on graphic | F40: CHcalc | G40: Titrand (sample) | H40: Titrant (buret) | I40: =K3 -> HCl | J40: Carbonic acid | K40: Acetic acid | L40: Phenol Red (pKa 7.7) | M40: Ammonia | N40: Hydroxide ion | O40: Glycine | P40: Strong ACID | Q40: Strong BASE | R40: Carbonic ac.
A41: 0.000 | B41: 2.873 | C41: 0.000 | D41: 2.873 | E41: 1.339E-03 | F41: 1.001E-01 | G41: 1.000E+00 | H41: 0.000E+00 | K41: 0.9871 | L41: 1.0208 | Q41: 1.0000
A42: 2.000 | B42: 3.809 | C42: 2.000 | D42: 3.809 | E42: 1.554E-04 | F42: 9.100E-02 | G42: 9.091E-01 | H42: 9.091E-02 | K42: 0.8988 | L42: 1.0023 | Q42: 1.0000
A43: 4.000 | B43: 4.156 | C43: 4.000 | D43: 4.156 | E43: 6.985E-05 | F43: 8.342E-02 | G43: 8.333E-01 | H43: 1.667E-01 | K43: 0.7997 | L43: 1.0008 | Q43: 1.0000
A44: 6.000 | B44: 4.389 | C44: 6.000 | D44: 4.389 | E44: 4.082E-05 | F44: 7.700E-02 | G44: 7.692E-01 | H44: 2.308E-01 | K44: 0.7000 | L44: 1.0002 | Q44: 1.0000
A45: 8.000 | B45: 4.581 | C45: 8.000 | D45: 4.581 | E45: 2.626E-05 | F45: 7.150E-02 | G45: 7.143E-01 | H45: 2.857E-01 | K45: 0.6001 | L45: 0.9997 | Q45: 1.0000
A46: 10.000 | B46: 4.757 | C46: 10.000 | D46: 4.757 | E46: 1.752E-05 | F46: 6.673E-02 | G46: 6.667E-01 | H46: 3.333E-01 | K46: 0.5002 | L46: 0.9991 | Q46: 1.0000
A47: 12.000 | B47: 4.933 | C47: 12.000 | D47: 4.933 | E47: 1.168E-05 | F47: 6.256E-02 | G47: 6.250E-01 | H47: 3.750E-01 | K47: 0.4003 | L47: 0.9985 | Q47: 1.0000
A48: 13.000 | B48: 5.025 | C48: 13.000 | D48: 5.025 | E48: 9.437E-06 | F48: 6.067E-02 | G48: 6.061E-01 | H48: 3.939E-01 | K48: 0.3503 | L48: 0.9980 | Q48: 1.0000
A49: 14.000 | B49: 5.124 | C49: 14.000 | D49: 5.124 | E49: 7.513E-06 | F49: 5.888E-02 | G49: 5.882E-01 | H49: 4.118E-01 | K49: 0.3004 | L49: 0.9975 | Q49: 1.0000
A50: 15.000 | B50: 5.233 | C50: 15.000 | D50: 5.233 | E50: 5.845E-06 | F50: 5.720E-02 | G50: 5.714E-01 | H50: 4.286E-01 | K50: 0.2504 | L50: 0.9967 | Q50: 1.0000
A51: 16.000 | B51: 5.358 | C51: 16.000 | D51: 5.358 | E51: 4.386E-06 | F51: 5.561E-02 | G51: 5.556E-01 | H51: 4.444E-01 | K51: 0.2004 | L51: 0.9955 | Q51: 1.0000
A52: 16.500 | B52: 5.429 | C52: 16.500 | D52: 5.429 | E52: 3.723E-06 | F52: 5.485E-02 | G52: 5.479E-01 | H52: 4.521E-01 | K52: 0.1754 | L52: 0.9947 | Q52: 1.0000
A53: 17.000 | B53: 5.509 | C53: 17.000 | D53: 5.509 | E53: 3.099E-06 | F53: 5.411E-02 | G53: 5.405E-01 | H53: 4.595E-01 | K53: 0.1504 | L53: 0.9937 | Q53: 1.0000
A54: 17.500 | B54: 5.600 | C54: 17.500 | D54: 5.600 | E54: 2.510E-06 | F54: 5.339E-02 | G54: 5.333E-01 | H54: 4.667E-01 | K54: 0.1255 | L54: 0.9922 | Q54: 1.0000
A55: 18.000 | B55: 5.709 | C55: 18.000 | D55: 5.709 | E55: 1.954E-06 | F55: 5.268E-02 | G55: 5.263E-01 | H55: 4.737E-01 | K55: 0.1005 | L55: 0.9899 | Q55: 1.0000
A56: 18.500 | B56: 5.845 | C56: 18.500 | D56: 5.845 | E56: 1.429E-06 | F56: 5.200E-02 | G56: 5.195E-01 | H56: 4.805E-01 | K56: 0.0755 | L56: 0.9862 | Q56: 1.0000
A57: 19.000 | B57: 6.031 | C57: 19.000 | D57: 6.031 | E57: 9.305E-07 | F57: 5.133E-02 | G57: 5.128E-01 | H57: 4.872E-01 | K57: 0.0505 | L57: 0.9790 | Q57: 1.0000
A58: 19.500 | B58: 6.339 | C58: 19.500 | D58: 6.339 | E58: 4.581E-07 | F58: 5.068E-02 | G58: 5.063E-01 | H58: 4.937E-01 | K58: 0.0255 | L58: 0.9583 | Q58: 1.0000
A59: 19.700 | B59: 6.559 | C59: 19.700 | D59: 6.559 | E59: 2.760E-07 | F59: 5.043E-02 | G59: 5.038E-01 | H59: 4.962E-01 | K59: 0.0155 | L59: 0.9326 | Q59: 1.0000
A60: 19.800 | B60: 6.729 | C60: 19.800 | D60: 6.729 | E60: 1.865E-07 | F60: 5.030E-02 | G60: 5.025E-01 | H60: 4.975E-01 | K60: 0.0105 | L60: 0.9034 | Q60: 1.0000
A61: 19.900 | B61: 7.008 | C61: 19.900 | D61: 7.008 | E61: 9.827E-08 | F61: 5.018E-02 | G61: 5.013E-01 | H61: 4.987E-01 | K61: 0.0056 | L61: 0.8312 | Q61: 1.0000
A62: 19.950 | B62: 7.259 | C62: 19.950 | D62: 7.259 | E62: 5.504E-08 | F62: 5.011E-02 | G62: 5.006E-01 | H62: 4.994E-01 | K62: 0.0031 | L62: 0.7339 | Q62: 1.0000
A63: 19.970 | B63: 7.418 | C63: 19.970 | D63: 7.418 | E63: 3.816E-08 | F63: 5.009E-02 | G63: 5.004E-01 | H63: 4.996E-01 | K63: 0.0022 | L63: 0.6567 | Q63: 1.0000
A64: 19.980 | B64: 7.524 | C64: 19.980 | D64: 7.524 | E64: 2.991E-08 | F64: 5.008E-02 | G64: 5.003E-01 | H64: 4.997E-01 | K64: 0.0017 | L64: 0.5998 | Q64: 1.0000
A65: 19.990 | B65: 7.660 | C65: 19.990 | D65: 7.660 | E65: 2.185E-08 | F65: 5.006E-02 | G65: 5.001E-01 | H65: 4.999E-01 | K65: 0.0012 | L65: 0.5228 | Q65: 1.0000
A66: 20.000 | B66: 7.850 | C66: 20.000 | D66: 7.850 | E66: 1.413E-08 | F66: 5.005E-02 | G66: 5.000E-01 | H66: 5.000E-01 | K66: 0.0008 | L66: 0.4145 | Q66: 1.0000
A67: 20.010 | B67: 8.156 | C67: 20.010 | D67: 8.156 | E67: 6.986E-09 | F67: 5.004E-02 | G67: 4.999E-01 | H67: 5.001E-01 | K67: 0.0004 | L67: 0.2593 | Q67: 1.0000
A68: 20.020 | B68: 8.800 | C68: 20.020 | D68: 8.800 | E68: 1.584E-09 | F68: 5.002E-02 | G68: 4.998E-01 | H68: 5.002E-01 | K68: 0.0001 | L68: 0.0735 | Q68: 1.0000
A69: 20.030 | B69: 9.420 | C69: 20.030 | D69: 9.420 | E69: 3.798E-10 | F69: 5.001E-02 | G69: 4.996E-01 | H69: 5.004E-01 | K69: 0.0000 | L69: 0.0187 | Q69: 1.0000
A70: 20.040 | B70: 9.702 | C70: 20.040 | D70: 9.702 | E70: 1.985E-10 | F70: 5.000E-02 | G70: 4.995E-01 | H70: 5.005E-01 | K70: 0.0000 | L70: 0.0099 | Q70: 1.0000
A71: 20.060 | B71: 9.998 | C71: 20.060 | D71: 9.998 | E71: 1.005E-10 | F71: 4.998E-02 | G71: 4.993E-01 | H71: 5.007E-01 | K71: 0.0000 | L71: 0.0050 | Q71: 1.0000
A72: 20.110 | B72: 10.348 | C72: 20.110 | D72: 10.348 | E72: 4.488E-11 | F72: 4.991E-02 | G72: 4.986E-01 | H72: 5.014E-01 | K72: 0.0000 | L72: 0.0022 | Q72: 1.0000
A73: 20.210 | B73: 10.671 | C73: 20.210 | D73: 10.671 | E73: 2.133E-11 | F73: 4.979E-02 | G73: 4.974E-01 | H73: 5.026E-01 | K73: 0.0000 | L73: 0.0011 | Q73: 1.0000
A74: 20.410 | B74: 10.981 | C74: 20.410 | D74: 10.981 | E74: 1.044E-11 | F74: 4.954E-02 | G74: 4.949E-01 | H74: 5.051E-01 | K74: 0.0000 | L74: 0.0005 | Q74: 1.0000
A75: 20.910 | B75: 11.334 | C75: 20.910 | D75: 11.334 | E75: 4.633E-12 | F75: 4.894E-02 | G75: 4.889E-01 | H75: 5.111E-01 | K75: 0.0000 | L75: 0.0002 | Q75: 1.0000
A76: 21.410 | B76: 11.523 | C76: 21.410 | D76: 11.523 | E76: 3.003E-12 | F76: 4.835E-02 | G76: 4.830E-01 | H76: 5.170E-01 | K76: 0.0000 | L76: 0.0002 | Q76: 0.9999
A77: 21.910 | B77: 11.651 | C77: 21.910 | D77: 11.651 | E77: 2.235E-12 | F77: 4.777E-02 | G77: 4.772E-01 | H77: 5.228E-01 | K77: 0.0000 | L77: 0.0001 | Q77: 0.9999
A78: 22.910 | B78: 11.825 | C78: 22.910 | D78: 11.825 | E78: 1.496E-12 | F78: 4.666E-02 | G78: 4.661E-01 | H78: 5.339E-01 | K78: 0.0000 | L78: 0.0001 | Q78: 0.9999
A79: 23.910 | B79: 11.944 | C79: 23.910 | D79: 11.944 | E79: 1.138E-12 | F79: 4.559E-02 | G79: 4.555E-01 | H79: 5.445E-01 | K79: 0.0000 | L79: 0.0001 | Q79: 0.9998
A80: 25.910 | B80: 12.105 | C80: 25.910 | D80: 12.105 | E80: 7.857E-13 | F80: 4.361E-02 | G80: 4.356E-01 | H80: 5.644E-01 | K80: 0.0000 | L80: 0.0000 | Q80: 0.9998
A81: 27.910 | B81: 12.213 | C81: 27.910 | D81: 12.213 | E81: 6.121E-13 | F81: 4.179E-02 | G81: 4.174E-01 | H81: 5.826E-01 | K81: 0.0000 | L81: 0.0000 | Q81: 0.9997

Sheet Simulation (hidden)
C1: Virtual Titrator – Simulation of curves | H1: <--- read instructions | K1: pKas of the acids and bases in the solution | N1: Click on K2 to Q2; select acids/bases; click on J2; read M1 | U1: Overall protonation constants = bp = PKp (calculated by the program) | AB1: pKa(n) = -log Kd(HB-->B) = log Kp(1) | AF1: pKas loaded from the Database
A2: Titrand (sample) and titrant (standard) composition (concentrations in mol/L) | K2: 5 | L2: 8 | M2: 98 | N2: 1 | O2: 2 | P2: 6 | Q2: 3 | S2: Titrant | V2: Titrand | AC2: Titrant | AG2: Titrand | AH2: Click on J2 to use these pKas in the Simulation
A3: SAMPLE Species | B3: =K3 -> EDTA | C3: =L3 -> Phosphoric acid | D3: L-Glutamic acid | E3: Acetic acid | F3: Ammonia | G3: HCl | H3: Carbonic acid | J3: Acid / Base | K3: EDTA | L3: Phosphoric acid | M3: L-Glutamic acid | N3: Acetic acid | O3: Ammonia | P3: HCl | Q3: Carbonic acid | R3: Strong ACID | S3: Strong BASE | T3: Carbonic ac. | U3: Acid / Base | V3: =IF(K3="","",K3) -> EDTA | W3: Phosphoric acid | X3: L-Glutamic acid | Y3: Acetic acid | Z3: Ammonia | AA3: HCl | AB3: Carbonic acid | AC3: =R3 -> Strong ACID | AD3: =S3 -> Strong BASE | AE3: =T3 -> Carbonic ac. | AF3: Acid / Base | AG3: =IF(VLOOKUP(K$2,Database!$B$22:$N$301,2)="","",VLOOKUP(K$2,Database!$B$22:$N$301,2)) -> EDTA | AH3: =IF(VLOOKUP(L$2,Database!$B$22:$N$301,2)="","",VLOOKUP(L$2,Database!$B$22:$N$301,2)) -> Phosphoric acid | AI3: =IF(VLOOKUP(M$2,Database!$B$22:$N$301,2)="","",VLOOKUP(M$2,Database!$B$22:$N$301,2)) -> L-Glutamic acid | AJ3: =IF(VLOOKUP(N$2,Database!$B$22:$N$301,2)="","",VLOOKUP(N$2,Database!$B$22:$N$301,2)) -> Acetic acid | AK3: =IF(VLOOKUP(O$2,Database!$B$22:$N$301,2)="","",VLOOKUP(O$2,Database!$B$22:$N$301,2)) -> Ammonia | AL3: =IF(VLOOKUP(P$2,Database!$B$22:$N$301,2)="","",VLOOKUP(P$2,Database!$B$22:$N$301,2)) -> HCl | AM3: =IF(VLOOKUP(Q$2,Database!$B$22:$N$301,2)="","",VLOOKUP(Q$2,Database!$B$22:$N$301,2)) -> Carbonic acid
A4: [B] | J4: Charge of B | K4: -4 | L4: -3 | M4: -2 | N4: -1 | O4: 0 | P4: -1 | Q4: -2 | R4: -1 | S4: -1 | T4: -2 | U4: Charge of B | V4: -4 | W4: =IF(L4="","",L4) -> -3 | X4: -2 | Y4: -1 | Z4: 0 | AA4: -1 | AB4: -2 | AC4: -1 | AD4: -1 | AE4: -2 | AF4: Charge of B | AG4: =IF(VLOOKUP(K$2,Database!$B$22:$N$301,3)="","",VLOOKUP(K$2,Database!$B$22:$N$301,3)) -> -4 | AH4: =IF(VLOOKUP(L$2,Database!$B$22:$N$301,3)="","",VLOOKUP(L$2,Database!$B$22:$N$301,3)) -> -3 | AI4: =IF(VLOOKUP(M$2,Database!$B$22:$N$301,3)="","",VLOOKUP(M$2,Database!$B$22:$N$301,3)) -> -2 | AJ4: =IF(VLOOKUP(N$2,Database!$B$22:$N$301,3)="","",VLOOKUP(N$2,Database!$B$22:$N$301,3)) -> -1 | AK4: =IF(VLOOKUP(O$2,Database!$B$22:$N$301,3)="","",VLOOKUP(O$2,Database!$B$22:$N$301,3)) -> 0 | AL4: =IF(VLOOKUP(P$2,Database!$B$22:$N$301,3)="","",VLOOKUP(P$2,Database!$B$22:$N$301,3)) -> -1 | AM4: =IF(VLOOKUP(Q$2,Database!$B$22:$N$301,3)="","",VLOOKUP(Q$2,Database!$B$22:$N$301,3)) -> -2
A5: [HB] | J5: pKa1 | K5: -0.210 | L5: 2.148 | M5: 2.230 | N5: 4.757 | O5: 9.244 | P5: -7.000 | Q5: 6.352 | R5: -6 | S5: 15.745 | T5: 6.352 | U5: bp1 | V5: =IF(K5="","",IF(K6="",10^K5,(IF(K7="",10^K6,(IF(K8="",10^K7,(IF(K9="",10^K8,(IF(K10="",10^K9,10^K10)))))))))) -> 1.072E+11 | W5: 2.239E+12 | X5: 8.913E+09 | Y5: 5.715E+04 | Z5: 1.754E+09 | AA5: 1.000E-07 | AB5: 2.133E+10 | AC5: =IF(R5="","",IF(R6="",10^R5,10^R6)) -> 1.000E-06 | AD5: =IF(S5="","",IF(S6="",10^S5,10^S6)) -> 5.559E+15 | AE5: =IF(T5="","",IF(T6="",10^T5,10^T6)) -> 2.133E+10 | AF5: pKa1 = logKpn | AG5: =IF(VLOOKUP(K$2,Database!$B$22:$N$301,4)="","",VLOOKUP(K$2,Database!$B$22:$N$301,4)) -> -0.210 | AH5: =IF(VLOOKUP(L$2,Database!$B$22:$N$301,4)="","",VLOOKUP(L$2,Database!$B$22:$N$301,4)) -> 2.148 | AI5: =IF(VLOOKUP(M$2,Database!$B$22:$N$301,4)="","",VLOOKUP(M$2,Database!$B$22:$N$301,4)) -> 2.230 | AJ5: =IF(VLOOKUP(N$2,Database!$B$22:$N$301,4)="","",VLOOKUP(N$2,Database!$B$22:$N$301,4)) -> 4.757 | AK5: =IF(VLOOKUP(O$2,Database!$B$22:$N$301,4)="","",VLOOKUP(O$2,Database!$B$22:$N$301,4)) -> 9.244 | AL5: =IF(VLOOKUP(P$2,Database!$B$22:$N$301,4)="","",VLOOKUP(P$2,Database!$B$22:$N$301,4)) -> -7.000 | AM5: =IF(VLOOKUP(Q$2,Database!$B$22:$N$301,4)="","",VLOOKUP(Q$2,Database!$B$22:$N$301,4)) -> 6.352
A6: [H2B] | J6: pKa2 | K6: 1.500 | L6: 7.199 | M6: 4.420 | Q6: 10.329 | T6: 10.329 | U6: bp2 | V6: =IF(K6="","",IF(K7="",V5*10^K5,(IF(K8="",V5*10^K6,(IF(K9="",V5*10^K7,(IF(K10="",V5*10^K8,V5*10^K9)))))))) -> 6.026E+17 | W6: 3.540E+19 | X6: 2.344E+14 | AB6: 4.797E+16 | AC6: =IF(R6="","",AC5*10^R5) ->  | AD6: =IF(S6="","",AD5*10^S5) ->  | AE6: =IF(T6="","",AE5*10^T5) -> 4.797E+16 | AF6: pKa2 = logKpn-1 | AG6: =IF(VLOOKUP(K$2,Database!$B$22:$N$301,5)="","",VLOOKUP(K$2,Database!$B$22:$N$301,5)) -> 1.500 | AH6: =IF(VLOOKUP(L$2,Database!$B$22:$N$301,5)="","",VLOOKUP(L$2,Database!$B$22:$N$301,5)) -> 7.199 | AI6: =IF(VLOOKUP(M$2,Database!$B$22:$N$301,5)="","",VLOOKUP(M$2,Database!$B$22:$N$301,5)) -> 4.420 | AJ6: =IF(VLOOKUP(N$2,Database!$B$22:$N$301,5)="","",VLOOKUP(N$2,Database!$B$22:$N$301,5)) ->  | AK6: =IF(VLOOKUP(O$2,Database!$B$22:$N$301,5)="","",VLOOKUP(O$2,Database!$B$22:$N$301,5)) ->  | AL6: =IF(VLOOKUP(P$2,Database!$B$22:$N$301,5)="","",VLOOKUP(P$2,Database!$B$22:$N$301,5)) ->  | AM6: =IF(VLOOKUP(Q$2,Database!$B$22:$N$301,5)="","",VLOOKUP(Q$2,Database!$B$22:$N$301,5)) -> 10.329
A7: [H3B] | C7: 0.05 | J7: pKa3 | K7: 2.210 | L7: 12.350 | M7: 9.950 | U7: bp3 | V7: =IF(K7="","",IF(K8="",V6*10^K5,(IF(K9="",V6*10^K6,(IF(K10="",V6*10^K7,V6*10^K8)))))) -> 7.762E+20 | W7: 4.977E+21 | X7: 3.981E+16 | AF7: pKa3 = logKpn-2 | AG7: =IF(VLOOKUP(K$2,Database!$B$22:$N$301,6)="","",VLOOKUP(K$2,Database!$B$22:$N$301,6)) -> 2.210 | AH7: =IF(VLOOKUP(L$2,Database!$B$22:$N$301,6)="","",VLOOKUP(L$2,Database!$B$22:$N$301,6)) -> 12.350 | AI7: =IF(VLOOKUP(M$2,Database!$B$22:$N$301,6)="","",VLOOKUP(M$2,Database!$B$22:$N$301,6)) -> 9.950 | AJ7: =IF(VLOOKUP(N$2,Database!$B$22:$N$301,6)="","",VLOOKUP(N$2,Database!$B$22:$N$301,6)) ->  | AK7: =IF(VLOOKUP(O$2,Database!$B$22:$N$301,6)="","",VLOOKUP(O$2,Database!$B$22:$N$301,6)) ->  | AL7: =IF(VLOOKUP(P$2,Database!$B$22:$N$301,6)="","",VLOOKUP(P$2,Database!$B$22:$N$301,6)) ->  | AM7: =IF(VLOOKUP(Q$2,Database!$B$22:$N$301,6)="","",VLOOKUP(Q$2,Database!$B$22:$N$301,6)) -> 
A8: [H4B] | J8: pKa4 | K8: 3.110 | U8: bp4 | V8: =IF(K8="","",IF(K9="",V7*10^K5,(IF(K10="",V7*10^K6,V7*10^K7)))) -> 1.259E+23 | AF8: pKa4 = logKpn-3 | AG8: =IF(VLOOKUP(K$2,Database!$B$22:$N$301,7)="","",VLOOKUP(K$2,Database!$B$22:$N$301,7)) -> 3.110 | AH8: =IF(VLOOKUP(L$2,Database!$B$22:$N$301,7)="","",VLOOKUP(L$2,Database!$B$22:$N$301,7)) ->  | AI8: =IF(VLOOKUP(M$2,Database!$B$22:$N$301,7)="","",VLOOKUP(M$2,Database!$B$22:$N$301,7)) ->  | AJ8: =IF(VLOOKUP(N$2,Database!$B$22:$N$301,7)="","",VLOOKUP(N$2,Database!$B$22:$N$301,7)) ->  | AK8: =IF(VLOOKUP(O$2,Database!$B$22:$N$301,7)="","",VLOOKUP(O$2,Database!$B$22:$N$301,7)) ->  | AL8: =IF(VLOOKUP(P$2,Database!$B$22:$N$301,7)="","",VLOOKUP(P$2,Database!$B$22:$N$301,7)) ->  | AM8: =IF(VLOOKUP(Q$2,Database!$B$22:$N$301,7)="","",VLOOKUP(Q$2,Database!$B$22:$N$301,7)) -> 
A9: [H5B] | I9: Total | J9: pKa5 | K9: 6.750 | U9: bp5 | V9: =IF(K9="","",IF(K10="",V8*10^K5,V8*10^K6)) -> 3.981E+24 | AF9: pKa5 = logKpn-4 | AG9: =IF(VLOOKUP(K$2,Database!$B$22:$N$301,8)="","",VLOOKUP(K$2,Database!$B$22:$N$301,8)) -> 6.750 | AH9: =IF(VLOOKUP(L$2,Database!$B$22:$N$301,8)="","",VLOOKUP(L$2,Database!$B$22:$N$301,8)) ->  | AI9: =IF(VLOOKUP(M$2,Database!$B$22:$N$301,8)="","",VLOOKUP(M$2,Database!$B$22:$N$301,8)) ->  | AJ9: =IF(VLOOKUP(N$2,Database!$B$22:$N$301,8)="","",VLOOKUP(N$2,Database!$B$22:$N$301,8)) ->  | AK9: =IF(VLOOKUP(O$2,Database!$B$22:$N$301,8)="","",VLOOKUP(O$2,Database!$B$22:$N$301,8)) ->  | AL9: =IF(VLOOKUP(P$2,Database!$B$22:$N$301,8)="","",VLOOKUP(P$2,Database!$B$22:$N$301,8)) ->  | AM9: =IF(VLOOKUP(Q$2,Database!$B$22:$N$301,8)="","",VLOOKUP(Q$2,Database!$B$22:$N$301,8)) -> 
A10: [H6B] | I10: SS | J10: pKa6 | K10: 11.030 | U10: bp6 | V10: =IF(K10="","",V9*10^K5) -> 2.455E+24 | AF10: pKa6 = logKpn-5 | AG10: =IF(VLOOKUP(K$2,Database!$B$22:$N$301,9)="","",VLOOKUP(K$2,Database!$B$22:$N$301,9)) -> 11.030 | AH10: =IF(VLOOKUP(L$2,Database!$B$22:$N$301,9)="","",VLOOKUP(L$2,Database!$B$22:$N$301,9)) ->  | AI10: =IF(VLOOKUP(M$2,Database!$B$22:$N$301,9)="","",VLOOKUP(M$2,Database!$B$22:$N$301,9)) ->  | AJ10: =IF(VLOOKUP(N$2,Database!$B$22:$N$301,9)="","",VLOOKUP(N$2,Database!$B$22:$N$301,9)) ->  | AK10: =IF(VLOOKUP(O$2,Database!$B$22:$N$301,9)="","",VLOOKUP(O$2,Database!$B$22:$N$301,9)) ->  | AL10: =IF(VLOOKUP(P$2,Database!$B$22:$N$301,9)="","",VLOOKUP(P$2,Database!$B$22:$N$301,9)) ->  | AM10: =IF(VLOOKUP(Q$2,Database!$B$22:$N$301,9)="","",VLOOKUP(Q$2,Database!$B$22:$N$301,9)) -> 
A11: S[HiB] | B11: =SUM(B4:B10) -> 0 | C11: =SUM(C4:C10) -> 0.05 | D11: 0 | E11: 0 | F11: 0 | G11: 0 | H11: 0 | I11: =SUM(B11:H11) -> 5.000E-02 | J11: pKw | K11: 13.997 | U11: Kw | V11: =10^-K11 -> 1.007E-14
A12: S[H] | B12: =B5+2*B6+3*B7+4*B8+5*B9+6*B10 -> 0 | C12: =C5+2*C6+3*C7+4*C8+5*C9+6*C10 -> 0.15 | D12: 0 | E12: 0 | F12: 0 | G12: 0 | H12: 0 | I12: =SUM(B12:H12) -> 1.500E-01
A13: SziCi | B13: =K4*B4+(K4+1)*B5+(K4+2)*B6+(K4+3)*B7+(K4+4)*B8+(K4+5)*B9+(K4+6)*B10 -> 0 | C13: =L4*C4+(L4+1)*C5+(L4+2)*C6+(L4+3)*C7+(L4+4)*C8+(L4+5)*C9+(L4+6)*C10 -> 0 | D13: 0 | E13: 0 | F13: 0 | G13: 0 | H13: 0 | I13: =SUM(B13:H13) -> 0
A14: TITRANT | B14: =R3 -> Strong ACID | C14: =S3 -> Strong BASE | D14: =T3 -> Carbonic ac. | E14: Total | G14: Volume of titrand (in mL) | I14: Counterions and other ions | K14: =IF(K17<>K16, "error: K16><K17","") ->  | L14: =IF(K20<>K19, "error: K19><K20","") ->  | M14: Simulation of errors | O14: Davies equation parameters
A15: [B] | C15: 0.1 | E15: Titrant(s) | F15: SAMPLE | G15: Water | H15: Titrand | I15: Sample (Titrand) | J15: Minimum (mol/L) | K15: Extra in sample | L15: Sum (mol/L) | M15: (data dispersion) | O15: for activity coefficient estimation
A16: [HB] | F16: Dispensed | G16: Added | H16: Initial volume | I16: Cations (monov.) | J16: =IF(I13<0,-I13,0) -> 0 | K16: 0 | L16: =J16+K16 -> 0 | M16: S pH= | N16: 0.000 | O16: A | P16: 0.509
A17: [H2B] | E17: SS | F17: 20 | G17: 0 | H17: =F17+G17 -> 20.00 | I17: Anions (monov.) | J17: =IF(I13>0,I13,0) -> 0 | K17: 0 | L17: =J17+K17 -> 0 | M17: S Vol= | N17: 0.000 | O17: b | P17: 0.300
A18: S[HiB] | B18: =SUM(B15:B17) -> 0 | C18: =SUM(C15:C17) -> 0.1 | D18: =SUM(D15:D17) -> 0 | E18: =SUM(B18:D18) -> 1.00E-01 | G18: Maximum titrant volume & additions | I18: Titrant | J18: Minimum (mol/L) | K18: Extra (mol/L) | L18: Sum (mol/L) | M18: Titration speed
A19: S[H] | B19: =B16+2*B17 -> 0 | C19: =C16+2*C17 -> 0 | D19: =D16+2*D17 -> 0 | E19: =SUM(B19:D19) -> 0.00E+00 | F19: Titrant Vol. | G19: Number of additions | I19: Cations (monov.) | J19: =IF(E20<0,-E20,0) -> 0.1 | K19: 0 | L19: =J19+K19 -> 0.1 | M19: Slower | N19: 0
A20: SziCi | B20: =R4*B15+(R4+1)*B16+(R4+2)*B17 -> 0 | C20: =S4*C15+(S4+1)*C16+(S4+2)*C17 -> -0.1 | D20: =T4*D15+(T4+1)*D16+(T4+2)*D17 -> 0 | E20: =SUM(B20:D20) -> -0.1 | F20: 50.00 | G20: 50 | H20: Upper limits | I20: Anions (monov.) | J20: =IF(E20>0,E20,0) -> 0 | K20: 0 | L20: =J20+K20 -> 0 | M20: Faster | N20: delay (s)
A21: 2
O22: Color coding
O23: D o n o t c h a n g e
O24: C h a n g e c r i t e r i o u s l y
O25: Fill out, change or leave blank
A34: Data ID on curves
A35: Copying curves
A36: Resizing axis
A37: Other graphics
A38: Data analysis | BA38: Retained formed curves
A39: Vadd | B39: =IF(A21=2,"pH", "'pH'") -> pH | C39: Vadd | D39: =IF(A21=2,"pH", "'pH'") -> pH | E39: [H] | F39: CHtot = | G39: Dil. factor | H39: Dil. Factor | I39: h1 | J39: h2 | K39: h3 | L39: h4 | M39: h5 | N39: h6 | O39: h7 | P39: h1 titrant | Q39: h2 titrant | R39: h3 titrant | S39: Parameters calculated only for the 'Activities, plot pH' option | BA39: Vol | BB39: pH | BC39: Vol | BD39: pH | BE39: Vol | BF39: pH | BG39: Vol | BH39: pH | BI39: Vol | BJ39: pH | BK39: Vol | BL39: pH | BM39: Vol | BN39: pH | BO39: Vol | BP39: pH | BQ39: Vol | BR39: pH | BS39: Vol | BT39: pH | BU39: Vol | BV39: pH | BW39: Vol | BX39: pH | BY39: Vol | BZ39: pH
A40: (mL) | B40: simulated | C40: with "error" (do not use) | D40: simulated with "error" | F40: CHcalc | G40: Titrand (sample) | H40: Titrant (buret) | I40: =K3 -> EDTA | J40: Phosphoric acid | K40: L-Glutamic acid | L40: Acetic acid | M40: Ammonia | N40: HCl | O40: Carbonic acid | P40: Strong ACID | Q40: Strong BASE | R40: Carbonic ac. | S40: Ionic strength, I | T40: I of counter- and extra ions | U40: gH+ | V40: pH | BA40: 1 | BB40: 1 | BC40: 2 | BD40: 2 | BE40: 3 | BF40: 3 | BG40: 4 | BH40: 4 | BI40: 5 | BJ40: 5 | BK40: 6 | BL40: 6 | BM40: 7 | BN40: 7 | BO40: 8 | BP40: 8 | BQ40: 9 | BR40: 9 | BS40: 10 | BT40: 10 | BU40: 11 | BV40: 11 | BW40: 12 | BX40: 12 | BY40: 13 | BZ40: 13
A41: 0.000 | B41: 1.817 | E41: 1.736E-02 | F41: 1.500E-01 | G41: 1.000E+00 | H41: 0.000E+00 | J41: 2.6528 | Q41: 1.0000 | S41: 0.0174 | T41: 0.0000 | U41: 0.8778 | V41: 1.7605 | BA41: 0 | BB41: 3.353082641 | BC41: 0 | BD41: 1.386411696
A42: 2.300 | B42: 2.032 | E42: 1.070E-02 | F42: 1.345E-01 | G42: 8.968E-01 | H42: 1.032E-01 | J42: 2.5315 | Q42: 1.0000 | S42: 0.0210 | T42: 0.0052 | U42: 0.8685 | V42: 1.9708 | BA42: 0.6894471691 | BB42: 3.540827492 | BC42: 3.117809592 | BD42: 1.607250963
A43: 4.325 | B43: 2.246 | E43: 6.590E-03 | F43: 1.233E-01 | G43: 8.222E-01 | H43: 1.778E-01 | J43: 2.4072 | Q43: 1.0000 | S43: 0.0244 | T43: 0.0089 | U43: 0.8610 | V43: 2.1811 | BA43: 1.458208715 | BB43: 3.72895565 | BC43: 5.483084255 | BD43: 1.829576772
A44: 5.998 | B44: 2.459 | E44: 4.060E-03 | F44: 1.154E-01 | G44: 7.693E-01 | H44: 2.307E-01 | J44: 2.2946 | Q44: 1.0000 | S44: 0.0271 | T44: 0.0115 | U44: 0.8554 | V44: 2.3914 | BA44: 2.354237575 | BB44: 3.917140366 | BC44: 7.136162159 | BD44: 2.052947459
A45: 7.286 | B45: 2.672 | E45: 2.502E-03 | F45: 1.099E-01 | G45: 7.330E-01 | H45: 2.670E-01 | J45: 2.2032 | Q45: 1.0000 | S45: 0.0292 | T45: 0.0134 | U45: 0.8515 | V45: 2.6018 | BA45: 3.385618357 | BB45: 4.104981039 | BC45: 8.226362318 | BD45: 2.277009381
A46: 8.215 | B46: 2.883 | E46: 1.541E-03 | F46: 1.063E-01 | G46: 7.088E-01 | H46: 2.912E-01 | J46: 2.1350 | Q46: 1.0000 | S46: 0.0307 | T46: 0.0146 | U46: 0.8489 | V46: 2.8121 | BA46: 4.508503924 | BB46: 4.292116589 | BC46: 8.918093691 | BD46: 2.501510735
A47: 8.853 | B47: 3.094 | E47: 9.498E-04 | F47: 1.040E-01 | G47: 6.932E-01 | H47: 3.068E-01 | J47: 2.0873 | Q47: 1.0000 | S47: 0.0316 | T47: 0.0153 | U47: 0.8472 | V47: 3.0224 | BA47: 5.6376073 | BB47: 4.47833262 | BC47: 9.346292847 | BD47: 2.726284443
A48: 9.275 | B48: 3.305 | E48: 5.852E-04 | F48: 1.025E-01 | G48: 6.832E-01 | H48: 3.168E-01 | J48: 2.0554 | Q48: 1.0000 | S48: 0.0323 | T48: 0.0158 | U48: 0.8461 | V48: 3.2327 | BA48: 6.67908755 | BB48: 4.663594178 | BC48: 9.607319733 | BD48: 2.951224303
A49: 9.547 | B49: 3.516 | E49: 3.606E-04 | F49: 1.015E-01 | G49: 6.769E-01 | H49: 3.231E-01 | J49: 2.0346 | Q49: 1.0000 | S49: 0.0327 | T49: 0.0162 | U49: 0.8454 | V49: 3.4430 | BA49: 7.564980905 | BB49: 4.848001382 | BC49: 9.76495275 | BD49: 3.17626455
A50: 9.721 | B50: 3.726 | E50: 2.222E-04 | F50: 1.009E-01 | G50: 6.729E-01 | H50: 3.271E-01 | J50: 2.0213 | Q50: 1.0000 | S50: 0.0329 | T50: 0.0164 | U50: 0.8450 | V50: 3.6533 | BA50: 8.268340318 | BB50: 5.031717382 | BC50: 9.859607455 | BD50: 3.401365094
A51: 9.833 | B51: 3.937 | E51: 1.369E-04 | F51: 1.006E-01 | G51: 6.704E-01 | H51: 3.296E-01 | J51: 2.0126 | Q51: 1.0000 | S51: 0.0331 | T51: 0.0165 | U51: 0.8447 | V51: 3.8636 | BA51: 8.797147083 | BB51: 5.214911459 | BC51: 9.916251492 | BD51: 3.626501728
A52: 9.906 | B52: 4.147 | E52: 8.434E-05 | F52: 1.003E-01 | G52: 6.688E-01 | H52: 3.312E-01 | J52: 2.0069 | Q52: 1.0000 | S52: 0.0333 | T52: 0.0166 | U52: 0.8444 | V52: 4.0739 | BA52: 9.178828941 | BB52: 5.397729422 | BC52: 9.950079636 | BD52: 3.851659918
A53: 9.957 | B53: 4.358 | E53: 5.197E-05 | F53: 1.001E-01 | G53: 6.676E-01 | H53: 3.324E-01 | J53: 2.0028 | Q53: 1.0000 | S53: 0.0334 | T53: 0.0166 | U53: 0.8443 | V53: 4.2843 | BA53: 9.446391159 | BB53: 5.580284758 | BC53: 9.97025734 | BD53: 4.076830965
A54: 9.997 | B54: 4.568 | E54: 3.202E-05 | F54: 1.000E-01 | G54: 6.667E-01 | H54: 3.333E-01 | J54: 1.9993 | Q54: 1.0000 | S54: 0.0335 | T54: 0.0167 | U54: 0.8441 | V54: 4.4946 | BA54: 9.630238129 | BB54: 5.762660643 | BC54: 9.98228411 | BD54: 4.302009677
A55: 10.037 | B55: 4.779 | E55: 1.973E-05 | F55: 9.988E-02 | G55: 6.658E-01 | H55: 3.342E-01 | J55: 1.9957 | Q55: 1.0000 | S55: 0.0336 | T55: 0.0167 | U55: 0.8438 | V55: 4.7049 | BA55: 9.754962799 | BB55: 5.944915856 | BC55: 9.989449488 | BD55: 4.527192956
A56: 10.086 | B56: 4.989 | E56: 1.216E-05 | F56: 9.971E-02 | G56: 6.648E-01 | H56: 3.352E-01 | J56: 1.9910 | Q56: 1.0000 | S56: 0.0339 | T56: 0.0168 | U56: 0.8434 | V56: 4.9152 | BA56: 9.839040846 | BB56: 6.127091086 | BC56: 9.993717445 | BD56: 4.752378954
A57: 10.155 | B57: 5.200 | E57: 7.490E-06 | F57: 9.949E-02 | G57: 6.632E-01 | H57: 3.368E-01 | J57: 1.9843 | Q57: 1.0000 | S57: 0.0342 | T57: 0.0168 | U57: 0.8429 | V57: 5.1255 | BA57: 9.895767509 | BB57: 6.309214285 | BC57: 9.996259261 | BD57: 4.977566572
A58: 10.259 | B58: 5.411 | E58: 4.615E-06 | F58: 9.914E-02 | G58: 6.610E-01 | H58: 3.390E-01 | J58: 1.9739 | Q58: 1.0000 | S58: 0.0348 | T58: 0.0170 | U58: 0.8420 | V58: 5.3358 | BA58: 9.93450237 | BB58: 6.491304794 | BC58: 9.997773012 | BD58: 5.202755155
A59: 10.423 | B59: 5.622 | E59: 2.844E-06 | F59: 9.861E-02 | G59: 6.574E-01 | H59: 3.426E-01 | J59: 1.9576 | Q59: 1.0000 | S59: 0.0357 | T59: 0.0171 | U59: 0.8406 | V59: 5.5461 | BA59: 9.961818154 | BB59: 6.67337642 | BC59: 9.998674628 | BD59: 5.427944313
A60: 10.678 | B60: 5.833 | E60: 1.752E-06 | F60: 9.779E-02 | G60: 6.519E-01 | H60: 3.481E-01 | J60: 1.9321 | Q60: 1.0000 | S60: 0.0370 | T60: 0.0174 | U60: 0.8385 | V60: 5.7564 | BA60: 9.982437371 | BB60: 6.855439717 | BC60: 9.999211897 | BD60: 5.653133813
A61: 11.072 | B61: 6.045 | E61: 1.080E-06 | F61: 9.655E-02 | G61: 6.437E-01 | H61: 3.563E-01 | J61: 1.8928 | Q61: 1.0000 | S61: 0.0391 | T61: 0.0178 | U61: 0.8355 | V61: 5.9668 | BA61: 9.999968707 | BB61: 7.03750379 | BC61: 9.999532504 | BD61: 5.878323517
A62: 11.659 | B62: 6.257 | E62: 6.652E-07 | F62: 9.476E-02 | G62: 6.317E-01 | H62: 3.683E-01 | J62: 1.8341 | Q62: 1.0000 | S62: 0.0421 | T62: 0.0184 | U62: 0.8314 | V62: 6.1771 | BA62: 10.0175018 | BB62: 7.219577849 | BC62: 9.999724584 | BD62: 6.103513345
A63: 12.488 | B63: 6.470 | E63: 4.098E-07 | F63: 9.234E-02 | G63: 6.156E-01 | H63: 3.844E-01 | J63: 1.7512 | Q63: 1.0000 | S63: 0.0461 | T63: 0.0192 | U63: 0.8262 | V63: 6.3874 | BA63: 10.03813214 | BB63: 7.401672774 | BC63: 9.999840941 | BD63: 6.328703246
A64: 13.560 | B64: 6.684 | E64: 2.525E-07 | F64: 8.939E-02 | G64: 5.959E-01 | H64: 4.041E-01 | J64: 1.6440 | Q64: 1.0000 | S64: 0.0510 | T64: 0.0202 | U64: 0.8204 | V64: 6.5977 | BA64: 10.06549076 | BB64: 7.583802879 | BC64: 9.999913569 | BD64: 6.553893195
A65: 14.799 | B65: 6.897 | E65: 1.556E-07 | F65: 8.621E-02 | G65: 5.747E-01 | H65: 4.253E-01 | J65: 1.5201 | Q65: 1.0000 | S65: 0.0563 | T65: 0.0213 | U65: 0.8147 | V65: 6.8080 | BA65: 10.10435681 | BB65: 7.765988103 | BC65: 9.999962432 | BD65: 6.779083176
A66: 16.055 | B66: 7.110 | E66: 9.587E-08 | F66: 8.321E-02 | G66: 5.547E-01 | H66: 4.453E-01 | J66: 1.3945 | Q66: 1.0000 | S66: 0.0613 | T66: 0.0223 | U66: 0.8097 | V66: 7.0183 | BA66: 10.16143545 | BB66: 7.948256733 | BC66: 10.00000097 | BD66: 7.004273183
A67: 17.174 | B67: 7.322 | E67: 5.907E-08 | F67: 8.070E-02 | G67: 5.380E-01 | H67: 4.620E-01 | J67: 1.2826 | Q67: 1.0000 | S67: 0.0655 | T67: 0.0231 | U67: 0.8059 | V67: 7.2286 | BA67: 10.24638257 | BB67: 8.130648616 | BC67: 10.00003977 | BD67: 7.229463218
A68: 18.068 | B68: 7.534 | E68: 3.640E-08 | F68: 7.881E-02 | G68: 5.254E-01 | H68: 4.746E-01 | J68: 1.1932 | Q68: 1.0000 | S68: 0.0687 | T68: 0.0237 | U68: 0.8032 | V68: 7.4389 | BA68: 10.3731254 | BB68: 8.313218267 | BC68: 10.00008951 | BD68: 7.454653289
A69: 18.725 | B69: 7.745 | E69: 2.243E-08 | F69: 7.747E-02 | G69: 5.165E-01 | H69: 4.835E-01 | J69: 1.1275 | Q69: 1.0000 | S69: 0.0709 | T69: 0.0242 | U69: 0.8013 | V69: 7.6493 | BA69: 10.56140253 | BB69: 8.49603619 | BC69: 10.00016386 | BD69: 7.679843417
A70: 19.180 | B70: 7.956 | E70: 1.382E-08 | F70: 7.657E-02 | G70: 5.105E-01 | H70: 4.895E-01 | J70: 1.0821 | Q70: 1.0000 | S70: 0.0724 | T70: 0.0245 | U70: 0.8001 | V70: 7.8596 | BA70: 10.83808912 | BB70: 8.679184718 | BC70: 10.00028326 | BD70: 7.905033634
A71: 19.482 | B71: 8.167 | E71: 8.514E-09 | F71: 7.598E-02 | G71: 5.066E-01 | H71: 4.934E-01 | J71: 1.0519 | Q71: 1.0000 | S71: 0.0734 | T71: 0.0247 | U71: 0.7993 | V71: 8.0699 | BA71: 11.23705525 | BB71: 8.862742306 | BC71: 10.00048054 | BD71: 8.130224001
A72: 19.678 | B72: 8.378 | E72: 5.246E-09 | F72: 7.561E-02 | G72: 5.041E-01 | H72: 4.959E-01 | J72: 1.0323 | Q72: 1.0000 | S72: 0.0740 | T72: 0.0248 | U72: 0.7988 | V72: 8.2802 | BA72: 11.79492671 | BB72: 9.046750393 | BC72: 10.00080996 | BD72: 8.355414618
A73: 19.804 | B73: 8.588 | E73: 3.232E-09 | F73: 7.537E-02 | G73: 5.025E-01 | H73: 4.975E-01 | J73: 1.0198 | Q73: 1.0000 | S73: 0.0744 | T73: 0.0249 | U73: 0.7985 | V73: 8.4905 | BA73: 12.53917969 | BB73: 9.231166912 | BC73: 10.00136208 | BD73: 8.580605654
A74: 19.886 | B74: 8.799 | E74: 1.992E-09 | F74: 7.522E-02 | G74: 5.014E-01 | H74: 4.986E-01 | J74: 1.0118 | Q74: 1.0000 | S74: 0.0747 | T74: 0.0249 | U74: 0.7983 | V74: 8.7008 | BA74: 13.46812335 | BB74: 9.415834211 | BC74: 10.00228877 | BD74: 8.805797393
A75: 19.941 | B75: 9.009 | E75: 1.227E-09 | F75: 7.511E-02 | G75: 5.007E-01 | H75: 4.993E-01 | J75: 1.0064 | Q75: 1.0000 | S75: 0.0748 | T75: 0.0250 | U75: 0.7982 | V75: 8.9111 | BA75: 14.53299353 | BB75: 9.60050444 | BC75: 10.00384493 | BD75: 9.030990312
A76: 19.983 | B76: 9.219 | E76: 7.561E-10 | F76: 7.503E-02 | G76: 5.002E-01 | H76: 4.998E-01 | J76: 1.0025 | Q76: 1.0000 | S76: 0.0750 | T76: 0.0250 | U76: 0.7981 | V76: 9.1214 | BA76: 15.64163694 | BB76: 9.784928554 | BC76: 10.00645878 | BD76: 9.256185214
A77: 20.021 | B77: 9.430 | E77: 4.658E-10 | F77: 7.496E-02 | G77: 4.997E-01 | H77: 5.003E-01 | J77: 0.9993 | Q77: 1.0000 | S77: 0.0751 | T77: 0.0250 | U77: 0.7979 | V77: 9.3318 | BA77: 16.69047923 | BB77: 9.968946649 | BC77: 10.01084999 | BD77: 9.481383444
A78: 20.064 | B78: 9.640 | E78: 2.870E-10 | F78: 7.488E-02 | G78: 4.992E-01 | H78: 5.008E-01 | J78: 0.9958 | Q78: 1.0000 | S78: 0.0753 | T78: 0.0250 | U78: 0.7978 | V78: 9.5421 | BA78: 17.60333176 | BB78: 10.15251546 | BC78: 10.01822874 | BD78: 9.706587263
A79: 20.122 | B79: 9.851 | E79: 1.769E-10 | F79: 7.477E-02 | G79: 4.985E-01 | H79: 5.015E-01 | J79: 0.9914 | Q79: 1.0000 | S79: 0.0755 | T79: 0.0251 | U79: 0.7976 | V79: 9.7524 | BA79: 18.35030156 | BB79: 10.33567696 | BC79: 10.03063189 | BD79: 9.931800462
A80: 20.209 | B80: 10.061 | E80: 1.090E-10 | F80: 7.461E-02 | G80: 4.974E-01 | H80: 5.026E-01 | J80: 0.9850 | Q80: 1.0000 | S80: 0.0759 | T80: 0.0251 | U80: 0.7974 | V80: 9.9627 | BA80: 18.94261266 | BB80: 10.51851148 | BC80: 10.0514925 | BD80: 10.1570294
A81: 20.344 | B81: 10.272 | E81: 6.714E-11 | F81: 7.436E-02 | G81: 4.957E-01 | H81: 5.043E-01 | J81: 0.9751 | Q81: 1.0000 | S81: 0.0765 | T81: 0.0252 | U81: 0.7969 | V81: 10.1730 | BA81: 19.4169797 | BB81: 10.70110428 | BC81: 10.08661091 | BD81: 10.38228474
A82: 20.560 | B82: 10.482 | E82: 4.137E-11 | F82: 7.397E-02 | G82: 4.931E-01 | H82: 5.069E-01 | J82: 0.9596 | Q82: 1.0000 | S82: 0.0773 | T82: 0.0253 | U82: 0.7963 | V82: 10.3833 | BA82: 19.82249548 | BB82: 10.88353008 | BC82: 10.1458266 | BD82: 10.60758431
A83: 20.902 | B83: 10.693 | E83: 2.549E-11 | F83: 7.335E-02 | G83: 4.890E-01 | H83: 5.110E-01 | J83: 0.9354 | Q83: 1.0000 | S83: 0.0787 | T83: 0.0256 | U83: 0.7952 | V83: 10.5936 | BA83: 20.21505539 | BB83: 11.06584948 | BC83: 10.24594355 | BD83: 10.83295783
A84: 21.442 | B84: 10.904 | E84: 1.571E-11 | F84: 7.239E-02 | G84: 4.826E-01 | H84: 5.174E-01 | J84: 0.8980 | Q84: 1.0000 | S84: 0.0808 | T84: 0.0259 | U84: 0.7937 | V84: 10.8039 | BA84: 20.65937522 | BB84: 11.24811132 | BC84: 10.41598412 | BD84: 11.05845469
A85: 22.281 | B85: 11.116 | E85: 9.677E-12 | F85: 7.095E-02 | G85: 4.730E-01 | H85: 5.270E-01 | J85: 0.8421 | Q85: 1.0000 | S85: 0.0838 | T85: 0.0263 | U85: 0.7916 | V85: 11.0143 | BA85: 21.23817571 | BB85: 11.4303574 | BC85: 10.70701791 | BD85: 11.28415622
A86: 23.554 | B86: 11.328 | E86: 5.963E-12 | F86: 6.888E-02 | G86: 4.592E-01 | H86: 5.408E-01 | J86: 0.7629 | Q86: 1.0000 | S86: 0.0879 | T86: 0.0270 | U86: 0.7889 | V86: 11.2246 | BA86: 22.07067786 | BB86: 11.61262788 | BC86: 11.2117296 | BD86: 11.51019469
A87: 25.426 | B87: 11.540 | E87: 3.674E-12 | F87: 6.604E-02 | G87: 4.403E-01 | H87: 5.597E-01 | J87: 0.6593 | Q87: 0.9999 | S87: 0.0930 | T87: 0.0280 | U87: 0.7857 | V87: 11.4349 | BA87: 23.34858722 | BB87: 11.79496739 | BC87: 12.10709623 | BD87: 11.73678051
A88: 28.122 | B88: 11.752 | E88: 2.264E-12 | F88: 6.234E-02 | G88: 4.156E-01 | H88: 5.844E-01 | J88: 0.5377 | Q88: 0.9999 | S88: 0.0984 | T88: 0.0292 | U88: 0.7825 | V88: 11.6452 | BA88: 25.41308428 | BB88: 11.9774318 | BC88: 13.76041579 | BD88: 11.96423606
A89: 32.065 | B89: 11.964 | E89: 1.395E-12 | F89: 5.762E-02 | G89: 3.841E-01 | H89: 6.159E-01 | J89: 0.4124 | Q89: 0.9998 | S89: 0.1034 | T89: 0.0308 | U89: 0.7797 | V89: 11.8555 | BA89: 28.94504279 | BB89: 12.16009642 | BC89: 17.04709647 | BD89: 12.1930247
A90: 38.317 | B90: 12.175 | E90: 8.594E-13 | F90: 5.144E-02 | G90: 3.430E-01 | H90: 6.570E-01 | J90: 0.2988 | Q90: 0.9997 | S90: 0.1069 | T90: 0.0329 | U90: 0.7779 | V90: 12.0658 | BA90: 35.53627921 | BB90: 12.34306554 | BC90: 24.62739218 | BD90: 12.42373891
A91: 50.000 | B91: 12.386 | E91: 5.295E-13 | F91: 4.286E-02 | G91: 2.857E-01 | H91: 7.143E-01 | J91: 0.2070 | Q91: 0.9994 | S91: 0.1084 | T91: 0.0357 | U91: 0.7771 | V91: 12.2761 | BA91: 49.99999999 | BB91: 12.52648266 | BC91: 50 | BD91: 12.6569694

Sheet Distribution (hidden)
B1: Distribution Diagrams, Buffer Capacity and Protonation Curves | H1: <--- read comment | Z1: Do not change or delete
D2: Acid/base system | F2: Overall protonation constants bp | H2: Corrected for I | I2: Species | J2: Curve color | N2: Color coding | Z2: Options of the A8 slider
E3: 8 | F3: Ionic strength, I | G3: 0 | H3: =IF(C7<0,0,IF(C7>3,3,C7)) -> 0.3 | I3: a B | N3: D o n o t c h a n g e | Z3: Titration curve from Titration
D4: pKa1 = logKpn | E4: =IF(VLOOKUP(E$3,Database!$B$22:$N$301,4)="","",VLOOKUP(E$3,Database!$B$22:$N$301,4)) -> 2.148 | F4: bp1 | G4: =IF(E4="","",IF(E5="",10^E4,(IF(E6="",10^E5,(IF(E7="",10^E6,(IF(E8="",10^E7,(IF(E9="",10^E8,10^E9)))))))))) -> 2.24E+12 | H4: =IF(G4="","",(G4*$H$10^(-2*$E$10))) -> 3.50E+11 | I4: a HB | N4: C h a n g e c r i t e r i o u s l y | Z4: Titration curve from Simulation
B5: of | D5: pKa2 = logKpn-1 | E5: =IF(VLOOKUP(E$3,Database!$B$22:$N$301,5)="","",VLOOKUP(E$3,Database!$B$22:$N$301,5)) -> 7.199 | F5: bp2 | G5: =IF(E5="","",IF(E6="",G4*10^E4,(IF(E7="",G4*10^E5,(IF(E8="",G4*10^E6,(IF(E9="",G4*10^E7,G4*10^E8)))))))) -> 3.54E+19 | H5: =IF(G5="","",(G5*$H$10^(-4*$E$10-2))) -> 1.61E+18 | I5: a H2B | N5: Fill out, change or leave blank | Z5: Titration curve from Evaluation
B6: =IF(VLOOKUP(E$3,Database!$B$22:$N$301,2)="","",VLOOKUP(E$3,Database!$B$22:$N$301,2)) -> Phosphoric acid | D6: pKa3 = logKpn-2 | E6: =IF(VLOOKUP(E$3,Database!$B$22:$N$301,6)="","",VLOOKUP(E$3,Database!$B$22:$N$301,6)) -> 12.350 | F6: bp3 | G6: =IF(E6="","",IF(E7="",G5*10^E4,(IF(E8="",G5*10^E5,(IF(E9="",G5*10^E6,G5*10^E7)))))) -> 4.98E+21 | H6: =IF(G6="","",(G6*$H$10^(-6*$E$10-6))) -> 1.22E+20 | I6: a H3B | Z6: Titration curve from Regression
B7: at ionic strength I (mol/L) | C7: 0.3 | D7: pKa4 = logKpn-3 | E7: =IF(VLOOKUP(E$3,Database!$B$22:$N$301,7)="","",VLOOKUP(E$3,Database!$B$22:$N$301,7)) ->  | F7: bp4 | G7: =IF(E7="","",IF(E8="",G6*10^E4,(IF(E9="",G6*10^E5,G6*10^E6)))) ->  | H7: =IF(G7="","",(G7*$H$10^(-8*$E$10-12))) ->  | I7: a H4B | M7: Data ID on curves | Z7: No titration curve
B8: and Buffer Capacity | D8: pKa5 = logKpn-4 | E8: =IF(VLOOKUP(E$3,Database!$B$22:$N$301,8)="","",VLOOKUP(E$3,Database!$B$22:$N$301,8)) ->  | F8: bp5 | G8: =IF(E8="","",IF(E9="",G7*10^E4,G7*10^E5)) ->  | H8: =IF(G8="","",(G8*$H$10^(-10*$E$10-20))) ->  | I8: a H5B | M8: Copying curves
B9: at S[HiB] (mol/L) | C9: 0.1 | D9: pKa6 = logKpn-5 | E9: =IF(VLOOKUP(E$3,Database!$B$22:$N$301,9)="","",VLOOKUP(E$3,Database!$B$22:$N$301,9)) ->  | F9: bp6 | G9: =IF(E9="","",G8*10^E4) ->  | H9: =IF(G9="","",(G9*$H$10^(-12*$E$10-30))) ->  | I9: a H6B | M9: Resizing axis | P9: Molar fraction of each species as a function of pH | Z9: Molar fraction of each species during titration | AM9: logarithm of molar fraction of each species as a function of pH | AX9: logarithm of molar fraction of each species during titration | BI9: Mean charge of species HiB
B10: =IF(C9>C7,"Generally C9 < C7","") ->  | D10: Charge of B | E10: =IF(VLOOKUP(E$3,Database!$B$22:$N$301,3)="","",VLOOKUP(E$3,Database!$B$22:$N$301,3)) -> -3 | F10: gH+ | G10: 1.000 | H10: =10^(-0.509*(H3^0.5/(1+H3^0.5)-0.3*H3)) -> 0.734 | Q10: alpha 0 | R10: alpha 1 | S10: alpha 2 | T10: alpha 3 | U10: alpha 4 | V10: alpha 5 | W10: alpha 6 | X10: Buffer | AB10: alpha 0 | AC10: alpha 1 | AD10: alpha 2 | AE10: alpha 3 | AF10: alpha 4 | AG10: alpha 5 | AH10: alpha 6 | AI10: scaling | AJ10: scaling | AK10: scaling | AL10: Buffer | AN10: log alpha 0 | AO10: log alpha 1 | AP10: log alpha 2 | AQ10: log alpha 3 | AR10: log alpha 4 | AS10: log alpha 5 | AT10: log alpha 6 | AU10: Buffer | AV10: same | AW10: same | AX10: log alpha 0 | AY10: log alpha 1 | AZ10: log alpha 2 | BA10: log alpha 3 | BB10: log alpha 4 | BC10: log alpha 5 | BD10: log alpha 6 | BE10: scaling | BF10: scaling | BG10: Buffer | BH10: vs | BJ10: vs | BL10: scale
B11: =IF(C7>0.1, "Best accuracy for I < 0.1 mol/L","") -> Best accuracy for I < 0.1 mol/L | D11: Protonations, n | E11: =IF(E4="","",IF(E5="",1,(IF(E6="",2,(IF(E7="",3,(IF(E8="",4,(IF(E9="",5,6)))))))))) -> 3 | F11: pKw | G11: 13.997 | H11: =G11+LOG10(H10^2) -> 13.728 | O11: pH | P11: h | Q11: B | R11: HB | S11: H2B | T11: H3B | U11: H4B | V11: H5B | W11: H6B | X11: Capacity | Y11: Vol | Z11: pH | AA11: h | AB11: B | AC11: HB | AD11: H2B | AE11: H3B | AF11: H4B | AG11: H5B | AH11: H6B | AI11: pH/14 | AJ11: n*pH/8 | AK11: n*pH/6 | AL11: Capacity | AM11: pH | AN11: B | AO11: HB | AP11: H2B | AQ11: H3B | AR11: H4B | AS11: H5B | AT11: H6B | AU11: Capacity | AV11: Vol | AW11: pH | AX11: B | AY11: HB | AZ11: H2B | BA11: H3B | BB11: H4B | BC11: H5B | BD11: H6B | BE11: pH (-8 a 0) | BF11: pH (-6 a 0) | BG11: Capacity | BH11: pH | BI11: zm | BJ11: Vol | BK11: zm | BL11: z+N.pH/14
C12: No Isoelectrc Point in the pH range of | D12: 0 to 14 | E12: for | G12: =IF(VLOOKUP(E$3,Database!$B$22:$N$301,2)="","",VLOOKUP(E$3,Database!$B$22:$N$301,2)) -> Phosphoric acid | J12: Plot all curves overlaid on | K12: 2 | O12: 0.000 | P12: 2.990 | Q12: 0.000 | R12: 0.000 | S12: 0.010 | T12: 0.990 | X12: 3.139 | Y12: 0.000 | Z12: 1.817 | AA12: 2.611 | AB12: 0.000 | AC12: 0.000 | AD12: 0.389 | AE12: 0.611 | AI12: 0.130 | AJ12: 0.389 | AK12: 0.065 | AL12: 0.103 | AM12: 0.000 | AO12: -8.814 | AP12: -2.018 | AQ12: -0.004 | AU12: 0.497 | AV12: 0.000 | AW12: 0.000 | AX12: -15.250 | AY12: -5.389 | AZ12: -0.410 | BA12: -0.214 | BE12: -6.962 | BF12: -3.481 | BG12: -0.989 | BH12: 0.000 | BI12: -0.010 | BJ12: 1.817 | BK12: -0.389 | BL12: -2.611
O13: 0.200 | P13: 2.985 | Q13: 0.000 | R13: 0.000 | S13: 0.015 | T13: 0.985 | X13: 1.983 | Y13: 2.300 | Z13: 2.032 | AA13: 2.489 | AB13: 0.000 | AC13: 0.000 | AD13: 0.511 | AE13: 0.489 | AI13: 0.145 | AJ13: 0.435 | AK13: 0.073 | AL13: 0.087 | AM13: 0.200 | AN13: -19.895 | AO13: -8.416 | AP13: -1.820 | AQ13: -0.007 | AU13: 0.297 | AV13: 2.300 | AW13: 0.200 | AX13: -14.702 | AY13: -5.056 | AZ13: -0.292 | BA13: -0.310 | BE13: -6.839 | BF13: -3.419 | BG13: -1.062 | BH13: 0.200 | BI13: -0.015 | BJ13: 2.032 | BK13: -0.511 | BL13: -2.565
O14: 0.400 | P14: 2.976 | Q14: 0.000 | R14: 0.000 | S14: 0.024 | T14: 0.976 | X14: 1.254 | Y14: 4.325 | Z14: 2.246 | AA14: 2.369 | AB14: 0.000 | AC14: 0.000 | AD14: 0.631 | AE14: 0.369 | AI14: 0.160 | AJ14: 0.481 | AK14: 0.080 | AL14: 0.071 | AM14: 0.400 | AN14: -19.298 | AO14: -8.020 | AP14: -1.624 | AQ14: -0.010 | AU14: 0.098 | AV14: 4.325 | AW14: 0.400 | AX14: -14.182 | AY14: -4.750 | AZ14: -0.200 | BA14: -0.433 | BE14: -6.716 | BF14: -3.358 | BG14: -1.146 | BH14: 0.400 | BI14: -0.024 | BJ14: 2.246 | BK14: -0.631 | BL14: -2.519
O15: 0.600 | P15: 2.963 | Q15: 0.000 | R15: 0.000 | S15: 0.037 | T15: 0.963 | X15: 0.796 | Y15: 5.998 | Z15: 2.459 | AA15: 2.264 | AB15: 0.000 | AC15: 0.000 | AD15: 0.736 | AE15: 0.264 | AI15: 0.176 | AJ15: 0.527 | AK15: 0.088 | AL15: 0.056 | AM15: 0.600 | AN15: -18.704 | AO15: -7.626 | AP15: -1.430 | AQ15: -0.016 | AU15: -0.099 | AV15: 5.998 | AW15: 0.600 | AX15: -13.689 | AY15: -4.470 | AZ15: -0.133 | BA15: -0.579 | BE15: -6.595 | BF15: -3.297 | BG15: -1.255 | BH15: 0.600 | BI15: -0.037 | BJ15: 2.459 | BK15: -0.736 | BL15: -2.473
O16: 0.800 | P16: 2.942 | Q16: 0.000 | R16: 0.000 | S16: 0.058 | T16: 0.942 | X16: 0.510 | Y16: 7.286 | Z16: 2.672 | AA16: 2.180 | AB16: 0.000 | AC16: 0.000 | AD16: 0.820 | AE16: 0.180 | AI16: 0.191 | AJ16: 0.572 | AK16: 0.095 | AL16: 0.041 | AM16: 0.800 | AN16: -18.114 | AO16: -7.235 | AP16: -1.239 | AQ16: -0.026 | AU16: -0.293 | AV16: 7.286 | AW16: 0.800 | AX16: -13.218 | AY16: -4.211 | AZ16: -0.086 | BA16: -0.744 | BE16: -6.473 | BF16: -3.237 | BG16: -1.390 | BH16: 0.800 | BI16: -0.058 | BJ16: 2.672 | BK16: -0.820 | BL16: -2.428
O17: 1.000 | P17: 2.912 | Q17: 0.000 | R17: 0.000 | S17: 0.088 | T17: 0.912 | X17: 0.332 | Y17: 8.215 | Z17: 2.883 | AA17: 2.119 | AB17: 0.000 | AC17: 0.000 | AD17: 0.881 | AE17: 0.119 | AI17: 0.206 | AJ17: 0.618 | AK17: 0.103 | AL17: 0.028 | AM17: 1.000 | AN17: -17.528 | AO17: -6.850 | AP17: -1.054 | AQ17: -0.040 | AU17: -0.479 | AV17: 8.215 | AW17: 1.000 | AX17: -12.763 | AY17: -3.968 | AZ17: -0.055 | BA17: -0.925 | BE17: -6.352 | BF17: -3.176 | BG17: -1.549 | BH17: 1.000 | BI17: -0.088 | BJ17: 2.883 | BK17: -0.881 | BL17: -2.382
O18: 1.200 | P18: 2.867 | Q18: 0.000 | R18: 0.000 | S18: 0.133 | T18: 0.867 | X18: 0.225 | Y18: 8.853 | Z18: 3.094 | AA18: 2.076 | AB18: 0.000 | AC18: 0.000 | AD18: 0.923 | AE18: 0.077 | AI18: 0.221 | AJ18: 0.663 | AK18: 0.111 | AL18: 0.019 | AM18: 1.200 | AN18: -16.950 | AO18: -6.472 | AP18: -0.876 | AQ18: -0.062 | AU18: -0.649 | AV18: 8.853 | AW18: 1.200 | AX18: -12.320 | AY18: -3.736 | AZ18: -0.035 | BA18: -1.115 | BE18: -6.232 | BF18: -3.116 | BG18: -1.724 | BH18: 1.200 | BI18: -0.133 | BJ18: 3.094 | BK18: -0.924 | BL18: -2.337
O19: 1.400 | P19: 2.804 | Q19: 0.000 | R19: 0.000 | S19: 0.196 | T19: 0.804 | X19: 0.161 | Y19: 9.275 | Z19: 3.305 | AA19: 2.048 | AB19: 0.000 | AC19: 0.000 | AD19: 0.951 | AE19: 0.049 | AI19: 0.236 | AJ19: 0.708 | AK19: 0.118 | AL19: 0.012 | AM19: 1.400 | AN19: -16.383 | AO19: -6.104 | AP19: -0.708 | AQ19: -0.095 | AU19: -0.793 | AV19: 9.275 | AW19: 1.400 | AX19: -11.886 | AY19: -3.513 | AZ19: -0.022 | BA19: -1.313 | BE19: -6.111 | BF19: -3.056 | BG19: -1.911 | BH19: 1.400 | BI19: -0.196 | BJ19: 3.305 | BK19: -0.952 | BL19: -2.292
O20: 1.600 | P20: 2.722 | Q20: 0.000 | R20: 0.000 | S20: 0.278 | T20: 0.722 | X20: 0.125 | Y20: 9.547 | Z20: 3.516 | AA20: 2.030 | AB20: 0.000 | AC20: 0.001 | AD20: 0.969 | AE20: 0.030 | AI20: 0.251 | AJ20: 0.753 | AK20: 0.126 | AL20: 0.008 | AM20: 1.600 | AN20: -15.830 | AO20: -5.751 | AP20: -0.555 | AQ20: -0.142 | AU20: -0.903 | AV20: 9.547 | AW20: 1.600 | AX20: -11.456 | AY20: -3.294 | AZ20: -0.014 | BA20: -1.516 | BE20: -5.991 | BF20: -2.995 | BG20: -2.103 | BH20: 1.600 | BI20: -0.278 | BJ20: 3.516 | BK20: -0.970 | BL20: -2.247
O21: 1.800 | P21: 2.621 | Q21: 0.000 | R21: 0.000 | S21: 0.379 | T21: 0.621 | X21: 0.104 | Y21: 9.721 | Z21: 3.726 | AA21: 2.018 | AB21: 0.000 | AC21: 0.001 | AD21: 0.980 | AE21: 0.019 | AI21: 0.266 | AJ21: 0.799 | AK21: 0.133 | AL21: 0.005 | AM21: 1.800 | AN21: -15.295 | AO21: -5.417 | AP21: -0.421 | AQ21: -0.207 | AU21: -0.983 | AV21: 9.721 | AW21: 1.800 | AX21: -11.030 | AY21: -3.078 | AZ21: -0.009 | BA21: -1.721 | BE21: -5.871 | BF21: -2.935 | BG21: -2.294 | BH21: 1.800 | BI21: -0.379 | BJ21: 3.726 | BK21: -0.982 | BL21: -2.201
O22: 2.000 | P22: 2.508 | Q22: 0.000 | R22: 0.000 | S22: 0.492 | T22: 0.508 | X22: 0.089 | Y22: 9.833 | Z22: 3.937 | AA22: 2.010 | AB22: 0.000 | AC22: 0.001 | AD22: 0.987 | AE22: 0.012 | AI22: 0.281 | AJ22: 0.844 | AK22: 0.141 | AL22: 0.003 | AM22: 2.000 | AN22: -14.782 | AO22: -5.104 | AP22: -0.308 | AQ22: -0.294 | AU22: -1.051 | AV22: 9.833 | AW22: 2.000 | AX22: -10.606 | AY22: -2.865 | AZ22: -0.006 | BA22: -1.929 | BE22: -5.750 | BF22: -2.875 | BG22: -2.473 | BH22: 2.000 | BI22: -0.492 | BJ22: 3.937 | BK22: -0.990 | BL22: -2.156
O23: 2.200 | P23: 2.394 | Q23: 0.000 | R23: 0.000 | S23: 0.606 | T23: 0.394 | X23: 0.075 | Y23: 9.906 | Z23: 4.147 | AA23: 2.005 | AB23: 0.000 | AC23: 0.002 | AD23: 0.990 | AE23: 0.007 | AI23: 0.296 | AJ23: 0.889 | AK23: 0.148 | AL23: 0.002 | AM23: 2.200 | AN23: -14.292 | AO23: -4.814 | AP23: -0.218 | AQ23: -0.404 | AU23: -1.126 | AV23: 9.906 | AW23: 2.200 | AX23: -10.184 | AY23: -2.653 | AZ23: -0.004 | BA23: -2.138 | BE23: -5.630 | BF23: -2.815 | BG23: -2.619 | BH23: 2.200 | BI23: -0.606 | BJ23: 4.147 | BK23: -0.995 | BL23: -2.111
O24: 2.400 | P24: 2.291 | Q24: 0.000 | R24: 0.000 | S24: 0.709 | T24: 0.291 | X24: 0.060 | Y24: 9.957 | Z24: 4.358 | AA24: 2.001 | AB24: 0.000 | AC24: 0.004 | AD24: 0.992 | AE24: 0.004 | AI24: 0.311 | AJ24: 0.934 | AK24: 0.156 | AL24: 0.002 | AM24: 2.400 | AN24: -13.824 | AO24: -4.546 | AP24: -0.149 | AQ24: -0.536 | AU24: -1.222 | AV24: 9.957 | AW24: 2.400 | AX24: -9.762 | AY24: -2.442 | AZ24: -0.004 | BA24: -2.348 | BE24: -5.510 | BF24: -2.755 | BG24: -2.698 | BH24: 2.400 | BI24: -0.709 | BJ24: 4.358 | BK24: -0.999 | BL24: -2.066
O25: 2.600 | P25: 2.206 | Q25: 0.000 | R25: 0.000 | S25: 0.794 | T25: 0.206 | X25: 0.046 | Y25: 9.997 | Z25: 4.568 | AA25: 1.997 | AB25: 0.000 | AC25: 0.006 | AD25: 0.991 | AE25: 0.003 | AI25: 0.326 | AJ25: 0.979 | AK25: 0.163 | AL25: 0.002 | AM25: 2.600 | AN25: -13.374 | AO25: -4.296 | AP25: -0.100 | AQ25: -0.686 | AU25: -1.342 | AV25: 9.997 | AW25: 2.600 | AX25: -9.342 | AY25: -2.232 | AZ25: -0.004 | BA25: -2.558 | BE25: -5.390 | BF25: -2.695 | BG25: -2.684 | BH25: 2.600 | BI25: -0.794 | BJ25: 4.568 | BK25: -1.003 | BL25: -2.021
O26: 2.800 | P26: 2.140 | Q26: 0.000 | R26: 0.000 | S26: 0.859 | T26: 0.141 | X26: 0.033 | Y26: 10.037 | Z26: 4.779 | AA26: 1.992 | AB26: 0.000 | AC26: 0.009 | AD26: 0.989 | AE26: 0.002 | AI26: 0.341 | AJ26: 1.024 | AK26: 0.171 | AL26: 0.003 | AM26: 2.800 | AN26: -12.940 | AO26: -4.062 | AP26: -0.066 | AQ26: -0.852 | AU26: -1.484 | AV26: 10.037 | AW26: 2.800 | AX26: -8.922 | AY26: -2.022 | AZ26: -0.005 | BA26: -2.770 | BE26: -5.269 | BF26: -2.635 | BG26: -2.582 | BH26: 2.800 | BI26: -0.860 | BJ26: 4.779 | BK26: -1.008 | BL26: -1.976
O27: 3.000 | P27: 2.093 | Q27: 0.000 | R27: 0.000 | S27: 0.906 | T27: 0.094 | X27: 0.023 | Y27: 10.086 | Z27: 4.989 | AA27: 1.986 | AB27: 0.000 | AC27: 0.015 | AD27: 0.984 | AE27: 0.001 | AI27: 0.356 | AJ27: 1.069 | AK27: 0.178 | AL27: 0.004 | AM27: 3.000 | AN27: -12.517 | AO27: -3.839 | AP27: -0.043 | AQ27: -1.029 | AU27: -1.644 | AV27: 10.086 | AW27: 3.000 | AX27: -8.503 | AY27: -1.814 | AZ27: -0.007 | BA27: -2.983 | BE27: -5.149 | BF27: -2.575 | BG27: -2.425 | BH27: 3.000 | BI27: -0.907 | BJ27: 4.989 | BK27: -1.014 | BL27: -1.931
O28: 3.200 | P28: 2.061 | Q28: 0.000 | R28: 0.000 | S28: 0.939 | T28: 0.061 | X28: 0.015 | Y28: 10.155 | Z28: 5.200 | AA28: 1.976 | AB28: 0.000 | AC28: 0.025 | AD28: 0.975 | AE28: 0.001 | AI28: 0.371 | AJ28: 1.114 | AK28: 0.186 | AL28: 0.006 | AM28: 3.200 | AN28: -12.102 | AO28: -3.624 | AP28: -0.027 | AQ28: -1.214 | AU28: -1.817 | AV28: 10.155 | AW28: 3.200 | AX28: -8.086 | AY28: -1.607 | AZ28: -0.011 | BA28: -3.197 | BE28: -5.029 | BF28: -2.514 | BG28: -2.243 | BH28: 3.200 | BI28: -0.939 | BJ28: 5.200 | BK28: -1.024 | BL28: -1.886
O29: 3.400 | P29: 2.039 | Q29: 0.000 | R29: 0.000 | S29: 0.960 | T29: 0.039 | X29: 0.010 | Y29: 10.259 | Z29: 5.411 | AA29: 1.961 | AB29: 0.000 | AC29: 0.040 | AD29: 0.960 | AE29: 0.000 | AI29: 0.386 | AJ29: 1.159 | AK29: 0.193 | AL29: 0.009 | AM29: 3.400 | AN29: -11.692 | AO29: -3.414 | AP29: -0.018 | AQ29: -1.404 | AU29: -1.997 | AV29: 10.259 | AW29: 3.400 | AX29: -7.671 | AY29: -1.403 | AZ29: -0.018 | BA29: -3.414 | BE29: -4.908 | BF29: -2.454 | BG29: -2.053 | BH29: 3.400 | BI29: -0.961 | BJ29: 5.411 | BK29: -1.039 | BL29: -1.841
O30: 3.600 | P30: 2.025 | Q30: 0.000 | R30: 0.001 | S30: 0.974 | T30: 0.025 | X30: 0.007 | Y30: 10.423 | Z30: 5.622 | AA30: 1.938 | AB30: 0.000 | AC30: 0.063 | AD30: 0.937 | AE30: 0.000 | AI30: 0.402 | AJ30: 1.205 | AK30: 0.201 | AL30: 0.014 | AM30: 3.600 | AN30: -11.286 | AO30: -3.207 | AP30: -0.011 | AQ30: -1.598 | AU30: -2.180 | AV30: 10.423 | AW30: 3.600 | AX30: -7.260 | AY30: -1.203 | AZ30: -0.028 | BA30: -3.636 | BE30: -4.788 | BF30: -2.394 | BG30: -1.866 | BH30: 3.600 | BI30: -0.975 | BJ30: 5.622 | BK30: -1.062 | BL30: -1.795
O31: 3.800 | P31: 2.015 | Q31: 0.000 | R31: 0.001 | S31: 0.983 | T31: 0.016 | X31: 0.004 | Y31: 10.678 | Z31: 5.833 | AA31: 1.902 | AB31: 0.000 | AC31: 0.098 | AD31: 0.902 | AE31: 0.000 | AI31: 0.417 | AJ31: 1.250 | AK31: 0.208 | AL31: 0.020 | AM31: 3.800 | AN31: -10.882 | AO31: -3.003 | AP31: -0.007 | AQ31: -1.794 | AU31: -2.359 | AV31: 10.678 | AW31: 3.800 | AX31: -6.853 | AY31: -1.008 | AZ31: -0.045 | BA31: -3.864 | BE31: -4.667 | BF31: -2.333 | BG31: -1.690 | BH31: 3.800 | BI31: -0.985 | BJ31: 5.833 | BK31: -1.098 | BL31: -1.750
O32: 4.000 | P32: 2.009 | Q32: 0.000 | R32: 0.002 | S32: 0.988 | T32: 0.010 | X32: 0.003 | Y32: 11.072 | Z32: 6.045 | AA32: 1.849 | AB32: 0.000 | AC32: 0.151 | AD32: 0.849 | AE32: 0.000 | AI32: 0.432 | AJ32: 1.295 | AK32: 0.216 | AL32: 0.029 | AM32: 4.000 | AN32: -10.480 | AO32: -2.801 | AP32: -0.005 | AQ32: -1.991 | AU32: -2.522 | AV32: 11.072 | AW32: 4.000 | AX32: -6.456 | AY32: -0.822 | AZ32: -0.071 | BA32: -4.102 | BE32: -4.546 | BF32: -2.273 | BG32: -1.530 | BH32: 4.000 | BI32: -0.991 | BJ32: 6.045 | BK32: -1.151 | BL32: -1.705
O33: 4.200 | P33: 2.004 | Q33: 0.000 | R33: 0.003 | S33: 0.991 | T33: 0.006 | X33: 0.002 | Y33: 11.659 | Z33: 6.257 | AA33: 1.776 | AB33: 0.000 | AC33: 0.224 | AD33: 0.776 | AE33: 0.000 | AI33: 0.447 | AJ33: 1.341 | AK33: 0.223 | AL33: 0.040 | AM33: 4.200 | AN33: -10.078 | AO33: -2.600 | AP33: -0.004 | AQ33: -2.190 | AU33: -2.646 | AV33: 11.659 | AW33: 4.200 | AX33: -6.070 | AY33: -0.649 | AZ33: -0.110 | BA33: -4.354 | BE33: -4.424 | BF33: -2.212 | BG33: -1.397 | BH33: 4.200 | BI33: -0.996 | BJ33: 6.257 | BK33: -1.224 | BL33: -1.659
O34: 4.400 | P34: 2.000 | Q34: 0.000 | R34: 0.004 | S34: 0.992 | T34: 0.004 | X34: 0.002 | Y34: 12.488 | Z34: 6.470 | AA34: 1.679 | AB34: 0.000 | AC34: 0.321 | AD34: 0.679 | AE34: 0.000 | AI34: 0.462 | AJ34: 1.386 | AK34: 0.231 | AL34: 0.050 | AM34: 4.400 | AN34: -9.678 | AO34: -2.400 | AP34: -0.004 | AQ34: -2.390 | AU34: -2.703 | AV34: 12.488 | AW34: 4.400 | AX34: -5.702 | AY34: -0.494 | AZ34: -0.168 | BA34: -4.625 | BE34: -4.303 | BF34: -2.151 | BG34: -1.299 | BH34: 4.400 | BI34: -1.000 | BJ34: 6.470 | BK34: -1.321 | BL34: -1.614
O35: 4.600 | P35: 1.996 | Q35: 0.000 | R35: 0.006 | S35: 0.991 | T35: 0.003 | X35: 0.002 | Y35: 13.560 | Z35: 6.684 | AA35: 1.564 | AB35: 0.000 | AC35: 0.436 | AD35: 0.564 | AE35: 0.000 | AI35: 0.477 | AJ35: 1.432 | AK35: 0.239 | AL35: 0.057 | AM35: 4.600 | AN35: -9.278 | AO35: -2.200 | AP35: -0.004 | AQ35: -2.590 | AU35: -2.674 | AV35: 13.560 | AW35: 4.600 | AX35: -5.356 | AY35: -0.361 | AZ35: -0.248 | BA35: -4.918 | BE35: -4.181 | BF35: -2.090 | BG35: -1.247 | BH35: 4.600 | BI35: -1.004 | BJ35: 6.684 | BK35: -1.436 | BL35: -1.568
O36: 4.800 | P36: 1.992 | Q36: 0.000 | R36: 0.010 | S36: 0.988 | T36: 0.002 | X36: 0.003 | Y36: 14.799 | Z36: 6.897 | AA36: 1.442 | AB36: 0.000 | AC36: 0.558 | AD36: 0.442 | AE36: 0.000 | AI36: 0.493 | AJ36: 1.478 | AK36: 0.246 | AL36: 0.057 | AM36: 4.800 | AN36: -8.879 | AO36: -2.001 | AP36: -0.005 | AQ36: -2.791 | AU36: -2.568 | AV36: 14.799 | AW36: 4.800 | AX36: -5.035 | AY36: -0.253 | AZ36: -0.354 | BA36: -5.238 | BE36: -4.059 | BF36: -2.029 | BG36: -1.246 | BH36: 4.800 | BI36: -1.008 | BJ36: 6.897 | BK36: -1.558 | BL36: -1.522
O37: 5.000 | P37: 1.985 | Q37: 0.000 | R37: 0.016 | S37: 0.983 | T37: 0.001 | X37: 0.004 | Y37: 16.055 | Z37: 7.110 | AA37: 1.327 | AB37: 0.000 | AC37: 0.673 | AD37: 0.327 | AE37: 0.000 | AI37: 0.508 | AJ37: 1.524 | AK37: 0.254 | AL37: 0.051 | AM37: 5.000 | AN37: -8.482 | AO37: -1.803 | AP37: -0.007 | AQ37: -2.994 | AU37: -2.416 | AV37: 16.055 | AW37: 5.000 | AX37: -4.740 | AY37: -0.172 | AZ37: -0.486 | BA37: -5.582 | BE37: -3.937 | BF37: -1.969 | BG37: -1.295 | BH37: 5.000 | BI37: -1.015 | BJ37: 7.110 | BK37: -1.673 | BL37: -1.476
O38: 5.200 | P38: 1.976 | Q38: 0.000 | R38: 0.025 | S38: 0.975 | T38: 0.001 | X38: 0.006 | Y38: 17.174 | Z38: 7.322 | AA38: 1.229 | AB38: 0.000 | AC38: 0.771 | AD38: 0.229 | AE38: 0.000 | AI38: 0.523 | AJ38: 1.569 | AK38: 0.262 | AL38: 0.041 | AM38: 5.200 | AN38: -8.086 | AO38: -1.607 | AP38: -0.011 | AQ38: -3.197 | AU38: -2.242 | AV38: 17.174 | AW38: 5.200 | AX38: -4.469 | AY38: -0.113 | AZ38: -0.639 | BA38: -5.948 | BE38: -3.816 | BF38: -1.908 | BG38: -1.390 | BH38: 5.200 | BI38: -1.024 | BJ38: 7.322 | BK38: -1.771 | BL38: -1.431
O39: 5.400 | P39: 1.962 | Q39: 0.000 | R39: 0.039 | S39: 0.961 | T39: 0.000 | X39: 0.009 | Y39: 18.068 | Z39: 7.534 | AA39: 1.154 | AB39: 0.000 | AC39: 0.845 | AD39: 0.155 | AE39: 0.000 | AI39: 0.538 | AJ39: 1.614 | AK39: 0.269 | AL39: 0.030 | AM39: 5.400 | AN39: -7.692 | AO39: -1.413 | AP39: -0.017 | AQ39: -3.404 | AU39: -2.063 | AV39: 18.068 | AW39: 5.400 | AX39: -4.217 | AY39: -0.073 | AZ39: -0.811 | BA39: -6.331 | BE39: -3.695 | BF39: -1.847 | BG39: -1.521 | BH39: 5.400 | BI39: -1.038 | BJ39: 7.534 | BK39: -1.846 | BL39: -1.386
O40: 5.600 | P40: 1.940 | Q40: 0.000 | R40: 0.060 | S40: 0.940 | T40: 0.000 | X40: 0.013 | Y40: 18.725 | Z40: 7.745 | AA40: 1.101 | AB40: 0.000 | AC40: 0.899 | AD40: 0.101 | AE40: 0.000 | AI40: 0.553 | AJ40: 1.660 | AK40: 0.277 | AL40: 0.021 | AM40: 5.600 | AN40: -7.301 | AO40: -1.223 | AP40: -0.027 | AQ40: -3.613 | AU40: -1.885 | AV40: 18.725 | AW40: 5.600 | AX40: -3.979 | AY40: -0.046 | AZ40: -0.996 | BA40: -6.727 | BE40: -3.574 | BF40: -1.787 | BG40: -1.679 | BH40: 5.600 | BI40: -1.060 | BJ40: 7.745 | BK40: -1.899 | BL40: -1.340
O41: 5.800 | P41: 1.908 | Q41: 0.000 | R41: 0.092 | S41: 0.908 | T41: 0.000 | X41: 0.019 | Y41: 19.180 | Z41: 7.956 | AA41: 1.064 | AB41: 0.000 | AC41: 0.935 | AD41: 0.065 | AE41: 0.000 | AI41: 0.568 | AJ41: 1.705 | AK41: 0.284 | AL41: 0.014 | AM41: 5.800 | AN41: -6.916 | AO41: -1.038 | AP41: -0.042 | AQ41: -3.828 | AU41: -1.716 | AV41: 19.180 | AW41: 5.800 | AX41: -3.751 | AY41: -0.029 | AZ41: -1.189 | BA41: -7.132 | BE41: -3.453 | BF41: -1.727 | BG41: -1.855 | BH41: 5.800 | BI41: -1.092 | BJ41: 7.956 | BK41: -1.936 | BL41: -1.295
O42: 6.000 | P42: 1.862 | Q42: 0.000 | R42: 0.138 | S42: 0.862 | T42: 0.000 | X42: 0.027 | Y42: 19.482 | Z42: 8.167 | AA42: 1.041 | AB42: 0.000 | AC42: 0.959 | AD42: 0.041 | AE42: 0.000 | AI42: 0.583 | AJ42: 1.750 | AK42: 0.292 | AL42: 0.009 | AM42: 6.000 | AN42: -6.539 | AO42: -0.861 | AP42: -0.064 | AQ42: -4.051 | AU42: -1.562 | AV42: 19.482 | AW42: 6.000 | AX42: -3.529 | AY42: -0.018 | AZ42: -1.389 | BA42: -7.543 | BE42: -3.333 | BF42: -1.667 | BG42: -2.041 | BH42: 6.000 | BI42: -1.138 | BJ42: 8.167 | BK42: -1.959 | BL42: -1.250
O43: 6.200 | P43: 1.798 | Q43: 0.000 | R43: 0.202 | S43: 0.798 | T43: 0.000 | X43: 0.037 | Y43: 19.678 | Z43: 8.378 | AA43: 1.025 | AB43: 0.000 | AC43: 0.974 | AD43: 0.026 | AE43: 0.000 | AI43: 0.598 | AJ43: 1.795 | AK43: 0.299 | AL43: 0.006 | AM43: 6.200 | AN43: -6.173 | AO43: -0.694 | AP43: -0.098 | AQ43: -4.284 | AU43: -1.430 | AV43: 19.678 | AW43: 6.200 | AX43: -3.312 | AY43: -0.011 | AZ43: -1.593 | BA43: -7.957 | BE43: -3.213 | BF43: -1.606 | BG43: -2.233 | BH43: 6.200 | BI43: -1.202 | BJ43: 8.378 | BK43: -1.975 | BL43: -1.205
O44: 6.400 | P44: 1.713 | Q44: 0.000 | R44: 0.287 | S44: 0.713 | T44: 0.000 | X44: 0.047 | Y44: 19.804 | Z44: 8.588 | AA44: 1.015 | AB44: 0.001 | AC44: 0.983 | AD44: 0.016 | AE44: 0.000 | AI44: 0.613 | AJ44: 1.840 | AK44: 0.307 | AL44: 0.004 | AM44: 6.400 | AN44: -5.821 | AO44: -0.543 | AP44: -0.147 | AQ44: -4.533 | AU44: -1.327 | AV44: 19.804 | AW44: 6.400 | AX44: -3.097 | AY44: -0.007 | AZ44: -1.799 | BA44: -8.374 | BE44: -3.092 | BF44: -1.546 | BG44: -2.420 | BH44: 6.400 | BI44: -1.287 | BJ44: 8.588 | BK44: -1.985 | BL44: -1.160
O45: 6.600 | P45: 1.611 | Q45: 0.000 | R45: 0.389 | S45: 0.611 | T45: 0.000 | X45: 0.055 | Y45: 19.886 | Z45: 8.799 | AA45: 1.009 | AB45: 0.001 | AC45: 0.989 | AD45: 0.010 | AE45: 0.000 | AI45: 0.628 | AJ45: 1.885 | AK45: 0.314 | AL45: 0.003 | AM45: 6.600 | AN45: -5.488 | AO45: -0.410 | AP45: -0.214 | AQ45: -4.800 | AU45: -1.262 | AV45: 19.886 | AW45: 6.600 | AX45: -2.885 | AY45: -0.005 | AZ45: -2.007 | BA45: -8.792 | BE45: -2.972 | BF45: -1.486 | BG45: -2.591 | BH45: 6.600 | BI45: -1.389 | BJ45: 8.799 | BK45: -1.991 | BL45: -1.115
O46: 6.800 | P46: 1.498 | Q46: 0.000 | R46: 0.502 | S46: 0.498 | T46: 0.000 | X46: 0.058 | Y46: 19.941 | Z46: 9.009 | AA46: 1.004 | AB46: 0.002 | AC46: 0.992 | AD46: 0.006 | AE46: 0.000 | AI46: 0.644 | AJ46: 1.931 | AK46: 0.322 | AL46: 0.002 | AM46: 6.800 | AN46: -5.177 | AO46: -0.299 | AP46: -0.303 | AQ46: -5.089 | AU46: -1.240 | AV46: 19.941 | AW46: 6.800 | AX46: -2.673 | AY46: -0.004 | AZ46: -2.217 | BA46: -9.212 | BE46: -2.852 | BF46: -1.426 | BG46: -2.718 | BH46: 6.800 | BI46: -1.502 | BJ46: 9.009 | BK46: -1.996 | BL46: -1.069
O47: 7.000 | P47: 1.385 | Q47: 0.000 | R47: 0.615 | S47: 0.385 | T47: 0.000 | X47: 0.055 | Y47: 19.983 | Z47: 9.219 | AA47: 1.000 | AB47: 0.003 | AC47: 0.993 | AD47: 0.004 | AE47: 0.000 | AI47: 0.659 | AJ47: 1.976 | AK47: 0.329 | AL47: 0.002 | AM47: 7.000 | AN47: -4.889 | AO47: -0.211 | AP47: -0.415 | AQ47: -5.401 | AU47: -1.264 | AV47: 19.983 | AW47: 7.000 | AX47: -2.462 | AY47: -0.003 | AZ47: -2.426 | BA47: -9.632 | BE47: -2.732 | BF47: -1.366 | BG47: -2.767 | BH47: 7.000 | BI47: -1.615 | BJ47: 9.219 | BK47: -2.000 | BL47: -1.024
O48: 7.200 | P48: 1.283 | Q48: 0.000 | R48: 0.717 | S48: 0.283 | T48: 0.000 | X48: 0.047 | Y48: 20.021 | Z48: 9.430 | AA48: 0.997 | AB48: 0.006 | AC48: 0.992 | AD48: 0.002 | AE48: 0.000 | AI48: 0.674 | AJ48: 2.021 | AK48: 0.337 | AL48: 0.002 | AM48: 7.200 | AN48: -4.623 | AO48: -0.144 | AP48: -0.548 | AQ48: -5.735 | AU48: -1.330 | AV48: 20.021 | AW48: 7.200 | AX48: -2.252 | AY48: -0.003 | AZ48: -2.637 | BA48: -10.053 | BE48: -2.612 | BF48: -1.306 | BG48: -2.721 | BH48: 7.200 | BI48: -1.717 | BJ48: 9.430 | BK48: -2.003 | BL48: -0.979
O49: 7.400 | P49: 1.199 | Q49: 0.000 | R49: 0.801 | S49: 0.199 | T49: 0.000 | X49: 0.037 | Y49: 20.064 | Z49: 9.640 | AA49: 0.992 | AB49: 0.009 | AC49: 0.990 | AD49: 0.001 | AE49: 0.000 | AI49: 0.689 | AJ49: 2.066 | AK49: 0.344 | AL49: 0.003 | AM49: 7.400 | AN49: -4.375 | AO49: -0.097 | AP49: -0.701 | AQ49: -6.087 | AU49: -1.435 | AV49: 20.064 | AW49: 7.400 | AX49: -2.043 | AY49: -0.005 | AZ49: -2.849 | BA49: -10.475 | BE49: -2.491 | BF49: -1.246 | BG49: -2.596 | BH49: 7.400 | BI49: -1.801 | BJ49: 9.640 | BK49: -2.008 | BL49: -0.934
O50: 7.600 | P50: 1.136 | Q50: 0.000 | R50: 0.864 | S50: 0.136 | T50: 0.000 | X50: 0.027 | Y50: 20.122 | Z50: 9.851 | AA50: 0.986 | AB50: 0.015 | AC50: 0.984 | AD50: 0.001 | AE50: 0.000 | AI50: 0.704 | AJ50: 2.111 | AK50: 0.352 | AL50: 0.004 | AM50: 7.600 | AN50: -4.142 | AO50: -0.063 | AP50: -0.867 | AQ50: -6.454 | AU50: -1.568 | AV50: 20.122 | AW50: 7.600 | AX50: -1.835 | AY50: -0.007 | AZ50: -3.061 | BA50: -10.898 | BE50: -2.371 | BF50: -1.186 | BG50: -2.426 | BH50: 7.600 | BI50: -1.864 | BJ50: 9.851 | BK50: -2.014 | BL50: -0.889
O51: 7.800 | P51: 1.090 | Q51: 0.000 | R51: 0.910 | S51: 0.090 | T51: 0.000 | X51: 0.019 | Y51: 20.209 | Z51: 10.061 | AA51: 0.977 | AB51: 0.024 | AC51: 0.976 | AD51: 0.001 | AE51: 0.000 | AI51: 0.719 | AJ51: 2.156 | AK51: 0.359 | AL51: 0.006 | AM51: 7.800 | AN51: -3.919 | AO51: -0.041 | AP51: -1.045 | AQ51: -6.831 | AU51: -1.723 | AV51: 20.209 | AW51: 7.800 | AX51: -1.628 | AY51: -0.011 | AZ51: -3.276 | BA51: -11.323 | BE51: -2.251 | BF51: -1.125 | BG51: -2.238 | BH51: 7.800 | BI51: -1.910 | BJ51: 10.061 | BK51: -2.023 | BL51: -0.844
O52: 8.000 | P52: 1.059 | Q52: 0.000 | R52: 0.941 | S52: 0.059 | T52: 0.000 | X52: 0.013 | Y52: 20.344 | Z52: 10.272 | AA52: 0.963 | AB52: 0.038 | AC52: 0.962 | AD52: 0.000 | AE52: 0.000 | AI52: 0.734 | AJ52: 2.201 | AK52: 0.367 | AL52: 0.009 | AM52: 8.000 | AN52: -3.705 | AO52: -0.026 | AP52: -1.230 | AQ52: -7.217 | AU52: -1.893 | AV52: 20.344 | AW52: 8.000 | AX52: -1.424 | AY52: -0.017 | AZ52: -3.492 | BA52: -11.750 | BE52: -2.131 | BF52: -1.065 | BG52: -2.045 | BH52: 8.000 | BI52: -1.941 | BJ52: 10.272 | BK52: -2.037 | BL52: -0.799
O53: 8.200 | P53: 1.038 | Q53: 0.000 | R53: 0.962 | S53: 0.038 | T53: 0.000 | X53: 0.008 | Y53: 20.560 | Z53: 10.482 | AA53: 0.940 | AB53: 0.060 | AC53: 0.940 | AD53: 0.000 | AE53: 0.000 | AI53: 0.749 | AJ53: 2.246 | AK53: 0.374 | AL53: 0.014 | AM53: 8.200 | AN53: -3.495 | AO53: -0.017 | AP53: -1.421 | AQ53: -7.607 | AU53: -2.071 | AV53: 20.560 | AW53: 8.200 | AX53: -1.223 | AY53: -0.027 | AZ53: -3.713 | BA53: -12.182 | BE53: -2.010 | BF53: -1.005 | BG53: -1.855 | BH53: 8.200 | BI53: -1.962 | BJ53: 10.482 | BK53: -2.060 | BL53: -0.754
O54: 8.400 | P54: 1.024 | Q54: 0.001 | R54: 0.975 | S54: 0.024 | T54: 0.000 | X54: 0.006 | Y54: 20.902 | Z54: 10.693 | AA54: 0.906 | AB54: 0.094 | AC54: 0.906 | AD54: 0.000 | AE54: 0.000 | AI54: 0.764 | AJ54: 2.291 | AK54: 0.382 | AL54: 0.021 | AM54: 8.400 | AN54: -3.289 | AO54: -0.011 | AP54: -1.615 | AQ54: -8.001 | AU54: -2.253 | AV54: 20.902 | AW54: 8.400 | AX54: -1.028 | AY54: -0.043 | AZ54: -3.940 | BA54: -12.619 | BE54: -1.890 | BF54: -0.945 | BG54: -1.675 | BH54: 8.400 | BI54: -1.976 | BJ54: 10.693 | BK54: -2.094 | BL54: -0.709
O55: 8.600 | P55: 1.015 | Q55: 0.001 | R55: 0.984 | S55: 0.015 | T55: 0.000 | X55: 0.004 | Y55: 21.442 | Z55: 10.904 | AA55: 0.856 | AB55: 0.144 | AC55: 0.856 | AD55: 0.000 | AE55: 0.000 | AI55: 0.779 | AJ55: 2.337 | AK55: 0.389 | AL55: 0.031 | AM55: 8.600 | AN55: -3.086 | AO55: -0.007 | AP55: -1.811 | AQ55: -8.397 | AU55: -2.431 | AV55: 21.442 | AW55: 8.600 | AX55: -0.842 | AY55: -0.068 | AZ55: -4.176 | BA55: -13.066 | BE55: -1.769 | BF55: -0.884 | BG55: -1.510 | BH55: 8.600 | BI55: -1.985 | BJ55: 10.904 | BK55: -2.144 | BL55: -0.663
O56: 8.800 | P56: 1.008 | Q56: 0.001 | R56: 0.989 | S56: 0.010 | T56: 0.000 | X56: 0.003 | Y56: 22.281 | Z56: 11.116 | AA56: 0.785 | AB56: 0.215 | AC56: 0.785 | AD56: 0.000 | AE56: 0.000 | AI56: 0.794 | AJ56: 2.382 | AK56: 0.397 | AL56: 0.043 | AM56: 8.800 | AN56: -2.883 | AO56: -0.005 | AP56: -2.009 | AQ56: -8.795 | AU56: -2.592 | AV56: 22.281 | AW56: 8.800 | AX56: -0.668 | AY56: -0.105 | AZ56: -4.425 | BA56: -13.527 | BE56: -1.648 | BF56: -0.824 | BG56: -1.367 | BH56: 8.800 | BI56: -1.992 | BJ56: 11.116 | BK56: -2.215 | BL56: -0.618
O57: 9.000 | P57: 1.004 | Q57: 0.002 | R57: 0.992 | S57: 0.006 | T57: 0.000 | X57: 0.002 | Y57: 23.554 | Z57: 11.328 | AA57: 0.692 | AB57: 0.308 | AC57: 0.692 | AD57: 0.000 | AE57: 0.000 | AI57: 0.809 | AJ57: 2.427 | AK57: 0.405 | AL57: 0.056 | AM57: 9.000 | AN57: -2.682 | AO57: -0.004 | AP57: -2.208 | AQ57: -9.194 | AU57: -2.713 | AV57: 23.554 | AW57: 9.000 | AX57: -0.511 | AY57: -0.160 | AZ57: -4.692 | BA57: -14.005 | BE57: -1.527 | BF57: -0.764 | BG57: -1.253 | BH57: 9.000 | BI57: -1.996 | BJ57: 11.328 | BK57: -2.308 | BL57: -0.573
O58: 9.200 | P58: 1.001 | Q58: 0.003 | R58: 0.993 | S58: 0.004 | T58: 0.000 | X58: 0.002 | Y58: 25.426 | Z58: 11.540 | AA58: 0.579 | AB58: 0.421 | AC58: 0.579 | AD58: 0.000 | AE58: 0.000 | AI58: 0.824 | AJ58: 2.473 | AK58: 0.412 | AL58: 0.067 | AM58: 9.200 | AN58: -2.482 | AO58: -0.003 | AP58: -2.407 | AQ58: -9.593 | AU58: -2.767 | AV58: 25.426 | AW58: 9.200 | AX58: -0.376 | AY58: -0.237 | AZ58: -4.981 | BA58: -14.507 | BE58: -1.406 | BF58: -0.703 | BG58: -1.173 | BH58: 9.200 | BI58: -1.999 | BJ58: 11.540 | BK58: -2.421 | BL58: -0.527
O59: 9.400 | P59: 0.997 | Q59: 0.005 | R59: 0.992 | S59: 0.002 | T59: 0.000 | X59: 0.002 | Y59: 28.122 | Z59: 11.752 | AA59: 0.458 | AB59: 0.542 | AC59: 0.458 | AD59: 0.000 | AE59: 0.000 | AI59: 0.839 | AJ59: 2.518 | AK59: 0.420 | AL59: 0.075 | AM59: 9.400 | AN59: -2.282 | AO59: -0.003 | AP59: -2.607 | AQ59: -9.994 | AU59: -2.733 | AV59: 28.122 | AW59: 9.400 | AX59: -0.266 | AY59: -0.339 | AZ59: -5.295 | BA59: -15.033 | BE59: -1.285 | BF59: -0.642 | BG59: -1.125 | BH59: 9.400 | BI59: -2.003 | BJ59: 11.752 | BK59: -2.542 | BL59: -0.482
O60: 9.600 | P60: 0.993 | Q60: 0.008 | R60: 0.990 | S60: 0.002 | T60: 0.000 | X60: 0.002 | Y60: 32.065 | Z60: 11.964 | AA60: 0.342 | AB60: 0.658 | AC60: 0.342 | AD60: 0.000 | AE60: 0.000 | AI60: 0.855 | AJ60: 2.564 | AK60: 0.427 | AL60: 0.081 | AM60: 9.600 | AN60: -2.083 | AO60: -0.004 | AP60: -2.808 | AQ60: -10.394 | AU60: -2.624 | AV60: 32.065 | AW60: 9.600 | AX60: -0.181 | AY60: -0.467 | AZ60: -5.634 | BA60: -15.584 | BE60: -1.164 | BF60: -0.582 | BG60: -1.092 | BH60: 9.600 | BI60: -2.007 | BJ60: 11.964 | BK60: -2.658 | BL60: -0.436
O61: 9.800 | P61: 0.988 | Q61: 0.013 | R61: 0.986 | S61: 0.001 | T61: 0.000 | X61: 0.003 | Y61: 38.317 | Z61: 12.175 | AA61: 0.242 | AB61: 0.758 | AC61: 0.242 | AD61: 0.000 | AE61: 0.000 | AI61: 0.870 | AJ61: 2.609 | AK61: 0.435 | AL61: 0.089 | AM61: 9.800 | AN61: -1.885 | AO61: -0.006 | AP61: -3.010 | AQ61: -10.796 | AU61: -2.469 | AV61: 38.317 | AW61: 9.800 | AX61: -0.120 | AY61: -0.617 | AZ61: -5.996 | BA61: -16.157 | BE61: -1.043 | BF61: -0.521 | BG61: -1.048 | BH61: 9.800 | BI61: -2.012 | BJ61: 12.175 | BK61: -2.758 | BL61: -0.391
O62: 10.000 | P62: 0.980 | Q62: 0.021 | R62: 0.979 | S62: 0.001 | T62: 0.000 | X62: 0.005 | Y62: 50.000 | Z62: 12.386 | AA62: 0.164 | AB62: 0.836 | AC62: 0.164 | AD62: 0.000 | AE62: 0.000 | AI62: 0.885 | AJ62: 2.654 | AK62: 0.442 | AL62: 0.108 | AM62: 10.000 | AN62: -1.688 | AO62: -0.009 | AP62: -3.213 | AQ62: -11.199 | AU62: -2.293 | AV62: 50.000 | AW62: 10.000 | AX62: -0.078 | AY62: -0.785 | AZ62: -6.375 | BA62: -16.747 | BE62: -0.922 | BF62: -0.461 | BG62: -0.965 | BH62: 10.000 | BI62: -2.020 | BJ62: 12.386 | BK62: -2.836 | BL62: -0.346
O63: 10.200 | P63: 0.968 | Q63: 0.032 | R63: 0.967 | S63: 0.000 | T63: 0.000 | X63: 0.008 | AM63: 10.200 | AN63: -1.493 | AO63: -0.014 | AP63: -3.418 | AQ63: -11.605 | AU63: -2.110 | AW63: 10.200 | BH63: 10.200 | BI63: -2.032
O64: 10.400 | P64: 0.950 | Q64: 0.050 | R64: 0.950 | S64: 0.000 | T64: 0.000 | X64: 0.012 | AM64: 10.400 | AN64: -1.301 | AO64: -0.022 | AP64: -3.626 | AQ64: -12.013 | AU64: -1.928 | AW64: 10.400 | BH64: 10.400 | BI64: -2.050
O65: 10.600 | P65: 0.923 | Q65: 0.077 | R65: 0.923 | S65: 0.000 | T65: 0.000 | X65: 0.018 | AM65: 10.600 | AN65: -1.113 | AO65: -0.035 | AP65: -3.839 | AQ65: -12.425 | AU65: -1.753 | AW65: 10.600 | BH65: 10.600 | BI65: -2.077
O66: 10.800 | P66: 0.883 | Q66: 0.117 | R66: 0.883 | S66: 0.000 | T66: 0.000 | X66: 0.026 | AM66: 10.800 | AN66: -0.932 | AO66: -0.054 | AP66: -4.058 | AQ66: -12.844 | AU66: -1.589 | AW66: 10.800 | BH66: 10.800 | BI66: -2.117
O67: 11.000 | P67: 0.827 | Q67: 0.173 | R67: 0.827 | S67: 0.000 | T67: 0.000 | X67: 0.036 | AM67: 11.000 | AN67: -0.761 | AO67: -0.083 | AP67: -4.287 | AQ67: -13.273 | AU67: -1.442 | AW67: 11.000 | BH67: 11.000 | BI67: -2.173
O68: 11.200 | P68: 0.751 | Q68: 0.249 | R68: 0.751 | S68: 0.000 | T68: 0.000 | X68: 0.048 | AM68: 11.200 | AN68: -0.603 | AO68: -0.125 | AP68: -4.529 | AQ68: -13.715 | AU68: -1.318 | AW68: 11.200 | BH68: 11.200 | BI68: -2.249
O69: 11.400 | P69: 0.655 | Q69: 0.345 | R69: 0.655 | S69: 0.000 | T69: 0.000 | X69: 0.060 | AM69: 11.400 | AN69: -0.462 | AO69: -0.184 | AP69: -4.788 | AQ69: -14.174 | AU69: -1.222 | AW69: 11.400 | BH69: 11.400 | BI69: -2.345
O70: 11.600 | P70: 0.545 | Q70: 0.455 | R70: 0.545 | S70: 0.000 | T70: 0.000 | X70: 0.070 | AM70: 11.600 | AN70: -0.342 | AO70: -0.264 | AP70: -5.068 | AQ70: -14.654 | AU70: -1.157 | AW70: 11.600 | BH70: 11.600 | BI70: -2.455
O71: 11.800 | P71: 0.430 | Q71: 0.570 | R71: 0.430 | S71: 0.000 | T71: 0.000 | X71: 0.076 | AM71: 11.800 | AN71: -0.244 | AO71: -0.366 | AP71: -5.370 | AQ71: -15.156 | AU71: -1.117 | AW71: 11.800 | BH71: 11.800 | BI71: -2.570
O72: 12.000 | P72: 0.323 | Q72: 0.677 | R72: 0.323 | S72: 0.000 | T72: 0.000 | X72: 0.082 | AM72: 12.000 | AN72: -0.169 | AO72: -0.491 | AP72: -5.695 | AQ72: -15.681 | AU72: -1.087 | AW72: 12.000 | BH72: 12.000 | BI72: -2.677
O73: 12.200 | P73: 0.231 | Q73: 0.769 | R73: 0.231 | S73: 0.000 | T73: 0.000 | X73: 0.091 | AM73: 12.200 | AN73: -0.114 | AO73: -0.636 | AP73: -6.040 | AQ73: -16.226 | AU73: -1.041 | AW73: 12.200 | BH73: 12.200 | BI73: -2.769
O74: 12.400 | P74: 0.160 | Q74: 0.840 | R74: 0.160 | S74: 0.000 | T74: 0.000 | X74: 0.110 | AM74: 12.400 | AN74: -0.075 | AO74: -0.797 | AP74: -6.401 | AQ74: -16.787 | AU74: -0.958 | AW74: 12.400 | BH74: 12.400 | BI74: -2.840
O75: 12.600 | P75: 0.107 | Q75: 0.893 | R75: 0.107 | S75: 0.000 | T75: 0.000 | X75: 0.148 | AM75: 12.600 | AN75: -0.049 | AO75: -0.971 | AP75: -6.775 | AQ75: -17.361 | AU75: -0.830 | AW75: 12.600 | BH75: 12.600 | BI75: -2.893
O76: 12.800 | P76: 0.070 | Q76: 0.930 | R76: 0.070 | S76: 0.000 | T76: 0.000 | X76: 0.214 | AM76: 12.800 | AN76: -0.032 | AO76: -1.153 | AP76: -7.157 | AQ76: -17.943 | AU76: -0.669 | AW76: 12.800 | BH76: 12.800 | BI76: -2.930
O77: 13.000 | P77: 0.046 | Q77: 0.954 | R77: 0.046 | S77: 0.000 | T77: 0.000 | X77: 0.326 | AM77: 13.000 | AN77: -0.020 | AO77: -1.342 | AP77: -7.546 | AQ77: -18.532 | AU77: -0.487 | AW77: 13.000 | BH77: 13.000 | BI77: -2.954
O78: 13.200 | P78: 0.029 | Q78: 0.971 | R78: 0.029 | S78: 0.000 | T78: 0.000 | X78: 0.507 | AM78: 13.200 | AN78: -0.013 | AO78: -1.534 | AP78: -7.938 | AQ78: -19.125 | AU78: -0.295 | AW78: 13.200 | BH78: 13.200 | BI78: -2.971
O79: 13.400 | P79: 0.019 | Q79: 0.981 | R79: 0.019 | S79: 0.000 | T79: 0.000 | X79: 0.798 | AM79: 13.400 | AN79: -0.008 | AO79: -1.730 | AP79: -8.334 | AQ79: -19.720 | AU79: -0.098 | AW79: 13.400 | BH79: 13.400 | BI79: -2.981
O80: 13.600 | P80: 0.012 | Q80: 0.988 | R80: 0.012 | S80: 0.000 | T80: 0.000 | X80: 1.260 | AM80: 13.600 | AN80: -0.005 | AO80: -1.927 | AP80: -8.731 | AU80: 0.100 | AW80: 13.600 | BH80: 13.600 | BI80: -2.988
O81: 13.800 | P81: 0.008 | Q81: 0.992 | R81: 0.008 | S81: 0.000 | T81: 0.000 | X81: 1.995 | AM81: 13.800 | AN81: -0.003 | AO81: -2.125 | AP81: -9.129 | AU81: 0.300 | AW81: 13.800 | BH81: 13.800 | BI81: -2.992
O82: 14.000 | P82: 0.005 | Q82: 0.995 | R82: 0.005 | S82: 0.000 | T82: 0.000 | X82: 3.160 | AM82: 14.000 | AN82: -0.002 | AO82: -2.324 | AP82: -9.528 | AU82: 0.500 | AW82: 14.000 | BH82: 14.000 | BI82: -2.995

Sheet Fosforzuurbepaling
C1: Evaluation of Real and Simulated Titration Data by Derivatives with Interpolation | U1: Color coding
A2: Interpolation and smoothing by cubic splines | H2: Degree of smoothing | J2: Fitting range (zoom) | M2: Fit quality of the splines to pH | Q2: Inflection auto-finder - first-derivative-based | U2: D o n o t c h a n g e
H3: (0 to 100%) | I3: 90 | J3: Initial volume | K3: 2.400 | M3: Fitted pH std. dev. | N3: 0.0700 | P3: Detector threshold |dpH/dV| > | Q3: 0.589048146 | R3: guess value | S3: 0.589048146 | T3: F i l l o u t | U3: o r | V3: c h a n g e
H4: Interpolated points | I4: 300 | J4: Final volume | K4: 31.300 | M4: Correlation coefficient | N4: 0.9997 | Q4: Detected inflection points | T4: Interpolated spline smoothed data
A5: Volume | B5: pH | C5: Fitted pH | D5: dpH/dV | O5: step | P5: Volume | Q5: pH | R5: dpH/dV | S5: d2pH/dV2 | T5: Interp. Vol. | U5: Fitted pH | V5: dpH/dV | W5: d2pH/dV2
A6: 2.400 | B6: 3.130 | C6: 3.0816 | D6: 0.2571 | O6: 1 | P6: 5.0808 | Q6: 5.025 | R6: 1.381780618 | S6: 8.900819413e-05 | T6: 2.4000 | U6: 3.0816 | V6: 0.2570 | W6: 0.0000
A7: 3.740 | B7: 3.570 | C7: 3.6008 | D7: 0.6568 | O7: 2 | P7: 11.3951 | Q7: 9.068 | R7: 0.9452786535 | S7: -0.0009633940658 | T7: 2.4963 | U7: 3.1064 | V7: 0.2591 | W7: 0.0210
A8: 4.540 | B8: 4.180 | C8: 4.3198 | D8: 1.1764 | O8: 3 | P8: =P7-A6 -> 8.9951 | T8: 2.5927 | U8: 3.1316 | V8: 0.2651 | W8: 0.0420
A9: 4.940 | B9: 4.740 | C9: 4.8315 | D9: 1.3663 | O9: 4 | T9: 2.6890 | U9: 3.1576 | V9: 0.2752 | W9: 0.0630
A10: 5.100 | B10: 5.110 | C10: 5.0517 | D10: 1.3807 | O10: 5 | T10: 2.7853 | U10: 3.1848 | V10: 0.2894 | W10: 0.0840
A11: 5.500 | B11: 5.650 | C11: 5.5864 | D11: 1.2461 | O11: 6 | T11: 2.8817 | U11: 3.2135 | V11: 0.3076 | W11: 0.1050
A12: 5.740 | B12: 6.010 | C12: 5.8685 | D12: 1.0766 | O12: 7 | T12: 2.9780 | U12: 3.2442 | V12: 0.3298 | W12: 0.1259
A13: 6.520 | B13: 6.510 | C13: 6.5109 | D13: 0.5983 | O13: 8 | T13: 3.0743 | U13: 3.2772 | V13: 0.3561 | W13: 0.1469
A14: 7.520 | B14: 6.920 | C14: 6.9665 | D14: 0.3798 | O14: 9 | T14: 3.1707 | U14: 3.3129 | V14: 0.3865 | W14: 0.1679
A15: 9.000 | B15: 7.560 | C15: 7.5352 | D15: 0.3967 | O15: 10 | T15: 3.2670 | U15: 3.3518 | V15: 0.4208 | W15: 0.1889
A16: 10.620 | B16: 8.310 | C16: 8.3860 | D16: 0.7674 | O16: 11 | T16: 3.3633 | U16: 3.3941 | V16: 0.4593 | W16: 0.2099
A17: 11.100 | B17: 8.760 | C17: 8.7922 | D17: 0.9171 | O17: 12 | T17: 3.4597 | U17: 3.4404 | V17: 0.5017 | W17: 0.2309
A18: 11.300 | B18: 8.980 | C18: 8.9783 | D18: 0.9430 | O18: 13 | T18: 3.5560 | U18: 3.4909 | V18: 0.5482 | W18: 0.2519
A19: 12.060 | B19: 9.760 | C19: 9.6614 | D19: 0.7799 | O19: 14 | T19: 3.6523 | U19: 3.5461 | V19: 0.5988 | W19: 0.2729
A20: 12.600 | B20: 10.020 | C20: 10.0214 | D20: 0.5495 | O20: 15 | T20: 3.7487 | U20: 3.6064 | V20: 0.6534 | W20: 0.2927
A21: 15.080 | B21: 10.610 | C21: 10.6287 | D21: 0.0991 | Q21: Titrand concentration calculator | T21: 3.8450 | U21: 3.6721 | V21: 0.7105 | W21: 0.3003
A22: 18.420 | B22: 10.990 | C22: 10.9890 | D22: 0.1014 | Q22: (optional and modifiable) | T22: 3.9413 | U22: 3.7433 | V22: 0.7691 | W22: 0.3080
A23: 31.300 | B23: 11.580 | C23: 11.5801 | D23: 0.0181 | T23: 4.0377 | U23: 3.8203 | V23: 0.8292 | W23: 0.3156
Q24: Volume of titrand (sample pipetted into cell) | R24: 20 | S24: mL | T24: 4.1340 | U24: 3.9031 | V24: 0.8907 | W24: 0.3233
Q25: Concentration of titrant (in the buret) | R25: 0.1 | S25: mol/L | T25: 4.2303 | U25: 3.9920 | V25: 0.9538 | W25: 0.3309
Q26: Number of mols of titrant | S26: Result (mol/L) | T26: 4.3267 | U26: 4.0869 | V26: 1.0182 | W26: 0.3386
O27: step | P27: Vol. Inflection | Q27: total | R27: stepwise | S27: [species] | T27: 4.4230 | U27: 4.1882 | V27: 1.0842 | W27: 0.3462
O28: 1 | P28: 10.0158 | Q28: =IF(P28<>"",P28*0.001*$R$25,"") -> 0.001001583333 | R28: =IF(P28<>"",Q28,"") -> 0.001001583333 | S28: =IF(P28<>"",R28/$R$24/0.001,"") -> 0.05007916666 | T28: 4.5193 | U28: 4.2959 | V28: 1.1517 | W28: 0.3539
O29: 2 | P29: 30.0292 | Q29: =IF(P29<>"",P29*0.001*$R$25,"") -> 0.003002916666 | R29: =IF(P29<>"",(Q29-Q28),"") -> 0.002001333333 | S29: =IF(P29<>"",R29/$R$24/0.001,"") -> 0.1000666667 | T29: 4.6157 | U29: 4.4100 | V29: 1.2170 | W29: 0.3139
O30: 3 | R30: =IF(P30<>"",(Q30-Q29),"") ->  | T30: 4.7120 | U30: 4.5300 | V30: 1.2723 | W30: 0.2609
O31: 4 | T31: 4.8083 | U31: 4.6548 | V31: 1.3175 | W31: 0.2079
O32: 5 | T32: 4.9047 | U32: 4.7835 | V32: 1.3524 | W32: 0.1549
O33: 6 | T33: 5.0010 | U33: 4.9150 | V33: 1.3756 | W33: 0.0768
O34: 7 | T34: 5.0973 | U34: 5.0480 | V34: 1.3815 | W34: -0.0158
O35: 8 | T35: 5.1937 | U35: 5.1807 | V35: 1.3718 | W35: -0.0839
O36: 9 | T36: 5.2900 | U36: 5.3119 | V36: 1.3492 | W36: -0.1512
O37: 10 | T37: 5.3863 | U37: 5.4402 | V37: 1.3136 | W37: -0.2186
O38: Results of the Example: | T38: 5.4827 | U38: 5.5645 | V38: 1.2649 | W38: -0.2860
O39: [H3PO4] = 0,0501 mol/L in the 20 mL of sample | T39: 5.5790 | U39: 5.6836 | V39: 1.2051 | W39: -0.3307
O40: [NaH2PO4] = [H2PO4- titrated] - [H3PO4] = 0,1000 - 0,501 = 0,0499 mol/L | T40: 5.6753 | U40: 5.7965 | V40: 1.1376 | W40: -0.3705
O41: For this sample, half of the determined H2PO4- came from the H3PO4 | T41: 5.7717 | U41: 5.9025 | V41: 1.0630 | W41: -0.3901
T42: 5.8680 | U42: 6.0014 | V42: 0.9899 | W42: -0.3685
P43: How to change the axis of a curve | T43: 5.9643 | U43: 6.0934 | V43: 0.9210 | W43: -0.3469
P44: How to copy/paste a curve | T44: 6.0607 | U44: 6.1790 | V44: 0.8563 | W44: -0.3253
P45: Data ID on curves | T45: 6.1570 | U45: 6.2585 | V45: 0.7957 | W45: -0.3038
T46: 6.2533 | U46: 6.3324 | V46: 0.7392 | W46: -0.2822
T47: 6.3497 | U47: 6.4011 | V47: 0.6869 | W47: -0.2606
T48: 6.4460 | U48: 6.4649 | V48: 0.6388 | W48: -0.2390
T49: 6.5423 | U49: 6.5243 | V49: 0.5948 | W49: -0.2175
T50: 6.6387 | U50: 6.5796 | V50: 0.5550 | W50: -0.1963
T51: 6.7350 | U51: 6.6313 | V51: 0.5192 | W51: -0.1751
T52: 6.8313 | U52: 6.6798 | V52: 0.4875 | W52: -0.1539
T53: 6.9277 | U53: 6.7254 | V53: 0.4599 | W53: -0.1327
T54: 7.0240 | U54: 6.7685 | V54: 0.4364 | W54: -0.1115
T55: 7.1203 | U55: 6.8096 | V55: 0.4169 | W55: -0.0903
T56: 7.2167 | U56: 6.8490 | V56: 0.4016 | W56: -0.0691
T57: 7.3130 | U57: 6.8871 | V57: 0.3903 | W57: -0.0479
T58: 7.4093 | U58: 6.9243 | V58: 0.3831 | W58: -0.0267
T59: 7.5057 | U59: 6.9611 | V59: 0.3800 | W59: -0.0055
T60: 7.6020 | U60: 6.9977 | V60: 0.3796 | W60: -0.0015
T61: 7.6983 | U61: 7.0342 | V61: 0.3794 | W61: -0.0005
T62: 7.7947 | U62: 7.0708 | V62: 0.3794 | W62: 0.0006
T63: 7.8910 | U63: 7.1073 | V63: 0.3796 | W63: 0.0016
T64: 7.9873 | U64: 7.1439 | V64: 0.3800 | W64: 0.0026
T65: 8.0837 | U65: 7.1805 | V65: 0.3806 | W65: 0.0037
T66: 8.1800 | U66: 7.2173 | V66: 0.3814 | W66: 0.0047
T67: 8.2763 | U67: 7.2540 | V67: 0.3824 | W67: 0.0057
T68: 8.3727 | U68: 7.2909 | V68: 0.3836 | W68: 0.0067
T69: 8.4690 | U69: 7.3280 | V69: 0.3850 | W69: 0.0078
T70: 8.5653 | U70: 7.3651 | V70: 0.3866 | W70: 0.0088
T71: 8.6617 | U71: 7.4025 | V71: 0.3884 | W71: 0.0098
T72: 8.7580 | U72: 7.4400 | V72: 0.3904 | W72: 0.0108
T73: 8.8543 | U73: 7.4777 | V73: 0.3926 | W73: 0.0119
T74: 8.9507 | U74: 7.5156 | V74: 0.3950 | W74: 0.0129
T75: 9.0470 | U75: 7.5538 | V75: 0.3978 | W75: 0.0192
T76: 9.1433 | U76: 7.5924 | V76: 0.4027 | W76: 0.0310
T77: 9.2397 | U77: 7.6315 | V77: 0.4098 | W77: 0.0428
T78: 9.3360 | U78: 7.6714 | V78: 0.4192 | W78: 0.0546
T79: 9.4323 | U79: 7.7123 | V79: 0.4308 | W79: 0.0664
T80: 9.5287 | U80: 7.7545 | V80: 0.4448 | W80: 0.0782
T81: 9.6250 | U81: 7.7981 | V81: 0.4610 | W81: 0.0900
T82: 9.7213 | U82: 7.8433 | V82: 0.4794 | W82: 0.1018
T83: 9.8177 | U83: 7.8905 | V83: 0.5002 | W83: 0.1136
T84: 9.9140 | U84: 7.9398 | V84: 0.5232 | W84: 0.1254
T85: 10.0103 | U85: 7.9914 | V85: 0.5485 | W85: 0.1372
T86: 10.1067 | U86: 8.0455 | V86: 0.5761 | W86: 0.1490
T87: 10.2030 | U87: 8.1024 | V87: 0.6059 | W87: 0.1608
T88: 10.2993 | U88: 8.1623 | V88: 0.6381 | W88: 0.1726
T89: 10.3957 | U89: 8.2254 | V89: 0.6725 | W89: 0.1844
T90: 10.4920 | U90: 8.2920 | V90: 0.7091 | W90: 0.1962
T91: 10.5883 | U91: 8.3621 | V91: 0.7481 | W91: 0.2080
T92: 10.6847 | U92: 8.4361 | V92: 0.7879 | W92: 0.1977
T93: 10.7810 | U93: 8.5138 | V93: 0.8239 | W93: 0.1765
T94: 10.8773 | U94: 8.5947 | V94: 0.8559 | W94: 0.1554
T95: 10.9737 | U95: 8.6786 | V95: 0.8838 | W95: 0.1342
T96: 11.0700 | U96: 8.7649 | V96: 0.9076 | W96: 0.1130
T97: 11.1663 | U97: 8.8533 | V97: 0.9267 | W97: 0.0822
T98: 11.2627 | U98: 8.9432 | V98: 0.9391 | W98: 0.0471
T99: 11.3590 | U99: 9.0340 | V99: 0.9448 | W99: 0.0124
T100: 11.4553 | U100: 9.1250 | V100: 0.9439 | W100: -0.0220
T101: 11.5517 | U101: 9.2157 | V101: 0.9364 | W101: -0.0564
T102: 11.6480 | U102: 9.3052 | V102: 0.9222 | W102: -0.0908
T103: 11.7443 | U103: 9.3931 | V103: 0.9014 | W103: -0.1252
T104: 11.8407 | U104: 9.4787 | V104: 0.8739 | W104: -0.1596
T105: 11.9370 | U105: 9.5613 | V105: 0.8399 | W105: -0.1940
T106: 12.0333 | U106: 9.6403 | V106: 0.7992 | W106: -0.2284
T107: 12.1297 | U107: 9.7151 | V107: 0.7540 | W107: -0.2319
T108: 12.2260 | U108: 9.7856 | V108: 0.7101 | W108: -0.2236
T109: 12.3223 | U109: 9.8520 | V109: 0.6678 | W109: -0.2153
T110: 12.4187 | U110: 9.9143 | V110: 0.6272 | W110: -0.2069
T111: 12.5150 | U111: 9.9729 | V111: 0.5881 | W111: -0.1986
T112: 12.6113 | U112: 10.0277 | V112: 0.5507 | W112: -0.1903
T113: 12.7077 | U113: 10.0790 | V113: 0.5147 | W113: -0.1826
T114: 12.8040 | U114: 10.1269 | V114: 0.4803 | W114: -0.1749
T115: 12.9003 | U115: 10.1716 | V115: 0.4473 | W115: -0.1672
T116: 12.9967 | U116: 10.2132 | V116: 0.4159 | W116: -0.1595
T117: 13.0930 | U117: 10.2518 | V117: 0.3859 | W117: -0.1518
T118: 13.1893 | U118: 10.2876 | V118: 0.3574 | W118: -0.1441
T119: 13.2857 | U119: 10.3207 | V119: 0.3304 | W119: -0.1363
T120: 13.3820 | U120: 10.3513 | V120: 0.3049 | W120: -0.1286
T121: 13.4783 | U121: 10.3795 | V121: 0.2808 | W121: -0.1209
T122: 13.5747 | U122: 10.4054 | V122: 0.2583 | W122: -0.1132
T123: 13.6710 | U123: 10.4293 | V123: 0.2372 | W123: -0.1055
T124: 13.7673 | U124: 10.4512 | V124: 0.2176 | W124: -0.0978
T125: 13.8637 | U125: 10.4713 | V125: 0.1995 | W125: -0.0901
T126: 13.9600 | U126: 10.4897 | V126: 0.1829 | W126: -0.0824
T127: 14.0563 | U127: 10.5065 | V127: 0.1678 | W127: -0.0747
T128: 14.1527 | U128: 10.5220 | V128: 0.1541 | W128: -0.0669
T129: 14.2490 | U129: 10.5363 | V129: 0.1420 | W129: -0.0592
T130: 14.3453 | U130: 10.5494 | V130: 0.1313 | W130: -0.0515
T131: 14.4417 | U131: 10.5616 | V131: 0.1221 | W131: -0.0438
T132: 14.5380 | U132: 10.5730 | V132: 0.1144 | W132: -0.0361
T133: 14.6343 | U133: 10.5837 | V133: 0.1082 | W133: -0.0284
T134: 14.7307 | U134: 10.5939 | V134: 0.1035 | W134: -0.0207
T135: 14.8270 | U135: 10.6037 | V135: 0.1003 | W135: -0.0130
T136: 14.9233 | U136: 10.6133 | V136: 0.0985 | W136: -0.0052
T137: 15.0197 | U137: 10.6228 | V137: 0.0983 | W137: 0.0025
T138: 15.1160 | U138: 10.6323 | V138: 0.0994 | W138: 0.0071
T139: 15.2123 | U139: 10.6419 | V139: 0.1007 | W139: 0.0067
T140: 15.3087 | U140: 10.6517 | V140: 0.1020 | W140: 0.0064
T141: 15.4050 | U141: 10.6615 | V141: 0.1031 | W141: 0.0060
T142: 15.5013 | U142: 10.6715 | V142: 0.1043 | W142: 0.0056
T143: 15.5977 | U143: 10.6816 | V143: 0.1053 | W143: 0.0052
T144: 15.6940 | U144: 10.6918 | V144: 0.1062 | W144: 0.0048
T145: 15.7903 | U145: 10.7021 | V145: 0.1071 | W145: 0.0044
T146: 15.8867 | U146: 10.7125 | V146: 0.1079 | W146: 0.0040
T147: 15.9830 | U147: 10.7229 | V147: 0.1087 | W147: 0.0036
T148: 16.0793 | U148: 10.7334 | V148: 0.1093 | W148: 0.0032
T149: 16.1757 | U149: 10.7439 | V149: 0.1099 | W149: 0.0028
T150: 16.2720 | U150: 10.7546 | V150: 0.1104 | W150: 0.0024
T151: 16.3683 | U151: 10.7652 | V151: 0.1108 | W151: 0.0020
T152: 16.4647 | U152: 10.7759 | V152: 0.1111 | W152: 0.0016
T153: 16.5610 | U153: 10.7866 | V153: 0.1114 | W153: 0.0012
T154: 16.6573 | U154: 10.7974 | V154: 0.1116 | W154: 0.0008
T155: 16.7537 | U155: 10.8081 | V155: 0.1117 | W155: 0.0004
T156: 16.8500 | U156: 10.8189 | V156: 0.1117 | W156: -0.0000
T157: 16.9463 | U157: 10.8296 | V157: 0.1117 | W157: -0.0004
T158: 17.0427 | U158: 10.8404 | V158: 0.1116 | W158: -0.0008
T159: 17.1390 | U159: 10.8511 | V159: 0.1114 | W159: -0.0012
T160: 17.2353 | U160: 10.8619 | V160: 0.1111 | W160: -0.0016
T161: 17.3317 | U161: 10.8725 | V161: 0.1108 | W161: -0.0020
T162: 17.4280 | U162: 10.8832 | V162: 0.1104 | W162: -0.0024
T163: 17.5243 | U163: 10.8938 | V163: 0.1099 | W163: -0.0028
T164: 17.6207 | U164: 10.9044 | V164: 0.1093 | W164: -0.0032
T165: 17.7170 | U165: 10.9149 | V165: 0.1086 | W165: -0.0036
T166: 17.8133 | U166: 10.9253 | V166: 0.1079 | W166: -0.0040
T167: 17.9097 | U167: 10.9356 | V167: 0.1071 | W167: -0.0044
T168: 18.0060 | U168: 10.9459 | V168: 0.1062 | W168: -0.0048
T169: 18.1023 | U169: 10.9561 | V169: 0.1053 | W169: -0.0052
T170: 18.1987 | U170: 10.9662 | V170: 0.1042 | W170: -0.0056
T171: 18.2950 | U171: 10.9762 | V171: 0.1031 | W171: -0.0060
T172: 18.3913 | U172: 10.9861 | V172: 0.1019 | W172: -0.0064
T173: 18.4877 | U173: 10.9958 | V173: 0.1007 | W173: -0.0064
T174: 18.5840 | U174: 11.0055 | V174: 0.0994 | W174: -0.0064
T175: 18.6803 | U175: 11.0150 | V175: 0.0982 | W175: -0.0064
T176: 18.7767 | U176: 11.0244 | V176: 0.0970 | W176: -0.0063
T177: 18.8730 | U177: 11.0337 | V177: 0.0958 | W177: -0.0063
T178: 18.9693 | U178: 11.0428 | V178: 0.0946 | W178: -0.0062
T179: 19.0657 | U179: 11.0519 | V179: 0.0934 | W179: -0.0062
T180: 19.1620 | U180: 11.0608 | V180: 0.0922 | W180: -0.0061
T181: 19.2583 | U181: 11.0697 | V181: 0.0910 | W181: -0.0061
T182: 19.3547 | U182: 11.0784 | V182: 0.0899 | W182: -0.0060
T183: 19.4510 | U183: 11.0870 | V183: 0.0887 | W183: -0.0060
T184: 19.5473 | U184: 11.0955 | V184: 0.0876 | W184: -0.0059
T185: 19.6437 | U185: 11.1038 | V185: 0.0864 | W185: -0.0059
T186: 19.7400 | U186: 11.1121 | V186: 0.0853 | W186: -0.0058
T187: 19.8363 | U187: 11.1203 | V187: 0.0842 | W187: -0.0058
T188: 19.9327 | U188: 11.1283 | V188: 0.0831 | W188: -0.0057
T189: 20.0290 | U189: 11.1363 | V189: 0.0820 | W189: -0.0057
T190: 20.1253 | U190: 11.1441 | V190: 0.0809 | W190: -0.0056
T191: 20.2217 | U191: 11.1519 | V191: 0.0798 | W191: -0.0056
T192: 20.3180 | U192: 11.1595 | V192: 0.0788 | W192: -0.0055
T193: 20.4143 | U193: 11.1671 | V193: 0.0777 | W193: -0.0055
T194: 20.5107 | U194: 11.1745 | V194: 0.0766 | W194: -0.0054
T195: 20.6070 | U195: 11.1818 | V195: 0.0756 | W195: -0.0054
T196: 20.7033 | U196: 11.1891 | V196: 0.0746 | W196: -0.0053
T197: 20.7997 | U197: 11.1962 | V197: 0.0736 | W197: -0.0053
T198: 20.8960 | U198: 11.2032 | V198: 0.0725 | W198: -0.0052
T199: 20.9923 | U199: 11.2102 | V199: 0.0715 | W199: -0.0052
T200: 21.0887 | U200: 11.2170 | V200: 0.0705 | W200: -0.0051
... 106 more rows

Sheet Fosforzuurbepaling (2)
C1: Evaluation of Real and Simulated Titration Data by Derivatives with Interpolation | U1: Color coding
A2: Interpolation and smoothing by cubic splines | H2: Degree of smoothing | J2: Fitting range (zoom) | M2: Fit quality of the splines to pH | Q2: Inflection auto-finder - first-derivative-based | U2: D o n o t c h a n g e
H3: (0 to 100%) | I3: 90 | J3: Initial volume | K3: 2.400 | M3: Fitted pH std. dev. | N3: 0.1038 | P3: Detector threshold |dpH/dV| > | Q3: 0.5815589992 | R3: guess value | S3: 0.5815589992 | T3: F i l l o u t | U3: o r | V3: c h a n g e
H4: Interpolated points | I4: 300 | J4: Final volume | K4: 31.300 | M4: Correlation coefficient | N4: 0.9993 | Q4: Detected inflection points | T4: Interpolated spline smoothed data
A5: Volume | B5: pH | C5: Fitted pH | D5: dpH/dV | O5: step | P5: Volume | Q5: pH | R5: dpH/dV | S5: d2pH/dV2 | T5: Interp. Vol. | U5: Fitted pH | V5: dpH/dV | W5: d2pH/dV2
A6: 2.200 | B6: 3.150 | C6: 3.1306 | D6: 0.3075 | O6: 1 | P6: 5.2175 | Q6: 5.185 | R6: 1.386397162 | S6: -6.096582754e-05 | T6: 2.4000 | U6: 3.1924 | V6: 0.3110 | W6: 0.0174
A7: 3.350 | B7: 3.570 | C7: 3.5284 | D7: 0.4257 | O7: 2 | P7: =P8+A6 -> 11.0794 | Q7: 9.064 | R7: 0.9434728902 | S7: 3.024364496e-05 | T7: 2.4963 | U7: 3.2225 | V7: 0.3152 | W7: 0.0258
A8: 4.550 | B8: 4.170 | C8: 4.3379 | D8: 1.0703 | O8: 3 | P8: 8.8794 | T8: 2.5927 | U8: 3.2532 | V8: 0.3209 | W8: 0.0342
A9: 4.940 | B9: 4.720 | C9: 4.8063 | D9: 1.3262 | O9: 4 | T9: 2.6890 | U9: 3.2844 | V9: 0.3283 | W9: 0.0426
A10: 5.300 | B10: 5.130 | C10: 5.2990 | D10: 1.3779 | O10: 5 | T10: 2.7853 | U10: 3.3165 | V10: 0.3374 | W10: 0.0510
A11: 5.400 | B11: 5.680 | C11: 5.4358 | D11: 1.3428 | O11: 6 | T11: 2.8817 | U11: 3.3495 | V11: 0.3480 | W11: 0.0594
A12: 5.760 | B12: 6.050 | C12: 5.8830 | D12: 1.0995 | O12: 7 | T12: 2.9780 | U12: 3.3836 | V12: 0.3603 | W12: 0.0678
A13: 6.530 | B13: 6.530 | C13: 6.5199 | D13: 0.5786 | O13: 8 | T13: 3.0743 | U13: 3.4189 | V13: 0.3741 | W13: 0.0762
A14: 7.550 | B14: 6.890 | C14: 6.9446 | D14: 0.3393 | O14: 9 | T14: 3.1707 | U14: 3.4557 | V14: 0.3896 | W14: 0.0846
A15: 9.200 | B15: 7.590 | C15: 7.5722 | D15: 0.4412 | O15: 10 | T15: 3.2670 | U15: 3.4940 | V15: 0.4067 | W15: 0.0930
A16: 10.630 | B16: 8.330 | C16: 8.3942 | D16: 0.7834 | O16: 11 | T16: 3.3633 | U16: 3.5341 | V16: 0.4255 | W16: 0.1038
A17: 11.100 | B17: 8.760 | C17: 8.7952 | D17: 0.9172 | O17: 12 | T17: 3.4597 | U17: 3.5761 | V17: 0.4480 | W17: 0.1303
A18: 11.300 | B18: 8.980 | C18: 8.9811 | D18: 0.9415 | O18: 13 | T18: 3.5560 | U18: 3.6206 | V18: 0.4757 | W18: 0.1567
A19: 12.060 | B19: 9.760 | C19: 9.6625 | D19: 0.7775 | O19: 14 | T19: 3.6523 | U19: 3.6679 | V19: 0.5084 | W19: 0.1831
A20: 12.600 | B20: 10.020 | C20: 10.0215 | D20: 0.5481 | O20: 15 | T20: 3.7487 | U20: 3.7187 | V20: 0.5462 | W20: 0.2095
A21: 15.080 | B21: 10.610 | C21: 10.6286 | D21: 0.0994 | Q21: Titrand concentration calculator | T21: 3.8450 | U21: 3.7733 | V21: 0.5891 | W21: 0.2359
A22: 18.420 | B22: 10.990 | C22: 10.9890 | D22: 0.1012 | Q22: (optional and modifiable) | T22: 3.9413 | U22: 3.8324 | V22: 0.6371 | W22: 0.2623
A23: 31.300 | B23: 11.580 | C23: 11.5801 | D23: 0.0181 | T23: 4.0377 | U23: 3.8962 | V23: 0.6902 | W23: 0.2887
Q24: Volume of titrand (sample pipetted into cell) | R24: 20 | S24: mL | T24: 4.1340 | U24: 3.9655 | V24: 0.7484 | W24: 0.3151
Q25: Concentration of titrant (in the buret) | R25: 0.1 | S25: mol/L | T25: 4.2303 | U25: 4.0406 | V25: 0.8116 | W25: 0.3415
Q26: Number of mols of titrant | S26: Result (mol/L) | T26: 4.3267 | U26: 4.1220 | V26: 0.8800 | W26: 0.3679
O27: step | P27: Vol. Inflection | Q27: total | R27: stepwise | S27: [species] | T27: 4.4230 | U27: 4.2103 | V27: 0.9534 | W27: 0.3943
O28: 1 | P28: 10.0158 | Q28: =IF(P28<>"",P28*0.001*$R$25,"") -> 0.001001583333 | R28: =IF(P28<>"",Q28,"") -> 0.001001583333 | S28: =IF(P28<>"",R28/$R$24/0.001,"") -> 0.05007916666 | T28: 4.5193 | U28: 4.3059 | V28: 1.0319 | W28: 0.4208
O29: 2 | P29: 30.0292 | Q29: =IF(P29<>"",P29*0.001*$R$25,"") -> 0.003002916666 | R29: =IF(P29<>"",(Q29-Q28),"") -> 0.002001333333 | S29: =IF(P29<>"",R29/$R$24/0.001,"") -> 0.1000666667 | T29: 4.6157 | U29: 4.4092 | V29: 1.1123 | W29: 0.3975
O30: 3 | R30: =IF(P30<>"",(Q30-Q29),"") ->  | T30: 4.7120 | U30: 4.5199 | V30: 1.1844 | W30: 0.3511
O31: 4 | T31: 4.8083 | U31: 4.6371 | V31: 1.2476 | W31: 0.3047
O32: 5 | T32: 4.9047 | U32: 4.7599 | V32: 1.3018 | W32: 0.2583
O33: 6 | T33: 5.0010 | U33: 4.8876 | V33: 1.3457 | W33: 0.1883
O34: 7 | T34: 5.0973 | U34: 5.0187 | V34: 1.3739 | W34: 0.1045
O35: 8 | T35: 5.1937 | U35: 5.1518 | V35: 1.3859 | W35: 0.0207
O36: 9 | T36: 5.2900 | U36: 5.2852 | V36: 1.3818 | W36: -0.0631
O37: 10 | T37: 5.3863 | U37: 5.4173 | V37: 1.3559 | W37: -0.2126
O38: Results of the Example: | T38: 5.4827 | U38: 5.5457 | V38: 1.3073 | W38: -0.2788
O39: [H3PO4] = 0,0501 mol/L in the 20 mL of sample | T39: 5.5790 | U39: 5.6689 | V39: 1.2486 | W39: -0.3300
O40: [NaH2PO4] = [H2PO4- titrated] - [H3PO4] = 0,1000 - 0,501 = 0,0499 mol/L | T40: 5.6753 | U40: 5.7859 | V40: 1.1801 | W40: -0.3812
O41: For this sample, half of the determined H2PO4- came from the H3PO4 | T41: 5.7717 | U41: 5.8959 | V41: 1.1018 | W41: -0.4236
T42: 5.8680 | U42: 5.9982 | V42: 1.0223 | W42: -0.4024
P43: How to change the axis of a curve | T43: 5.9643 | U43: 6.0930 | V43: 0.9468 | W43: -0.3812
P44: How to copy/paste a curve | T44: 6.0607 | U44: 6.1808 | V44: 0.8754 | W44: -0.3600
P45: Data ID on curves | T45: 6.1570 | U45: 6.2618 | V45: 0.8081 | W45: -0.3388
T46: 6.2533 | U46: 6.3366 | V46: 0.7448 | W46: -0.3176
T47: 6.3497 | U47: 6.4055 | V47: 0.6857 | W47: -0.2963
T48: 6.4460 | U48: 6.4688 | V48: 0.6307 | W48: -0.2751
T49: 6.5423 | U49: 6.5271 | V49: 0.5797 | W49: -0.2533
T50: 6.6387 | U50: 6.5807 | V50: 0.5334 | W50: -0.2278
T51: 6.7350 | U51: 6.6300 | V51: 0.4920 | W51: -0.2022
T52: 6.8313 | U52: 6.6756 | V52: 0.4555 | W52: -0.1766
T53: 6.9277 | U53: 6.7179 | V53: 0.4239 | W53: -0.1510
T54: 7.0240 | U54: 6.7575 | V54: 0.3973 | W54: -0.1254
T55: 7.1203 | U55: 6.7946 | V55: 0.3756 | W55: -0.0998
T56: 7.2167 | U56: 6.8300 | V56: 0.3588 | W56: -0.0742
T57: 7.3130 | U57: 6.8639 | V57: 0.3470 | W57: -0.0487
T58: 7.4093 | U58: 6.8970 | V58: 0.3401 | W58: -0.0231
T59: 7.5057 | U59: 6.9296 | V59: 0.3381 | W59: 0.0025
T60: 7.6020 | U60: 6.9623 | V60: 0.3404 | W60: 0.0153
T61: 7.6983 | U61: 6.9952 | V61: 0.3435 | W61: 0.0172
T62: 7.7947 | U62: 7.0285 | V62: 0.3470 | W62: 0.0191
T63: 7.8910 | U63: 7.0621 | V63: 0.3509 | W63: 0.0210
T64: 7.9873 | U64: 7.0961 | V64: 0.3551 | W64: 0.0229
T65: 8.0837 | U65: 7.1305 | V65: 0.3597 | W65: 0.0248
T66: 8.1800 | U66: 7.1654 | V66: 0.3647 | W66: 0.0267
T67: 8.2763 | U67: 7.2008 | V67: 0.3700 | W67: 0.0286
T68: 8.3727 | U68: 7.2367 | V68: 0.3757 | W68: 0.0305
T69: 8.4690 | U69: 7.2732 | V69: 0.3818 | W69: 0.0324
T70: 8.5653 | U70: 7.3103 | V70: 0.3882 | W70: 0.0343
T71: 8.6617 | U71: 7.3480 | V71: 0.3950 | W71: 0.0362
T72: 8.7580 | U72: 7.3864 | V72: 0.4022 | W72: 0.0381
T73: 8.8543 | U73: 7.4255 | V73: 0.4097 | W73: 0.0400
T74: 8.9507 | U74: 7.4654 | V74: 0.4176 | W74: 0.0419
T75: 9.0470 | U75: 7.5060 | V75: 0.4259 | W75: 0.0438
T76: 9.1433 | U76: 7.5474 | V76: 0.4345 | W76: 0.0457
T77: 9.2397 | U77: 7.5897 | V77: 0.4437 | W77: 0.0508
T78: 9.3360 | U78: 7.6330 | V78: 0.4544 | W78: 0.0604
T79: 9.4323 | U79: 7.6773 | V79: 0.4669 | W79: 0.0701
T80: 9.5287 | U80: 7.7230 | V80: 0.4814 | W80: 0.0797
T81: 9.6250 | U81: 7.7701 | V81: 0.4976 | W81: 0.0893
T82: 9.7213 | U82: 7.8189 | V82: 0.5158 | W82: 0.0989
T83: 9.8177 | U83: 7.8696 | V83: 0.5358 | W83: 0.1085
T84: 9.9140 | U84: 7.9222 | V84: 0.5576 | W84: 0.1181
T85: 10.0103 | U85: 7.9770 | V85: 0.5813 | W85: 0.1278
T86: 10.1067 | U86: 8.0343 | V86: 0.6068 | W86: 0.1374
T87: 10.2030 | U87: 8.0940 | V87: 0.6342 | W87: 0.1470
T88: 10.2993 | U88: 8.1565 | V88: 0.6635 | W88: 0.1566
T89: 10.3957 | U89: 8.2219 | V89: 0.6946 | W89: 0.1662
T90: 10.4920 | U90: 8.2904 | V90: 0.7275 | W90: 0.1758
T91: 10.5883 | U91: 8.3621 | V91: 0.7623 | W91: 0.1854
T92: 10.6847 | U92: 8.4373 | V92: 0.7981 | W92: 0.1793
T93: 10.7810 | U93: 8.5158 | V93: 0.8309 | W93: 0.1610
T94: 10.8773 | U94: 8.5973 | V94: 0.8602 | W94: 0.1428
T95: 10.9737 | U95: 8.6814 | V95: 0.8859 | W95: 0.1246
T96: 11.0700 | U96: 8.7678 | V96: 0.9082 | W96: 0.1063
T97: 11.1663 | U97: 8.8562 | V97: 0.9262 | W97: 0.0776
T98: 11.2627 | U98: 8.9461 | V98: 0.9379 | W98: 0.0441
T99: 11.3590 | U99: 9.0367 | V99: 0.9432 | W99: 0.0103
T100: 11.4553 | U100: 9.1276 | V100: 0.9419 | W100: -0.0236
T101: 11.5517 | U101: 9.2180 | V101: 0.9341 | W101: -0.0576
T102: 11.6480 | U102: 9.3073 | V102: 0.9197 | W102: -0.0916
T103: 11.7443 | U103: 9.3950 | V103: 0.8988 | W103: -0.1256
T104: 11.8407 | U104: 9.4803 | V104: 0.8713 | W104: -0.1595
T105: 11.9370 | U105: 9.5626 | V105: 0.8373 | W105: -0.1935
T106: 12.0333 | U106: 9.6414 | V106: 0.7967 | W106: -0.2275
T107: 12.1297 | U107: 9.7160 | V107: 0.7517 | W107: -0.2309
T108: 12.2260 | U108: 9.7863 | V108: 0.7080 | W108: -0.2226
T109: 12.3223 | U109: 9.8525 | V109: 0.6660 | W109: -0.2143
T110: 12.4187 | U110: 9.9146 | V110: 0.6255 | W110: -0.2060
T111: 12.5150 | U111: 9.9730 | V111: 0.5866 | W111: -0.1977
T112: 12.6113 | U112: 10.0277 | V112: 0.5493 | W112: -0.1894
T113: 12.7077 | U113: 10.0789 | V113: 0.5135 | W113: -0.1818
T114: 12.8040 | U114: 10.1267 | V114: 0.4793 | W114: -0.1741
T115: 12.9003 | U115: 10.1713 | V115: 0.4465 | W115: -0.1664
T116: 12.9967 | U116: 10.2128 | V116: 0.4151 | W116: -0.1588
T117: 13.0930 | U117: 10.2513 | V117: 0.3853 | W117: -0.1511
T118: 13.1893 | U118: 10.2871 | V118: 0.3569 | W118: -0.1434
T119: 13.2857 | U119: 10.3201 | V119: 0.3300 | W119: -0.1358
T120: 13.3820 | U120: 10.3507 | V120: 0.3046 | W120: -0.1281
T121: 13.4783 | U121: 10.3789 | V121: 0.2807 | W121: -0.1204
T122: 13.5747 | U122: 10.4048 | V122: 0.2582 | W122: -0.1127
T123: 13.6710 | U123: 10.4287 | V123: 0.2372 | W123: -0.1051
T124: 13.7673 | U124: 10.4506 | V124: 0.2177 | W124: -0.0974
T125: 13.8637 | U125: 10.4707 | V125: 0.1997 | W125: -0.0897
T126: 13.9600 | U126: 10.4891 | V126: 0.1832 | W126: -0.0821
T127: 14.0563 | U127: 10.5060 | V127: 0.1681 | W127: -0.0744
T128: 14.1527 | U128: 10.5215 | V128: 0.1545 | W128: -0.0667
T129: 14.2490 | U129: 10.5358 | V129: 0.1424 | W129: -0.0590
T130: 14.3453 | U130: 10.5490 | V130: 0.1317 | W130: -0.0514
T131: 14.4417 | U131: 10.5612 | V131: 0.1226 | W131: -0.0437
T132: 14.5380 | U132: 10.5727 | V132: 0.1149 | W132: -0.0360
T133: 14.6343 | U133: 10.5834 | V133: 0.1087 | W133: -0.0284
T134: 14.7307 | U134: 10.5937 | V134: 0.1040 | W134: -0.0207
T135: 14.8270 | U135: 10.6035 | V135: 0.1007 | W135: -0.0130
T136: 14.9233 | U136: 10.6131 | V136: 0.0990 | W136: -0.0053
T137: 15.0197 | U137: 10.6226 | V137: 0.0987 | W137: 0.0023
T138: 15.1160 | U138: 10.6322 | V138: 0.0997 | W138: 0.0070
T139: 15.2123 | U139: 10.6418 | V139: 0.1011 | W139: 0.0066
T140: 15.3087 | U140: 10.6516 | V140: 0.1023 | W140: 0.0062
T141: 15.4050 | U141: 10.6616 | V141: 0.1034 | W141: 0.0058
T142: 15.5013 | U142: 10.6716 | V142: 0.1045 | W142: 0.0054
T143: 15.5977 | U143: 10.6817 | V143: 0.1055 | W143: 0.0050
T144: 15.6940 | U144: 10.6919 | V144: 0.1065 | W144: 0.0046
T145: 15.7903 | U145: 10.7022 | V145: 0.1073 | W145: 0.0042
T146: 15.8867 | U146: 10.7126 | V146: 0.1081 | W146: 0.0038
T147: 15.9830 | U147: 10.7230 | V147: 0.1088 | W147: 0.0035
T148: 16.0793 | U148: 10.7335 | V148: 0.1094 | W148: 0.0031
T149: 16.1757 | U149: 10.7441 | V149: 0.1100 | W149: 0.0027
T150: 16.2720 | U150: 10.7547 | V150: 0.1104 | W150: 0.0023
T151: 16.3683 | U151: 10.7654 | V151: 0.1108 | W151: 0.0019
T152: 16.4647 | U152: 10.7761 | V152: 0.1112 | W152: 0.0015
T153: 16.5610 | U153: 10.7868 | V153: 0.1114 | W153: 0.0011
T154: 16.6573 | U154: 10.7975 | V154: 0.1116 | W154: 0.0007
T155: 16.7537 | U155: 10.8083 | V155: 0.1117 | W155: 0.0003
T156: 16.8500 | U156: 10.8190 | V156: 0.1117 | W156: -0.0001
T157: 16.9463 | U157: 10.8298 | V157: 0.1117 | W157: -0.0005
T158: 17.0427 | U158: 10.8406 | V158: 0.1115 | W158: -0.0009
T159: 17.1390 | U159: 10.8513 | V159: 0.1113 | W159: -0.0013
T160: 17.2353 | U160: 10.8620 | V160: 0.1110 | W160: -0.0016
T161: 17.3317 | U161: 10.8727 | V161: 0.1107 | W161: -0.0020
T162: 17.4280 | U162: 10.8833 | V162: 0.1103 | W162: -0.0024
T163: 17.5243 | U163: 10.8939 | V163: 0.1098 | W163: -0.0028
T164: 17.6207 | U164: 10.9045 | V164: 0.1092 | W164: -0.0032
T165: 17.7170 | U165: 10.9150 | V165: 0.1085 | W165: -0.0036
T166: 17.8133 | U166: 10.9254 | V166: 0.1078 | W166: -0.0040
T167: 17.9097 | U167: 10.9357 | V167: 0.1070 | W167: -0.0044
T168: 18.0060 | U168: 10.9460 | V168: 0.1061 | W168: -0.0048
T169: 18.1023 | U169: 10.9562 | V169: 0.1051 | W169: -0.0052
T170: 18.1987 | U170: 10.9662 | V170: 0.1041 | W170: -0.0056
T171: 18.2950 | U171: 10.9762 | V171: 0.1030 | W171: -0.0060
T172: 18.3913 | U172: 10.9861 | V172: 0.1018 | W172: -0.0064
T173: 18.4877 | U173: 10.9958 | V173: 0.1006 | W173: -0.0064
T174: 18.5840 | U174: 11.0054 | V174: 0.0993 | W174: -0.0064
T175: 18.6803 | U175: 11.0150 | V175: 0.0981 | W175: -0.0063
T176: 18.7767 | U176: 11.0243 | V176: 0.0969 | W176: -0.0063
T177: 18.8730 | U177: 11.0336 | V177: 0.0957 | W177: -0.0062
T178: 18.9693 | U178: 11.0428 | V178: 0.0945 | W178: -0.0062
T179: 19.0657 | U179: 11.0518 | V179: 0.0933 | W179: -0.0061
T180: 19.1620 | U180: 11.0608 | V180: 0.0921 | W180: -0.0061
T181: 19.2583 | U181: 11.0696 | V181: 0.0909 | W181: -0.0060
T182: 19.3547 | U182: 11.0783 | V182: 0.0898 | W182: -0.0060
T183: 19.4510 | U183: 11.0869 | V183: 0.0886 | W183: -0.0060
T184: 19.5473 | U184: 11.0954 | V184: 0.0875 | W184: -0.0059
T185: 19.6437 | U185: 11.1037 | V185: 0.0864 | W185: -0.0059
T186: 19.7400 | U186: 11.1120 | V186: 0.0852 | W186: -0.0058
T187: 19.8363 | U187: 11.1201 | V187: 0.0841 | W187: -0.0058
T188: 19.9327 | U188: 11.1282 | V188: 0.0830 | W188: -0.0057
T189: 20.0290 | U189: 11.1361 | V189: 0.0819 | W189: -0.0057
T190: 20.1253 | U190: 11.1440 | V190: 0.0808 | W190: -0.0056
T191: 20.2217 | U191: 11.1517 | V191: 0.0798 | W191: -0.0056
T192: 20.3180 | U192: 11.1593 | V192: 0.0787 | W192: -0.0055
T193: 20.4143 | U193: 11.1669 | V193: 0.0776 | W193: -0.0055
T194: 20.5107 | U194: 11.1743 | V194: 0.0766 | W194: -0.0054
T195: 20.6070 | U195: 11.1816 | V195: 0.0755 | W195: -0.0054
T196: 20.7033 | U196: 11.1889 | V196: 0.0745 | W196: -0.0053
T197: 20.7997 | U197: 11.1960 | V197: 0.0735 | W197: -0.0053
T198: 20.8960 | U198: 11.2030 | V198: 0.0725 | W198: -0.0052
T199: 20.9923 | U199: 11.2100 | V199: 0.0715 | W199: -0.0052
T200: 21.0887 | U200: 11.2168 | V200: 0.0705 | W200: -0.0051
... 106 more rows

Sheet Regression (hidden)
B1: Titration Data Analysis - Multiple Regression | G1: <--- read important remarks and instructions | K1: pKas of the acids and bases in the solution | N1: Click on K2 to Q2; select acids/bases; click on J2; other options, read M1 | U1: Overall protonation constants = bp = PKp (calculated by the program) | AF1: pKas loaded from the Database | AP1: Besides enabled macros, the Regression module also requires the Solver,
A2: Composition of the sample (regression fit, in blue, and equilibrium at initial pH) and of the titrant; all concentrations in mol/L | K2: 62 | L2: 103 | M2: 31 | N2: 1 | O2: 2 | P2: 3 | Q2: 6 | S2: Titrant | V2: Titrand | AC2: Titrant | AG2: Titrand | AH2: Click on J2 to use these pKas in the Regression | AP2: an Add-In supplement provided by Microsoft with the Office package
A3: SAMPLE Species | B3: =K3 -> Citric acid | C3: =L3 -> Glycine | D3: Ascorbic acid | E3: Acetic acid | F3: Ammonia | G3: Carbonic acid | H3: HCl | J3: Acid / Base | K3: Citric acid | L3: Glycine | M3: Ascorbic acid | N3: Acetic acid | O3: Ammonia | P3: Carbonic acid | Q3: HCl | R3: Strong ACID | S3: Strong BASE | T3: Carbonic ac. | U3: Acid / Base | V3: =K3 -> Citric acid | W3: Glycine | X3: Ascorbic acid | Y3: Acetic acid | Z3: Ammonia | AA3: Carbonic acid | AB3: HCl | AC3: Strong ACID | AD3: Strong BASE | AE3: Carbonic ac. | AF3: Acid / Base | AG3: =IF(VLOOKUP(K$2,Database!$B$22:$N$301,2)="","",VLOOKUP(K$2,Database!$B$22:$N$301,2)) -> Citric acid | AH3: =IF(VLOOKUP(L$2,Database!$B$22:$N$301,2)="","",VLOOKUP(L$2,Database!$B$22:$N$301,2)) -> Glycine | AI3: =IF(VLOOKUP(M$2,Database!$B$22:$N$301,2)="","",VLOOKUP(M$2,Database!$B$22:$N$301,2)) -> Ascorbic acid | AJ3: =IF(VLOOKUP(N$2,Database!$B$22:$N$301,2)="","",VLOOKUP(N$2,Database!$B$22:$N$301,2)) -> Acetic acid | AK3: =IF(VLOOKUP(O$2,Database!$B$22:$N$301,2)="","",VLOOKUP(O$2,Database!$B$22:$N$301,2)) -> Ammonia | AL3: =IF(VLOOKUP(P$2,Database!$B$22:$N$301,2)="","",VLOOKUP(P$2,Database!$B$22:$N$301,2)) -> Carbonic acid | AM3: =IF(VLOOKUP(Q$2,Database!$B$22:$N$301,2)="","",VLOOKUP(Q$2,Database!$B$22:$N$301,2)) -> HCl | AP3: If not already installed, follow the instructions (may change a bit, for different Excel versions)
A4: [B] | B4: =IF(K5="",0,(B$11)/M$41) -> 1.209934036e-07 | C4: 4.27751854e-09 | D4: 0 | E4: 0 | F4: 0 | G4: =IF(P5="",0,(G$11)/R$41) -> 0 | H4: 0 | J4: Charge of B | K4: -3 | L4: -1 | M4: -2 | N4: -1 | O4: 0 | P4: -2 | Q4: -1 | R4: -1 | S4: -1 | T4: -2 | U4: Charge of B | V4: =K4 -> -3 | W4: -1 | X4: -2 | Y4: -1 | Z4: 0 | AA4: -2 | AB4: -1 | AC4: -1 | AD4: -1 | AE4: -2 | AF4: Charge of B | AG4: =IF(VLOOKUP(K$2,Database!$B$22:$N$301,3)="","",VLOOKUP(K$2,Database!$B$22:$N$301,3)) -> -3 | AH4: =IF(VLOOKUP(L$2,Database!$B$22:$N$301,3)="","",VLOOKUP(L$2,Database!$B$22:$N$301,3)) -> -1 | AI4: =IF(VLOOKUP(M$2,Database!$B$22:$N$301,3)="","",VLOOKUP(M$2,Database!$B$22:$N$301,3)) -> -2 | AJ4: =IF(VLOOKUP(N$2,Database!$B$22:$N$301,3)="","",VLOOKUP(N$2,Database!$B$22:$N$301,3)) -> -1 | AK4: =IF(VLOOKUP(O$2,Database!$B$22:$N$301,3)="","",VLOOKUP(O$2,Database!$B$22:$N$301,3)) -> 0 | AL4: =IF(VLOOKUP(P$2,Database!$B$22:$N$301,3)="","",VLOOKUP(P$2,Database!$B$22:$N$301,3)) -> -2 | AM4: =IF(VLOOKUP(Q$2,Database!$B$22:$N$301,3)="","",VLOOKUP(Q$2,Database!$B$22:$N$301,3)) -> -1 | AP4: 1. Open a new blank Excel spreadsheet
A5: [HB] | B5: =IF(K5="",0,(B$11*(V$5*$AU41^(-2*V$4))*$D41)/M$41) -> 0.0002077813256 | C5: 0.02713746387 | D5: 0 | E5: 0 | F5: 0 | G5: 0 | H5: 0 | J5: pKa1 | K5: 3.128 | L5: 2.350 | M5: 4.100 | N5: 4.757 | O5: 9.244 | P5: 6.352 | Q5: -7.000 | R5: -7 | S5: 15.745 | T5: 6.352 | U5: bp1 | V5: =IF(K5="","1E-10",IF(K6="",10^K5,(IF(K7="",10^K6,(IF(K8="",10^K7,(IF(K9="",10^K8,(IF(K10="",10^K9,10^K10)))))))))) -> 2.489E+06 | W5: 5.998E+09 | X5: 6.166E+11 | Y5: 5.715E+04 | Z5: 1.754E+09 | AA5: 2.133E+10 | AB5: 1.000E-07 | AC5: =IF(R5="","1E-10",IF(R6="",10^R5,(IF(R7="",10^R6)))) -> 1.000E-07 | AD5: =IF(S5="","1E-10",IF(S6="",10^S5,(IF(S7="",10^S6)))) -> 5.559E+15 | AE5: =IF(T5="","1E-10",IF(T6="",10^T5,(IF(T7="",10^T6)))) -> 2.133E+10 | AF5: pKa1 = logKpn | AG5: =IF(VLOOKUP(K$2,Database!$B$22:$N$301,4)="","",VLOOKUP(K$2,Database!$B$22:$N$301,4)) -> 3.128 | AH5: =IF(VLOOKUP(L$2,Database!$B$22:$N$301,4)="","",VLOOKUP(L$2,Database!$B$22:$N$301,4)) -> 2.350 | AI5: =IF(VLOOKUP(M$2,Database!$B$22:$N$301,4)="","",VLOOKUP(M$2,Database!$B$22:$N$301,4)) -> 4.100 | AJ5: =IF(VLOOKUP(N$2,Database!$B$22:$N$301,4)="","",VLOOKUP(N$2,Database!$B$22:$N$301,4)) -> 4.757 | AK5: =IF(VLOOKUP(O$2,Database!$B$22:$N$301,4)="","",VLOOKUP(O$2,Database!$B$22:$N$301,4)) -> 9.244 | AL5: =IF(VLOOKUP(P$2,Database!$B$22:$N$301,4)="","",VLOOKUP(P$2,Database!$B$22:$N$301,4)) -> 6.352 | AM5: =IF(VLOOKUP(Q$2,Database!$B$22:$N$301,4)="","",VLOOKUP(Q$2,Database!$B$22:$N$301,4)) -> -7.000
A6: [H2B] | B6: =IF(K6="",0,(B$11*(V$6*$AU41^(-4*V$4-2))*$D41^2)/M$41) -> 0.01023805836 | C6: 0.007956331786 | D6: 0 | E6: 0 | F6: 0 | G6: 0 | H6: 0 | J6: pKa2 | K6: 4.761 | L6: 9.778 | M6: 11.790 | P6: 10.329 | T6: 10.329 | U6: bp2 | V6: =IF(K6="","10E-10",IF(K7="",V5*10^K5,(IF(K8="",V5*10^K6,(IF(K9="",V5*10^K7,(IF(K10="",V5*10^K8,V5*10^K9)))))))) -> 1.435E+11 | W6: =IF(L6="","1E-10",IF(L7="",W5*10^L5,(IF(L8="",W5*10^L6,(IF(L9="",W5*10^L7,(IF(L10="",W5*10^L8,W5*10^L9)))))))) -> 1.343E+12 | X6: 7.762E+15 | Y6: 1E-10 | Z6: 1E-10 | AA6: 4.797E+16 | AB6: 1E-10 | AC6: =IF(R6="","1E-10",IF(R7="",AC5*10^R5)) -> 1E-10 | AD6: =IF(S6="","1E-10",IF(S7="",AD5*10^S5)) -> 1E-10 | AE6: =IF(T6="","1E-10",IF(T7="",AE5*10^T5)) -> 4.797E+16 | AF6: pKa2 = logKpn-1 | AG6: =IF(VLOOKUP(K$2,Database!$B$22:$N$301,5)="","",VLOOKUP(K$2,Database!$B$22:$N$301,5)) -> 4.761 | AH6: =IF(VLOOKUP(L$2,Database!$B$22:$N$301,5)="","",VLOOKUP(L$2,Database!$B$22:$N$301,5)) -> 9.778 | AI6: =IF(VLOOKUP(M$2,Database!$B$22:$N$301,5)="","",VLOOKUP(M$2,Database!$B$22:$N$301,5)) -> 11.790 | AJ6: =IF(VLOOKUP(N$2,Database!$B$22:$N$301,5)="","",VLOOKUP(N$2,Database!$B$22:$N$301,5)) ->  | AK6: =IF(VLOOKUP(O$2,Database!$B$22:$N$301,5)="","",VLOOKUP(O$2,Database!$B$22:$N$301,5)) ->  | AL6: =IF(VLOOKUP(P$2,Database!$B$22:$N$301,5)="","",VLOOKUP(P$2,Database!$B$22:$N$301,5)) -> 10.329 | AM6: =IF(VLOOKUP(Q$2,Database!$B$22:$N$301,5)="","",VLOOKUP(Q$2,Database!$B$22:$N$301,5)) ->  | AP6: 2. Click on the File tab (or the Office button, in Windows XP)(top left corner)
A7: [H3B] | B7: =IF(K7="",0,(B$11*(V$7*$AU41^(-6*V$4-6))*$D41^3)/M$41) -> 0.0145410229 | C7: 0 | D7: 0 | E7: 0 | F7: 0 | G7: 0 | H7: 0 | J7: pKa3 | K7: 6.396 | U7: bp3 | V7: =IF(K7="","1E-10",IF(K8="",V6*10^K5,(IF(K9="",V6*10^K6,(IF(K10="",V6*10^K7,V6*10^K8)))))) -> 1.928E+14 | W7: 1E-10 | X7: 1E-10 | Y7: 1E-10 | Z7: 1E-10 | AA7: 1E-10 | AB7: 1E-10 | AF7: pKa3 = logKpn-2 | AG7: =IF(VLOOKUP(K$2,Database!$B$22:$N$301,6)="","",VLOOKUP(K$2,Database!$B$22:$N$301,6)) -> 6.396 | AH7: =IF(VLOOKUP(L$2,Database!$B$22:$N$301,6)="","",VLOOKUP(L$2,Database!$B$22:$N$301,6)) ->  | AI7: =IF(VLOOKUP(M$2,Database!$B$22:$N$301,6)="","",VLOOKUP(M$2,Database!$B$22:$N$301,6)) ->  | AJ7: =IF(VLOOKUP(N$2,Database!$B$22:$N$301,6)="","",VLOOKUP(N$2,Database!$B$22:$N$301,6)) ->  | AK7: =IF(VLOOKUP(O$2,Database!$B$22:$N$301,6)="","",VLOOKUP(O$2,Database!$B$22:$N$301,6)) ->  | AL7: =IF(VLOOKUP(P$2,Database!$B$22:$N$301,6)="","",VLOOKUP(P$2,Database!$B$22:$N$301,6)) ->  | AM7: =IF(VLOOKUP(Q$2,Database!$B$22:$N$301,6)="","",VLOOKUP(Q$2,Database!$B$22:$N$301,6)) -> 
A8: [H4B] | B8: =IF(K8="",0,(B$11*(V$8*$AU41^(-8*V$4-12))*$D41^4)/M$41) -> 0 | C8: 0 | D8: 0 | E8: 0 | F8: 0 | G8: 0 | H8: 0 | J8: pKa4 | R8: pKw | U8: bp4 | V8: =IF(K8="","1E-10",IF(K9="",V7*10^K5,(IF(K10="",V7*10^K6,V7*10^K7)))) -> 1E-10 | W8: 1E-10 | X8: 1E-10 | Y8: 1E-10 | Z8: 1E-10 | AA8: 1E-10 | AB8: 1E-10 | AC8: Kw | AF8: pKa4 = logKpn-3 | AG8: =IF(VLOOKUP(K$2,Database!$B$22:$N$301,7)="","",VLOOKUP(K$2,Database!$B$22:$N$301,7)) ->  | AH8: =IF(VLOOKUP(L$2,Database!$B$22:$N$301,7)="","",VLOOKUP(L$2,Database!$B$22:$N$301,7)) ->  | AI8: =IF(VLOOKUP(M$2,Database!$B$22:$N$301,7)="","",VLOOKUP(M$2,Database!$B$22:$N$301,7)) ->  | AJ8: =IF(VLOOKUP(N$2,Database!$B$22:$N$301,7)="","",VLOOKUP(N$2,Database!$B$22:$N$301,7)) ->  | AK8: =IF(VLOOKUP(O$2,Database!$B$22:$N$301,7)="","",VLOOKUP(O$2,Database!$B$22:$N$301,7)) ->  | AL8: =IF(VLOOKUP(P$2,Database!$B$22:$N$301,7)="","",VLOOKUP(P$2,Database!$B$22:$N$301,7)) ->  | AM8: =IF(VLOOKUP(Q$2,Database!$B$22:$N$301,7)="","",VLOOKUP(Q$2,Database!$B$22:$N$301,7)) ->  | AP8: 3. Click on "Options" (bottom left) | AT8: Window for Mac: skip step 2, click "Tools"
A9: [H5B] | B9: =IF(K9="",0,(B$11*(V$9*$AU41^(-10*V$4-20))*$D41^5)/M$41) -> 0 | C9: 0 | D9: 0 | E9: 0 | F9: 0 | G9: 0 | H9: 0 | I9: Total | J9: pKa5 | R9: 13.9970 | U9: bp5 | V9: =IF(K9="","1E-10",IF(K10="",V8*10^K5,V8*10^K6)) -> 1E-10 | W9: 1E-10 | X9: 1E-10 | Y9: 1E-10 | Z9: 1E-10 | AA9: 1E-10 | AB9: 1E-10 | AC9: =10^-R9 -> 1.01E-14 | AF9: pKa5 = logKpn-4 | AG9: =IF(VLOOKUP(K$2,Database!$B$22:$N$301,8)="","",VLOOKUP(K$2,Database!$B$22:$N$301,8)) ->  | AH9: =IF(VLOOKUP(L$2,Database!$B$22:$N$301,8)="","",VLOOKUP(L$2,Database!$B$22:$N$301,8)) ->  | AI9: =IF(VLOOKUP(M$2,Database!$B$22:$N$301,8)="","",VLOOKUP(M$2,Database!$B$22:$N$301,8)) ->  | AJ9: =IF(VLOOKUP(N$2,Database!$B$22:$N$301,8)="","",VLOOKUP(N$2,Database!$B$22:$N$301,8)) ->  | AK9: =IF(VLOOKUP(O$2,Database!$B$22:$N$301,8)="","",VLOOKUP(O$2,Database!$B$22:$N$301,8)) ->  | AL9: =IF(VLOOKUP(P$2,Database!$B$22:$N$301,8)="","",VLOOKUP(P$2,Database!$B$22:$N$301,8)) ->  | AM9: =IF(VLOOKUP(Q$2,Database!$B$22:$N$301,8)="","",VLOOKUP(Q$2,Database!$B$22:$N$301,8)) -> 
A10: [H6B] | B10: =IF(K10="",0,(B$11*(V$10*$AU41^(-12*V$4-30))*$D41^6)/M$41) -> 0 | C10: 0 | D10: 0 | E10: 0 | F10: 0 | G10: 0 | H10: 0 | I10: SS | J10: pKa6 | U10: bp6 | V10: =IF(K10="","1E-10",V9*10^K5) -> 1E-10 | W10: 1E-10 | X10: 1E-10 | Y10: 1E-10 | Z10: 1E-10 | AA10: 1E-10 | AB10: 1E-10 | AF10: pKa6 = logKpn-5 | AG10: =IF(VLOOKUP(K$2,Database!$B$22:$N$301,9)="","",VLOOKUP(K$2,Database!$B$22:$N$301,9)) ->  | AH10: =IF(VLOOKUP(L$2,Database!$B$22:$N$301,9)="","",VLOOKUP(L$2,Database!$B$22:$N$301,9)) ->  | AI10: =IF(VLOOKUP(M$2,Database!$B$22:$N$301,9)="","",VLOOKUP(M$2,Database!$B$22:$N$301,9)) ->  | AJ10: =IF(VLOOKUP(N$2,Database!$B$22:$N$301,9)="","",VLOOKUP(N$2,Database!$B$22:$N$301,9)) ->  | AK10: =IF(VLOOKUP(O$2,Database!$B$22:$N$301,9)="","",VLOOKUP(O$2,Database!$B$22:$N$301,9)) ->  | AL10: =IF(VLOOKUP(P$2,Database!$B$22:$N$301,9)="","",VLOOKUP(P$2,Database!$B$22:$N$301,9)) ->  | AM10: =IF(VLOOKUP(Q$2,Database!$B$22:$N$301,9)="","",VLOOKUP(Q$2,Database!$B$22:$N$301,9)) ->  | AP10: 4. Click on "Add-ins" (bottom left)
A11: S[HiB] | B11: 0.02498698358 | C11: 0.03509379993 | D11: 0 | E11: 0 | F11: 0 | G11: 0 | H11: 0 | I11: =SUM(B11:H11) -> 6.008E-02 | J11: SS[bases] | N11: Correction of the pH sensor calibration | Q11: Ionic Strength, I (initial) | S11: Sample ions | T11: Titrant ions | Y11: Overall apparent constants recalculated for applied initial I = | Z11: =AT41 -> 0.010862 | AA11: and g H+= | AB11: =S23 -> 0.899 | AC11: recalc. for | AD11: g H+= | AE11: 0.782
A12: S[H] bound | B12: =B5+2*B6+3*B7+4*B8+5*B9+6*B10 -> 0.06430696676 | C12: 0.04305012744 | D12: 0 | E12: 0 | F12: 0 | G12: 0 | H12: 0 | I12: =SUM(B12:H12) -> 1.074E-01 | J12: SS[H] bound | N12: Intersection pH (may be fitted) | P12: 7.0000 | Q12: Other ions | R12: SCk(z=1) | S12: 0.000000 | T12: 0.000000 | U12: bp1 | V12: =IF(K5="","",(V5*$AB$11^(-2*V$4))) -> 1.31E+06 | W12: 4.84E+09 | X12: 4.02E+11 | Y12: 4.62E+04 | Z12: 1.75E+09 | AA12: 1.39E+10 | AB12: 8.08E-08 | AC12: 6.11E-08 | AD12: 3.40E+15 | AE12: 7.96E+09 | AP12: 5. Click on "Solver" in the Add-Ins list | AT12: Window for Mac: check the Solver box; skip 6 na 7
A13: max. free H | B13: =IF(K4="","0",(-K4*B11)-B12) -> 0.01065398399 | C13: =IF(L4="","0",(-L4*C11)-C12) -> -0.007956327508 | D13: 0 | E13: 0 | F13: 0 | G13: 0 | H13: 0 | I13: =SUM(B13:H13) -> 2.698E-03 | J13: SS[H] max. free H+ | K13: (negative results are possible) | N13: Slope (may be fitted, read comment) | P13: 100.00% | Q13: mol/L | R13: SCk(z=2) | S13: 0.000000 | T13: 0.000000 | U13: bp2 | V13: =IF(K6="","",(V6*$AB$11^(-4*V$4-2))) -> 4.93E+10 | W13: =IF(L6="","",(W6*$AB$11^(-4*W$4-2))) -> 1.08E+12 | X13: 4.09E+15 | AA13: 2.53E+16 | AE13: 1.09E+16
A14: TITRANT | B14: =R3 -> Strong ACID | C14: =S3 -> Strong BASE | D14: =T3 -> Carbonic ac. | F14: Volume of Titrand (mL) | H14: Sample | I14: =I18-(I12+I13) -> 1.436E-05 | J14: Partial charge balance <--> counterions (opposite signal) | M14: =S15 -> 1.388E-03 | O14: Davies equation parameters | Q14: (z = ion charge) | R14: 1/2.SCkzk2 = Ik | S14: =0.5*(S12+S13*4) -> 0.000000 | T14: =0.5*(T12+T13*4) -> 0.000000 | U14: bp3 | V14: =IF(K7="","",(V7*$AB$11^(-6*V$4-6))) -> 5.35E+13 | W14: =IF(L7="","",(W7*$AB$11^(-6*W$4-6))) ->  | AP14: 6. Click on "Go" near the bottom of the page
A15: [B] | C15: 0.1 | E15: SAMPLE | F15: Water | G15: Total | H15: Titrand [H]=10-p[H] | I15: =D41 -> 1.310E-03 | J15: =-LOG10(I15) -> 2.883 | K15: initial p[H] | O15: for activity coefficient estimation | Q15: Minimum | R15: SzjCj | S15: =-(S18/S17) - (G16/E16)*(S24- $AC$9/AU41^2/S24) -> 0.001388 | T15: =-T18/T17 - (T24- $AC$9/AE11^2/T24) -> 0.100000 | U15: bp4 | V15: =IF(K8="","",(V8*$AB$11^(-8*V$4-12))) ->  | W15: =IF(L8="","",(W8*$AB$11^(-8*W$4-12))) -> 
A16: [HB] | E16: 20 | F16: 0 | G16: =E16+F16 -> 20.00 | H16: Titrand [OH]=Kw/[H] | I16: =AB21/I15 -> 9.520E-12 | J16: =-LOG10(I16) -> 11.021 | K16: initial p[OH] for ionic strength, I | M16: =AT41 -> 0.010862 | O16: A | P16: 0.509 | Q16: of counter-ions | R16: 1/2.SCjzj2 = Ij | S16: =0.5*S17^2*ABS(S15) -> 0.000694 | T16: =0.5*T17^2*ABS(T15) -> 0.050000 | U16: bp5 | V16: =IF(K9="","",(V9*$AB$11^(-10*V$4-20))) ->  | W16: =IF(L9="","",(W9*$AB$11^(-10*W$4-20))) ->  | AP16: 7. Check Solver add-in in the pop-on box
A17: [H2B] | E17: SS | H17: Sample CHcalc | I17: =I12+ (G16/E16)*(I15-I16) -> 1.087E-01 | O17: b | P17: 0.300 | Q17: for acids/bases | R17: Counterion charge | S17: 1 | T17: 1 | U17: bp6 | V17: =IF(K10="","",(V10*$AB$11^(-12*V$4-30))) ->  | W17: =IF(L10="","",(W10*$AB$11^(-12*W$4-30))) -> 
A18: S[HiB] | B18: =B15+B16+B17 -> 0 | C18: =C15+C16+C17 -> 0.1 | D18: =D15+D16+D17 -> 0 | E18: =SUM(B18:D18) -> 0.1 | F18: SS[HiB] | H18: Sample CHReg | I18: 1.101E-01 | J18: <--- Find CHReg, concentrations (line 11, in blue) and pKas with Solver | Q18: Acid/base ions | R18: SziCi | S18: =SUM(V18:AB18) -> -0.002698 | T18: =SUM(AC18:AE18) -> -0.000178 | U18: SziCi | V18: =K4*B4+(K4+1)*B5+(K4+2)*B6+(K4+3)*B7+(K4+4)*B8+(K4+5)*B9+(K4+6)*B10 -> -0.010654 | W18: 0.007956 | X18: 0.000000 | Y18: 0.000000 | Z18: 0.000000 | AA18: 0.000000 | AB18: 0.000000 | AC18: 0.000000 | AD18: -0.000178 | AE18: 0.000000 | AP18: 8. Click OK; follow steps 1 to 8 only once on each computer
A19: S[H] | B19: =B16+2*B17 -> 0 | C19: =C16+2*C17 -> 0 | D19: =D16+2*D17 -> 0 | E19: =SUM(B19:D19) -> 0 | F19: SS [H] pH | G19: 12.889 | H19: S(|RCH|a×|RpH|b×|dpH|c) | I19: =SUM($G$41:$G$162) -> 1.007E-05 | J19: <--- Minimize S of weighted residuals product with Solver | Q19: at given pH | R19: 1/2.SCizi2 = Ii | S19: =0.5*SUM(V19:AB19) -> 0.009513 | T19: =0.5*(SUM(AC19:AE19)) -> 0.000089 | U19: Szi2Ci | V19: =V4^2*B4+(V4+1)^2*B5+(V4+2)^2*B6+(V4+3)^2*B7+(V4+4)^2*B8+(V4+5)^2*B9+(V4+6)^2*B10 -> 0.011070 | W19: 0.007956 | X19: 0.000000 | Y19: 0.000000 | Z19: 0.000000 | AA19: 0.000000 | AB19: 0.000000 | AC19: 0.000000 | AD19: 0.000178 | AE19: 0.000000
H20: Weights: exponent a | I20: 2.000 | J20: exponent b | K20: 0.000 | L20: exponent c | M20: 0.000 | Q20: Total I | R20: I = Ii+Ij+Ik+IH+IOH | S20: =S19+S16+S14+0.5*S24+0.5*S25 -> 0.010862 | T20: =T19+T16+T14+0.5*T24+0.5*T25 -> 0.100000 | AB20: Kw | AC20: Kw | AP20: 9. Open the CurTiPot file and click on the Regression lower tab
Q21: Action | R21: Parameter | S21: Titrand | T21: Titrant | AB21: =AC9/S23^2 -> 1.247E-14 | AC21: =AC9/T23^2 -> 1.648E-14
R22: I | S22: =AT41 -> 0.010862 | T22: 0.100000 | AP22: 10. Click on the upper Data tab and click on Solver in the Analysis group (at the right)
R23: g H+ | S23: =AU41 -> 0.899 | T23: 0.782
R24: [H+] | S24: =D41 -> 1.3096E-03 | T24: 1.6512E-13 | AP24: To learn from the authors' of Excel Solver about the design, uses and limitations
R25: [OH-] | S25: =AB21/D41 -> 9.5197E-12 | T25: 9.9822E-02 | AP25: of the generalized reduced gradient method of nonlinear optimization, visit
R26: pH | S26: =B41 -> 2.929 | T26: 12.889 | AP26: http://www.utexas.edu/courses/lasdon/design3.htm
R29: Color coding
R30: D o n o t c h a n g e
R31: C h a n g e c r i t e r i o u s l y
R32: Fill out, change or leave blank
A38: Ready for 100 real or simulated data points; to expand range to 160, copy all columns, from line 141 down to 200 | I38: To modify the axis of a plot od copy a figure, see instructions in cells P443, 44 and 45 of Evaluation
A39: Vol. added | B39: simulated or | C39: calculated pH | D39: [H] | E39: dpH/dV | F39: pHReg-pH | G39: weighted | H39: CHReg-CHcalc | I39: CHReg | J39: CHcalc | K39: Dill. Titrant | L39: Dil Titrand | M39: den1 | N39: den2 | O39: den3 | P39: den4 | Q39: den5 | R39: den6 | S39: den7 | T39: den1 titrant | U39: den2 titrant | V39: den3 titrant | W39: h1 | X39: h2 | Y39: h3 | Z39: h4 | AA39: h5 | AB39: h6 | AC39: h7 | AD39: h1 titrant | AE39: h2 titrant | AF39: h3 titrant | AG39: I1 | AH39: I2 | AI39: I3 | AJ39: I4 | AK39: I5 | AL39: I6 | AM39: I7 | AN39: I1 titrant | AO39: I2 titrant | AP39: I3 titrant | AQ39: Ipartial | AR39: Itotal | AS39: Click C22 | AT39: I total | AU39: g H+ | AW39: pHReg- pH
A40: (mL) | B40: measured pH | C40: from regression | D40: mol/L | E40: for data weighting | F40: for data weighting | G40: residuals | H40: mol/L | I40: mol/L | J40: mol/L | M40: =K3 -> Citric acid | N40: Glycine | O40: Ascorbic acid | P40: Acetic acid | Q40: Ammonia | R40: Carbonic acid | S40: HCl | T40: Strong ACID | U40: Strong BASE | V40: Carbonic ac. | W40: =K3 -> Citric acid | X40: Glycine | Y40: Ascorbic acid | Z40: Acetic acid | AA40: Ammonia | AB40: Carbonic acid | AC40: HCl | AD40: Strong ACID | AE40: Strong BASE | AF40: Carbonic ac. | AG40: =K3 -> Citric acid | AH40: Glycine | AI40: Ascorbic acid | AJ40: Acetic acid | AK40: Ammonia | AL40: Carbonic acid | AM40: HCl | AN40: =R3 -> Strong ACID | AO40: =S3 -> Strong BASE | AP40: =T3 -> Carbonic ac. | AQ40: mol/L | AR40: mol/L | AS40: to update AT --> | AT40: applied mol/L | AU40: applied
A41: 0.000 | B41: 2.9292 | C41: 2.8862 | D41: =IF(A41="","",10^-((((B41-P$12)/P$13)+7))/$AU41) -> 1.31E-03 | E41: =IF(A42="","0",(B42-B41)/(A42-A41)) -> 1.08E-01 | F41: =IF(A41="","",IF(C41="","0,00001",(IF(ABS(C41-B41)<0.00001,0.00001,C41-B41)))) -> -0.0431 | G41: =IF(A41="","",IF(ABS(E41)<0.00001,(0.00001^M$20)*(ABS(H41)^I$20)*ABS(F41)^K$20,((ABS(E41))^M$20)*((ABS(H41))^I$20)*ABS(F41)^K$20)) -> 1.967E-06 | H41: =IF(A41="","",I41-J41) -> 1.402E-03 | I41: =IF(A41="","",L41*I$18+K41*E$19) -> 1.10E-01 | J41: =IF(A41="","",D41 -$AC$9/AU41^2/D41+L41*(W41*$B$11+X41*$C$11+Y41*$D$11+Z41*$E$11+AA41*$F$11+AB41*$G$11+AC41*$H$11)+K41*(AD41*$B$18+AE41*$C$18+AF41*$D$18)) -> 1.09E-01 | K41: =IF(A41="","",A41/(A41+$G$16)) -> 0.0000 | L41: =IF(A41="","",$E$16/(A41+$G$16)) -> 1.0000 | M41: =IF($A41="","",(1+(V$5*$AU41^(-2*V$4))*$D41+(V$6*$AU41^(-4*V$4-2))*$D41^2+(V$7*$AU41^(-6*V$4-6))*$D41^3+(V$8*$AU41^(-8*V$4-12))*$D41^4+(V$9*$AU41^(-10*V$4-20))*$D41^5+(V$10*$AU41^(-12*V$4-30))*$D41^6)) -> 2.065E+05 | N41: 8.204E+06 | O41: 7.541E+09 | P41: 6.145E+01 | Q41: 2.297E+06 | R41: 4.337E+10 | S41: 1.000E+00 | T41: =IF($A41="","",(1+(AC$5*$AU41^(-2*AC$4))*$D41+(AC$6*$AU41^(-4*AC$4-2))*$D41^2)) -> 1.000E+00 | U41: =IF($A41="","",(1+(AD$5*$AU41^(-2*AD$4))*$D41+(AD$6*$AU41^(-4*AD$4-2))*$D41^2)) -> 5.880E+12 | V41: =IF($A41="","",(1+(AE$5*$AU41^(-2*AE$4))*$D41+(AE$6*$AU41^(-4*AE$4-2))*$D41^2)) -> 4.337E+10 | W41: =IF($A41="","",((V$5*$AU41^(-2*V$4))*$D41+2*(V$6*$AU41^(-4*V$4-2))*$D41^2+3*(V$7*$AU41^(-6*V$4-6))*$D41^3+4*(V$8*$AU41^(-8*V$4-12))*$D41^4+5*(V$9*$AU41^(-10*V$4-20))*$D41^5+6*(V$10*$AU41^(-12*V$4-30))*$D41^6)/M41) -> 2.574 | X41: 1.227 | Y41: 1.930 | Z41: 0.984 | AA41: 1.000 | AB41: 2.000 | AC41: 0.000 | AD41: =IF($A41="","",((AC$5*$AU41^(-2*AC$4))*$D41+2*(AC$6*$AU41^(-4*AC$4-2))*$D41^2)/T41) -> 0.000 | AE41: =IF($A41="","",((AD$5*$AU41^(-2*AD$4))*$D41+2*(AD$6*$AU41^(-4*AD$4-2))*$D41^2)/U41) -> 1.000 | AF41: =IF($A41="","",((AE$5*$AU41^(-2*AE$4))*$D41+2*(AE$6*$AU41^(-4*AE$4-2))*$D41^2)/V41) -> 2.000 | AG41: =IF(B$11=0,"",IF($A41="","",0.5*B$11*$L41*(1*V$4^2+(V$5*$AU41^(-2*V$4))*$D41*(V$4+1)^2+(V$6*$AU41^(-4*V$4-2))*$D41^2*(V$4+2)^2+(V$7*$AU41^(-6*V$4-6))*$D41^3*(V$4+3)^2+(V$8*$AU41^(-8*V$4-12))*$D41^4*(V$4+4)^2+(V$9*$AU41^(-10*V$4-20))*$D41^5*(V$4+5)^2+(V$10*$AU41^(-12*V$4-30))*$D41^6*(V$4+6)^2)/M41)) -> 5.535E-03 | AH41: 3.978E-03 | AN41: =IF(B$18=0,"",IF($A41="","",0.5*B$18*$K41*(1*AC$4^2+(AC$5*$AU41^(-2*AC$4))*$D41*(AC$4+1)^2+(AC$6*$AU41^(-4*AC$4-2))*$D41^2*(AC$4+2)^2)/T41)) ->  | AO41: =IF(C$18=0,"",IF($A41="","",0.5*C$18*$K41*(1*AD$4^2+(AD$5*$AU41^(-2*AD$4))*$D41*(AD$4+1)^2+(AD$6*$AU41^(-4*AD$4-2))*$D41^2*(AD$4+2)^2)/U41)) -> 0.000E+00 | AP41: =IF(D$18=0,"",IF($A41="","",0.5*D$18*$K41*(1*AE$4^2+(AE$5*$AU41^(-2*AE$4))*$D41*(AE$4+1)^2+(AE$6*$AU41^(-4*AE$4-2))*$D41^2*(AE$4+2)^2)/V41)) ->  | AQ41: =IF(A41="","",SUM(AG41:AP41)+0.5*(D41+ $AC$9/AU41^2/D41)+$L41*$S$16+$K41*$T$16) -> 1.086E-02 | AR41: =IF(A41="","",AQ41+$L41*S$14+$K41*$T$14) -> 1.086E-02 | AT41: 0.010862 | AU41: =IF(A41="","",10^(-$P$16*($AT41^0.5/(1+$AT41^0.5)-$P$17*$AT41))) -> 0.8987 | AW41: =IF(C41="","",C41-B41) -> -0.0431
A42: 0.878 | B42: 3.0243 | C42: 3.0255 | D42: =IF(A42="","",10^-((((B42-P$12)/P$13)+7))/$AU42) -> 1.06E-03 | E42: =IF(A42="","",IF(A43="",(B42-B41)/(A42-A41),((B43-B42)/(A43-A42)+(B42-B41)/(A42-A41))/2)) -> 1.16E-01 | F42: =IF(A42="","",IF(C42="","0,00001",(IF(ABS(C42-B42)<0.00001,0.00001,C42-B42)))) -> 0.0013 | G42: 1.421E-09 | H42: =IF(A42="","",I42-J42) -> -3.769E-05 | I42: =IF(A42="","",L42*I$18+K42*E$19) -> 1.05E-01 | J42: =IF(A42="","",D42 -$AC$9/AU42^2/D42+L42*(W42*$B$11+X42*$C$11+Y42*$D$11+Z42*$E$11+AA42*$F$11+AB42*$G$11+AC42*$H$11)+K42*(AD42*$B$18+AE42*$C$18+AF42*$D$18)) -> 1.05E-01 | K42: =IF(A42="","",A42/(A42+$G$16)) -> 0.0421 | L42: =IF(A42="","",$E$16/(A42+$G$16)) -> 0.9579 | M42: =IF($A42="","",(1+(V$5*$AU42^(-2*V$4))*$D42+(V$6*$AU42^(-4*V$4-2))*$D42^2+(V$7*$AU42^(-6*V$4-6))*$D42^3+(V$8*$AU42^(-8*V$4-12))*$D42^4+(V$9*$AU42^(-10*V$4-20))*$D42^5+(V$10*$AU42^(-12*V$4-30))*$D42^6)) -> 1.113E+05 | N42: =IF($A42="","",(1+(W$5*$AU42^(-2*W$4))*$D42+(W$6*$AU42^(-4*W$4-2))*$D42^2+(W$7*$AU42^(-6*W$4-6))*$D42^3+(W$8*$AU42^(-8*W$4-12))*$D42^4+(W$9*$AU42^(-10*W$4-20))*$D42^5+(W$10*$AU42^(-12*W$4-30))*$D42^6)) -> 6.262E+06 | O42: =IF($A42="","",(1+(X$5*$AU42^(-2*X$4))*$D42+(X$6*$AU42^(-4*X$4-2))*$D42^2+(X$7*$AU42^(-6*X$4-6))*$D42^3+(X$8*$AU42^(-8*X$4-12))*$D42^4+(X$9*$AU42^(-10*X$4-20))*$D42^5+(X$10*$AU42^(-12*X$4-30))*$D42^6)) -> 4.814E+09 | P42: =IF($A42="","",(1+(Y$5*$AU42^(-2*Y$4))*$D42+(Y$6*$AU42^(-4*Y$4-2))*$D42^2+(Y$7*$AU42^(-6*Y$4-6))*$D42^3+(Y$8*$AU42^(-8*Y$4-12))*$D42^4+(Y$9*$AU42^(-10*Y$4-20))*$D42^5+(Y$10*$AU42^(-12*Y$4-30))*$D42^6)) -> 4.922E+01 | Q42: =IF($A42="","",(1+(Z$5*$AU42^(-2*Z$4))*$D42+(Z$6*$AU42^(-4*Z$4-2))*$D42^2+(Z$7*$AU42^(-6*Z$4-6))*$D42^3+(Z$8*$AU42^(-8*Z$4-12))*$D42^4+(Z$9*$AU42^(-10*Z$4-20))*$D42^5+(Z$10*$AU42^(-12*Z$4-30))*$D42^6)) -> 1.859E+06 | R42: =IF($A42="","",(1+(AA$5*$AU42^(-2*AA$4))*$D42+(AA$6*$AU42^(-4*AA$4-2))*$D42^2+(AA$7*$AU42^(-6*AA$4-6))*$D42^3+(AA$8*$AU42^(-8*AA$4-12))*$D42^4+(AA$9*$AU42^(-10*AA$4-20))*$D42^5+(AA$10*$AU42^(-12*AA$4-30))*$D42^6)) -> 2.721E+10 | S42: =IF($A42="","",(1+(AB$5*$AU42^(-2*AB$4))*$D42+(AB$6*$AU42^(-4*AB$4-2))*$D42^2+(AB$7*$AU42^(-6*AB$4-6))*$D42^3+(AB$8*$AU42^(-8*AB$4-12))*$D42^4+(AB$9*$AU42^(-10*AB$4-20))*$D42^5+(AB$10*$AU42^(-12*AB$4-30))*$D42^6)) -> 1.000E+00 | T42: =IF($A42="","",(1+(AC$5*$AU42^(-2*AC$4))*$D42+(AC$6*$AU42^(-4*AC$4-2))*$D42^2)) -> 1.000E+00 | U42: =IF($A42="","",(1+(AD$5*$AU42^(-2*AD$4))*$D42+(AD$6*$AU42^(-4*AD$4-2))*$D42^2)) -> 4.691E+12 | V42: =IF($A42="","",(1+(AE$5*$AU42^(-2*AE$4))*$D42+(AE$6*$AU42^(-4*AE$4-2))*$D42^2)) -> 2.721E+10 | W42: =IF($A42="","",((V$5*$AU42^(-2*V$4))*$D42+2*(V$6*$AU42^(-4*V$4-2))*$D42^2+3*(V$7*$AU42^(-6*V$4-6))*$D42^3+4*(V$8*$AU42^(-8*V$4-12))*$D42^4+5*(V$9*$AU42^(-10*V$4-20))*$D42^5+6*(V$10*$AU42^(-12*V$4-30))*$D42^6)/M42) -> 2.513 | X42: =IF($A42="","",((W$5*$AU42^(-2*W$4))*$D42+2*(W$6*$AU42^(-4*W$4-2))*$D42^2+3*(W$7*$AU42^(-6*W$4-6))*$D42^3+4*(W$8*$AU42^(-8*W$4-12))*$D42^4+5*(W$9*$AU42^(-10*W$4-20))*$D42^5+6*(W$10*$AU42^(-12*W$4-30))*$D42^6)/N42) -> 1.192 | Y42: =IF($A42="","",((X$5*$AU42^(-2*X$4))*$D42+2*(X$6*$AU42^(-4*X$4-2))*$D42^2+3*(X$7*$AU42^(-6*X$4-6))*$D42^3+4*(X$8*$AU42^(-8*X$4-12))*$D42^4+5*(X$9*$AU42^(-10*X$4-20))*$D42^5+6*(X$10*$AU42^(-12*X$4-30))*$D42^6)/O42) -> 1.914 | Z42: =IF($A42="","",((Y$5*$AU42^(-2*Y$4))*$D42+2*(Y$6*$AU42^(-4*Y$4-2))*$D42^2+3*(Y$7*$AU42^(-6*Y$4-6))*$D42^3+4*(Y$8*$AU42^(-8*Y$4-12))*$D42^4+5*(Y$9*$AU42^(-10*Y$4-20))*$D42^5+6*(Y$10*$AU42^(-12*Y$4-30))*$D42^6)/P42) -> 0.980 | AA42: =IF($A42="","",((Z$5*$AU42^(-2*Z$4))*$D42+2*(Z$6*$AU42^(-4*Z$4-2))*$D42^2+3*(Z$7*$AU42^(-6*Z$4-6))*$D42^3+4*(Z$8*$AU42^(-8*Z$4-12))*$D42^4+5*(Z$9*$AU42^(-10*Z$4-20))*$D42^5+6*(Z$10*$AU42^(-12*Z$4-30))*$D42^6)/Q42) -> 1.000 | AB42: =IF($A42="","",((AA$5*$AU42^(-2*AA$4))*$D42+2*(AA$6*$AU42^(-4*AA$4-2))*$D42^2+3*(AA$7*$AU42^(-6*AA$4-6))*$D42^3+4*(AA$8*$AU42^(-8*AA$4-12))*$D42^4+5*(AA$9*$AU42^(-10*AA$4-20))*$D42^5+6*(AA$10*$AU42^(-12*AA$4-30))*$D42^6)/R42) -> 1.999 | AC42: =IF($A42="","",((AB$5*$AU42^(-2*AB$4))*$D42+2*(AB$6*$AU42^(-4*AB$4-2))*$D42^2+3*(AB$7*$AU42^(-6*AB$4-6))*$D42^3+4*(AB$8*$AU42^(-8*AB$4-12))*$D42^4+5*(AB$9*$AU42^(-10*AB$4-20))*$D42^5+6*(AB$10*$AU42^(-12*AB$4-30))*$D42^6)/S42) -> 0.000 | AD42: =IF($A42="","",((AC$5*$AU42^(-2*AC$4))*$D42+2*(AC$6*$AU42^(-4*AC$4-2))*$D42^2)/T42) -> 0.000 | AE42: =IF($A42="","",((AD$5*$AU42^(-2*AD$4))*$D42+2*(AD$6*$AU42^(-4*AD$4-2))*$D42^2)/U42) -> 1.000 | AF42: =IF($A42="","",((AE$5*$AU42^(-2*AE$4))*$D42+2*(AE$6*$AU42^(-4*AE$4-2))*$D42^2)/V42) -> 1.999 | AG42: =IF(B$11=0,"",IF($A42="","",0.5*B$11*$L42*(1*V$4^2+(V$5*$AU42^(-2*V$4))*$D42*(V$4+1)^2+(V$6*$AU42^(-4*V$4-2))*$D42^2*(V$4+2)^2+(V$7*$AU42^(-6*V$4-6))*$D42^3*(V$4+3)^2+(V$8*$AU42^(-8*V$4-12))*$D42^4*(V$4+4)^2+(V$9*$AU42^(-10*V$4-20))*$D42^5*(V$4+5)^2+(V$10*$AU42^(-12*V$4-30))*$D42^6*(V$4+6)^2)/M42)) -> 6.117E-03 | AH42: =IF(C$11=0,"",IF($A42="","",0.5*C$11*$L42*(1*W$4^2+(W$5*$AU42^(-2*W$4))*$D42*(W$4+1)^2+(W$6*$AU42^(-4*W$4-2))*$D42^2*(W$4+2)^2+(W$7*$AU42^(-6*W$4-6))*$D42^3*(W$4+3)^2+(W$8*$AU42^(-8*W$4-12))*$D42^4*(W$4+4)^2+(W$9*$AU42^(-10*W$4-20))*$D42^5*(W$4+5)^2+(W$10*$AU42^(-12*W$4-30))*$D42^6*(W$4+6)^2)/N42)) -> 3.223E-03 | AI42: =IF(D$11=0,"",IF($A42="","",0.5*D$11*$L42*(1*X$4^2+(X$5*$AU42^(-2*X$4))*$D42*(X$4+1)^2+(X$6*$AU42^(-4*X$4-2))*$D42^2*(X$4+2)^2+(X$7*$AU42^(-6*X$4-6))*$D42^3*(X$4+3)^2+(X$8*$AU42^(-8*X$4-12))*$D42^4*(X$4+4)^2+(X$9*$AU42^(-10*X$4-20))*$D42^5*(X$4+5)^2+(X$10*$AU42^(-12*X$4-30))*$D42^6*(X$4+6)^2)/O42)) ->  | AJ42: =IF(E$11=0,"",IF($A42="","",0.5*E$11*$L42*(1*Y$4^2+(Y$5*$AU42^(-2*Y$4))*$D42*(Y$4+1)^2+(Y$6*$AU42^(-4*Y$4-2))*$D42^2*(Y$4+2)^2+(Y$7*$AU42^(-6*Y$4-6))*$D42^3*(Y$4+3)^2+(Y$8*$AU42^(-8*Y$4-12))*$D42^4*(Y$4+4)^2+(Y$9*$AU42^(-10*Y$4-20))*$D42^5*(Y$4+5)^2+(Y$10*$AU42^(-12*Y$4-30))*$D42^6*(Y$4+6)^2)/P42)) ->  | AK42: =IF(F$11=0,"",IF($A42="","",0.5*F$11*$L42*(1*Z$4^2+(Z$5*$AU42^(-2*Z$4))*$D42*(Z$4+1)^2+(Z$6*$AU42^(-4*Z$4-2))*$D42^2*(Z$4+2)^2+(Z$7*$AU42^(-6*Z$4-6))*$D42^3*(Z$4+3)^2+(Z$8*$AU42^(-8*Z$4-12))*$D42^4*(Z$4+4)^2+(Z$9*$AU42^(-10*Z$4-20))*$D42^5*(Z$4+5)^2+(Z$10*$AU42^(-12*Z$4-30))*$D42^6*(Z$4+6)^2)/Q42)) ->  | AL42: =IF(G$11=0,"",IF($A42="","",0.5*G$11*$L42*(1*AA$4^2+(AA$5*$AU42^(-2*AA$4))*$D42*(AA$4+1)^2+(AA$6*$AU42^(-4*AA$4-2))*$D42^2*(AA$4+2)^2+(AA$7*$AU42^(-6*AA$4-6))*$D42^3*(AA$4+3)^2+(AA$8*$AU42^(-8*AA$4-12))*$D42^4*(AA$4+4)^2+(AA$9*$AU42^(-10*AA$4-20))*$D42^5*(AA$4+5)^2+(AA$10*$AU42^(-12*AA$4-30))*$D42^6*(AA$4+6)^2)/R42)) ->  | AM42: =IF(H$11=0,"",IF($A42="","",0.5*H$11*$L42*(1*AB$4^2+(AB$5*$AU42^(-2*AB$4))*$D42*(AB$4+1)^2+(AB$6*$AU42^(-4*AB$4-2))*$D42^2*(AB$4+2)^2+(AB$7*$AU42^(-6*AB$4-6))*$D42^3*(AB$4+3)^2+(AB$8*$AU42^(-8*AB$4-12))*$D42^4*(AB$4+4)^2+(AB$9*$AU42^(-10*AB$4-20))*$D42^5*(AB$4+5)^2+(AB$10*$AU42^(-12*AB$4-30))*$D42^6*(AB$4+6)^2)/S42)) ->  | AN42: =IF(B$18=0,"",IF($A42="","",0.5*B$18*$K42*(1*AC$4^2+(AC$5*$AU42^(-2*AC$4))*$D42*(AC$4+1)^2+(AC$6*$AU42^(-4*AC$4-2))*$D42^2*(AC$4+2)^2)/T42)) ->  | AO42: =IF(C$18=0,"",IF($A42="","",0.5*C$18*$K42*(1*AD$4^2+(AD$5*$AU42^(-2*AD$4))*$D42*(AD$4+1)^2+(AD$6*$AU42^(-4*AD$4-2))*$D42^2*(AD$4+2)^2)/U42)) -> 4.483E-16 | AP42: =IF(D$18=0,"",IF($A42="","",0.5*D$18*$K42*(1*AE$4^2+(AE$5*$AU42^(-2*AE$4))*$D42*(AE$4+1)^2+(AE$6*$AU42^(-4*AE$4-2))*$D42^2*(AE$4+2)^2)/V42)) ->  | AQ42: =IF(A42="","",SUM(AG42:AP42)+0.5*(D42+ $AC$9/AU42^2/D42)+$L42*$S$16+$K42*$T$16) -> 1.264E-02 | AR42: =IF(A42="","",AQ42+$L42*S$14+$K42*$T$14) -> 1.264E-02 | AT42: 0.012638 | AU42: =IF(A42="","",10^(-$P$16*($AT42^0.5/(1+$AT42^0.5)-$P$17*$AT42))) -> 0.8923 | AW42: =IF(C42="","",C42-B42) -> 0.0013
A43: 1.698 | B43: 3.1256 | C43: 3.1648 | D43: 8.45E-04 | E43: =IF(A43="","",IF(A44="",(B43-B42)/(A43-A42),((B44-B43)/(A44-A43)+(B43-B42)/(A43-A42))/2)) -> 1.73E-01 | F43: 0.0392 | G43: 1.080E-06 | H43: -1.039E-03 | I43: 1.01E-01 | J43: 1.02E-01 | K43: 0.0783 | L43: 0.9217 | M43: 5.922E+04 | N43: 4.736E+06 | O43: 3.013E+09 | P43: 3.895E+01 | Q43: 1.481E+06 | R43: 1.664E+10 | S43: 1.000E+00 | T43: 1.000E+00 | U43: 3.691E+12 | V43: 1.664E+10 | W43: 2.446 | X43: 1.159 | Y43: 1.893 | Z43: 0.974 | AA43: 1.000 | AB43: 1.999 | AC43: 0.000 | AD43: 0.000 | AE43: 1.000 | AF43: 1.999 | AG43: 6.779E-03 | AH43: 2.572E-03 | AN43: =IF(B$18=0,"",IF($A43="","",0.5*B$18*$K43*(1*AC$4^2+(AC$5*$AU43^(-2*AC$4))*$D43*(AC$4+1)^2+(AC$6*$AU43^(-4*AC$4-2))*$D43^2*(AC$4+2)^2)/T43)) ->  | AO43: 1.060E-15 | AQ43: 1.433E-02 | AR43: 1.433E-02 | AT43: 0.014326 | AU43: 0.8867 | AW43: 0.0392
A44: 2.451 | B44: 3.2933 | C44: 3.3039 | D44: 5.78E-04 | E44: 2.27E-01 | F44: 0.0105 | G44: 5.867E-08 | H44: -2.422E-04 | I44: 9.81E-02 | J44: 9.83E-02 | K44: 0.1092 | L44: 0.8908 | M44: 2.228E+04 | N44: 3.037E+06 | O44: 1.425E+09 | P44: 2.662E+01 | Q44: 1.013E+06 | R44: 7.491E+09 | S44: 1.000E+00 | T44: 1.000E+00 | U44: 2.492E+12 | V44: 7.491E+09 | W44: 2.334 | X44: 1.115 | Y44: 1.849 | Z44: 0.962 | AA44: 1.000 | AB44: 1.999 | AC44: 0.000 | AD44: 0.000 | AE44: 1.000 | AF44: 1.999 | AG44: 8.085E-03 | AH44: 1.790E-03 | AO44: 2.190E-15 | AQ44: 1.624E-02 | AR44: 1.624E-02 | AT44: 0.016241 | AU44: 0.8809 | AW44: 0.0105
A45: 3.135 | B45: 3.4517 | C45: 3.4426 | D45: 4.04E-04 | E45: 2.26E-01 | F45: -0.0090 | G45: 3.273E-08 | H45: 1.809E-04 | I45: 9.52E-02 | J45: 9.50E-02 | K45: 0.1355 | L45: 0.8645 | M45: 9.214E+03 | N45: 2.024E+06 | O45: 7.160E+08 | P45: 1.868E+01 | Q45: 7.081E+05 | R45: 3.526E+09 | S45: 1.000E+00 | T45: 1.000E+00 | U45: 1.720E+12 | V45: 3.526E+09 | W45: 2.230 | X45: 1.083 | Y45: 1.796 | Z45: 0.946 | AA45: 1.000 | AB45: 1.999 | AC45: 0.000 | AD45: 0.000 | AE45: 1.000 | AF45: 1.999 | AG45: 9.387E-03 | AH45: 1.257E-03 | AO45: 3.939E-15 | AQ45: 1.822E-02 | AR45: 1.822E-02 | AT45: 0.018221 | AU45: 0.8755 | AW45: -0.0090
A46: 3.755 | B46: 3.5880 | C46: 3.5814 | D46: 2.97E-04 | E46: 1.97E-01 | F46: -0.0066 | G46: 1.363E-08 | H46: 1.167E-04 | I46: 9.27E-02 | J46: 9.26E-02 | K46: 0.1581 | L46: 0.8419 | M46: 4.438E+03 | N46: 1.438E+06 | O46: 4.026E+08 | P46: 1.385E+01 | Q46: 5.202E+05 | R46: 1.842E+09 | S46: 1.000E+00 | T46: 1.000E+00 | U46: 1.250E+12 | V46: 1.842E+09 | W46: 2.142 | X46: 1.062 | Y46: 1.739 | Z46: 0.928 | AA46: 1.000 | AB46: 1.998 | AC46: 0.000 | AD46: 0.000 | AE46: 1.000 | AF46: 1.998 | AG46: 1.056E-02 | AH46: 9.199E-04 | AO46: 6.323E-15 | AQ46: 2.012E-02 | AR46: 2.012E-02 | AT46: 0.020118 | AU46: 0.8707 | AW46: -0.0066
A47: 4.323 | B47: 3.6873 | C47: 3.7206 | D47: 2.37E-04 | E47: 2.47E-01 | F47: 0.0332 | G47: 2.858E-07 | H47: -5.346E-04 | I47: 9.05E-02 | J47: 9.10E-02 | K47: 0.1777 | L47: 0.8223 | M47: 2.644E+03 | N47: 1.125E+06 | O47: 2.674E+08 | P47: 1.118E+01 | Q47: 4.157E+05 | R47: 1.146E+09 | S47: 1.000E+00 | T47: 1.000E+00 | U47: 9.899E+11 | V47: 1.146E+09 | W47: 2.079 | X47: 1.050 | Y47: 1.692 | Z47: 0.911 | AA47: 1.000 | AB47: 1.998 | AC47: 0.000 | AD47: 0.000 | AE47: 1.000 | AF47: 1.998 | AG47: 1.143E-02 | AH47: 7.269E-04 | AO47: 8.978E-15 | AQ47: 2.173E-02 | AR47: 2.173E-02 | AT47: 0.021730 | AU47: 0.8668 | AW47: 0.0332
A48: 4.858 | B48: 3.8580 | C48: 3.8588 | D48: 1.61E-04 | E48: 2.99E-01 | F48: 0.0009 | G48: 1.601E-10 | H48: -1.265E-05 | I48: 8.86E-02 | J48: 8.86E-02 | K48: 0.1954 | L48: 0.8046 | M48: 1.136E+03 | N48: 7.423E+05 | O48: 1.368E+08 | P48: 7.827E+00 | Q48: 2.824E+05 | R48: 5.098E+08 | S48: 1.000E+00 | T48: 1.000E+00 | U48: 6.640E+11 | V48: 5.098E+08 | W48: 1.972 | X48: 1.035 | Y48: 1.601 | Z48: 0.872 | AA48: 1.000 | AB48: 1.996 | AC48: 0.000 | AD48: 0.000 | AE48: 1.000 | AF48: 1.996 | AG48: 1.328E-02 | AH48: 4.912E-04 | AO48: 1.471E-14 | AQ48: 2.418E-02 | AR48: 2.418E-02 | AT48: 0.024183 | AU48: 0.8614 | AW48: 0.0009
A49: 5.378 | B49: 4.0026 | C49: 3.9975 | D49: 1.16E-04 | E49: 2.58E-01 | F49: -0.0051 | G49: 5.201E-09 | H49: 7.212E-05 | I49: 8.67E-02 | J49: 8.67E-02 | K49: 0.2119 | L49: 0.7881 | M49: 5.724E+02 | N49: 5.239E+05 | O49: 7.976E+07 | P49: 5.865E+00 | Q49: 2.036E+05 | R49: 2.564E+08 | S49: 1.000E+00 | T49: 1.000E+00 | U49: 4.733E+11 | V49: 2.564E+08 | W49: 1.879 | X49: 1.025 | Y49: 1.517 | Z49: 0.830 | AA49: 1.000 | AB49: 1.995 | AC49: 0.000 | AD49: 0.000 | AE49: 1.000 | AF49: 1.995 | AG49: 1.506E-02 | AH49: 3.503E-04 | AO49: 2.239E-14 | AQ49: 2.661E-02 | AR49: 2.661E-02 | AT49: 0.026609 | AU49: 0.8564 | AW49: -0.0051
A50: 5.899 | B50: 4.1263 | C50: 4.1369 | D50: 8.78E-05 | E50: 2.73E-01 | F50: 0.0106 | G50: 2.216E-08 | H50: -1.489E-04 | I50: 8.50E-02 | J50: 8.51E-02 | K50: 0.2278 | L50: 0.7722 | M50: 3.261E+02 | N50: 3.895E+05 | O50: 5.135E+07 | P50: 4.640E+00 | Q50: 1.539E+05 | R50: 1.422E+08 | S50: 1.000E+00 | T50: 1.000E+00 | U50: 3.541E+11 | V50: 1.422E+08 | W50: 1.796 | X50: 1.019 | Y50: 1.445 | Z50: 0.784 | AA50: 1.000 | AB50: 1.993 | AC50: 0.000 | AD50: 0.000 | AE50: 1.000 | AF50: 1.993 | AG50: 1.673E-02 | AH50: 2.611E-04 | AO50: 3.217E-14 | AQ50: 2.896E-02 | AR50: 2.896E-02 | AT50: 0.028961 | AU50: 0.8519 | AW50: 0.0106
A51: 6.432 | B51: 4.2904 | C51: 4.2750 | D51: 6.06E-05 | E51: 2.63E-01 | F51: -0.0154 | G51: 4.689E-08 | H51: 2.165E-04 | I51: 8.33E-02 | J51: 8.31E-02 | K51: 0.2433 | L51: 0.7567 | M51: 1.611E+02 | N51: 2.636E+05 | O51: 2.959E+07 | P51: 3.478E+00 | Q51: 1.062E+05 | R51: 6.523E+07 | S51: 1.000E+00 | T51: 1.000E+00 | U51: 2.410E+11 | V51: 6.523E+07 | W51: 1.680 | X51: 1.013 | Y51: 1.353 | Z51: 0.712 | AA51: 1.000 | AB51: 1.990 | AC51: 0.000 | AD51: 0.000 | AE51: 1.000 | AF51: 1.990 | AG51: 1.932E-02 | AH51: 1.776E-04 | AO51: 5.048E-14 | AQ51: 3.222E-02 | AR51: 3.222E-02 | AT51: 0.032221 | AU51: 0.8462 | AW51: -0.0154
A52: 6.977 | B52: 4.4092 | C52: 4.4149 | D52: 4.63E-05 | E52: 2.20E-01 | F52: 0.0057 | G52: 6.241E-09 | H52: -7.900E-05 | I52: 8.16E-02 | J52: 8.17E-02 | K52: 0.2586 | L52: 0.7414 | M52: 9.948E+01 | N52: 1.988E+05 | O52: 2.026E+07 | P52: 2.875E+00 | Q52: 8.120E+04 | R52: 3.711E+07 | S52: 1.000E+00 | T52: 1.000E+00 | U52: 1.824E+11 | V52: 3.711E+07 | W52: 1.592 | X52: 1.010 | Y52: 1.292 | Z52: 0.652 | AA52: 1.000 | AB52: 1.987 | AC52: 0.000 | AD52: 0.000 | AE52: 1.000 | AF52: 1.987 | AG52: 2.124E-02 | AH52: 1.335E-04 | AO52: 7.089E-14 | AQ52: 3.484E-02 | AR52: 3.484E-02 | AT52: 0.034843 | AU52: 0.8419 | AW52: 0.0057
A53: 7.525 | B53: 4.5311 | C53: 4.5546 | D53: 3.51E-05 | E53: 2.36E-01 | F53: 0.0235 | G53: 1.028E-07 | H53: -3.207E-04 | I53: 8.00E-02 | J53: 8.03E-02 | K53: 0.2734 | L53: 0.7266 | M53: 6.238E+01 | N53: 1.491E+05 | O53: 1.398E+07 | P53: 2.409E+00 | Q53: 6.163E+04 | R53: 2.084E+07 | S53: 1.000E+00 | T53: 1.000E+00 | U53: 1.371E+11 | V53: 2.084E+07 | W53: 1.499 | X53: 1.008 | Y53: 1.237 | Z53: 0.585 | AA53: 1.000 | AB53: 1.982 | AC53: 0.000 | AD53: 0.000 | AE53: 1.000 | AF53: 1.982 | AG53: 2.329E-02 | AH53: 9.960E-05 | AO53: 9.972E-14 | AQ53: 3.758E-02 | AR53: 3.758E-02 | AT53: 0.037582 | AU53: 0.8377 | AW53: 0.0235
A54: 8.066 | B54: 4.6665 | C54: 4.6936 | D54: 2.59E-05 | E54: 3.09E-01 | F54: 0.0271 | G54: 1.257E-07 | H54: -3.546E-04 | I54: 7.84E-02 | J54: 7.88E-02 | K54: 0.2874 | L54: 0.7126 | M54: 3.845E+01 | N54: 1.084E+05 | O54: 9.430E+06 | P54: 2.026E+00 | Q54: 4.536E+04 | R54: 1.101E+07 | S54: 1.000E+00 | T54: 1.000E+00 | U54: 9.984E+10 | V54: 1.101E+07 | W54: 1.397 | X54: 1.006 | Y54: 1.184 | Z54: 0.507 | AA54: 1.000 | AB54: 1.976 | AC54: 0.000 | AD54: 0.000 | AE54: 1.000 | AF54: 1.976 | AG54: 2.565E-02 | AH54: 7.209E-05 | AO54: 1.439E-13 | AQ54: 4.060E-02 | AR54: 4.060E-02 | AT54: 0.040596 | AU54: 0.8334 | AW54: 0.0271
A55: 8.588 | B55: 4.8585 | C55: 4.8298 | D55: 1.67E-05 | E55: 2.74E-01 | F55: -0.0287 | G55: 1.236E-07 | H55: 3.516E-04 | I55: 7.70E-02 | J55: 7.67E-02 | K55: 0.3004 | L55: 0.6996 | M55: 2.058E+01 | N55: 6.903E+04 | O55: 5.545E+06 | P55: 1.655E+00 | Q55: 2.934E+04 | R55: 4.491E+06 | S55: 1.000E+00 | T55: 1.000E+00 | U55: 6.374E+10 | V55: 4.491E+06 | W55: 1.256 | X55: 1.004 | Y55: 1.126 | Z55: 0.396 | AA55: 1.000 | AB55: 1.963 | AC55: 0.000 | AD55: 0.000 | AE55: 1.000 | AF55: 1.963 | AG55: 2.918E-02 | AH55: 4.598E-05 | AO55: 2.356E-13 | AQ55: 4.474E-02 | AR55: 4.474E-02 | AT55: 0.044743 | AU55: 0.8279 | AW55: -0.0287
A56: 9.086 | B56: 4.9486 | C56: 4.9705 | D56: 1.36E-05 | E56: 3.13E-01 | F56: 0.0219 | G56: 6.448E-08 | H56: -2.539E-04 | I56: 7.57E-02 | J56: 7.59E-02 | K56: 0.3124 | L56: 0.6876 | M56: 1.570E+01 | N56: 5.590E+04 | O56: 4.360E+06 | P56: 1.531E+00 | Q56: 2.392E+04 | R56: 2.957E+06 | S56: 1.000E+00 | T56: 1.000E+00 | U56: 5.165E+10 | V56: 2.957E+06 | W56: 1.192 | X56: 1.003 | Y56: 1.105 | Z56: 0.347 | AA56: 1.000 | AB56: 1.954 | AC56: 0.000 | AD56: 0.000 | AE56: 1.000 | AF56: 1.954 | AG56: 3.056E-02 | AH56: 3.694E-05 | AO56: 3.024E-13 | AQ56: 4.670E-02 | AR56: 4.670E-02 | AT56: 0.046698 | AU56: 0.8254 | AW56: 0.0219
A57: 9.563 | B57: 5.1610 | C57: 5.1054 | D57: 8.42E-06 | E57: 2.99E-01 | F57: -0.0556 | G57: 3.683E-07 | H57: 6.068E-04 | I57: 7.45E-02 | J57: 7.39E-02 | K57: 0.3235 | L57: 0.6765 | M57: 8.785E+00 | N57: 3.402E+04 | O57: 2.515E+06 | P57: 1.324E+00 | Q57: 1.476E+04 | R57: 1.115E+06 | S57: 1.000E+00 | T57: 1.000E+00 | U57: 3.147E+10 | V57: 1.115E+06 | W57: 1.048 | X57: 1.002 | Y57: 1.067 | Z57: 0.244 | AA57: 1.000 | AB57: 1.927 | AC57: 0.000 | AD57: 0.000 | AE57: 1.000 | AF57: 1.927 | AG57: 3.454E-02 | AH57: 2.267E-05 | AO57: 5.140E-13 | AQ57: 5.121E-02 | AR57: 5.121E-02 | AT57: 0.051207 | AU57: 0.8201 | AW57: -0.0556
A58: 10.028 | B58: 5.2320 | C58: 5.2469 | D58: 7.16E-06 | E58: 2.59E-01 | F58: 0.0148 | G58: 2.481E-08 | H58: -1.575E-04 | I58: 7.33E-02 | J58: 7.35E-02 | K58: 0.3340 | L58: 0.6660 | M58: 7.357E+00 | N58: 2.882E+04 | O58: 2.101E+06 | P58: 1.274E+00 | Q58: 1.256E+04 | R58: 8.081E+05 | S58: 1.000E+00 | T58: 1.000E+00 | U58: 2.667E+10 | V58: 8.081E+05 | W58: 1.001 | X58: 1.002 | Y58: 1.057 | Z58: 0.215 | AA58: 1.000 | AB58: 1.915 | AC58: 0.000 | AD58: 0.000 | AE58: 1.000 | AF58: 1.915 | AG58: 3.554E-02 | AH58: 1.911E-05 | AO58: 6.262E-13 | AQ58: 5.272E-02 | AR58: 5.272E-02 | AT58: 0.052725 | AU58: 0.8185 | AW58: 0.0148
A59: 10.492 | B59: 5.4014 | C59: 5.3834 | D59: 4.87E-06 | E59: 3.09E-01 | F59: -0.0180 | G59: 3.583E-08 | H59: 1.893E-04 | I59: 7.22E-02 | J59: 7.20E-02 | K59: 0.3441 | L59: 0.6559 | M59: 4.979E+00 | N59: 1.941E+04 | O59: 1.376E+06 | P59: 1.185E+00 | Q59: 8.546E+03 | R59: 3.781E+05 | S59: 1.000E+00 | T59: 1.000E+00 | U59: 1.797E+10 | V59: 3.781E+05 | W59: 0.888 | X59: 1.001 | Y59: 1.039 | Z59: 0.156 | AA59: 1.000 | AB59: 1.879 | AC59: 0.000 | AD59: 0.000 | AE59: 1.000 | AF59: 1.879 | AG59: 3.883E-02 | AH59: 1.313E-05 | AO59: 9.576E-13 | AQ59: 5.651E-02 | AR59: 5.651E-02 | AT59: 0.056509 | AU59: 0.8145 | AW59: -0.0180
A60: 10.964 | B60: 5.5206 | C60: 5.5227 | D60: 3.72E-06 | E60: 2.65E-01 | F60: 0.0022 | G60: 5.197E-10 | H60: -2.280E-05 | I60: 7.11E-02 | J60: 7.11E-02 | K60: 0.3541 | L60: 0.6459 | M60: 3.892E+00 | N60: 1.470E+04 | O60: 1.025E+06 | P60: 1.140E+00 | Q60: 6.518E+03 | R60: 2.238E+05 | S60: 1.000E+00 | T60: 1.000E+00 | U60: 1.361E+10 | V60: 2.238E+05 | W60: 0.807 | X60: 1.001 | Y60: 1.030 | Z60: 0.123 | AA60: 1.000 | AB60: 1.846 | AC60: 0.000 | AD60: 0.000 | AE60: 1.000 | AF60: 1.846 | AG60: 4.111E-02 | AH60: 1.019E-05 | AO60: 1.301E-12 | AQ60: 5.927E-02 | AR60: 5.927E-02 | AT60: 0.059274 | AU60: 0.8117 | AW60: 0.0022
A61: 11.449 | B61: 5.6554 | C61: 5.6611 | D61: 2.73E-06 | E61: 2.68E-01 | F61: 0.0058 | G61: 3.789E-09 | H61: -6.155E-05 | I61: 7.00E-02 | J61: 7.01E-02 | K61: 0.3640 | L61: 0.6360 | M61: 3.031E+00 | N61: 1.073E+04 | O61: 7.370E+05 | P61: 1.102E+00 | Q61: 4.797E+03 | R61: 1.252E+05 | S61: 1.000E+00 | T61: 1.000E+00 | U61: 9.940E+09 | V61: 1.252E+05 | W61: 0.713 | X61: 1.001 | Y61: 1.022 | Z61: 0.093 | AA61: 1.000 | AB61: 1.801 | AC61: 0.000 | AD61: 0.000 | AE61: 1.000 | AF61: 1.801 | AG61: 4.388E-02 | AH61: 7.867E-06 | AO61: 1.831E-12 | AQ61: 6.253E-02 | AR61: 6.253E-02 | AT61: 0.062529 | AU61: 0.8086 | AW61: 0.0058
A62: 11.940 | B62: 5.7818 | C62: 5.8000 | D62: 2.05E-06 | E62: 2.63E-01 | F62: 0.0183 | G62: 3.699E-08 | H62: -1.923E-04 | I62: 6.89E-02 | J62: 6.91E-02 | K62: 0.3738 | L62: 0.6262 | M62: 2.467E+00 | N62: 7.993E+03 | O62: 5.422E+05 | P62: 1.076E+00 | Q62: 3.599E+03 | R62: 7.370E+04 | S62: 1.000E+00 | T62: 1.000E+00 | U62: 7.404E+09 | V62: 7.370E+04 | W62: 0.623 | X62: 1.000 | Y62: 1.016 | Z62: 0.071 | AA62: 1.000 | AB62: 1.750 | AC62: 0.000 | AD62: 0.000 | AE62: 1.000 | AF62: 1.750 | AG62: 4.648E-02 | AH62: 6.417E-06 | AO62: 2.524E-12 | AQ62: 6.561E-02 | AR62: 6.561E-02 | AT62: 0.065614 | AU62: 0.8058 | AW62: 0.0183
A63: 12.423 | B63: 5.9119 | C63: 5.9385 | D63: 1.53E-06 | E63: 2.94E-01 | F63: 0.0266 | G63: 7.261E-08 | H63: -2.695E-04 | I63: 6.79E-02 | J63: 6.82E-02 | K63: 0.3832 | L63: 0.6168 | M63: 2.056E+00 | N63: 5.903E+03 | O63: 3.961E+05 | P63: 1.056E+00 | Q63: 2.676E+03 | R63: 4.348E+04 | S63: 1.000E+00 | T63: 1.000E+00 | U63: 5.469E+09 | V63: 4.348E+04 | W63: 0.532 | X63: 1.000 | Y63: 1.012 | Z63: 0.053 | AA63: 1.000 | AB63: 1.689 | AC63: 0.000 | AD63: 0.000 | AE63: 1.000 | AF63: 1.689 | AG63: 4.915E-02 | AH63: 5.528E-06 | AO63: 3.503E-12 | AQ63: 6.874E-02 | AR63: 6.874E-02 | AT63: 0.068742 | AU63: 0.8031 | AW63: 0.0266
A64: 12.881 | B64: 6.0577 | C64: 6.0760 | D64: 1.09E-06 | E64: 3.03E-01 | F64: 0.0182 | G64: 2.885E-08 | H64: -1.699E-04 | I64: 6.69E-02 | J64: 6.71E-02 | K64: 0.3918 | L64: 0.6082 | M64: 1.734E+00 | N64: 4.205E+03 | O64: 2.792E+05 | P64: 1.040E+00 | Q64: 1.920E+03 | R64: 2.466E+04 | S64: 1.000E+00 | T64: 1.000E+00 | U64: 3.895E+09 | V64: 2.466E+04 | W64: 0.434 | X64: 1.000 | Y64: 1.009 | Z64: 0.039 | AA64: 0.999 | AB64: 1.612 | AC64: 0.000 | AD64: 0.000 | AE64: 1.000 | AF64: 1.612 | AG64: 5.206E-02 | AH64: 5.151E-06 | AO64: 5.029E-12 | AQ64: 7.208E-02 | AR64: 7.208E-02 | AT64: 0.072079 | AU64: 0.8003 | AW64: 0.0182
A65: 13.297 | B65: 6.1771 | C65: 6.2145 | D65: 8.33E-07 | E65: 4.72E-01 | F65: 0.0374 | G65: 9.717E-08 | H65: -3.117E-04 | I65: 6.61E-02 | J65: 6.64E-02 | K65: 0.3993 | L65: 0.6007 | M65: 1.548E+00 | N65: 3.187E+03 | O65: 2.101E+05 | P65: 1.030E+00 | Q65: 1.462E+03 | R65: 1.585E+04 | S65: 1.000E+00 | T65: 1.000E+00 | U65: 2.952E+09 | V65: 1.585E+04 | W65: 0.361 | X65: 1.000 | Y65: 1.007 | Z65: 0.029 | AA65: 0.999 | AB65: 1.544 | AC65: 0.000 | AD65: 0.000 | AE65: 1.000 | AF65: 1.544 | AG65: 5.411E-02 | AH65: 5.272E-06 | AO65: 6.764E-12 | AQ65: 7.450E-02 | AR65: 7.450E-02 | AT65: 0.074498 | AU65: 0.7984 | AW65: 0.0374
A66: 13.659 | B66: 6.4150 | C66: 6.3485 | D66: 4.84E-07 | E66: 4.31E-01 | F66: -0.0664 | G66: 1.974E-07 | H66: 4.443E-04 | I66: 6.54E-02 | J66: 6.50E-02 | K66: 0.4058 | L66: 0.5942 | M66: 1.308E+00 | N66: 1.836E+03 | O66: 1.197E+05 | P66: 1.017E+00 | Q66: 8.493E+02 | R66: 6.966E+03 | S66: 1.000E+00 | T66: 1.000E+00 | U66: 1.700E+09 | V66: 6.966E+03 | W66: 0.238 | X66: 1.000 | Y66: 1.004 | Z66: 0.017 | AA66: 0.999 | AB66: 1.407 | AC66: 0.000 | AD66: 0.000 | AE66: 1.000 | AF66: 1.407 | AG66: 5.802E-02 | AH66: 6.808E-06 | AO66: 1.193E-11 | AQ66: 7.873E-02 | AR66: 7.873E-02 | AT66: 0.078727 | AU66: 0.7952 | AW66: -0.0664
A67: 13.963 | B67: 6.4769 | C67: 6.4887 | D67: 4.20E-07 | E67: 4.06E-01 | F67: 0.0118 | G67: 4.642E-09 | H67: -6.813E-05 | I67: 6.48E-02 | J67: 6.49E-02 | K67: 0.4111 | L67: 0.5889 | M67: 1.266E+00 | N67: 1.591E+03 | O67: 1.036E+05 | P67: 1.015E+00 | Q67: 7.370E+02 | R67: 5.700E+03 | S67: 1.000E+00 | T67: 1.000E+00 | U67: 1.473E+09 | V67: 5.700E+03 | W67: 0.212 | X67: 0.999 | Y67: 1.003 | Z67: 0.015 | AA67: 0.999 | AB67: 1.373 | AC67: 0.000 | AD67: 0.000 | AE67: 1.000 | AF67: 1.373 | AG67: 5.845E-02 | AH67: 7.465E-06 | AO67: 1.395E-11 | AQ67: 7.942E-02 | AR67: 7.942E-02 | AT67: 0.079421 | AU67: 0.7947 | AW67: 0.0118
A68: 14.210 | B68: 6.6273 | C68: 6.6260 | D68: 2.97E-07 | E68: 6.82E-01 | F68: -0.0013 | G68: 3.692E-11 | H68: 6.076E-06 | I68: 6.43E-02 | J68: 6.43E-02 | K68: 0.4154 | L68: 0.5846 | M68: 1.186E+00 | N68: 1.124E+03 | O68: 7.283E+04 | P68: 1.011E+00 | Q68: 5.224E+02 | R68: 3.572E+03 | S68: 1.000E+00 | T68: 1.000E+00 | U68: 1.040E+09 | V68: 3.572E+03 | W68: 0.158 | X68: 0.999 | Y68: 1.002 | Z68: 0.011 | AA68: 0.998 | AB68: 1.296 | AC68: 0.000 | AD68: 0.000 | AE68: 1.000 | AF68: 1.296 | AG68: 5.999E-02 | AH68: 9.812E-06 | AO68: 1.996E-11 | AQ68: 8.117E-02 | AR68: 8.117E-02 | AT68: 0.081172 | AU68: 0.7935 | AW68: -0.0013
A69: 14.407 | B69: 6.7758 | C69: 6.7636 | D69: 2.11E-07 | E69: 8.59E-01 | F69: -0.0123 | G69: 1.928E-09 | H69: 4.391E-05 | I69: 6.40E-02 | J69: 6.39E-02 | K69: 0.4187 | L69: 0.5813 | M69: 1.131E+00 | N69: 7.975E+02 | O69: 5.152E+04 | P69: 1.008E+00 | Q69: 3.718E+02 | R69: 2.312E+03 | S69: 1.000E+00 | T69: 1.000E+00 | U69: 7.382E+08 | V69: 2.312E+03 | W69: 0.116 | X69: 0.999 | Y69: 1.002 | Z69: 0.008 | AA69: 0.997 | AB69: 1.229 | AC69: 0.000 | AD69: 0.000 | AE69: 1.000 | AF69: 1.229 | AG69: 6.114E-02 | AH69: 1.327E-05 | AO69: 2.836E-11 | AQ69: 8.249E-02 | AR69: 8.249E-02 | AT69: 0.082494 | AU69: 0.7925 | AW69: -0.0123
A70: 14.561 | B70: 6.9240 | C70: 6.9014 | D70: 1.50E-07 | E70: 1.07E+00 | F70: -0.0226 | G70: 3.858E-09 | H70: 6.211E-05 | I70: 6.37E-02 | J70: 6.36E-02 | K70: 0.4213 | L70: 0.5787 | M70: 1.093E+00 | N70: 5.668E+02 | O70: 3.652E+04 | P70: 1.005E+00 | Q70: 2.649E+02 | R70: 1.530E+03 | S70: 1.000E+00 | T70: 1.000E+00 | U70: 5.244E+08 | V70: 1.530E+03 | W70: 0.085 | X70: 0.998 | Y70: 1.001 | Z70: 0.005 | AA70: 0.996 | AB70: 1.174 | AC70: 0.000 | AD70: 0.000 | AE70: 1.000 | AF70: 1.174 | AG70: 6.200E-02 | AH70: 1.825E-05 | AO70: 4.017E-11 | AQ70: 8.348E-02 | AR70: 8.348E-02 | AT70: 0.083484 | AU70: 0.7919 | AW70: -0.0226
A71: 14.680 | B71: 7.0654 | C71: 7.0396 | D71: 1.09E-07 | E71: 1.16E+00 | F71: -0.0258 | G71: 3.008E-09 | H71: 5.484E-05 | I71: 6.35E-02 | J71: 6.34E-02 | K71: 0.4233 | L71: 0.5767 | M71: 1.067E+00 | N71: 4.093E+02 | O71: 2.631E+04 | P71: 1.004E+00 | Q71: 1.916E+02 | R71: 1.050E+03 | S71: 1.000E+00 | T71: 1.000E+00 | U71: 3.784E+08 | V71: 1.050E+03 | W71: 0.063 | X71: 0.998 | Y71: 1.001 | Z71: 0.004 | AA71: 0.995 | AB71: 1.132 | AC71: 0.000 | AD71: 0.000 | AE71: 1.000 | AF71: 1.132 | AG71: 6.259E-02 | AH71: 2.497E-05 | AO71: 5.593E-11 | AQ71: 8.418E-02 | AR71: 8.418E-02 | AT71: 0.084182 | AU71: 0.7914 | AW71: -0.0258
A72: 14.773 | B72: 7.1705 | C72: 7.1783 | D72: 8.54E-08 | E72: 1.69E+00 | F72: 0.0078 | G72: 1.753E-10 | H72: -1.324E-05 | I72: 6.33E-02 | J72: 6.33E-02 | K72: 0.4248 | L72: 0.5752 | M72: 1.052E+00 | N72: 3.214E+02 | O72: 2.063E+04 | P72: 1.003E+00 | Q72: 1.507E+02 | R72: 7.999E+02 | S72: 1.000E+00 | T72: 1.000E+00 | U72: 2.970E+08 | V72: 7.999E+02 | W72: 0.050 | X72: 0.997 | Y72: 1.001 | Z72: 0.003 | AA72: 0.993 | AB72: 1.106 | AC72: 0.000 | AD72: 0.000 | AE72: 1.000 | AF72: 1.106 | AG72: 6.289E-02 | AH72: 3.159E-05 | AO72: 7.153E-11 | AQ72: 8.456E-02 | AR72: 8.456E-02 | AT72: 0.084561 | AU72: 0.7911 | AW72: 0.0078
A73: 14.846 | B73: 7.3351 | C73: 7.3168 | D73: =IF(A73="","",10^-((((B73-P$12)/P$13)+7))/$AU73) -> 5.85E-08 | E73: 2.08E+00 | F73: -0.0183 | G73: 5.945E-10 | H73: 2.438E-05 | I73: 6.32E-02 | J73: 6.31E-02 | K73: 0.4261 | L73: 0.5739 | M73: 1.036E+00 | N73: 2.203E+02 | O73: 1.410E+04 | P73: 1.002E+00 | Q73: 1.035E+02 | R73: 5.287E+02 | S73: 1.000E+00 | T73: 1.000E+00 | U73: 2.032E+08 | V73: 5.287E+02 | W73: 0.034 | X73: 0.995 | Y73: 1.000 | Z73: 0.002 | AA73: 0.990 | AB73: 1.074 | AC73: 0.000 | AD73: 0.000 | AE73: 1.000 | AF73: 1.074 | AG73: 6.330E-02 | AH73: 4.586E-05 | AO73: 1.048E-10 | AQ73: 8.505E-02 | AR73: 8.505E-02 | AT73: 0.085048 | AU73: 0.7908 | AW73: -0.0183
A74: 14.906 | B74: 7.4488 | C74: 7.4555 | D74: 4.50E-08 | E74: 2.89E+00 | F74: 0.0066 | G74: 5.606E-11 | H74: -7.487E-06 | I74: 6.31E-02 | J74: 6.31E-02 | K74: 0.4270 | L74: 0.5730 | M74: 1.027E+00 | N74: 1.697E+02 | O74: 1.085E+04 | P74: 1.002E+00 | Q74: 7.992E+01 | R74: 3.998E+02 | S74: 1.000E+00 | T74: 1.000E+00 | U74: 1.564E+08 | V74: 3.998E+02 | W74: 0.027 | X74: 0.994 | Y74: 1.000 | Z74: 0.002 | AA74: 0.987 | AB74: 1.057 | AC74: 0.000 | AD74: 0.000 | AE74: 1.000 | AF74: 1.057 | AG74: 6.347E-02 | AH74: 5.934E-05 | AO74: 1.366E-10 | AQ74: 8.528E-02 | AR74: 8.528E-02 | AT74: 0.085280 | AU74: 0.7906 | AW74: 0.0066
A75: 14.957 | B75: 7.6457 | C75: 7.5934 | D75: 2.86E-08 | E75: 3.20E+00 | F75: -0.0524 | G75: 2.678E-09 | H75: 5.175E-05 | I75: 6.30E-02 | J75: 6.29E-02 | K75: 0.4279 | L75: 0.5721 | M75: 1.017E+00 | N75: 1.082E+02 | O75: 6.886E+03 | P75: 1.001E+00 | Q75: 5.116E+01 | R75: 2.487E+02 | S75: 1.000E+00 | T75: 1.000E+00 | U75: 9.934E+07 | V75: 2.487E+02 | W75: 0.017 | X75: 0.991 | Y75: 1.000 | Z75: 0.001 | AA75: 0.980 | AB75: 1.034 | AC75: 0.000 | AD75: 0.000 | AE75: 1.000 | AF75: 1.034 | AG75: 6.372E-02 | AH75: 9.286E-05 | AO75: 2.154E-10 | AQ75: 8.560E-02 | AR75: 8.560E-02 | AT75: 0.085605 | AU75: 0.7904 | AW75: -0.0524
A76: 15.004 | B76: 7.7642 | C76: 7.7303 | D76: 2.18E-08 | E76: 2.47E+00 | F76: -0.0339 | G76: 1.092E-09 | H76: 3.305E-05 | I76: 6.29E-02 | J76: 6.29E-02 | K76: 0.4286 | L76: 0.5714 | M76: 1.013E+00 | N76: 8.258E+01 | O76: 5.240E+03 | P76: 1.001E+00 | Q76: 3.919E+01 | R76: 1.878E+02 | S76: 1.000E+00 | T76: 1.000E+00 | U76: 7.561E+07 | V76: 1.878E+02 | W76: 0.013 | X76: 0.988 | Y76: 1.000 | Z76: 0.001 | AA76: 0.974 | AB76: 1.024 | AC76: 0.000 | AD76: 0.000 | AE76: 1.000 | AF76: 1.024 | AG76: 6.378E-02 | AH76: 1.215E-04 | AO76: 2.835E-10 | AQ76: 8.573E-02 | AR76: 8.573E-02 | AT76: 0.085730 | AU76: 0.7903 | AW76: -0.0339
A77: 15.051 | B77: 7.8786 | C77: 7.8659 | D77: 1.67E-08 | E77: 2.68E+00 | F77: -0.0126 | G77: 1.713E-10 | H77: 1.309E-05 | I77: 6.28E-02 | J77: 6.28E-02 | K77: 0.4294 | L77: 0.5706 | M77: 1.010E+00 | N77: 6.369E+01 | O77: 4.026E+03 | P77: 1.001E+00 | Q77: 3.035E+01 | R77: 1.435E+02 | S77: 1.000E+00 | T77: 1.000E+00 | U77: 5.810E+07 | V77: 1.435E+02 | W77: 0.010 | X77: 0.984 | Y77: 1.000 | Z77: 0.001 | AA77: 0.967 | AB77: 1.016 | AC77: 0.000 | AD77: 0.000 | AE77: 1.000 | AF77: 1.016 | AG77: 6.380E-02 | AH77: 1.572E-04 | AO77: 3.695E-10 | AQ77: 8.582E-02 | AR77: 8.582E-02 | AT77: 0.085825 | AU77: 0.7903 | AW77: -0.0126
A78: 15.103 | B78: 8.0312 | C78: 8.0006 | D78: 1.18E-08 | E78: 2.32E+00 | F78: -0.0306 | G78: 1.369E-09 | H78: 3.701E-05 | I78: 6.27E-02 | J78: 6.27E-02 | K78: 0.4302 | L78: 0.5698 | M78: 1.007E+00 | N78: 4.511E+01 | O78: 2.832E+03 | P78: 1.000E+00 | Q78: 2.166E+01 | R78: 1.006E+02 | S78: 1.000E+00 | T78: 1.000E+00 | U78: 4.088E+07 | V78: 1.006E+02 | W78: 0.007 | X78: 0.978 | Y78: 1.000 | Z78: 0.000 | AA78: 0.954 | AB78: 1.006 | AC78: 0.000 | AD78: 0.000 | AE78: 1.000 | AF78: 1.006 | AG78: 6.381E-02 | AH78: 2.217E-04 | AO78: 5.262E-10 | AQ78: 8.594E-02 | AR78: 8.594E-02 | AT78: 0.085942 | AU78: 0.7902 | AW78: -0.0306
A79: 15.164 | B79: 8.1355 | C79: 8.1349 | D79: 9.26E-09 | E79: 1.83E+00 | F79: -0.0006 | G79: 7.513E-13 | H79: 8.668E-07 | I79: 6.26E-02 | J79: 6.26E-02 | K79: 0.4312 | L79: 0.5688 | M79: 1.006E+00 | N79: 3.569E+01 | O79: 2.228E+03 | P79: 1.000E+00 | Q79: 1.725E+01 | R79: 7.903E+01 | S79: 1.000E+00 | T79: 1.000E+00 | U79: 3.215E+07 | V79: 7.903E+01 | W79: 0.006 | X79: 0.972 | Y79: 1.000 | Z79: 0.000 | AA79: 0.942 | AB79: 1.000 | AC79: 0.000 | AD79: 0.000 | AE79: 1.000 | AF79: 1.000 | AG79: 6.375E-02 | AH79: 2.796E-04 | AO79: 6.706E-10 | AQ79: 8.599E-02 | AR79: 8.599E-02 | AT79: 0.085991 | AU79: 0.7902 | AW79: -0.0006
A80: 15.240 | B80: 8.2851 | C80: 8.2692 | D80: 6.56E-09 | E80: 1.66E+00 | F80: -0.0159 | G80: 8.439E-10 | H80: 2.905E-05 | I80: 6.25E-02 | J80: 6.24E-02 | K80: 0.4325 | L80: 0.5675 | M80: 1.004E+00 | N80: 2.558E+01 | O80: 1.578E+03 | P80: 1.000E+00 | Q80: 1.251E+01 | R80: 5.607E+01 | S80: 1.000E+00 | T80: 1.000E+00 | U80: 2.278E+07 | V80: 5.607E+01 | W80: 0.004 | X80: 0.961 | Y80: 0.999 | Z80: 0.000 | AA80: 0.920 | AB80: 0.991 | AC80: 0.000 | AD80: 0.000 | AE80: 1.000 | AF80: 0.991 | AG80: 6.367E-02 | AH80: 3.893E-04 | AO80: 9.492E-10 | AQ80: 8.608E-02 | AR80: 8.608E-02 | AT80: 0.086082 | AU80: 0.7901 | AW80: -0.0159
A81: 15.337 | B81: 8.4163 | C81: 8.4039 | D81: 4.85E-09 | E81: 1.07E+00 | F81: -0.0124 | G81: 8.404E-10 | H81: 2.899E-05 | I81: 6.23E-02 | J81: 6.23E-02 | K81: 0.4340 | L81: 0.5660 | M81: 1.003E+00 | N81: 1.917E+01 | O81: 1.167E+03 | P81: 1.000E+00 | Q81: 9.512E+00 | R81: 4.161E+01 | S81: 1.000E+00 | T81: 1.000E+00 | U81: 1.684E+07 | V81: 4.161E+01 | W81: 0.003 | X81: 0.948 | Y81: 0.999 | Z81: 0.000 | AA81: 0.895 | AB81: 0.983 | AC81: 0.000 | AD81: 0.000 | AE81: 1.000 | AF81: 0.983 | AG81: 6.354E-02 | AH81: 5.181E-04 | AO81: 1.289E-09 | AQ81: 8.615E-02 | AR81: 8.615E-02 | AT81: 0.086149 | AU81: 0.7901 | AW81: -0.0124
A82: 15.463 | B82: 8.5163 | C82: 8.5390 | D82: 3.86E-09 | E82: 9.98E-01 | F82: 0.0227 | G82: 4.356E-09 | H82: -6.600E-05 | I82: 6.21E-02 | J82: 6.21E-02 | K82: 0.4360 | L82: 0.5640 | M82: 1.002E+00 | N82: 1.543E+01 | O82: 9.272E+02 | P82: 1.000E+00 | Q82: 7.762E+00 | R82: 3.321E+01 | S82: 1.000E+00 | T82: 1.000E+00 | U82: 1.338E+07 | V82: 3.321E+01 | W82: 0.002 | X82: 0.935 | Y82: 0.999 | Z82: 0.000 | AA82: 0.871 | AB82: 0.975 | AC82: 0.000 | AD82: 0.000 | AE82: 1.000 | AF82: 0.975 | AG82: 6.333E-02 | AH82: 6.412E-04 | AO82: 1.630E-09 | AQ82: 8.617E-02 | AR82: 8.617E-02 | AT82: 0.086168 | AU82: 0.7900 | AW82: 0.0227
A83: 15.625 | B83: 8.7112 | C83: 8.6743 | D83: 2.46E-09 | E83: 8.32E-01 | F83: -0.0369 | G83: 2.112E-08 | H83: 1.453E-04 | I83: 6.18E-02 | J83: 6.16E-02 | K83: 0.4386 | L83: 0.5614 | M83: 1.001E+00 | N83: 1.021E+01 | O83: 5.920E+02 | P83: 1.000E+00 | Q83: 5.317E+00 | R83: 2.151E+01 | S83: 1.000E+00 | T83: 1.000E+00 | U83: 8.539E+06 | V83: 2.151E+01 | W83: 0.001 | X83: 0.902 | Y83: 0.998 | Z83: 0.000 | AA83: 0.812 | AB83: 0.957 | AC83: 0.000 | AD83: 0.000 | AE83: 1.000 | AF83: 0.957 | AG83: 6.307E-02 | AH83: 9.646E-04 | AO83: 2.568E-09 | AQ83: 8.636E-02 | AR83: 8.636E-02 | AT83: 0.086360 | AU83: 0.7899 | AW83: -0.0369
A84: 15.834 | B84: 8.8076 | C84: 8.8099 | D84: 1.97E-09 | E84: 4.74E-01 | F84: 0.0023 | G84: 1.234E-10 | H84: -1.111E-05 | I84: 6.14E-02 | J84: 6.14E-02 | K84: 0.4419 | L84: 0.5581 | M84: 1.001E+00 | N84: 8.378E+00 | O84: 4.743E+02 | P84: 1.000E+00 | Q84: 4.458E+00 | R84: 1.742E+01 | S84: 1.000E+00 | T84: 1.000E+00 | U84: 6.839E+06 | V84: 1.742E+01 | W84: 0.001 | X84: 0.881 | Y84: 0.998 | Z84: 0.000 | AA84: 0.776 | AB84: 0.945 | AC84: 0.000 | AD84: 0.000 | AE84: 1.000 | AF84: 0.945 | AG84: 6.272E-02 | AH84: 1.169E-03 | AO84: 3.231E-09 | AQ84: 8.637E-02 | AR84: 8.637E-02 | AT84: 0.086369 | AU84: 0.7899 | AW84: 0.0023
A85: 16.097 | B85: 8.9355 | C85: 8.9457 | D85: 1.47E-09 | E85: 4.56E-01 | F85: 0.0102 | G85: 3.696E-09 | H85: -6.080E-05 | I85: 6.10E-02 | J85: 6.10E-02 | K85: 0.4459 | L85: 0.5541 | M85: 1.001E+00 | N85: 6.496E+00 | O85: 3.535E+02 | P85: 1.000E+00 | Q85: 3.576E+00 | R85: 1.322E+01 | S85: 1.000E+00 | T85: 1.000E+00 | U85: 5.094E+06 | V85: 1.322E+01 | W85: 0.001 | X85: 0.846 | Y85: 0.997 | Z85: 0.000 | AA85: 0.720 | AB85: 0.926 | AC85: 0.000 | AD85: 0.000 | AE85: 1.000 | AF85: 0.926 | AG85: 6.227E-02 | AH85: 1.497E-03 | AO85: 4.377E-09 | AQ85: 8.645E-02 | AR85: 8.645E-02 | AT85: 0.086452 | AU85: 0.7899 | AW85: 0.0102
A86: 16.423 | B86: 9.0741 | C86: 9.0817 | D86: 1.07E-09 | E86: 3.94E-01 | F86: 0.0076 | G86: 2.982E-09 | H86: -5.460E-05 | I86: 6.04E-02 | J86: 6.05E-02 | K86: 0.4509 | L86: 0.5491 | M86: 1.001E+00 | N86: 4.994E+00 | O86: 2.571E+02 | P86: 1.000E+00 | Q86: 2.872E+00 | R86: 9.872E+00 | S86: 1.000E+00 | T86: 1.000E+00 | U86: 3.701E+06 | V86: 9.872E+00 | W86: 0.001 | X86: 0.800 | Y86: 0.996 | Z86: 0.000 | AA86: 0.652 | AB86: 0.900 | AC86: 0.000 | AD86: 0.000 | AE86: 1.000 | AF86: 0.900 | AG86: 6.172E-02 | AH86: 1.929E-03 | AO86: 6.091E-09 | AQ86: 8.658E-02 | AR86: 8.658E-02 | AT86: 0.086583 | AU86: 0.7898 | AW86: 0.0076
A87: 16.815 | B87: 9.2162 | C87: 9.2178 | D87: 7.70E-10 | E87: 3.55E-01 | F87: 0.0016 | G87: 1.804E-10 | H87: -1.343E-05 | I87: 5.98E-02 | J87: 5.98E-02 | K87: 0.4567 | L87: 0.5433 | M87: 1.000E+00 | N87: 3.879E+00 | O87: 1.856E+02 | P87: 1.000E+00 | Q87: 2.350E+00 | R87: 7.391E+00 | S87: 1.000E+00 | T87: 1.000E+00 | U87: 2.668E+06 | V87: 7.391E+00 | W87: 0.000 | X87: 0.742 | Y87: 0.995 | Z87: 0.000 | AA87: 0.574 | AB87: 0.866 | AC87: 0.000 | AD87: 0.000 | AE87: 1.000 | AF87: 0.866 | AG87: 6.107E-02 | AH87: 2.457E-03 | AO87: 8.558E-09 | AQ87: 8.675E-02 | AR87: 8.675E-02 | AT87: 0.086751 | AU87: 0.7897 | AW87: 0.0016
A88: 17.271 | B88: 9.3748 | C88: 9.3539 | D88: 5.34E-10 | E88: 2.75E-01 | F88: -0.0209 | G88: 4.058E-08 | H88: 2.015E-04 | I88: 5.91E-02 | J88: 5.89E-02 | K88: 0.4634 | L88: 0.5366 | M88: 1.000E+00 | N88: 2.998E+00 | O88: 1.290E+02 | P88: 1.000E+00 | Q88: 1.937E+00 | R88: 5.432E+00 | S88: 1.000E+00 | T88: 1.000E+00 | U88: 1.852E+06 | V88: 5.432E+00 | W88: 0.000 | X88: 0.666 | Y88: 0.992 | Z88: 0.000 | AA88: 0.484 | AB88: 0.817 | AC88: 0.000 | AD88: 0.000 | AE88: 1.000 | AF88: 0.817 | AG88: 6.033E-02 | AH88: 3.141E-03 | AO88: 1.251E-08 | AQ88: 8.702E-02 | AR88: 8.702E-02 | AT88: 0.087024 | AU88: 0.7895 | AW88: -0.0209
A89: 17.781 | B89: 9.4782 | C89: 9.4901 | D89: 4.21E-10 | E89: 2.26E-01 | F89: 0.0119 | G89: 1.501E-08 | H89: -1.225E-04 | I89: 5.83E-02 | J89: 5.84E-02 | K89: 0.4706 | L89: 0.5294 | M89: 1.000E+00 | N89: 2.575E+00 | O89: 1.019E+02 | P89: 1.000E+00 | Q89: 1.739E+00 | R89: 4.492E+00 | S89: 1.000E+00 | T89: 1.000E+00 | U89: 1.459E+06 | V89: 4.492E+00 | W89: 0.000 | X89: 0.612 | Y89: 0.990 | Z89: 0.000 | AA89: 0.425 | AB89: 0.778 | AC89: 0.000 | AD89: 0.000 | AE89: 1.000 | AF89: 0.778 | AG89: 5.951E-02 | AH89: 3.608E-03 | AO89: 1.612E-08 | AQ89: 8.704E-02 | AR89: 8.704E-02 | AT89: 0.087041 | AU89: 0.7895 | AW89: 0.0119
A90: 18.326 | B90: 9.6143 | C90: 9.6262 | D90: 3.08E-10 | E90: 2.37E-01 | F90: 0.0119 | G90: 1.597E-08 | H90: -1.264E-04 | I90: 5.74E-02 | J90: 5.76E-02 | K90: 0.4782 | L90: 0.5218 | M90: 1.000E+00 | N90: 2.151E+00 | O90: 7.470E+01 | P90: 1.000E+00 | Q90: 1.540E+00 | R90: 3.551E+00 | S90: 1.000E+00 | T90: 1.000E+00 | U90: 1.066E+06 | V90: 3.551E+00 | W90: 0.000 | X90: 0.535 | Y90: 0.987 | Z90: 0.000 | AA90: 0.351 | AB90: 0.719 | AC90: 0.000 | AD90: 0.000 | AE90: 1.000 | AF90: 0.719 | AG90: 5.867E-02 | AH90: 4.258E-03 | AO90: 2.242E-08 | AQ90: 8.722E-02 | AR90: 8.722E-02 | AT90: 0.087224 | AU90: 0.7893 | AW90: 0.0119
A91: 18.883 | B91: 9.7397 | C91: 9.7624 | D91: 2.31E-10 | E91: 2.84E-01 | F91: =IF(A91="","",IF(C91="","0,00001",(IF(ABS(C91-B91)<0.00001,0.00001,C91-B91)))) -> 0.0227 | G91: 5.666E-08 | H91: -2.380E-04 | I91: 5.66E-02 | J91: 5.69E-02 | K91: 0.4856 | L91: 0.5144 | M91: 1.000E+00 | N91: 1.862E+00 | O91: 5.621E+01 | P91: 1.000E+00 | Q91: 1.405E+00 | R91: 2.910E+00 | S91: 1.000E+00 | T91: 1.000E+00 | U91: 7.990E+05 | V91: 2.910E+00 | W91: 0.000 | X91: 0.463 | Y91: 0.982 | Z91: 0.000 | AA91: 0.288 | AB91: 0.657 | AC91: 0.000 | AD91: 0.000 | AE91: 1.000 | AF91: 0.657 | AG91: 5.783E-02 | AH91: 4.847E-03 | AO91: 3.039E-08 | AQ91: 8.735E-02 | AR91: 8.735E-02 | AT91: 0.087352 | AU91: 0.7893 | AW91: 0.0227
A92: 19.426 | B92: 9.9258 | C92: 9.8983 | D92: =IF(A92="","",10^-((((B92-P$12)/P$13)+7))/$AU92) -> 1.50E-10 | E92: 2.76E-01 | F92: -0.0275 | G92: 7.199E-08 | H92: =IF(A92="","",I92-J92) -> 2.683E-04 | I92: =IF(A92="","",L92*I$18+K92*E$19) -> 5.58E-02 | J92: =IF(A92="","",D92 -$AC$9/AU92^2/D92+L92*(W92*$B$11+X92*$C$11+Y92*$D$11+Z92*$E$11+AA92*$F$11+AB92*$G$11+AC92*$H$11)+K92*(AD92*$B$18+AE92*$C$18+AF92*$D$18)) -> 5.56E-02 | K92: =IF(A92="","",A92/(A92+$G$16)) -> 0.4927 | L92: =IF(A92="","",$E$16/(A92+$G$16)) -> 0.5073 | M92: =IF($A92="","",(1+(V$5*$AU92^(-2*V$4))*$D92+(V$6*$AU92^(-4*V$4-2))*$D92^2+(V$7*$AU92^(-6*V$4-6))*$D92^3+(V$8*$AU92^(-8*V$4-12))*$D92^4+(V$9*$AU92^(-10*V$4-20))*$D92^5+(V$10*$AU92^(-12*V$4-30))*$D92^6)) -> 1.000E+00 | N92: =IF($A92="","",(1+(W$5*$AU92^(-2*W$4))*$D92+(W$6*$AU92^(-4*W$4-2))*$D92^2+(W$7*$AU92^(-6*W$4-6))*$D92^3+(W$8*$AU92^(-8*W$4-12))*$D92^4+(W$9*$AU92^(-10*W$4-20))*$D92^5+(W$10*$AU92^(-12*W$4-30))*$D92^6)) -> 1.561E+00 | O92: =IF($A92="","",(1+(X$5*$AU92^(-2*X$4))*$D92+(X$6*$AU92^(-4*X$4-2))*$D92^2+(X$7*$AU92^(-6*X$4-6))*$D92^3+(X$8*$AU92^(-8*X$4-12))*$D92^4+(X$9*$AU92^(-10*X$4-20))*$D92^5+(X$10*$AU92^(-12*X$4-30))*$D92^6)) -> 3.693E+01 | P92: =IF($A92="","",(1+(Y$5*$AU92^(-2*Y$4))*$D92+(Y$6*$AU92^(-4*Y$4-2))*$D92^2+(Y$7*$AU92^(-6*Y$4-6))*$D92^3+(Y$8*$AU92^(-8*Y$4-12))*$D92^4+(Y$9*$AU92^(-10*Y$4-20))*$D92^5+(Y$10*$AU92^(-12*Y$4-30))*$D92^6)) -> 1.000E+00 | Q92: =IF($A92="","",(1+(Z$5*$AU92^(-2*Z$4))*$D92+(Z$6*$AU92^(-4*Z$4-2))*$D92^2+(Z$7*$AU92^(-6*Z$4-6))*$D92^3+(Z$8*$AU92^(-8*Z$4-12))*$D92^4+(Z$9*$AU92^(-10*Z$4-20))*$D92^5+(Z$10*$AU92^(-12*Z$4-30))*$D92^6)) -> 1.264E+00 | R92: =IF($A92="","",(1+(AA$5*$AU92^(-2*AA$4))*$D92+(AA$6*$AU92^(-4*AA$4-2))*$D92^2+(AA$7*$AU92^(-6*AA$4-6))*$D92^3+(AA$8*$AU92^(-8*AA$4-12))*$D92^4+(AA$9*$AU92^(-10*AA$4-20))*$D92^5+(AA$10*$AU92^(-12*AA$4-30))*$D92^6)) -> 2.243E+00 | S92: =IF($A92="","",(1+(AB$5*$AU92^(-2*AB$4))*$D92+(AB$6*$AU92^(-4*AB$4-2))*$D92^2+(AB$7*$AU92^(-6*AB$4-6))*$D92^3+(AB$8*$AU92^(-8*AB$4-12))*$D92^4+(AB$9*$AU92^(-10*AB$4-20))*$D92^5+(AB$10*$AU92^(-12*AB$4-30))*$D92^6)) -> 1.000E+00 | T92: =IF($A92="","",(1+(AC$5*$AU92^(-2*AC$4))*$D92+(AC$6*$AU92^(-4*AC$4-2))*$D92^2)) -> 1.000E+00 | U92: =IF($A92="","",(1+(AD$5*$AU92^(-2*AD$4))*$D92+(AD$6*$AU92^(-4*AD$4-2))*$D92^2)) -> 5.203E+05 | V92: =IF($A92="","",(1+(AE$5*$AU92^(-2*AE$4))*$D92+(AE$6*$AU92^(-4*AE$4-2))*$D92^2)) -> 2.243E+00 | W92: =IF($A92="","",((V$5*$AU92^(-2*V$4))*$D92+2*(V$6*$AU92^(-4*V$4-2))*$D92^2+3*(V$7*$AU92^(-6*V$4-6))*$D92^3+4*(V$8*$AU92^(-8*V$4-12))*$D92^4+5*(V$9*$AU92^(-10*V$4-20))*$D92^5+6*(V$10*$AU92^(-12*V$4-30))*$D92^6)/M92) -> 0.000 | X92: =IF($A92="","",((W$5*$AU92^(-2*W$4))*$D92+2*(W$6*$AU92^(-4*W$4-2))*$D92^2+3*(W$7*$AU92^(-6*W$4-6))*$D92^3+4*(W$8*$AU92^(-8*W$4-12))*$D92^4+5*(W$9*$AU92^(-10*W$4-20))*$D92^5+6*(W$10*$AU92^(-12*W$4-30))*$D92^6)/N92) -> 0.360 | Y92: =IF($A92="","",((X$5*$AU92^(-2*X$4))*$D92+2*(X$6*$AU92^(-4*X$4-2))*$D92^2+3*(X$7*$AU92^(-6*X$4-6))*$D92^3+4*(X$8*$AU92^(-8*X$4-12))*$D92^4+5*(X$9*$AU92^(-10*X$4-20))*$D92^5+6*(X$10*$AU92^(-12*X$4-30))*$D92^6)/O92) -> 0.973 | Z92: =IF($A92="","",((Y$5*$AU92^(-2*Y$4))*$D92+2*(Y$6*$AU92^(-4*Y$4-2))*$D92^2+3*(Y$7*$AU92^(-6*Y$4-6))*$D92^3+4*(Y$8*$AU92^(-8*Y$4-12))*$D92^4+5*(Y$9*$AU92^(-10*Y$4-20))*$D92^5+6*(Y$10*$AU92^(-12*Y$4-30))*$D92^6)/P92) -> 0.000 | AA92: =IF($A92="","",((Z$5*$AU92^(-2*Z$4))*$D92+2*(Z$6*$AU92^(-4*Z$4-2))*$D92^2+3*(Z$7*$AU92^(-6*Z$4-6))*$D92^3+4*(Z$8*$AU92^(-8*Z$4-12))*$D92^4+5*(Z$9*$AU92^(-10*Z$4-20))*$D92^5+6*(Z$10*$AU92^(-12*Z$4-30))*$D92^6)/Q92) -> 0.209 | AB92: =IF($A92="","",((AA$5*$AU92^(-2*AA$4))*$D92+2*(AA$6*$AU92^(-4*AA$4-2))*$D92^2+3*(AA$7*$AU92^(-6*AA$4-6))*$D92^3+4*(AA$8*$AU92^(-8*AA$4-12))*$D92^4+5*(AA$9*$AU92^(-10*AA$4-20))*$D92^5+6*(AA$10*$AU92^(-12*AA$4-30))*$D92^6)/R92) -> 0.554 | AC92: =IF($A92="","",((AB$5*$AU92^(-2*AB$4))*$D92+2*(AB$6*$AU92^(-4*AB$4-2))*$D92^2+3*(AB$7*$AU92^(-6*AB$4-6))*$D92^3+4*(AB$8*$AU92^(-8*AB$4-12))*$D92^4+5*(AB$9*$AU92^(-10*AB$4-20))*$D92^5+6*(AB$10*$AU92^(-12*AB$4-30))*$D92^6)/S92) -> 0.000 | AD92: =IF($A92="","",((AC$5*$AU92^(-2*AC$4))*$D92+2*(AC$6*$AU92^(-4*AC$4-2))*$D92^2)/T92) -> 0.000 | AE92: =IF($A92="","",((AD$5*$AU92^(-2*AD$4))*$D92+2*(AD$6*$AU92^(-4*AD$4-2))*$D92^2)/U92) -> 1.000 | AF92: =IF($A92="","",((AE$5*$AU92^(-2*AE$4))*$D92+2*(AE$6*$AU92^(-4*AE$4-2))*$D92^2)/V92) -> 0.554 | AG92: =IF(B$11=0,"",IF($A92="","",0.5*B$11*$L92*(1*V$4^2+(V$5*$AU92^(-2*V$4))*$D92*(V$4+1)^2+(V$6*$AU92^(-4*V$4-2))*$D92^2*(V$4+2)^2+(V$7*$AU92^(-6*V$4-6))*$D92^3*(V$4+3)^2+(V$8*$AU92^(-8*V$4-12))*$D92^4*(V$4+4)^2+(V$9*$AU92^(-10*V$4-20))*$D92^5*(V$4+5)^2+(V$10*$AU92^(-12*V$4-30))*$D92^6*(V$4+6)^2)/M92)) -> 5.704E-02 | AH92: =IF(C$11=0,"",IF($A92="","",0.5*C$11*$L92*(1*W$4^2+(W$5*$AU92^(-2*W$4))*$D92*(W$4+1)^2+(W$6*$AU92^(-4*W$4-2))*$D92^2*(W$4+2)^2+(W$7*$AU92^(-6*W$4-6))*$D92^3*(W$4+3)^2+(W$8*$AU92^(-8*W$4-12))*$D92^4*(W$4+4)^2+(W$9*$AU92^(-10*W$4-20))*$D92^5*(W$4+5)^2+(W$10*$AU92^(-12*W$4-30))*$D92^6*(W$4+6)^2)/N92)) -> 5.701E-03 | AI92: =IF(D$11=0,"",IF($A92="","",0.5*D$11*$L92*(1*X$4^2+(X$5*$AU92^(-2*X$4))*$D92*(X$4+1)^2+(X$6*$AU92^(-4*X$4-2))*$D92^2*(X$4+2)^2+(X$7*$AU92^(-6*X$4-6))*$D92^3*(X$4+3)^2+(X$8*$AU92^(-8*X$4-12))*$D92^4*(X$4+4)^2+(X$9*$AU92^(-10*X$4-20))*$D92^5*(X$4+5)^2+(X$10*$AU92^(-12*X$4-30))*$D92^6*(X$4+6)^2)/O92)) ->  | AJ92: =IF(E$11=0,"",IF($A92="","",0.5*E$11*$L92*(1*Y$4^2+(Y$5*$AU92^(-2*Y$4))*$D92*(Y$4+1)^2+(Y$6*$AU92^(-4*Y$4-2))*$D92^2*(Y$4+2)^2+(Y$7*$AU92^(-6*Y$4-6))*$D92^3*(Y$4+3)^2+(Y$8*$AU92^(-8*Y$4-12))*$D92^4*(Y$4+4)^2+(Y$9*$AU92^(-10*Y$4-20))*$D92^5*(Y$4+5)^2+(Y$10*$AU92^(-12*Y$4-30))*$D92^6*(Y$4+6)^2)/P92)) ->  | AK92: =IF(F$11=0,"",IF($A92="","",0.5*F$11*$L92*(1*Z$4^2+(Z$5*$AU92^(-2*Z$4))*$D92*(Z$4+1)^2+(Z$6*$AU92^(-4*Z$4-2))*$D92^2*(Z$4+2)^2+(Z$7*$AU92^(-6*Z$4-6))*$D92^3*(Z$4+3)^2+(Z$8*$AU92^(-8*Z$4-12))*$D92^4*(Z$4+4)^2+(Z$9*$AU92^(-10*Z$4-20))*$D92^5*(Z$4+5)^2+(Z$10*$AU92^(-12*Z$4-30))*$D92^6*(Z$4+6)^2)/Q92)) ->  | AL92: =IF(G$11=0,"",IF($A92="","",0.5*G$11*$L92*(1*AA$4^2+(AA$5*$AU92^(-2*AA$4))*$D92*(AA$4+1)^2+(AA$6*$AU92^(-4*AA$4-2))*$D92^2*(AA$4+2)^2+(AA$7*$AU92^(-6*AA$4-6))*$D92^3*(AA$4+3)^2+(AA$8*$AU92^(-8*AA$4-12))*$D92^4*(AA$4+4)^2+(AA$9*$AU92^(-10*AA$4-20))*$D92^5*(AA$4+5)^2+(AA$10*$AU92^(-12*AA$4-30))*$D92^6*(AA$4+6)^2)/R92)) ->  | AM92: =IF(H$11=0,"",IF($A92="","",0.5*H$11*$L92*(1*AB$4^2+(AB$5*$AU92^(-2*AB$4))*$D92*(AB$4+1)^2+(AB$6*$AU92^(-4*AB$4-2))*$D92^2*(AB$4+2)^2+(AB$7*$AU92^(-6*AB$4-6))*$D92^3*(AB$4+3)^2+(AB$8*$AU92^(-8*AB$4-12))*$D92^4*(AB$4+4)^2+(AB$9*$AU92^(-10*AB$4-20))*$D92^5*(AB$4+5)^2+(AB$10*$AU92^(-12*AB$4-30))*$D92^6*(AB$4+6)^2)/S92)) ->  | AN92: =IF(B$18=0,"",IF($A92="","",0.5*B$18*$K92*(1*AC$4^2+(AC$5*$AU92^(-2*AC$4))*$D92*(AC$4+1)^2+(AC$6*$AU92^(-4*AC$4-2))*$D92^2*(AC$4+2)^2)/T92)) ->  | AO92: =IF(C$18=0,"",IF($A92="","",0.5*C$18*$K92*(1*AD$4^2+(AD$5*$AU92^(-2*AD$4))*$D92*(AD$4+1)^2+(AD$6*$AU92^(-4*AD$4-2))*$D92^2*(AD$4+2)^2)/U92)) -> 4.735E-08 | AP92: =IF(D$18=0,"",IF($A92="","",0.5*D$18*$K92*(1*AE$4^2+(AE$5*$AU92^(-2*AE$4))*$D92*(AE$4+1)^2+(AE$6*$AU92^(-4*AE$4-2))*$D92^2*(AE$4+2)^2)/V92)) ->  | AQ92: 8.778E-02 | AR92: 8.778E-02 | AT92: 0.087779 | AU92: 0.7890 | AW92: -0.0275
A93: 19.933 | B93: 10.0320 | C93: 10.0343 | D93: 1.18E-10 | E93: 2.92E-01 | F93: 0.0023 | G93: 4.269E-10 | H93: -2.066E-05 | I93: 5.51E-02 | J93: 5.51E-02 | K93: 0.4992 | L93: 0.5008 | M93: 1.000E+00 | N93: 1.440E+00 | O93: 2.913E+01 | P93: 1.000E+00 | Q93: 1.207E+00 | R93: 1.973E+00 | S93: 1.000E+00 | T93: 1.000E+00 | U93: 4.075E+05 | V93: 1.973E+00 | W93: 0.000 | X93: 0.305 | Y93: 0.966 | Z93: 0.000 | AA93: 0.171 | AB93: 0.493 | AC93: 0.000 | AD93: 0.000 | AE93: 1.000 | AF93: 0.493 | AG93: 5.631E-02 | AH93: 6.104E-03 | AO93: 6.125E-08 | AQ93: 8.779E-02 | AR93: 8.779E-02 | AT93: 0.087791 | AU93: 0.7890 | AW93: 0.0023
A94: 20.389 | B94: 10.2029 | C94: 10.1701 | D94: 7.95E-11 | E94: 2.97E-01 | F94: -0.0328 | G94: 6.319E-08 | H94: 2.514E-04 | I94: 5.45E-02 | J94: 5.43E-02 | K94: 0.5048 | L94: 0.4952 | M94: 1.000E+00 | N94: 1.297E+00 | O94: 1.997E+01 | P94: 1.000E+00 | Q94: 1.139E+00 | R94: 1.656E+00 | S94: 1.000E+00 | T94: 1.000E+00 | U94: 2.748E+05 | V94: 1.656E+00 | W94: 0.000 | X94: 0.229 | Y94: 0.950 | Z94: 0.000 | AA94: 0.122 | AB94: 0.396 | AC94: 0.000 | AD94: 0.000 | AE94: 1.000 | AF94: 0.396 | AG94: 5.568E-02 | AH94: 6.702E-03 | AO94: 9.184E-08 | AQ94: 8.807E-02 | AR94: 8.807E-02 | AT94: 0.088066 | AU94: 0.7888 | AW94: -0.0328
A95: 20.788 | B95: 10.2906 | C95: 10.3057 | D95: 6.49E-11 | E95: 2.95E-01 | F95: 0.0151 | G95: 1.039E-08 | H95: -1.019E-04 | I95: 5.40E-02 | J95: 5.41E-02 | K95: 0.5097 | L95: 0.4903 | M95: 1.000E+00 | N95: 1.242E+00 | O95: 1.650E+01 | P95: 1.000E+00 | Q95: 1.114E+00 | R95: 1.536E+00 | S95: 1.000E+00 | T95: 1.000E+00 | U95: 2.246E+05 | V95: 1.536E+00 | W95: 0.000 | X95: 0.195 | Y95: 0.939 | Z95: 0.000 | AA95: 0.102 | AB95: 0.349 | AC95: 0.000 | AD95: 0.000 | AE95: 1.000 | AF95: 0.349 | AG95: 5.513E-02 | AH95: 6.926E-03 | AO95: 1.135E-07 | AQ95: 8.801E-02 | AR95: 8.801E-02 | AT95: 0.088007 | AU95: 0.7888 | AW95: 0.0151
A96: 21.132 | B96: 10.4179 | C96: 10.4413 | D96: 4.84E-11 | E96: 4.13E-01 | F96: 0.0234 | G96: 1.830E-08 | H96: -1.353E-04 | I96: 5.35E-02 | J96: 5.37E-02 | K96: 0.5138 | L96: 0.4862 | M96: 1.000E+00 | N96: 1.181E+00 | O96: 1.256E+01 | P96: 1.000E+00 | Q96: 1.085E+00 | R96: 1.400E+00 | S96: 1.000E+00 | T96: 1.000E+00 | U96: 1.675E+05 | V96: 1.400E+00 | W96: 0.000 | X96: 0.153 | Y96: 0.920 | Z96: 0.000 | AA96: 0.078 | AB96: 0.286 | AC96: 0.000 | AD96: 0.000 | AE96: 1.000 | AF96: 0.286 | AG96: 5.467E-02 | AH96: 7.226E-03 | AO96: 1.533E-07 | AQ96: 8.809E-02 | AR96: 8.809E-02 | AT96: 0.088091 | AU96: 0.7888 | AW96: 0.0234
A97: 21.432 | B97: 10.5543 | C97: 10.5767 | D97: 3.54E-11 | E97: 5.65E-01 | F97: 0.0224 | G97: 1.262E-08 | H97: -1.123E-04 | I97: 5.31E-02 | J97: 5.32E-02 | K97: 0.5173 | L97: 0.4827 | M97: 1.000E+00 | N97: 1.132E+00 | O97: 9.442E+00 | P97: 1.000E+00 | Q97: 1.062E+00 | R97: 1.292E+00 | S97: 1.000E+00 | T97: 1.000E+00 | U97: 1.223E+05 | V97: 1.292E+00 | W97: 0.000 | X97: 0.117 | Y97: 0.894 | Z97: 0.000 | AA97: 0.058 | AB97: 0.226 | AC97: 0.000 | AD97: 0.000 | AE97: 1.000 | AF97: 0.226 | AG97: 5.428E-02 | AH97: 7.483E-03 | AO97: 2.114E-07 | AQ97: 8.819E-02 | AR97: 8.819E-02 | AT97: 0.088188 | AU97: 0.7887 | AW97: 0.0224
A98: 21.699 | B98: 10.7344 | C98: 10.7123 | D98: 2.34E-11 | E98: 6.02E-01 | F98: -0.0221 | G98: 9.828E-09 | H98: 9.914E-05 | I98: 5.28E-02 | J98: 5.27E-02 | K98: 0.5204 | L98: 0.4796 | M98: 1.000E+00 | N98: 1.087E+00 | O98: 6.574E+00 | P98: 1.000E+00 | Q98: 1.041E+00 | R98: 1.193E+00 | S98: 1.000E+00 | T98: 1.000E+00 | U98: 8.081E+04 | V98: 1.193E+00 | W98: 0.000 | X98: 0.080 | Y98: 0.848 | Z98: 0.000 | AA98: 0.039 | AB98: 0.162 | AC98: 0.000 | AD98: 0.000 | AE98: 1.000 | AF98: 0.162 | AG98: 5.393E-02 | AH98: 7.741E-03 | AO98: 3.220E-07 | AQ98: 8.837E-02 | AR98: 8.837E-02 | AT98: 0.088369 | AU98: 0.7886 | AW98: -0.0221
A99: 21.951 | B99: 10.8682 | C99: 10.8483 | D99: 1.72E-11 | E99: 4.86E-01 | F99: -0.0198 | G99: 7.446E-09 | H99: 8.629E-05 | I99: 5.25E-02 | J99: 5.24E-02 | K99: 0.5233 | L99: 0.4767 | M99: 1.000E+00 | N99: 1.064E+00 | O99: 5.096E+00 | P99: 1.000E+00 | Q99: 1.030E+00 | R99: 1.142E+00 | S99: 1.000E+00 | T99: 1.000E+00 | U99: 5.938E+04 | V99: 1.142E+00 | W99: 0.000 | X99: 0.060 | Y99: 0.804 | Z99: 0.000 | AA99: 0.029 | AB99: 0.124 | AC99: 0.000 | AD99: 0.000 | AE99: 1.000 | AF99: 0.124 | AG99: 5.361E-02 | AH99: 7.862E-03 | AO99: 4.406E-07 | AQ99: 8.843E-02 | AR99: 8.843E-02 | AT99: 0.088433 | AU99: 0.7886 | AW99: -0.0198
A100: 22.207 | B100: 10.9816 | C100: 10.9850 | D100: 1.32E-11 | E100: 4.48E-01 | F100: 0.0033 | G100: 2.304E-10 | H100: -1.518E-05 | I100: 5.22E-02 | J100: 5.22E-02 | K100: 0.5261 | L100: 0.4739 | M100: 1.000E+00 | N100: 1.049E+00 | O100: 4.154E+00 | P100: 1.000E+00 | Q100: 1.023E+00 | R100: 1.109E+00 | S100: 1.000E+00 | T100: 1.000E+00 | U100: 4.573E+04 | V100: 1.109E+00 | W100: 0.000 | X100: 0.047 | Y100: 0.759 | Z100: 0.000 | AA100: 0.023 | AB100: 0.098 | AC100: 0.000 | AD100: 0.000 | AE100: 1.000 | AF100: 0.098 | AG100: 5.328E-02 | AH100: 7.924E-03 | AO100: 5.753E-07 | AQ100: 8.845E-02 | AR100: 8.845E-02 | AT100: 0.088453 | AU100: 0.7885 | AW100: 0.0033
A101: 22.491 | B101: 11.1106 | C101: 11.1222 | D101: 9.83E-12 | E101: 4.65E-01 | F101: 0.0116 | G101: 3.529E-09 | H101: -5.940E-05 | I101: 5.18E-02 | J101: 5.19E-02 | K101: 0.5293 | L101: 0.4707 | M101: 1.000E+00 | N101: 1.037E+00 | O101: 3.343E+00 | P101: 1.000E+00 | Q101: 1.017E+00 | R101: 1.081E+00 | S101: 1.000E+00 | T101: 1.000E+00 | U101: 3.398E+04 | V101: 1.081E+00 | W101: 0.000 | X101: 0.035 | Y101: 0.701 | Z101: 0.000 | AA101: 0.017 | AB101: 0.075 | AC101: 0.000 | AD101: 0.000 | AE101: 1.000 | AF101: 0.075 | AG101: 5.292E-02 | AH101: 7.967E-03 | AO101: 7.789E-07 | AQ101: 8.851E-02 | AR101: 8.851E-02 | AT101: 0.088508 | AU101: 0.7885 | AW101: 0.0116
A102: 22.831 | B102: 11.2727 | C102: 11.2597 | D102: 6.77E-12 | E102: 4.07E-01 | F102: -0.0130 | G102: 6.831E-09 | H102: 8.265E-05 | I102: 5.14E-02 | J102: 5.13E-02 | K102: 0.5331 | L102: 0.4669 | M102: 1.000E+00 | N102: 1.025E+00 | O102: 2.613E+00 | P102: 1.000E+00 | Q102: 1.012E+00 | R102: 1.056E+00 | S102: 1.000E+00 | T102: 1.000E+00 | U102: 2.339E+04 | V102: 1.056E+00 | W102: 0.000 | X102: 0.025 | Y102: 0.617 | Z102: 0.000 | AA102: 0.012 | AB102: 0.053 | AC102: 0.000 | AD102: 0.000 | AE102: 1.000 | AF102: 0.053 | AG102: 5.250E-02 | AH102: 7.992E-03 | AO102: 1.139E-06 | AQ102: 8.867E-02 | AR102: 8.867E-02 | AT102: 0.088670 | AU102: 0.7884 | AW102: -0.0130
A103: 23.264 | B103: 11.4187 | C103: 11.3972 | D103: 4.84E-12 | E103: 2.79E-01 | F103: -0.0216 | G103: 3.132E-08 | H103: 1.770E-04 | I103: 5.09E-02 | J103: 5.07E-02 | K103: 0.5377 | L103: 0.4623 | M103: 1.000E+00 | N103: 1.018E+00 | O103: 2.152E+00 | P103: 1.000E+00 | Q103: 1.008E+00 | R103: 1.040E+00 | S103: 1.000E+00 | T103: 1.000E+00 | U103: 1.671E+04 | V103: 1.040E+00 | W103: 0.000 | X103: 0.018 | Y103: 0.535 | Z103: 0.000 | AA103: 0.008 | AB103: 0.038 | AC103: 0.000 | AD103: 0.000 | AE103: 1.000 | AF103: 0.038 | AG103: 5.198E-02 | AH103: 7.968E-03 | AO103: 1.609E-06 | AQ103: 8.883E-02 | AR103: 8.883E-02 | AT103: 0.088831 | AU103: 0.7883 | AW103: -0.0216
A104: 23.838 | B104: 11.5446 | C104: 11.5346 | D104: 3.62E-12 | E104: 2.19E-01 | F104: -0.0100 | G104: 1.146E-08 | H104: 1.071E-04 | I104: 5.02E-02 | J104: 5.01E-02 | K104: 0.5438 | L104: 0.4562 | M104: 1.000E+00 | N104: 1.013E+00 | O104: 1.862E+00 | P104: 1.000E+00 | Q104: 1.006E+00 | R104: 1.030E+00 | S104: 1.000E+00 | T104: 1.000E+00 | U104: 1.251E+04 | V104: 1.030E+00 | W104: 0.000 | X104: 0.013 | Y104: 0.463 | Z104: 0.000 | AA104: 0.006 | AB104: 0.029 | AC104: 0.000 | AD104: 0.000 | AE104: 1.000 | AF104: 0.029 | AG104: 5.130E-02 | AH104: 7.899E-03 | AO104: 2.174E-06 | AQ104: 8.894E-02 | AR104: 8.894E-02 | AT104: 0.088943 | AU104: 0.7882 | AW104: -0.0100
A105: 24.625 | B105: 11.7164 | C105: 11.6717 | D105: 2.44E-12 | E105: 1.66E-01 | F105: -0.0447 | G105: 4.430E-07 | H105: 6.656E-04 | I105: 4.93E-02 | J105: 4.87E-02 | K105: 0.5518 | L105: 0.4482 | M105: 1.000E+00 | N105: 1.009E+00 | O105: 1.580E+00 | P105: 1.000E+00 | Q105: 1.004E+00 | R105: 1.020E+00 | S105: 1.000E+00 | T105: 1.000E+00 | U105: 8.417E+03 | V105: 1.020E+00 | W105: 0.000 | X105: 0.009 | Y105: 0.367 | Z105: 0.000 | AA105: 0.004 | AB105: 0.020 | AC105: 0.000 | AD105: 0.000 | AE105: 1.000 | AF105: 0.020 | AG105: 5.039E-02 | AH105: 7.793E-03 | AO105: 3.278E-06 | AQ105: 8.942E-02 | AR105: 8.942E-02 | AT105: 0.089418 | AU105: 0.7879 | AW105: -0.0447
A106: 25.731 | B106: 11.8420 | C106: 11.8088 | D106: 1.83E-12 | E106: 8.39E-02 | F106: =IF(A106="","",IF(C106="","0,00001",(IF(ABS(C106-B106)<0.00001,0.00001,C106-B106)))) -> -0.0331 | G106: =IF(A106="","",IF(ABS(E106)<0.00001,(0.00001^M$20)*(ABS(H106)^I$20)*ABS(F106)^K$20,((ABS(E106))^M$20)*((ABS(H106))^I$20)*ABS(F106)^K$20)) -> 4.377E-07 | H106: 6.616E-04 | I106: 4.81E-02 | J106: 4.75E-02 | K106: 0.5627 | L106: 0.4373 | M106: 1.000E+00 | N106: 1.007E+00 | O106: 1.434E+00 | P106: 1.000E+00 | Q106: 1.003E+00 | R106: 1.015E+00 | S106: 1.000E+00 | T106: 1.000E+00 | U106: 6.302E+03 | V106: 1.015E+00 | W106: 0.000 | X106: 0.007 | Y106: 0.303 | Z106: 0.000 | AA106: 0.003 | AB106: 0.015 | AC106: 0.000 | AD106: 0.000 | AE106: 1.000 | AF106: 0.015 | AG106: 4.918E-02 | AH106: 7.622E-03 | AO106: 4.464E-06 | AQ106: =IF(A106="","",SUM(AG106:AP106)+0.5*(D106+ $AC$9/AU106^2/D106)+$L106*$S$16+$K106*$T$16) -> 8.968E-02 | AR106: =IF(A106="","",AQ106+$L106*S$14+$K106*$T$14) -> 8.968E-02 | AT106: 0.089680 | AU106: =IF(A106="","",10^(-$P$16*($AT106^0.5/(1+$AT106^0.5)-$P$17*$AT106))) -> 0.7878 | AW106: =IF(C106="","",C106-B106) -> -0.0331
A107: 27.323 | B107: 11.9284 | C107: 11.9460 | D107: 1.50E-12 | E107: =IF(A107="","",IF(A108="",(B107-B106)/(A107-A106),((B108-B107)/(A108-A107)+(B107-B106)/(A107-A106))/2)) -> 5.24E-02 | F107: 0.0176 | G107: 2.054E-07 | H107: -4.532E-04 | I107: 4.65E-02 | J107: 4.70E-02 | K107: 0.5774 | L107: 0.4226 | M107: 1.000E+00 | N107: 1.006E+00 | O107: 1.356E+00 | P107: 1.000E+00 | Q107: 1.003E+00 | R107: 1.012E+00 | S107: 1.000E+00 | T107: 1.000E+00 | U107: 5.166E+03 | V107: 1.012E+00 | W107: 0.000 | X107: 0.006 | Y107: 0.262 | Z107: 0.000 | AA107: 0.003 | AB107: 0.012 | AC107: 0.000 | AD107: 0.000 | AE107: 1.000 | AF107: 0.012 | AG107: 4.752E-02 | AH107: 7.375E-03 | AO107: 5.588E-06 | AQ107: 8.948E-02 | AR107: 8.948E-02 | AT107: 0.089481 | AU107: 0.7879 | AW107: 0.0176
A108: 29.684 | B108: 12.0478 | C108: 12.0831 | D108: 1.14E-12 | E108: 4.99E-02 | F108: 0.0353 | G108: 1.471E-06 | H108: -1.213E-03 | I108: 4.43E-02 | J108: 4.55E-02 | K108: 0.5975 | L108: 0.4025 | M108: 1.000E+00 | N108: 1.004E+00 | O108: 1.270E+00 | P108: 1.000E+00 | Q108: 1.002E+00 | R108: 1.009E+00 | S108: 1.000E+00 | T108: 1.000E+00 | U108: 3.924E+03 | V108: 1.009E+00 | W108: 0.000 | X108: 0.004 | Y108: 0.213 | Z108: 0.000 | AA108: 0.002 | AB108: 0.009 | AC108: 0.000 | AD108: 0.000 | AE108: 1.000 | AF108: 0.009 | AG108: 4.526E-02 | AH108: 7.034E-03 | AO108: 7.613E-06 | AQ108: 8.959E-02 | AR108: 8.959E-02 | AT108: 0.089591 | AU108: 0.7878 | AW108: 0.0353
A109: 33.323 | B109: 12.2270 | C109: 12.2197 | D109: 7.53E-13 | E109: 3.42E-02 | F109: -0.0073 | G109: 1.311E-07 | H109: 3.621E-04 | I109: 4.13E-02 | J109: 4.09E-02 | K109: 0.6249 | L109: 0.3751 | M109: 1.000E+00 | N109: 1.003E+00 | O109: 1.178E+00 | P109: 1.000E+00 | Q109: 1.001E+00 | R109: 1.006E+00 | S109: 1.000E+00 | T109: 1.000E+00 | U109: 2.594E+03 | V109: 1.006E+00 | W109: 0.000 | X109: 0.003 | Y109: 0.151 | Z109: 0.000 | AA109: 0.001 | AB109: 0.006 | AC109: 0.000 | AD109: 0.000 | AE109: 1.000 | AF109: 0.006 | AG109: 4.217E-02 | AH109: 6.563E-03 | AO109: 1.204E-05 | AQ109: 9.105E-02 | AR109: 9.105E-02 | AT109: 0.091047 | AU109: 0.7869 | AW109: -0.0073
A110: 39.274 | B110: 12.3407 | C110: 12.3569 | D110: 5.80E-13 | E110: 1.72E-02 | F110: 0.0162 | G110: 1.138E-06 | H110: -1.067E-03 | I110: 3.71E-02 | J110: 3.82E-02 | K110: 0.6626 | L110: 0.3374 | M110: 1.000E+00 | N110: 1.002E+00 | O110: 1.137E+00 | P110: 1.000E+00 | Q110: 1.001E+00 | R110: 1.005E+00 | S110: 1.000E+00 | T110: 1.000E+00 | U110: 1.997E+03 | V110: 1.005E+00 | W110: 0.000 | X110: 0.002 | Y110: 0.121 | Z110: 0.000 | AA110: 0.001 | AB110: 0.005 | AC110: 0.000 | AD110: 0.000 | AE110: 0.999 | AF110: 0.005 | AG110: 3.794E-02 | AH110: 5.908E-03 | AO110: 1.659E-05 | AQ110: 9.125E-02 | AR110: 9.125E-02 | AT110: 0.091250 | AU110: 0.7868 | AW110: 0.0162
A111: 50.000 | B111: 12.5043 | C111: 12.4935 | D111: 3.99E-13 | E111: 1.53E-02 | F111: -0.0108 | G111: 1.012E-06 | H111: 1.006E-03 | I111: 3.14E-02 | J111: 3.04E-02 | K111: 0.7143 | L111: 0.2857 | M111: 1.000E+00 | N111: 1.001E+00 | O111: 1.094E+00 | P111: 1.000E+00 | Q111: 1.001E+00 | R111: 1.003E+00 | S111: 1.000E+00 | T111: 1.000E+00 | U111: 1.368E+03 | V111: 1.003E+00 | W111: 0.000 | X111: 0.001 | Y111: 0.086 | Z111: 0.000 | AA111: 0.001 | AB111: 0.003 | AC111: 0.000 | AD111: 0.000 | AE111: 0.999 | AF111: 0.003 | AG111: 3.213E-02 | AH111: 5.006E-03 | AO111: 2.611E-05 | AQ111: 9.355E-02 | AR111: 9.355E-02 | AT111: 0.093545 | AU111: 0.7854 | AW111: -0.0108
D112: =IF(A112="","",10^-((((B112-P$12)/P$13)+7))/$AU112) ->  | H112: =IF(A112="","",I112-J112) ->  | I112: =IF(A112="","",L112*I$18+K112*E$19) ->  | J112: =IF(A112="","",D112 -$AC$9/AU112^2/D112+L112*(W112*$B$11+X112*$C$11+Y112*$D$11+Z112*$E$11+AA112*$F$11+AB112*$G$11+AC112*$H$11)+K112*(AD112*$B$18+AE112*$C$18+AF112*$D$18)) ->  | K112: =IF(A112="","",A112/(A112+$G$16)) ->  | L112: =IF(A112="","",$E$16/(A112+$G$16)) ->  | M112: =IF($A112="","",(1+(V$5*$AU112^(-2*V$4))*$D112+(V$6*$AU112^(-4*V$4-2))*$D112^2+(V$7*$AU112^(-6*V$4-6))*$D112^3+(V$8*$AU112^(-8*V$4-12))*$D112^4+(V$9*$AU112^(-10*V$4-20))*$D112^5+(V$10*$AU112^(-12*V$4-30))*$D112^6)) ->  | N112: =IF($A112="","",(1+(W$5*$AU112^(-2*W$4))*$D112+(W$6*$AU112^(-4*W$4-2))*$D112^2+(W$7*$AU112^(-6*W$4-6))*$D112^3+(W$8*$AU112^(-8*W$4-12))*$D112^4+(W$9*$AU112^(-10*W$4-20))*$D112^5+(W$10*$AU112^(-12*W$4-30))*$D112^6)) ->  | O112: =IF($A112="","",(1+(X$5*$AU112^(-2*X$4))*$D112+(X$6*$AU112^(-4*X$4-2))*$D112^2+(X$7*$AU112^(-6*X$4-6))*$D112^3+(X$8*$AU112^(-8*X$4-12))*$D112^4+(X$9*$AU112^(-10*X$4-20))*$D112^5+(X$10*$AU112^(-12*X$4-30))*$D112^6)) ->  | P112: =IF($A112="","",(1+(Y$5*$AU112^(-2*Y$4))*$D112+(Y$6*$AU112^(-4*Y$4-2))*$D112^2+(Y$7*$AU112^(-6*Y$4-6))*$D112^3+(Y$8*$AU112^(-8*Y$4-12))*$D112^4+(Y$9*$AU112^(-10*Y$4-20))*$D112^5+(Y$10*$AU112^(-12*Y$4-30))*$D112^6)) ->  | Q112: =IF($A112="","",(1+(Z$5*$AU112^(-2*Z$4))*$D112+(Z$6*$AU112^(-4*Z$4-2))*$D112^2+(Z$7*$AU112^(-6*Z$4-6))*$D112^3+(Z$8*$AU112^(-8*Z$4-12))*$D112^4+(Z$9*$AU112^(-10*Z$4-20))*$D112^5+(Z$10*$AU112^(-12*Z$4-30))*$D112^6)) ->  | R112: =IF($A112="","",(1+(AA$5*$AU112^(-2*AA$4))*$D112+(AA$6*$AU112^(-4*AA$4-2))*$D112^2+(AA$7*$AU112^(-6*AA$4-6))*$D112^3+(AA$8*$AU112^(-8*AA$4-12))*$D112^4+(AA$9*$AU112^(-10*AA$4-20))*$D112^5+(AA$10*$AU112^(-12*AA$4-30))*$D112^6)) ->  | S112: =IF($A112="","",(1+(AB$5*$AU112^(-2*AB$4))*$D112+(AB$6*$AU112^(-4*AB$4-2))*$D112^2+(AB$7*$AU112^(-6*AB$4-6))*$D112^3+(AB$8*$AU112^(-8*AB$4-12))*$D112^4+(AB$9*$AU112^(-10*AB$4-20))*$D112^5+(AB$10*$AU112^(-12*AB$4-30))*$D112^6)) ->  | T112: =IF($A112="","",(1+(AC$5*$AU112^(-2*AC$4))*$D112+(AC$6*$AU112^(-4*AC$4-2))*$D112^2)) ->  | U112: =IF($A112="","",(1+(AD$5*$AU112^(-2*AD$4))*$D112+(AD$6*$AU112^(-4*AD$4-2))*$D112^2)) ->  | V112: =IF($A112="","",(1+(AE$5*$AU112^(-2*AE$4))*$D112+(AE$6*$AU112^(-4*AE$4-2))*$D112^2)) ->  | W112: =IF($A112="","",((V$5*$AU112^(-2*V$4))*$D112+2*(V$6*$AU112^(-4*V$4-2))*$D112^2+3*(V$7*$AU112^(-6*V$4-6))*$D112^3+4*(V$8*$AU112^(-8*V$4-12))*$D112^4+5*(V$9*$AU112^(-10*V$4-20))*$D112^5+6*(V$10*$AU112^(-12*V$4-30))*$D112^6)/M112) ->  | X112: =IF($A112="","",((W$5*$AU112^(-2*W$4))*$D112+2*(W$6*$AU112^(-4*W$4-2))*$D112^2+3*(W$7*$AU112^(-6*W$4-6))*$D112^3+4*(W$8*$AU112^(-8*W$4-12))*$D112^4+5*(W$9*$AU112^(-10*W$4-20))*$D112^5+6*(W$10*$AU112^(-12*W$4-30))*$D112^6)/N112) ->  | Y112: =IF($A112="","",((X$5*$AU112^(-2*X$4))*$D112+2*(X$6*$AU112^(-4*X$4-2))*$D112^2+3*(X$7*$AU112^(-6*X$4-6))*$D112^3+4*(X$8*$AU112^(-8*X$4-12))*$D112^4+5*(X$9*$AU112^(-10*X$4-20))*$D112^5+6*(X$10*$AU112^(-12*X$4-30))*$D112^6)/O112) ->  | Z112: =IF($A112="","",((Y$5*$AU112^(-2*Y$4))*$D112+2*(Y$6*$AU112^(-4*Y$4-2))*$D112^2+3*(Y$7*$AU112^(-6*Y$4-6))*$D112^3+4*(Y$8*$AU112^(-8*Y$4-12))*$D112^4+5*(Y$9*$AU112^(-10*Y$4-20))*$D112^5+6*(Y$10*$AU112^(-12*Y$4-30))*$D112^6)/P112) ->  | AA112: =IF($A112="","",((Z$5*$AU112^(-2*Z$4))*$D112+2*(Z$6*$AU112^(-4*Z$4-2))*$D112^2+3*(Z$7*$AU112^(-6*Z$4-6))*$D112^3+4*(Z$8*$AU112^(-8*Z$4-12))*$D112^4+5*(Z$9*$AU112^(-10*Z$4-20))*$D112^5+6*(Z$10*$AU112^(-12*Z$4-30))*$D112^6)/Q112) ->  | AB112: =IF($A112="","",((AA$5*$AU112^(-2*AA$4))*$D112+2*(AA$6*$AU112^(-4*AA$4-2))*$D112^2+3*(AA$7*$AU112^(-6*AA$4-6))*$D112^3+4*(AA$8*$AU112^(-8*AA$4-12))*$D112^4+5*(AA$9*$AU112^(-10*AA$4-20))*$D112^5+6*(AA$10*$AU112^(-12*AA$4-30))*$D112^6)/R112) ->  | AC112: =IF($A112="","",((AB$5*$AU112^(-2*AB$4))*$D112+2*(AB$6*$AU112^(-4*AB$4-2))*$D112^2+3*(AB$7*$AU112^(-6*AB$4-6))*$D112^3+4*(AB$8*$AU112^(-8*AB$4-12))*$D112^4+5*(AB$9*$AU112^(-10*AB$4-20))*$D112^5+6*(AB$10*$AU112^(-12*AB$4-30))*$D112^6)/S112) ->  | AD112: =IF($A112="","",((AC$5*$AU112^(-2*AC$4))*$D112+2*(AC$6*$AU112^(-4*AC$4-2))*$D112^2)/T112) ->  | AE112: =IF($A112="","",((AD$5*$AU112^(-2*AD$4))*$D112+2*(AD$6*$AU112^(-4*AD$4-2))*$D112^2)/U112) ->  | AF112: =IF($A112="","",((AE$5*$AU112^(-2*AE$4))*$D112+2*(AE$6*$AU112^(-4*AE$4-2))*$D112^2)/V112) ->  | AG112: =IF(B$11=0,"",IF($A112="","",0.5*B$11*$L112*(1*V$4^2+(V$5*$AU112^(-2*V$4))*$D112*(V$4+1)^2+(V$6*$AU112^(-4*V$4-2))*$D112^2*(V$4+2)^2+(V$7*$AU112^(-6*V$4-6))*$D112^3*(V$4+3)^2+(V$8*$AU112^(-8*V$4-12))*$D112^4*(V$4+4)^2+(V$9*$AU112^(-10*V$4-20))*$D112^5*(V$4+5)^2+(V$10*$AU112^(-12*V$4-30))*$D112^6*(V$4+6)^2)/M112)) ->  | AH112: =IF(C$11=0,"",IF($A112="","",0.5*C$11*$L112*(1*W$4^2+(W$5*$AU112^(-2*W$4))*$D112*(W$4+1)^2+(W$6*$AU112^(-4*W$4-2))*$D112^2*(W$4+2)^2+(W$7*$AU112^(-6*W$4-6))*$D112^3*(W$4+3)^2+(W$8*$AU112^(-8*W$4-12))*$D112^4*(W$4+4)^2+(W$9*$AU112^(-10*W$4-20))*$D112^5*(W$4+5)^2+(W$10*$AU112^(-12*W$4-30))*$D112^6*(W$4+6)^2)/N112)) ->  | AI112: =IF(D$11=0,"",IF($A112="","",0.5*D$11*$L112*(1*X$4^2+(X$5*$AU112^(-2*X$4))*$D112*(X$4+1)^2+(X$6*$AU112^(-4*X$4-2))*$D112^2*(X$4+2)^2+(X$7*$AU112^(-6*X$4-6))*$D112^3*(X$4+3)^2+(X$8*$AU112^(-8*X$4-12))*$D112^4*(X$4+4)^2+(X$9*$AU112^(-10*X$4-20))*$D112^5*(X$4+5)^2+(X$10*$AU112^(-12*X$4-30))*$D112^6*(X$4+6)^2)/O112)) ->  | AJ112: =IF(E$11=0,"",IF($A112="","",0.5*E$11*$L112*(1*Y$4^2+(Y$5*$AU112^(-2*Y$4))*$D112*(Y$4+1)^2+(Y$6*$AU112^(-4*Y$4-2))*$D112^2*(Y$4+2)^2+(Y$7*$AU112^(-6*Y$4-6))*$D112^3*(Y$4+3)^2+(Y$8*$AU112^(-8*Y$4-12))*$D112^4*(Y$4+4)^2+(Y$9*$AU112^(-10*Y$4-20))*$D112^5*(Y$4+5)^2+(Y$10*$AU112^(-12*Y$4-30))*$D112^6*(Y$4+6)^2)/P112)) ->  | AK112: =IF(F$11=0,"",IF($A112="","",0.5*F$11*$L112*(1*Z$4^2+(Z$5*$AU112^(-2*Z$4))*$D112*(Z$4+1)^2+(Z$6*$AU112^(-4*Z$4-2))*$D112^2*(Z$4+2)^2+(Z$7*$AU112^(-6*Z$4-6))*$D112^3*(Z$4+3)^2+(Z$8*$AU112^(-8*Z$4-12))*$D112^4*(Z$4+4)^2+(Z$9*$AU112^(-10*Z$4-20))*$D112^5*(Z$4+5)^2+(Z$10*$AU112^(-12*Z$4-30))*$D112^6*(Z$4+6)^2)/Q112)) ->  | AL112: =IF(G$11=0,"",IF($A112="","",0.5*G$11*$L112*(1*AA$4^2+(AA$5*$AU112^(-2*AA$4))*$D112*(AA$4+1)^2+(AA$6*$AU112^(-4*AA$4-2))*$D112^2*(AA$4+2)^2+(AA$7*$AU112^(-6*AA$4-6))*$D112^3*(AA$4+3)^2+(AA$8*$AU112^(-8*AA$4-12))*$D112^4*(AA$4+4)^2+(AA$9*$AU112^(-10*AA$4-20))*$D112^5*(AA$4+5)^2+(AA$10*$AU112^(-12*AA$4-30))*$D112^6*(AA$4+6)^2)/R112)) ->  | AM112: =IF(H$11=0,"",IF($A112="","",0.5*H$11*$L112*(1*AB$4^2+(AB$5*$AU112^(-2*AB$4))*$D112*(AB$4+1)^2+(AB$6*$AU112^(-4*AB$4-2))*$D112^2*(AB$4+2)^2+(AB$7*$AU112^(-6*AB$4-6))*$D112^3*(AB$4+3)^2+(AB$8*$AU112^(-8*AB$4-12))*$D112^4*(AB$4+4)^2+(AB$9*$AU112^(-10*AB$4-20))*$D112^5*(AB$4+5)^2+(AB$10*$AU112^(-12*AB$4-30))*$D112^6*(AB$4+6)^2)/S112)) ->  | AN112: =IF(B$18=0,"",IF($A112="","",0.5*B$18*$K112*(1*AC$4^2+(AC$5*$AU112^(-2*AC$4))*$D112*(AC$4+1)^2+(AC$6*$AU112^(-4*AC$4-2))*$D112^2*(AC$4+2)^2)/T112)) ->  | AO112: =IF(C$18=0,"",IF($A112="","",0.5*C$18*$K112*(1*AD$4^2+(AD$5*$AU112^(-2*AD$4))*$D112*(AD$4+1)^2+(AD$6*$AU112^(-4*AD$4-2))*$D112^2*(AD$4+2)^2)/U112)) ->  | AP112: =IF(D$18=0,"",IF($A112="","",0.5*D$18*$K112*(1*AE$4^2+(AE$5*$AU112^(-2*AE$4))*$D112*(AE$4+1)^2+(AE$6*$AU112^(-4*AE$4-2))*$D112^2*(AE$4+2)^2)/V112)) -> 
D162: =IF(A162="","",10^-((((B162-P$12)/P$13)+7))/$AU162) ->  | H162: =IF(A162="","",I162-J162) ->  | I162: =IF(A162="","",L162*I$18+K162*E$19) ->  | J162: =IF(A162="","",D162 -$AC$9/AU162^2/D162+L162*(W162*$B$11+X162*$C$11+Y162*$D$11+Z162*$E$11+AA162*$F$11+AB162*$G$11+AC162*$H$11)+K162*(AD162*$B$18+AE162*$C$18+AF162*$D$18)) ->  | K162: =IF(A162="","",A162/(A162+$G$16)) ->  | L162: =IF(A162="","",$E$16/(A162+$G$16)) ->  | M162: =IF($A162="","",(1+(V$5*$AU162^(-2*V$4))*$D162+(V$6*$AU162^(-4*V$4-2))*$D162^2+(V$7*$AU162^(-6*V$4-6))*$D162^3+(V$8*$AU162^(-8*V$4-12))*$D162^4+(V$9*$AU162^(-10*V$4-20))*$D162^5+(V$10*$AU162^(-12*V$4-30))*$D162^6)) ->  | N162: =IF($A162="","",(1+(W$5*$AU162^(-2*W$4))*$D162+(W$6*$AU162^(-4*W$4-2))*$D162^2+(W$7*$AU162^(-6*W$4-6))*$D162^3+(W$8*$AU162^(-8*W$4-12))*$D162^4+(W$9*$AU162^(-10*W$4-20))*$D162^5+(W$10*$AU162^(-12*W$4-30))*$D162^6)) ->  | O162: =IF($A162="","",(1+(X$5*$AU162^(-2*X$4))*$D162+(X$6*$AU162^(-4*X$4-2))*$D162^2+(X$7*$AU162^(-6*X$4-6))*$D162^3+(X$8*$AU162^(-8*X$4-12))*$D162^4+(X$9*$AU162^(-10*X$4-20))*$D162^5+(X$10*$AU162^(-12*X$4-30))*$D162^6)) ->  | P162: =IF($A162="","",(1+(Y$5*$AU162^(-2*Y$4))*$D162+(Y$6*$AU162^(-4*Y$4-2))*$D162^2+(Y$7*$AU162^(-6*Y$4-6))*$D162^3+(Y$8*$AU162^(-8*Y$4-12))*$D162^4+(Y$9*$AU162^(-10*Y$4-20))*$D162^5+(Y$10*$AU162^(-12*Y$4-30))*$D162^6)) ->  | Q162: =IF($A162="","",(1+(Z$5*$AU162^(-2*Z$4))*$D162+(Z$6*$AU162^(-4*Z$4-2))*$D162^2+(Z$7*$AU162^(-6*Z$4-6))*$D162^3+(Z$8*$AU162^(-8*Z$4-12))*$D162^4+(Z$9*$AU162^(-10*Z$4-20))*$D162^5+(Z$10*$AU162^(-12*Z$4-30))*$D162^6)) ->  | R162: =IF($A162="","",(1+(AA$5*$AU162^(-2*AA$4))*$D162+(AA$6*$AU162^(-4*AA$4-2))*$D162^2+(AA$7*$AU162^(-6*AA$4-6))*$D162^3+(AA$8*$AU162^(-8*AA$4-12))*$D162^4+(AA$9*$AU162^(-10*AA$4-20))*$D162^5+(AA$10*$AU162^(-12*AA$4-30))*$D162^6)) ->  | S162: =IF($A162="","",(1+(AB$5*$AU162^(-2*AB$4))*$D162+(AB$6*$AU162^(-4*AB$4-2))*$D162^2+(AB$7*$AU162^(-6*AB$4-6))*$D162^3+(AB$8*$AU162^(-8*AB$4-12))*$D162^4+(AB$9*$AU162^(-10*AB$4-20))*$D162^5+(AB$10*$AU162^(-12*AB$4-30))*$D162^6)) ->  | T162: =IF($A162="","",(1+(AC$5*$AU162^(-2*AC$4))*$D162+(AC$6*$AU162^(-4*AC$4-2))*$D162^2)) ->  | U162: =IF($A162="","",(1+(AD$5*$AU162^(-2*AD$4))*$D162+(AD$6*$AU162^(-4*AD$4-2))*$D162^2)) ->  | V162: =IF($A162="","",(1+(AE$5*$AU162^(-2*AE$4))*$D162+(AE$6*$AU162^(-4*AE$4-2))*$D162^2)) ->  | W162: =IF($A162="","",((V$5*$AU162^(-2*V$4))*$D162+2*(V$6*$AU162^(-4*V$4-2))*$D162^2+3*(V$7*$AU162^(-6*V$4-6))*$D162^3+4*(V$8*$AU162^(-8*V$4-12))*$D162^4+5*(V$9*$AU162^(-10*V$4-20))*$D162^5+6*(V$10*$AU162^(-12*V$4-30))*$D162^6)/M162) ->  | X162: =IF($A162="","",((W$5*$AU162^(-2*W$4))*$D162+2*(W$6*$AU162^(-4*W$4-2))*$D162^2+3*(W$7*$AU162^(-6*W$4-6))*$D162^3+4*(W$8*$AU162^(-8*W$4-12))*$D162^4+5*(W$9*$AU162^(-10*W$4-20))*$D162^5+6*(W$10*$AU162^(-12*W$4-30))*$D162^6)/N162) ->  | Y162: =IF($A162="","",((X$5*$AU162^(-2*X$4))*$D162+2*(X$6*$AU162^(-4*X$4-2))*$D162^2+3*(X$7*$AU162^(-6*X$4-6))*$D162^3+4*(X$8*$AU162^(-8*X$4-12))*$D162^4+5*(X$9*$AU162^(-10*X$4-20))*$D162^5+6*(X$10*$AU162^(-12*X$4-30))*$D162^6)/O162) ->  | Z162: =IF($A162="","",((Y$5*$AU162^(-2*Y$4))*$D162+2*(Y$6*$AU162^(-4*Y$4-2))*$D162^2+3*(Y$7*$AU162^(-6*Y$4-6))*$D162^3+4*(Y$8*$AU162^(-8*Y$4-12))*$D162^4+5*(Y$9*$AU162^(-10*Y$4-20))*$D162^5+6*(Y$10*$AU162^(-12*Y$4-30))*$D162^6)/P162) ->  | AA162: =IF($A162="","",((Z$5*$AU162^(-2*Z$4))*$D162+2*(Z$6*$AU162^(-4*Z$4-2))*$D162^2+3*(Z$7*$AU162^(-6*Z$4-6))*$D162^3+4*(Z$8*$AU162^(-8*Z$4-12))*$D162^4+5*(Z$9*$AU162^(-10*Z$4-20))*$D162^5+6*(Z$10*$AU162^(-12*Z$4-30))*$D162^6)/Q162) ->  | AB162: =IF($A162="","",((AA$5*$AU162^(-2*AA$4))*$D162+2*(AA$6*$AU162^(-4*AA$4-2))*$D162^2+3*(AA$7*$AU162^(-6*AA$4-6))*$D162^3+4*(AA$8*$AU162^(-8*AA$4-12))*$D162^4+5*(AA$9*$AU162^(-10*AA$4-20))*$D162^5+6*(AA$10*$AU162^(-12*AA$4-30))*$D162^6)/R162) ->  | AC162: =IF($A162="","",((AB$5*$AU162^(-2*AB$4))*$D162+2*(AB$6*$AU162^(-4*AB$4-2))*$D162^2+3*(AB$7*$AU162^(-6*AB$4-6))*$D162^3+4*(AB$8*$AU162^(-8*AB$4-12))*$D162^4+5*(AB$9*$AU162^(-10*AB$4-20))*$D162^5+6*(AB$10*$AU162^(-12*AB$4-30))*$D162^6)/S162) ->  | AD162: =IF($A162="","",((AC$5*$AU162^(-2*AC$4))*$D162+2*(AC$6*$AU162^(-4*AC$4-2))*$D162^2)/T162) ->  | AE162: =IF($A162="","",((AD$5*$AU162^(-2*AD$4))*$D162+2*(AD$6*$AU162^(-4*AD$4-2))*$D162^2)/U162) ->  | AF162: =IF($A162="","",((AE$5*$AU162^(-2*AE$4))*$D162+2*(AE$6*$AU162^(-4*AE$4-2))*$D162^2)/V162) ->  | AG162: =IF(B$11=0,"",IF($A162="","",0.5*B$11*$L162*(1*V$4^2+(V$5*$AU162^(-2*V$4))*$D162*(V$4+1)^2+(V$6*$AU162^(-4*V$4-2))*$D162^2*(V$4+2)^2+(V$7*$AU162^(-6*V$4-6))*$D162^3*(V$4+3)^2+(V$8*$AU162^(-8*V$4-12))*$D162^4*(V$4+4)^2+(V$9*$AU162^(-10*V$4-20))*$D162^5*(V$4+5)^2+(V$10*$AU162^(-12*V$4-30))*$D162^6*(V$4+6)^2)/M162)) ->  | AH162: =IF(C$11=0,"",IF($A162="","",0.5*C$11*$L162*(1*W$4^2+(W$5*$AU162^(-2*W$4))*$D162*(W$4+1)^2+(W$6*$AU162^(-4*W$4-2))*$D162^2*(W$4+2)^2+(W$7*$AU162^(-6*W$4-6))*$D162^3*(W$4+3)^2+(W$8*$AU162^(-8*W$4-12))*$D162^4*(W$4+4)^2+(W$9*$AU162^(-10*W$4-20))*$D162^5*(W$4+5)^2+(W$10*$AU162^(-12*W$4-30))*$D162^6*(W$4+6)^2)/N162)) ->  | AI162: =IF(D$11=0,"",IF($A162="","",0.5*D$11*$L162*(1*X$4^2+(X$5*$AU162^(-2*X$4))*$D162*(X$4+1)^2+(X$6*$AU162^(-4*X$4-2))*$D162^2*(X$4+2)^2+(X$7*$AU162^(-6*X$4-6))*$D162^3*(X$4+3)^2+(X$8*$AU162^(-8*X$4-12))*$D162^4*(X$4+4)^2+(X$9*$AU162^(-10*X$4-20))*$D162^5*(X$4+5)^2+(X$10*$AU162^(-12*X$4-30))*$D162^6*(X$4+6)^2)/O162)) ->  | AJ162: =IF(E$11=0,"",IF($A162="","",0.5*E$11*$L162*(1*Y$4^2+(Y$5*$AU162^(-2*Y$4))*$D162*(Y$4+1)^2+(Y$6*$AU162^(-4*Y$4-2))*$D162^2*(Y$4+2)^2+(Y$7*$AU162^(-6*Y$4-6))*$D162^3*(Y$4+3)^2+(Y$8*$AU162^(-8*Y$4-12))*$D162^4*(Y$4+4)^2+(Y$9*$AU162^(-10*Y$4-20))*$D162^5*(Y$4+5)^2+(Y$10*$AU162^(-12*Y$4-30))*$D162^6*(Y$4+6)^2)/P162)) ->  | AK162: =IF(F$11=0,"",IF($A162="","",0.5*F$11*$L162*(1*Z$4^2+(Z$5*$AU162^(-2*Z$4))*$D162*(Z$4+1)^2+(Z$6*$AU162^(-4*Z$4-2))*$D162^2*(Z$4+2)^2+(Z$7*$AU162^(-6*Z$4-6))*$D162^3*(Z$4+3)^2+(Z$8*$AU162^(-8*Z$4-12))*$D162^4*(Z$4+4)^2+(Z$9*$AU162^(-10*Z$4-20))*$D162^5*(Z$4+5)^2+(Z$10*$AU162^(-12*Z$4-30))*$D162^6*(Z$4+6)^2)/Q162)) ->  | AL162: =IF(G$11=0,"",IF($A162="","",0.5*G$11*$L162*(1*AA$4^2+(AA$5*$AU162^(-2*AA$4))*$D162*(AA$4+1)^2+(AA$6*$AU162^(-4*AA$4-2))*$D162^2*(AA$4+2)^2+(AA$7*$AU162^(-6*AA$4-6))*$D162^3*(AA$4+3)^2+(AA$8*$AU162^(-8*AA$4-12))*$D162^4*(AA$4+4)^2+(AA$9*$AU162^(-10*AA$4-20))*$D162^5*(AA$4+5)^2+(AA$10*$AU162^(-12*AA$4-30))*$D162^6*(AA$4+6)^2)/R162)) ->  | AM162: =IF(H$11=0,"",IF($A162="","",0.5*H$11*$L162*(1*AB$4^2+(AB$5*$AU162^(-2*AB$4))*$D162*(AB$4+1)^2+(AB$6*$AU162^(-4*AB$4-2))*$D162^2*(AB$4+2)^2+(AB$7*$AU162^(-6*AB$4-6))*$D162^3*(AB$4+3)^2+(AB$8*$AU162^(-8*AB$4-12))*$D162^4*(AB$4+4)^2+(AB$9*$AU162^(-10*AB$4-20))*$D162^5*(AB$4+5)^2+(AB$10*$AU162^(-12*AB$4-30))*$D162^6*(AB$4+6)^2)/S162)) ->  | AN162: =IF(B$18=0,"",IF($A162="","",0.5*B$18*$K162*(1*AC$4^2+(AC$5*$AU162^(-2*AC$4))*$D162*(AC$4+1)^2+(AC$6*$AU162^(-4*AC$4-2))*$D162^2*(AC$4+2)^2)/T162)) ->  | AO162: =IF(C$18=0,"",IF($A162="","",0.5*C$18*$K162*(1*AD$4^2+(AD$5*$AU162^(-2*AD$4))*$D162*(AD$4+1)^2+(AD$6*$AU162^(-4*AD$4-2))*$D162^2*(AD$4+2)^2)/U162)) ->  | AP162: =IF(D$18=0,"",IF($A162="","",0.5*D$18*$K162*(1*AE$4^2+(AE$5*$AU162^(-2*AE$4))*$D162*(AE$4+1)^2+(AE$6*$AU162^(-4*AE$4-2))*$D162^2*(AE$4+2)^2)/V162)) -> 

Sheet Graphs (hidden)
C1: Titration curves and first derivatives overlay
A2: Source of data to plot/overlay
A3: TRUE | B3: FALSE | C3: =IF(Simulation!B41="","No Data","") ->  | D3: FALSE | F3: FALSE | G3: =IF(Simulation!D41="","No Data","") -> No Data | I3: Update curve(s) after any change in Simulation, Evaluation or Regression
A4: TRUE | B4: FALSE | C4: =IF(#REF!="","No Data","") ->  | D4: FALSE | F4: TRUE | G4: =IF(#REF!="","No Data","") ->  | I4: How to change the axis of a curve | N4: Data ID on curves
A5: TRUE | B5: FALSE | C5: =IF(Regression!B41="","No Data","") ->  | D5: FALSE | F5: FALSE | G5: =IF(Regression!C41="","No Data","") ->  | I5: How to copy/paste a curve
S9: Simulation | V9: Simulation with dispersion (random errors) | AA9: Evaluation | AD9: Evaluation with smoothing/interpolation | AI9: Regression raw data | AM9: Regression fitted curve
R10: Vol | S10: pH | T10: Vol | U10: dpH/dVol | V10: Vol | W10: pH | X10: Vol | Y10: dpH/dVol | Z10: Vol | AA10: pH | AB10: Vol | AC10: dpH/dVol | AD10: Vol | AE10: pH | AF10: Vol | AG10: dpH/dVol | AH10: Vol | AI10: pH | AJ10: Vol | AK10: dpH/dVol | AL10: Vol | AM10: pH | AN10: Vol | AO10: dpH/dVol
R11: 0 | S11: 1.805932709 | Z11: 0 | AA11: 2.265347788 | AH11: 0 | AI11: 2.280828266
R12: 2.157091709 | S12: 2.020435322 | Z12: 2.498869969 | AA12: 2.386136932 | AF12: 0.08333333333 | AG12: 0.01752098642 | AH12: 0.8968889408 | AI12: 2.471416604
R13: 4.096038429 | S13: 2.234937934 | Z13: 4.617606643 | AA13: 2.664111848 | AF13: 0.25 | AG13: 0.01836283553 | AH13: 1.864139493 | AI13: 2.662466106
R14: 5.753962365 | S14: 2.449440546 | Z14: 6.27832077 | AA14: 2.784189851 | AF14: 0.4166666666 | AG14: 0.02004653375 | AH14: 2.960579823 | AI14: 2.860585269
R15: 7.077085039 | S15: 2.663943159 | Z15: 7.499213844 | AA15: 3.058509229 | AF15: 0.5833333333 | AG15: 0.02257208109 | AH15: 4.198095335 | AI15: 3.094987973
R16: 8.060804101 | S16: 2.878445771 | Z16: 8.354543532 | AA16: 3.302484567 | AF16: 0.7499999999 | AG16: 0.02593947754 | AH16: 5.548356443 | AI16: 3.273530873
R17: 8.74924755 | S17: 3.092948383 | Z17: 8.93383808 | AA17: 3.437478491 | AF17: 0.9166666666 | AG17: 0.0301487231 | AH17: 6.970387358 | AI17: 3.48312634
R18: 9.209543352 | S18: 3.307450996 | Z18: 9.317705491 | AA18: 3.552244313 | AF18: 1.083333333 | AG18: 0.03519981777 | AH18: 8.440223346 | AI18: 3.674415939
R19: 9.507817678 | S19: 3.521953608 | Z19: 9.569224015 | AA19: 3.823462932 | AF19: 1.25 | AG19: 0.04109276156 | AH19: 9.957522729 | AI19: 3.877844612
R20: 9.697492323 | S20: 3.73645622 | Z20: 9.734132989 | AA20: 3.890552101 | AF20: 1.416666667 | AG20: 0.04782755445 | AH20: 11.52782908 | AI20: 4.087831509
R21: 9.817288881 | S21: 3.950958833 | Z21: 9.844379556 | AA21: 4.301452426 | AF21: 1.583333333 | AG21: 0.05540419646 | AH21: 13.14204026 | AI21: 4.259504498
R22: 9.893679463 | S22: 4.165461445 | Z22: 9.922195006 | AA22: 4.118029908 | AF22: 1.75 | AG22: 0.06382268758 | AH22: 14.76872213 | AI22: 4.483821406
R23: 9.94438498 | S23: 4.379964057 | Z23: 9.983671769 | AA23: 4.422237527 | AF23: 1.916666666 | AG23: 0.07308302782 | AH23: 16.35673224 | AI23: 4.682407754
R24: 9.981525144 | S24: 4.59446667 | Z24: 10.04170013 | AA24: 4.84088184 | AF24: 2.083333333 | AG24: 0.08318521716 | AH24: 17.84478189 | AI24: 4.889359112
R25: 10.01412927 | S25: 4.808969282 | Z25: 10.10847528 | AA25: 5.186426034 | AF25: 2.25 | AG25: 0.09412925562 | AH25: 19.18178251 | AI25: 5.096008105
R26: 10.05016139 | S26: 5.023471894 | Z26: 10.19789359 | AA26: 5.192309473 | AF26: 2.416666666 | AG26: 0.105915143 | AH26: 20.35166759 | AI26: 5.295324571
R27: 10.09834473 | S27: 5.237974507 | Z27: 10.32816437 | AA27: 5.379642426 | AF27: 2.583333333 | AG27: 0.1180033645 | AH27: 21.38416074 | AI27: 5.501157879
R28: 10.17008068 | S28: 5.452477119 | Z28: 10.52489159 | AA28: 5.567468463 | AF28: 2.75 | AG28: 0.1282793109 | AH28: 22.34268564 | AI28: 5.68758888
R29: 10.28169442 | S29: 5.666979731 | Z29: 10.82464167 | AA29: 5.768165195 | AF29: 2.916666666 | AG29: 0.1362249748 | AH29: 23.29700056 | AI29: 5.878136282
R30: 10.45702535 | S30: 5.881482344 | Z30: 11.27838639 | AA30: 6.083274782 | AF30: 3.083333333 | AG30: 0.141840356 | AH30: 24.29234983 | AI30: 6.093405653
R31: 10.72979394 | S31: 6.095984956 | Z31: 11.9528484 | AA31: 6.221641944 | AF31: 3.25 | AG31: 0.1451254546 | AH31: 25.32645341 | AI31: 6.30686813
R32: 11.14387525 | S32: 6.310487568 | Z32: 12.92550991 | AA32: 6.444165719 | AF32: 3.416666666 | AG32: 0.1460802705 | AH32: 26.34764129 | AI32: 6.490152638
R33: 11.74754026 | S33: 6.524990181 | Z33: 14.26695811 | AA33: 6.617015243 | AF33: 3.583333333 | AG33: 0.1447048039 | AH33: 27.28032907 | AI33: 6.698478665
R34: 12.57654482 | S34: 6.739492793 | Z34: 16.00653643 | AA34: 6.827692766 | AF34: 3.75 | AG34: 0.1409990547 | AH34: 28.06266316 | AI34: 6.892121522
R35: 13.62577297 | S35: 6.953995405 | Z35: 18.09035054 | AA35: 6.995160621 | AF35: 3.916666666 | AG35: 0.1349630228 | AH35: 28.66974633 | AI35: 7.086581212
R36: 14.82449173 | S36: 7.168498018 | Z36: 20.36169307 | AA36: 7.224291505 | AF36: 4.083333333 | AG36: 0.1265967084 | AH36: 29.11192482 | AI36: 7.302716183
R37: 16.04375501 | S37: 7.38300063 | Z37: 22.59629315 | AA37: 7.536992695 | AF37: 4.25 | AG37: 0.1159001113 | AH37: 29.4190841 | AI37: 7.518335162
R38: 17.14578693 | S38: 7.597503242 | Z38: 24.58374964 | AA38: 7.631283509 | AF38: 4.416666666 | AG38: 0.1028732316 | AH38: 29.62547963 | AI38: 7.703871614
R39: 18.04053507 | S39: 7.812005855 | Z39: 26.19894609 | AA39: 7.783174753 | AF39: 4.583333333 | AG39: 0.08754548137 | AH39: 29.76118141 | AI39: 7.908323363
R40: 18.70589916 | S40: 8.026508467 | Z40: 27.41820278 | AA40: 7.982534103 | AF40: 4.75 | AG40: 0.07229986912 | AH40: 29.84931106 | AI40: 8.114990925
R41: 19.1692104 | S41: 8.241011079 | Z41: 28.28845808 | AA41: 8.284776761 | AF41: 4.916666666 | AG41: 0.06123774979 | AH41: 29.90638508 | AI41: 8.250635592
R42: 19.47751251 | S42: 8.455513692 | Z42: 28.88541472 | AA42: 8.406075494 | AF42: 5.083333333 | AG42: 0.05476429407 | AH42: 29.94375132 | AI42: 8.572292406
R43: 19.67695819 | S43: 8.670016304 | Z43: 29.28436695 | AA43: 8.629469608 | AF43: 5.25 | AG43: 0.05287950198 | AH43: 29.9691216 | AI43: 8.673532361
R44: 19.80437389 | S44: 8.884518916 | Z44: 29.54724814 | AA44: 8.797675061 | AF44: 5.416666666 | AG44: 0.0555833735 | AH44: 29.98785839 | AI44: 8.949234132
R45: 19.88633449 | S45: 9.099021529 | Z45: 29.72026474 | AA45: 9.096011711 | AF45: 5.583333333 | AG45: 0.06287590864 | AH45: 30.00398196 | AI45: 9.184584567
R46: 19.94123643 | S46: 9.313524141 | Z46: 29.83625627 | AA46: 9.084790752 | AF46: 5.749999999 | AG46: 0.0747571074 | AH46: 30.02097933 | AI46: 9.201918642
R47: 19.98197612 | S47: 9.528026753 | Z47: 29.91833706 | AA47: 9.400064428 | AF47: 5.916666666 | AG47: 0.09122696978 | AH47: 30.04253083 | AI47: 9.554593925
R48: 20.01839771 | S48: 9.742529366 | Z48: 29.98338512 | AA48: 9.450654773 | AF48: 6.083333333 | AG48: 0.1122854958 | AH48: 30.07328099 | AI48: 9.73971454
R49: 20.05944114 | S49: 9.957031978 | Z49: 30.04504039 | AA49: 9.811774595 | AF49: 6.249999999 | AG49: 0.1378895615 | AH49: 30.11979206 | AI49: 9.921328281
R50: 20.11523663 | S50: 10.17153459 | Z50: 30.11636002 | AA50: 10.28451778 | AF50: 6.416666666 | AG50: 0.165389989 | AH50: 30.19183496 | AI50: 10.1180939
R51: 20.19953623 | S51: 10.3860372 | Z51: 30.21247405 | AA51: 10.2945364 | AF51: 6.583333333 | AG51: 0.1906446476 | AH51: 30.30418158 | AI51: 10.34027488
R52: 20.33299864 | S52: 10.60053982 | Z52: 30.35368706 | AA52: 10.52178175 | AF52: 6.749999999 | AG52: 0.2132929956 | AH52: 30.4790272 | AI52: 10.52651412
R53: 20.54801592 | S53: 10.81504243 | Z53: 30.56957083 | AA53: 10.62772623 | AF53: 6.916666666 | AG53: 0.2333350328 | AH53: 30.74902797 | AI53: 10.71671407
R54: 20.89602407 | S54: 11.02954504 | Z54: 30.90471747 | AA54: 10.91523511 | AF54: 7.083333333 | AG54: 0.2507707593 | AH54: 31.16063285 | AI54: 10.92176638
R55: 21.45862215 | S55: 11.24404765 | Z55: 31.4269608 | AA55: 11.08491446 | AF55: 7.249999999 | AG55: 0.2656001751 | AH55: 31.77710976 | AI55: 11.12364183
R56: 22.36465259 | S56: 11.45855026 | Z56: 32.23900151 | AA56: 11.22637246 | AF56: 7.416666666 | AG56: 0.2778232801 | AH56: 32.6814223 | AI56: 11.33513084
R57: 23.81828448 | S57: 11.67305288 | Z57: 33.49463551 | AA57: 11.38501655 | AF57: 7.583333333 | AG57: 0.2863626838 | AH57: 33.98339205 | AI57: 11.51566154
R58: 26.15466627 | S58: 11.88755549 | Z58: 35.42225562 | AA58: 11.6766707 | AF58: 7.749999999 | AG58: 0.2869693764 | AH58: 35.84640703 | AI58: 11.74212336
R59: 29.98321673 | S59: 12.1020581 | Z59: 38.36541795 | AA59: 11.80534913 | AF59: 7.916666666 | AG59: 0.2785960319 | AH59: 38.56744421 | AI59: 11.91912719
R60: 36.64380689 | S60: 12.31656071 | Z60: 42.87750342 | AA60: 12.00734264 | AF60: 8.083333333 | AG60: 0.26124265 | AH60: 42.78070786 | AI60: 12.13457903
R61: 50 | S61: 12.53106333 | Z61: 50 | AA61: 12.22353936 | AF61: 8.249999999 | AG61: 0.234909231 | AH61: 49.99999998 | AI61: 12.32998402
AF62: 8.416666666 | AG62: 0.2033027146
AF63: 8.583333333 | AG63: 0.1882217493
AF64: 8.749999999 | AG64: 0.1976083301
AF65: 8.916666666 | AG65: 0.2323696762
AF66: 9.083333333 | AG66: 0.3279583662
AF67: 9.249999999 | AG67: 0.5307958606
AF68: 9.416666666 | AG68: 0.8420478352
AF69: 9.583333332 | AG69: 1.259383024
AF70: 9.749999999 | AG70: 1.826495889
AF71: 9.916666666 | AG71: 2.396461907
AF72: 10.08333333 | AG72: 2.46754174
AF73: 10.25 | AG73: 1.884272245
AF74: 10.41666667 | AG74: 1.308785529
AF75: 10.58333333 | AG75: 0.9215725689
AF76: 10.75 | AG76: 0.701496902
AF77: 10.91666667 | AG77: 0.6013006834
AF78: 11.08333333 | AG78: 0.5113257393
AF79: 11.25 | AG79: 0.4084106069
AF80: 11.41666667 | AG80: 0.3091759878
AF81: 11.58333333 | AG81: 0.2396365981
AF82: 11.75 | AG82: 0.2020600516
AF83: 11.91666667 | AG83: 0.1963004493
AF84: 12.08333333 | AG84: 0.2093363975
AF85: 12.25 | AG85: 0.2180511561
AF86: 12.41666667 | AG86: 0.2200688055
AF87: 12.58333333 | AG87: 0.2153893455
AF88: 12.75 | AG88: 0.2040127763
AF89: 12.91666667 | AG89: 0.1860873988
AF90: 13.08333333 | AG90: 0.1660520839
AF91: 13.25 | AG91: 0.1490052407
AF92: 13.41666667 | AG92: 0.1352278721
AF93: 13.58333333 | AG93: 0.1247199779
AF94: 13.75 | AG94: 0.1174815583
AF95: 13.91666667 | AG95: 0.1135126132
AF96: 14.08333333 | AG96: 0.1128131426
AF97: 14.25 | AG97: 0.1153373972
AF98: 14.41666667 | AG98: 0.119288358
AF99: 14.58333333 | AG99: 0.1223208664
AF100: 14.75 | AG100: 0.1242771038
AF101: 14.91666667 | AG101: 0.1251570701
AF102: 15.08333333 | AG102: 0.1249607655
AF103: 15.25 | AG103: 0.1236881899
AF104: 15.41666667 | AG104: 0.1213393432
AF105: 15.58333333 | AG105: 0.1179142255
AF106: 15.75 | AG106: 0.1134128368
AF107: 15.91666667 | AG107: 0.1078351771
AF108: 16.08333333 | AG108: 0.1014433853
AF109: 16.25 | AG109: 0.09541705956
AF110: 16.41666667 | AG110: 0.0900878537
AF111: 16.58333333 | AG111: 0.08545578552
AF112: 16.75 | AG112: 0.08152085504
AF113: 16.91666667 | AG113: 0.07828306224
AF114: 17.08333333 | AG114: 0.07574240714
AF115: 17.25 | AG115: 0.07389888972
AF116: 17.41666667 | AG116: 0.07275251
AF117: 17.58333333 | AG117: 0.07230326796
AF118: 17.75 | AG118: 0.07255116362
AF119: 17.91666667 | AG119: 0.07349619696
AF120: 18.08333333 | AG120: 0.07513352033
AF121: 18.25 | AG121: 0.07732606193
AF122: 18.41666667 | AG122: 0.07992082823
AF123: 18.58333333 | AG123: 0.08290977517
AF124: 18.75 | AG124: 0.08629290273
AF125: 18.91666667 | AG125: 0.09007021094
AF126: 19.08333333 | AG126: 0.09424169977
AF127: 19.25 | AG127: 0.09880736924
AF128: 19.41666666 | AG128: 0.1037672193
AF129: 19.58333333 | AG129: 0.1091212501
AF130: 19.75 | AG130: 0.1148694615
AF131: 19.91666666 | AG131: 0.1210118535
AF132: 20.08333333 | AG132: 0.1275484261
AF133: 20.25 | AG133: 0.1344791794
AF134: 20.41666666 | AG134: 0.1416079782
AF135: 20.58333333 | AG135: 0.1476165034
AF136: 20.75 | AG136: 0.1519615936
AF137: 20.91666666 | AG137: 0.1546415577
AF138: 21.08333333 | AG138: 0.1556563957
AF139: 21.25 | AG139: 0.1550061077
AF140: 21.41666666 | AG140: 0.1526906937
AF141: 21.58333333 | AG141: 0.1487101535
AF142: 21.75 | AG142: 0.1430644873
AF143: 21.91666666 | AG143: 0.1357536951
AF144: 22.08333333 | AG144: 0.1267777768
AF145: 22.25 | AG145: 0.1161367324
AF146: 22.41666666 | AG146: 0.103830562
AF147: 22.58333333 | AG147: 0.08990605211
AF148: 22.75 | AG148: 0.07596402325
AF149: 22.91666666 | AG149: 0.06396599533
AF150: 23.08333333 | AG150: 0.05403182987
AF151: 23.25 | AG151: 0.04616152687
AF152: 23.41666666 | AG152: 0.04035508634
AF153: 23.58333333 | AG153: 0.03661250827
AF154: 23.75 | AG154: 0.03493379266
AF155: 23.91666666 | AG155: 0.03531893951
AF156: 24.08333333 | AG156: 0.03776794883
AF157: 24.25 | AG157: 0.0422808206
AF158: 24.41666666 | AG158: 0.04885755484
AF159: 24.58333333 | AG159: 0.05743951294
AF160: 24.75 | AG160: 0.06666205545
AF161: 24.91666666 | AG161: 0.07515162161
AF162: 25.08333333 | AG162: 0.08284778854
AF163: 25.25 | AG163: 0.08975055624
AF164: 25.41666666 | AG164: 0.0958599247
AF165: 25.58333333 | AG165: 0.1011758939
AF166: 25.75 | AG166: 0.1056984639
AF167: 25.91666666 | AG167: 0.1094276347
AF168: 26.08333333 | AG168: 0.1123634063
AF169: 26.25 | AG169: 0.1150820539
AF170: 26.41666666 | AG170: 0.1217571888
AF171: 26.58333333 | AG171: 0.1342265248
AF172: 26.75 | AG172: 0.1524980479
AF173: 26.91666666 | AG173: 0.1765717581
AF174: 27.08333333 | AG174: 0.2064476554
AF175: 27.25 | AG175: 0.2421257398
AF176: 27.41666666 | AG176: 0.2831092296
AF177: 27.58333333 | AG177: 0.3174620294
AF178: 27.75 | AG178: 0.3329575733
AF179: 27.91666666 | AG179: 0.3290409747
AF180: 28.08333333 | AG180: 0.3057122337
AF181: 28.25 | AG181: 0.2631675792
AF182: 28.41666666 | AG182: 0.221177759
AF183: 28.58333333 | AG183: 0.216170025
AF184: 28.75 | AG184: 0.2520671414
AF185: 28.91666666 | AG185: 0.3291585491
AF186: 29.08333333 | AG186: 0.4505666449
AF187: 29.25 | AG187: 0.6186778601
AF188: 29.41666666 | AG188: 0.8727041389
AF189: 29.58333333 | AG189: 1.276482897
AF190: 29.75 | AG190: 1.804852198
AF191: 29.91666666 | AG191: 2.39310214
AF192: 30.08333333 | AG192: 2.497335706
AF193: 30.25 | AG193: 1.922548638
AF194: 30.41666666 | AG194: 1.300608883
AF195: 30.58333333 | AG195: 0.8962541953
AF196: 30.75 | AG196: 0.6510752162
AF197: 30.91666666 | AG197: 0.4778017078
AF198: 31.08333333 | AG198: 0.3557186872
AF199: 31.25 | AG199: 0.2696838514
AF200: 31.41666666 | AG200: 0.2188126967
AF201: 31.58333333 | AG201: 0.1897248092
AF202: 31.75 | AG202: 0.1666976541
AF203: 31.91666666 | AG203: 0.148832152
... 108 more rows

Sheet Database (hidden)
C1: Database of dissociation constants of acids / protonation constants of bases
B2: Most constants in this compilation of ~250 systems – but not all – were obtained at 25o C and are thermodynamic ones (I=0), as required by the pH_calc, Simulation and Regression modules.
B3: No guarantee is given that the compiled pKas or the calculations made with CurTiPot are correct or accurate. CurTiPot takes in account only protonation equilibria but other chemical reactions will occur for many combinations of two or more of the listed systems.
B4: More systems, e.g., from the sources given next, can be added: a) at the end of the list; b) in alphabetic order by inserting line(s) and updating the sequential numbering (column B).
B5: Larger compilations of equilibrium constants and examples of on-line literature on acid-base equilibrium
B6: SC-Database - Stability (equilibrium) constants database (from 1887 on, including IUPAC database) | I6: http://www.acadsoft.co.uk/scdbase/scdbase.htm | M6: Tutorial on acids and bases (and other) equilibria | S6: http://www.asdlib.org/onlineArticles/ecourseware/Text_Files_files/Chapter6.pdf
B7: Dissociation constants of inorganic and organic compounds (compilation with 33 pages) | I7: http://research.chem.psu.edu/brpgroup/pKa_compilation.pdf | M7: Tutorial on titrations of acids and bases | S7: http://www.asdlib.org/onlineArticles/ecourseware/Text_Files_files/Chapter9.pdf
B8: Dissociation constants of organic compounds (~600 compounds) | I8: http://www.zirchrom.com/organic.htm | M8: Measurement of pH. Definitions, Standards and Procedures (IUPAC - 2002) | S8: http://www.iupac.org/publications/pac/2002/pdf/7411x2169.pdf
B9: Computer calculated pKa values of any compound (by chemical name, CAS #, etc.) | I9: http://www.chemicalize.org/ | M9: Temperature dependence of potassium hydrogen phtalate 0.05 mol/kg buffer | S9: http://nvl.nist.gov/pub/nistpubs/jres/081/1/V81.N01.A03.pdf
B10: Martell, A. E., Smith, R. M., Critical Stability Constants, Vol. 1–4. Plenum Press: New York, 1976. | M10: Primary standard buffer solutions pH at various temperatures | S10: http://nvl.nist.gov/pub/nistpubs/jres/066/2/V66.N02.A06.pdf
B11: Perrin, D. D., Dissociation Constants of Organic Bases in Aqueous Solution, Butterworths, London, 1965; Supplement, 1972. | M11: Water, hydrogen ion, hydroxide ion structures, properties, Kw, pH | S11: http://www1.lsbu.ac.uk/water/hydrogen_ions.html
B12: Serjeant, E. P., and Dempsey, B., Ionization Constants of Organic Acids in Aqueous Solution, Pergamon, Oxford, 1979.
B13: Albert, A., "Ionization Constants of Heterocyclic Substances", in Physical Methods in Heterocyclic Chemistry, Katritzky, A. R., Ed., Academic Press, New York, 1963. | M13: Conversion of dissociation constants of acids into protonation constants of their conjugated bases
B14: Perrin, D. D., Dempsey, B., and Serjeant, E. P., pKa Prediction for Organic Acids and Bases, Chapman & Hall, London, 1981. | M14: pKa1 = logKpn | N14: pKa4 = logKpn-3
B15: Dawson, R. M. C., Elliot, D. C., Elliot, W. H., and Jones, K. M., Data for Biochemical Research, Oxford Science Publications, Oxford, 1986. | M15: pKa2 = logKpn-1 | N15: pKa5 = logKpn-4 | P15: Overall protonation constants = bp = SKp
B16: Acid base indicators - pKas, color transitions, etc. | M16: pKa3 = logKpn-2 | N16: pKa6 = logKpn-5
B17: Estimation of activity coefficients, gi, within CurTiPot - Davies equation: | J17: Ionic strength =
C19: Acid or Base | D19: Charge, fully | K19: Temperat. | L19: Ionic | N19: Molar mass
D20: deprotonated | E20: pKa1 | F20: pKa2 | G20: pKa3 | H20: pKa4 | I20: pKa5 | J20: pKa6 | K20: ºC | L20: strength | M20: Formula | N20: g/mol
C21: F R E Q U E N T L Y U S E D
B22: 1 | C22: Acetic acid | D22: -1 | E22: 4.757 | K22: 25 | L22: 0 | M22: CH3COOH | N22: 60.052
B23: 2 | C23: Ammonia | D23: 0 | E23: 9.244 | K23: 25 | L23: 0 | M23: NH3 | N23: 17.026
B24: 3 | C24: Carbonic acid | D24: -2 | E24: 6.352 | F24: 10.329 | K24: 25 | L24: 0 | M24: H2CO3
B25: 4 | C25: Citric acid | D25: -3 | E25: 3.128 | F25: 4.761 | G25: 6.396 | K25: 25 | L25: 0 | M25: H3C6H5O7 | N25: 192.027
B26: 5 | C26: EDTA | D26: -4 | E26: -0.21 | F26: 1.5 | G26: 2.21 | H26: 3.11 | I26: 6.75 | J26: 11.03 | K26: 25 | L26: 0 | M26: C10H16N2O8 | N26: 292.09
B27: 6 | C27: HCl | D27: -1 | E27: -7 | K27: 25 | L27: 0 | M27: HCl
B28: 7 | C28: Hydroxide ion | D28: -1 | E28: 15.745 | K28: 25 | L28: 0 | M28: NaOH
B29: 8 | C29: Phosphoric acid | D29: -3 | E29: 2.148 | F29: 7.199 | G29: 12.35 | K29: 25 | L29: 0 | M29: H3PO4 | N29: 97.976
B30: 9 | D30: 0 | E30: 0
B31: 10 | D31: 0 | E31: 0
B32: 11 | C32: A L P H A B E T I C O R D E R | E32: Insert new lines anywere to add more systems; renumber column B | K32: Find more values in the references and links
B33: 12 | C33: Acetamide | D33: 0 | E33: 0.63 | K33: 25 | L33: 0 | M33: C2H5NO | N33: 59.067
B34: 13 | C34: Acetic acid | D34: -1 | E34: 4.757 | K34: 25 | L34: 0 | M34: CH3COOH | N34: 60.052
B35: 14 | C35: Acetoacetic acid | D35: -1 | E35: 3.58 | K35: 18 | L35: 0 | M35: C4H6O3 | N35: 102.089
B36: 15 | C36: Acrylic acid | D36: -1 | E36: 4.25 | K36: 25 | L36: 0 | M36: C3H4O2 | N36: 72.063
B37: 16 | C37: Adipic acid | D37: -2 | E37: 4.43 | F37: 5.41 | K37: 25 | L37: 0 | M37: C6H10O4 | N37: 146.143
B38: 17 | C38: Alanine | D38: -1 | E38: 2.348 | F38: 9.867 | K38: 25 | L38: 0 | M38: C3H7NO2 | N38: 89.094
B39: 18 | C39: Aminobenzene = aniline | D39: 0 | E39: 4.6 | K39: 25 | L39: 0 | M39: C6H7N | N39: 93.13
B40: 19 | C40: 2-Aminobenzoic acid | D40: -1 | E40: 2.108 | F40: 4.946 | K40: 25 | L40: 0 | M40: C7H7NO2 | N40: 137.138
B41: 20 | C41: 4-Animobenzoic acid | D41: -1 | E41: 2.501 | F41: 4.874 | K41: 25 | L41: 0 | M41: C7H7NO2 | N41: 137.138
B42: 21 | C42: 2-Aminobutanoic acid | D42: -1 | E42: 2.29 | F42: 9.83 | K42: 25 | L42: 0 | M42: C4H9NO2
B43: 22 | C43: 6-Aminohexanoic acid | D43: -1 | E43: 4.373 | F43: 10.804 | K43: 25 | L43: 0 | M43: C6H13NO2
B44: 23 | C44: 5-Aminopentanoic acid | D44: -1 | E44: 4.27 | F44: 10.766 | K44: 25 | L44: 0 | M44: C5H11NO2
B45: 24 | C45: 2-Aminophenol | D45: -1 | E45: 4.78 | F45: 9.97 | K45: 20 | L45: 0 | M45: C6H7NO
B46: 25 | C46: b-Alanine | D46: -1 | E46: 3.55 | F46: 10.24 | K46: 25 | L46: 0 | M46: C3H7NO2
B47: 26 | C47: Ammonia | D47: 0 | E47: 9.244 | K47: 25 | L47: 0 | M47: NH3 | N47: 17.026
B48: 27 | C48: Aniline | D48: 0 | E48: 4.63 | K48: 25 | L48: 0 | M48: C6H7N
B49: 28 | C49: Arginine | D49: -1 | E49: 1.823 | F49: 8.991 | G49: 12.48 | K49: 25 | L49: 0 | M49: C6H14N4O2
B50: 29 | C50: Arsenic acid | D50: -3 | E50: 2.24 | F50: 6.96 | G50: 11.5 | K50: 25 | L50: 0 | M50: H3AsO4
B51: 30 | C51: Arsenous acid | D51: -1 | E51: 9.22 | L51: 0 | M51: H3AsO3
B52: 31 | C52: Ascorbic acid | D52: -2 | E52: 4.1 | F52: 11.79 | K52: 24 | L52: 0 | M52: C6H8O6
B53: 32 | C53: Asparagine | D53: -1 | E53: 2.14 | F53: 8.93 | K53: 25 | L53: 0 | M53: C4H8N2O3
B54: 33 | C54: Aspartic acid | D54: -2 | E54: 1.99 | F54: 3.9 | G54: 10.002 | K54: 25 | L54: 0 | M54: C4H7NO4
B55: 34 | C55: Barbital | D55: 0 | E55: 7.43 | K55: 25 | L55: 0 | M55: C8H12N2O3 | N55: 184.19
B56: 35 | C56: Barbituric acid | D56: -1 | E56: 4.01 | K56: 25 | L56: 0 | M56: C4H4N2O3 | N56: 128.09
B57: 36 | C57: Benzenesulfonic acid | D57: -1 | E57: 0.7 | K57: 25 | L57: 0 | M57: C6H6O3S
B58: 37 | C58: Benzoic acid | D58: -1 | E58: 4.19 | K58: 25 | L58: 0 | M58: C7H6O2
B59: 38 | C59: Benzylamine | D59: 0 | E59: 9.33 | K59: 25 | L59: 0 | M59: C7H9N
B60: 39 | C60: 2-Benzylpyridine | D60: 0 | E60: 5.13 | K60: 25 | L60: 0 | M60: C12H11N
B61: 40 | C61: Betaine | D61: -1 | E61: 1.83 | K61: 0 | L61: 0 | M61: C5H11NO2
B62: 41 | C62: Boric acid | D62: -3 | E62: 9.236 | F62: 12.74 | G62: 13.8 | K62: 20 | L62: 0 | M62: H3BO3
B63: 42 | C63: Butanoic acid | D63: -1 | E63: 4.83 | K63: 25 | L63: 0 | M63: C4H8O2
B64: 43 | C64: 3-Butenoic acid | D64: -1 | E64: 4.34 | K64: 25 | L64: 0 | M64: C4H6O2
B65: 44 | C65: Butylamine | D65: 0 | E65: 10.77 | K65: 20 | L65: 0 | M65: C4H11N
B66: 45 | C66: sec-Butylamine | D66: 0 | E66: 10.56 | K66: 25 | L66: 0 | M66: C4H11N
B67: 46 | C67: tert-Butylamine | D67: 0 | E67: 10.68 | K67: 25 | L67: 0 | M67: C4H11N
B68: 47 | C68: Cadaverine | D68: 0 | E68: 10.05 | F68: 10.93 | K68: 25 | L68: 0 | M68: C5H14N2
B69: 48 | C69: Carbonic acid | D69: -2 | E69: 6.352 | F69: 10.329 | K69: 25 | L69: 0 | M69: H2CO3
B70: 49 | C70: Catechol | D70: -2 | E70: 9.4 | F70: 12.8 | K70: 25 | L70: 0 | M70: C6H4(OH)2 | N70: 110.1
B71: 50 | C71: Chloroacetic acid | D71: -1 | E71: 2.865 | K71: 25 | L71: 0 | M71: ClCH2COOH
B72: 51 | C72: 2-Chloroaniline | D72: 0 | E72: 2.65 | K72: 25 | L72: 0 | M72: C6H6CIN
B73: 52 | C73: 3-Chloroaniline | D73: 0 | E73: 3.46 | K73: 25 | L73: 0 | M73: C6H6CIN
B74: 53 | C74: 4-Chloroaniline | D74: 0 | E74: 4.15 | K74: 25 | L74: 0 | M74: C6H6CIN
B75: 54 | C75: 2-Chlorobenzoic acid | D75: -1 | E75: 2.92 | K75: 25 | L75: 0 | M75: C7H5CIO2
B76: 55 | C76: 3-Chlorobenzoic acid | D76: -1 | E76: 3.82 | K76: 25 | L76: 0 | M76: C7H5CIO2
B77: 56 | C77: 4-Chlorobenzoic acid | D77: -1 | E77: 3.98 | K77: 25 | L77: 0 | M77: C7H5CIO2
B78: 57 | C78: 3-Chlorophenol | D78: -1 | E78: 8.85 | K78: 25 | L78: 0 | M78: C6H5CIO
B79: 58 | C79: 4-Chlorophenol | D79: -1 | E79: 9.18 | K79: 25 | L79: 0 | M79: C6H5CIO
B80: 59 | C80: 2-Chlorophenol | D80: -1 | E80: 8.49 | K80: 25 | L80: 0 | M80: C6H5CIO
B81: 60 | C81: Choline | D81: 0 | E81: 13.9 | K81: 25 | L81: 0 | M81: C5H14NO
B82: 61 | C82: Chromic acid | D82: -2 | E82: -0.2 | F82: 6.51 | K82: 20 | L82: 0 | M82: H2CrO4
B83: 62 | C83: Citric acid | D83: -3 | E83: 3.128 | F83: 4.761 | G83: 6.396 | K83: 25 | L83: 0 | M83: H3C6H5O7
B84: 63 | C84: Codeine | D84: 0 | E84: 8.21 | K84: 25 | L84: 0 | M84: C18H21NO3
B85: 64 | C85: Creatinine | D85: 0 | E85: 4.83 | F85: 9.2 | K85: 25 | L85: 0 | M85: C4H7N3O
B86: 65 | C86: m-Cresol | D86: -1 | E86: 10.01 | K86: 25 | L86: 0 | M86: C7H8O
B87: 66 | C87: O-Cresol | D87: -1 | E87: 10.2 | K87: 25 | L87: 0 | M87: C7H8O
B88: 67 | C88: p-Cresol | D88: -1 | E88: 10.17 | K88: 25 | L88: 0 | M88: C7H8O
B89: 68 | C89: Cupferron | D89: -1 | E89: 4.37 | K89: 25 | L89: 0 | M89: C6H6N2O
B90: 69 | C90: Cyanic acid | D90: -1 | E90: 3.46 | M90: HCNO
B91: 70 | C91: Cysteine | D91: -2 | E91: 1.71 | F91: 8.36 | G91: 10.77 | K91: 25 | L91: 0 | M91: C3H7NO2S
B92: 71 | C92: Decylamine | D92: 0 | E92: 10.64 | K92: 25 | L92: 0 | M92: C10H23N
B93: 72 | C93: 2,4-Diaminobutanoic acid | D93: -1 | E93: 1.85 | F93: 8.24 | G93: 10.44 | K93: 25 | L93: 0 | M93: C4H10N2O2
B94: 73 | C94: Dichloroacetic acid | D94: -1 | E94: 1.3 | K94: 25 | L94: 0 | M94: Cl2CHCOOH
B95: 74 | C95: 2,3-Dichlorophenol | D95: -1 | E95: 7.46 | K95: 25 | L95: 0 | M95: C6H4Cl2O
B96: 75 | C96: Diethylamine | D96: 0 | E96: 10.933 | K96: 25 | L96: 0 | M96: (CH3CH2)2NH
B97: 76 | C97: Diisopropylamine | D97: 0 | E97: 11.05 | K97: 25 | L97: 0 | M97: C6H15N
B98: 77 | C98: Dimethylamine | D98: 0 | E98: 10.774 | K98: 25 | L98: 0 | M98: (CH3)2NH
B99: 78 | C99: Dimethylglyoxime | D99: -2 | E99: 10.66 | F99: 12 | K99: 25 | L99: 0 | M99: C4H12O2N2
B100: 79 | C100: 2,3-Dimethylpyridine | D100: 0 | E100: 6.58 | K100: 25 | L100: 0 | M100: C7H9N
B101: 80 | C101: 2,4-Dimethylpyridine | D101: 0 | E101: 6.99 | K101: 25 | L101: 0 | M101: C7H9N
B102: 81 | C102: 2,5-Dmethylpyridine | D102: 0 | E102: 6.4 | K102: 25 | L102: 0 | M102: C7H9N
B103: 82 | C103: 2,6-Dimethylpyridine | D103: 0 | E103: 6.65 | K103: 25 | L103: 0 | M103: C7H9N
B104: 83 | C104: 3,4-Dimethylpyridine | D104: 0 | E104: 6.46 | K104: 25 | L104: 0 | M104: C7H9N
B105: 84 | C105: 3.5-Dimethylpyridine | D105: 0 | E105: 6.15 | K105: 25 | L105: 0 | M105: C7H9N
B106: 85 | C106: Dinicotinic acid | D106: -1 | E106: 2.8 | K106: 25 | L106: 0 | M106: C7H5NO4
B107: 86 | C107: Diphenylamine | D107: 0 | E107: 0.79 | K107: 25 | L107: 0 | M107: C12H11N
B108: 87 | C108: Dipicolinic acid | D108: -2 | E108: 2.16 | F108: 4.76 | K108: 25 | L108: 0 | M108: C7H5NO4
B109: 88 | C109: Dopamine | D109: -1 | E109: 8.9 | F109: 10.6 | K109: 25 | L109: 0 | M109: C8H11NO2 | N109: 153.18
B110: 89 | C110: d-Ephedrine | D110: 0 | E110: 10.139 | K110: 10 | L110: 0 | M110: C10H15NO | N110: 165.23
B111: 90 | C111: Ethanolamine | D111: 0 | E111: 9.5 | K111: 25 | L111: 0 | M111: C2H7NO
B112: 91 | C112: Ethylamine | D112: 0 | E112: 10.636 | K112: 25 | L112: 0 | M112: CH3CH2NH2
B113: 92 | C113: Ethylenediamine | D113: 0 | E113: 6.848 | F113: 9.928 | K113: 25 | L113: 0 | M113: H2NCH2CH2NH2
B114: 93 | C114: Ethylenediaminetetraacetic acid (EDTA) | D114: -4 | E114: -0.21 | F114: 1.5 | G114: 2.21 | H114: 3.11 | I114: 6.75 | J114: 11.03 | K114: 25 | L114: 0 | M114: C10H16N2O8
B115: 94 | C115: Ethyleneimine | D115: 0 | E115: 8.01 | K115: 25 | L115: 0 | M115: C2H5N
B116: 95 | C116: 2-Ethylpyridine | D116: 0 | E116: 5.89 | K116: 25 | L116: 0 | M116: C7H9N
B117: 96 | C117: Formic acid | D117: -1 | E117: 3.745 | K117: 20 | L117: 0 | M117: HCOOH
B118: 97 | C118: Fumaric acid | D118: -2 | E118: 3.053 | F118: 4.494 | K118: 25 | L118: 0 | M118: C4H4O4 | N118: 116.07
B119: 98 | C119: L-Glutamic acid | D119: -2 | E119: 2.23 | F119: 4.42 | G119: 9.95 | K119: 25 | L119: 0 | M119: C5H9NO4 | N119: 147.13
B120: 99 | C120: L-Glutamine | D120: -1 | E120: 2.17 | F120: 9.13 | K120: 25 | L120: 0 | M120: C5H10N2O3 | N120: 146.15
B121: 100 | C121: L-Glutathione | D121: -2 | E121: 2.12 | F121: 3.59 | G121: 8.75 | H121: 9.65 | K121: 25 | L121: 0 | M121: C10H17N3O6S
B122: 101 | C122: Glyceric acid | D122: -1 | E122: 3.52 | K122: 25 | L122: 0 | M122: C3H6O4
B123: 102 | C123: Glycerol | D123: -1 | E123: 14.15 | K123: 25 | L123: 0 | M123: C3H8O3
B124: 103 | C124: Glycine | D124: -1 | E124: 2.35 | F124: 9.778 | K124: 25 | L124: 0 | M124: H2NCH2COOH | N124: 75.07
B125: 104 | C125: Glycolic acid | D125: -1 | E125: 3.831 | K125: 25 | L125: 0 | M125: HOCH2COOH
B126: 105 | C126: Glyoxylic acid | D126: -1 | E126: 3.18 | K126: 25 | L126: 0 | M126: C2H2O3
B127: 106 | C127: Heptanedioic acid | D127: -1 | E127: 4.71 | K127: 25 | L127: 0 | M127: C7H12O4
B128: 107 | C128: Heptanoic acid | D128: -1 | E128: 4.89 | K128: 25 | L128: 0 | M128: C7H14O2
B129: 108 | C129: Heptylamine | D129: 0 | E129: 10.67 | K129: 25 | L129: 0 | M129: C7H17N
B130: 109 | C130: Hexamethylenediamine | D130: 0 | E130: 11.857 | F130: 10.762 | K130: 0 | L130: 0 | M130: C6H16N2
B131: 110 | C131: Hexanoic acid | D131: -1 | E131: 4.85 | K131: 25 | L131: 0 | M131: C6H12O2
B132: 111 | C132: Hexylamine | D132: 0 | E132: 10.56 | K132: 25 | L132: 0 | M132: C6H15N
B133: 112 | C133: Histamine | D133: 0 | E133: 6.04 | F133: 9.75 | K133: 25 | L133: 0 | M133: C5H9N3
B134: 113 | C134: Histidine | D134: -1 | E134: 1.49 | F134: 6.02 | G134: 9.29 | K134: 25 | L134: 0 | M134: C6H9N3O2
B135: 114 | C135: Hydrazine | D135: 0 | E135: 8.07 | K135: 30 | M135: N2H4
B136: 115 | C136: Hydroazoic | D136: -1 | E136: 4.72 | M136: HN3
B137: 116 | C137: Hydrogen bromide | D137: -1 | E137: -9 | K137: 25 | L137: 0 | M137: HI
B138: 117 | C138: Hydrogen chloride | D138: -1 | E138: -7 | K138: 25 | L138: 0 | M138: HCl
B139: 118 | C139: Hydrogen chromate ion | D139: -1 | E139: 6.52 | M139: HCrO4-
B140: 119 | C140: Hydrogen cyanide | D140: -1 | E140: 9.21 | K140: 25 | L140: 0 | M140: HCN
B141: 120 | C141: Hydrogen fluoride | D141: -1 | E141: 3.17 | K141: 25 | L141: 0 | M141: HF
B142: 121 | C142: Hydrogen peroxide | D142: -1 | E142: 11.65 | K142: 25 | L142: 0 | M142: H2O2
B143: 122 | C143: Hydrogen selenate ion | D143: -1 | E143: 1.66 | M143: HSeO4-
B144: 123 | C144: Hydrogen sulfide | D144: -2 | E144: 7.02 | F144: 13.9 | K144: 25 | L144: 0 | M144: H2S
B145: 124 | C145: Hydrogen thiocyanate | D145: -1 | E145: 0.9 | K145: 25 | L145: 0 | M145: HSCN
B146: 125 | C146: Hydroquinone | D146: 0 | E146: 10.35 | K146: 20 | M146: C6H6O2
B147: 126 | C147: Hydroxylamine | D147: 0 | E147: 5.96 | K147: 25 | L147: 0 | M147: NH2OH
B148: 127 | C148: m-Hydroxybenzoic acid | D148: -2 | E148: 4.06 | F148: 9.92 | K148: 19 | L148: 0 | M148: C7H6O3
B149: 128 | C149: p-Hydroxybenzoic acid | D149: -2 | E149: 4.48 | F149: 9.32 | K149: 19 | L149: 0 | M149: C7H6O3
B150: 129 | C150: 3-Hydroxypropanoic acid | D150: -1 | E150: 4.51 | K150: 25 | L150: 0 | M150: C3H6O3
B151: 130 | C151: 8-Hydroxyquinoline | D151: -1 | E151: 4.91 | F151: 9.81 | K151: 25 | L151: 0
B152: 131 | C152: Hypobromous | D152: -1 | E152: 8.63 | K152: 25 | L152: 0 | M152: HOBr
B153: 132 | C153: Hypochlorous | D153: -1 | E153: 7.53 | K153: 25 | L153: 0 | M153: HOCl
B154: 133 | C154: Hypoiodous | D154: -1 | E154: 10.64 | K154: 25 | L154: 0 | M154: HOI
B155: 134 | C155: Imidazole | D155: 0 | E155: 6.953 | K155: 25 | L155: 0 | M155: C3H4N2 | N155: 68.08
B156: 135 | C156: Iodic acid | D156: -1 | E156: 0.77 | K156: 25 | L156: 0 | M156: HIO3
B157: 136 | C157: Isocitric acid | D157: -3 | E157: 3.29 | F157: 4.71 | G157: 6.4 | K157: 25 | L157: 0 | M157: C6H8O7
B158: 137 | C158: Isoleucine | D158: -1 | E158: 2.319 | F158: 9.754 | K158: 25 | L158: 0 | M158: C6H13NO2 | N158: 131.18
B159: 138 | C159: Lactic acid | D159: -1 | E159: 3.86 | M159: HC3H5O3
B160: 139 | C160: l-Ephedrine | D160: 0 | E160: 9.958 | K160: 10 | L160: 0 | M160: C10H15NO | N160: 165.23
B161: 140 | C161: l-Leucine | D161: -1 | E161: 2.328 | F161: 9.744 | K161: 25 | L161: 0 | M161: C6H13NO2
B162: 141 | C162: Lysine | D162: -1 | E162: 1.83 | F162: 9.08 | G162: 10.9 | K162: 25 | L162: 0 | M162: C6H14N2O2
B163: 142 | C163: Maleic acid | D163: -2 | E163: 1.91 | F163: 6.332 | K163: 25 | L163: 0 | M163: C4H4O4
B164: 143 | C164: Malic acid | D164: -2 | E164: 3.459 | F164: 5.097 | K164: 25 | L164: 0 | M164: C4H6O5
B165: 144 | C165: Malonic acid | D165: -2 | E165: 2.847 | F165: 5.696 | K165: 25 | L165: 0 | M165: HOOCCH2COOH
B166: 145 | C166: Melamine = 1,3,5-triazine-2,4,6-triamine | D166: 0 | E166: 5 | K166: 25 | L166: 0 | M166: C3H6N6
B167: 146 | C167: Methionine = (S)-2-amino-4-(methylsulfanyl)-butanoic acid | D167: -1 | E167: 2.13 | F167: 9.27 | K167: 25 | L167: 0 | M167: C5H11NO2S
B168: 147 | C168: Methylamine | D168: 0 | E168: 10.63 | K168: 25 | L168: 0 | M168: CH5N | N168: 31.1
B169: 148 | C169: 2-Methylaniline = o-touidine = 2-amino-1-methylbenzene | D169: 0 | E169: 4.447 | K169: 25 | L169: 0 | M169: C7H9N | N169: 107.17
B170: 149 | C170: 4-Methylaniline = p-toluidine = 4-amino-1-methylbenzene | D170: 0 | E170: 5.084 | K170: 25 | L170: 0 | M170: C7H9N | N170: 107.17
B171: 150 | C171: 2-Methylbenzimidazole | D171: 0 | E171: 6.19 | K171: 25 | L171: 0 | M171: C8H8N2
B172: 151 | C172: 2-Methylbutanoic acid | D172: -1 | E172: 4.8 | K172: 25 | L172: 0 | M172: C5H10O2
B173: 152 | C173: 3-Methylbutanoic acid | D173: -1 | E173: 4.77 | K173: 25 | L173: 0 | M173: C5H10O2
B174: 153 | C174: Methylmalonic acid | D174: -2 | E174: 3.07 | F174: 5.76 | K174: 25 | L174: 0 | M174: C4H6O4
B175: 154 | C175: Methyl-1-naphthylamine | D175: 0 | E175: 3.67 | K175: 27 | L175: 0 | M175: C11H11N
B176: 155 | C176: 4-Methylpentanoic acid | D176: -1 | E176: 4.84 | K176: 18 | L176: 0 | M176: C6H12O2
B177: 156 | C177: 1-Methylpiperidine | D177: 0 | E177: 10.08 | K177: 25 | L177: 0 | M177: C6H13N
B178: 157 | C178: 2-Methylphenol = o-cresol | D178: -1 | E178: 10.28 | K178: 25 | L178: 0 | M178: C7H8O | N178: 108.14
B179: 158 | C179: 4-Methylphenol = p-cresol | D179: -1 | E179: 10.26 | K179: 25 | L179: 0 | M179: C7H8O | N179: 108.14
B180: 159 | C180: 2-Methylpyridine | D180: 0 | E180: 5.97 | K180: 20 | L180: 0 | M180: C6H7N
B181: 160 | C181: 3-Methylpyridine | D181: 0 | E181: 5.68 | K181: 20 | L181: 0 | M181: C6H7N
B182: 161 | C182: 4-Methylpyridine | D182: 0 | E182: 6.02 | K182: 20 | L182: 0 | M182: C6H7N
B183: 162 | C183: Morphine | D183: 0 | E183: 8.21 | K183: 25 | L183: 0 | M183: C17H19NO3
B184: 163 | C184: Morpholine | D184: 0 | E184: 8.33 | K184: 25 | L184: 0 | M184: C4H9NO
B185: 164 | C185: 1-Naphthol | D185: -1 | E185: 9.34 | K185: 25 | L185: 0 | M185: C10H8O
B186: 165 | C186: 2-Naphthol | D186: -1 | E186: 9.51 | K186: 25 | L186: 0 | M186: C10H8O
B187: 166 | C187: Nicotine | D187: 0 | E187: 3.12 | F187: 8.02 | K187: 25 | L187: 0 | M187: C10H14N2
B188: 167 | C188: Nitrilotriacetic acid | D188: -3 | E188: 1.1 | F188: 1.65 | G188: 2.94 | H188: 10.334 | K188: 20 | L188: 0
B189: 168 | C189: 2-Nitroaniline | D189: 0 | E189: -0.26 | K189: 25 | L189: 0 | M189: C6H6N2O2
B190: 169 | C190: 3-Nitroaniline | D190: 0 | E190: 2.466 | K190: 25 | L190: 0 | M190: C6H6N2O2
B191: 170 | C191: 4-Nitroaniline | D191: 0 | E191: 1 | K191: 25 | L191: 0 | M191: C6H6N2O2
B192: 171 | C192: 2-Nitrobenzoic acid | D192: -1 | E192: 2.179 | K192: 25 | L192: 0 | M192: C7H5NO4
B193: 172 | C193: 2-Nitrophenol | D193: -1 | E193: 7.21 | K193: 25 | L193: 0 | M193: C6H5NO3
B194: 173 | C194: 3-Nitrophenol | D194: -1 | E194: 8.39 | K194: 25 | L194: 0 | M194: C6H5NO3
B195: 174 | C195: 4-Nitrophenol | D195: -1 | E195: 7.15 | K195: 25 | L195: 0 | M195: C6H5NO3
B196: 175 | C196: 3-Nitrobenzoic acid | D196: -1 | E196: 3.449 | K196: 25 | L196: 0 | M196: C7H5NO4
B197: 176 | C197: 4-Nitrobenzoic acid | D197: -1 | E197: 3.442 | K197: 25 | L197: 0 | M197: C7H5NO4
B198: 177 | C198: Nitrous acid | D198: -1 | E198: 3.15 | K198: 25 | L198: 0 | M198: HNO2
B199: 178 | C199: Noradrenaline | D199: -1 | E199: 8.64 | F199: 9.7 | K199: 25 | L199: 0 | M199: C8H11NO3
B200: 179 | C200: Octadecylamine | D200: 0 | E200: 10.6 | K200: 25 | L200: 0 | M200: C18H39N
B201: 180 | C201: Octanedioic acid | D201: -1 | E201: 4.52 | K201: 25 | L201: 0 | M201: C8H14O4
... 100 more rows
